Workbook

Sheet Introduction
A1: Ohio Department of Transportation (ODOT)
A2: Intersection Control Evaluation (ICE) Tool
A3: Introduction | B3: Overview of Tool
A4: This spreadsheet was developed by ODOT to support the ICE Policy. It is a modified version of the Life-Cycle Cost Estimating Tool (LCCET) that was developed as part of NCHRP Project 03-110. The objective of NCHRP Project 3-110 was to develop a spreadsheet-based tool that can be used to compare the life-cycle costs of different intersection control strategies | B4: This spreadsheet tool provides life cycle cost comparisons between different intersection treatments. The tool incorporates the following costs: safety, vehicular delay, operations and maintenance, design and construction, and right-of-way.
A5: Maintenance | B5: Tool Guidance
A6: Version: ODOT ICE 1.4 | B6: Additional information on the original NCHRP 3-110 tool can be found in Chapter 3 of the NCHRP Project 03-110 Final Report, located here: http://www.trb.org/Main/Blurbs/173928.aspx
A7: Maintained By: ODOT Highway Safety Program
B9: http://www.trb.org/Main/Blurbs/173928.aspx
A10: Disclaimers | B10: Legend
A11: The opinions and conclusions expressed or implied in the material are those of the consultant developer. They are not necessarily those of the Ohio Department of Transportation, the Transportation Research Board, the National Academies, or the program sponsors. No warranty is made by the developers or their employer as to the accuracy, completeness, or reliability of this software and its associated equations and documentation. No responsibility is assumed by the developers for incorrect results or damages resulting from the use of this software. | C11: Required data entry field
C12: Optional data entry field
C13: Data entry field not used
B14: [Value] | C14: Automated input
B15: ABC | C15: Purple text Comment/Guidance text
C16: Cell with a comment, hover mouse to view additional guidance/instructions
B17: ABC | C17: Warning/Error text
C18: Purple tabs are for reference values only. Modifying these sheets may cause the ICE Tool to cease functioning properly.
A19: How to Use the Life-Cycle Cost Estimating Tool
A20: 1. On the OrganizationInformation sheet, provide basic project information. Analysts also select whether the project will be an at-grade intersection or ramp terminal intersections.
A21: 2. The sheet Alternatives_MasterList is used to manage alternatives. This allows the analyst to add or remove alternatives and then generates hidden sheets for calculation purposes. Analysts also enter basic information such as opening year, design year, and peak hour volumes.
A22: 2A. The DemandCounts sheet appears if an analyst chooses to enter a turning count on the Alternatives_MasterList rather than the total volume. This sheet merely sums the turning movements to compute the total volume
A23: 2B. The DemandProfiles sheet appears if an analyst chooses to show Demand Profiles on the Alternatives_MasterList. This sheet contains the hourly, daily, and monthly volume profiles that are used to estimate demand for every hour of a year based on peak hour turning movement counts from a single day. Analysts may override default provides on the sheet.
A24: 3. The sheet CostParameters contains unit costs for delay, crashes, and various operations and maintenance items. Analysts must input capital costs for design and construction and right-of-way. Analysts may override default unit costs. This sheet also contains crash prediction outputs from ECAT that are entered.
A25: 4. On the Delay sheet, analysts enter peak period delay for alternatives being analyzed.
A26: 5. The worksheet Outputs displays the net present value of each alternative and benefit-cost ratio of each alternative if a user specifies a base case. This sheet provides a plot of the results and a comparison.
A27: 6. Purple worksheet tabs are for calculations and formula references. These sheets should not be modified without a thorough knowledge of the VBA code used in the LCCET.
A28: *Note: Due to widespread use of macros throughout the tool, the "undo" functionality of Excel is not able to reverse changes related to many of the tool's computations. As such, analysts are encouraged to save often and maintain backup versions whenever necessary.
A29: ** Password for unlocking sheets: ODOT123

Sheet GHG.Costs (hidden)
A1: Greenhouse Gas Costs
A3: This worksheet is used to provide discounted greenhouse gas costs. The default values in this sheet represent the latest values from the federal government as put forth in Executive Order 12866. Note that the discount rate for greenhouse gases may differ from the discount rate used for other costs in the life cycle cost analysis.
A5: GHG costs should be in the same year dollars as the costs in the CostParameters sheet.
B7: Exec order 12866 | C7: User defined
A8: Year of valuation | B8: 2013
A9: CPI for year of valuation | B9: 233.548
A10: ="CPI for base year: " &BaseYear -> CPI for base year: 2020 | B10: 236.384
A11: Annual growth rate | B11: 0.01886974889
A12: Discount rate | B12: 0.03 | D12: Greenhouse gases are discounted separately because a different discount rate may be used
A18: Year | B18: Spot costs in dollars (from agency source) | D18: ="Discount factor for base year: "&BaseYear -> Discount factor for base year: 2020 | F18: ="Discounted cost to base year: "&BaseYear&" in " & BaseYear&"$" -> Discounted cost to base year: 2020 in 2020$
B19: Exec order 12866 | C19: =C7 -> User defined | D19: Exec order 12866 | E19: =C19 -> User defined | F19: Exec order 12866 | G19: =C19 -> User defined
A20: 2014 | B20: 40 | D20: =(1+B$12)^($A20-BaseYear) -> 0.8374842567 | F20: =B20*D20*($B$10/B$9) -> 33.90615694
A21: =A20+1 -> 2015 | B21: 42 | D21: =D20/(1+B$12) -> 0.8130915113 | E21: =IF($C$9="","",E20/(1+C$12)) ->  | F21: =B21*D21*($B$10/B$9) -> 34.56452892
A22: =A21+1 -> 2016 | B22: 43 | D22: 0.7894092343 | F22: 34.35679019
A23: 2017 | B23: 44 | D23: 0.7664167323 | F23: 34.1318304
A24: 2018 | B24: 45 | D24: 0.7440939149 | F24: 33.89082895
A25: 2019 | B25: 46 | D25: 0.7224212766 | F25: 33.63491115
A26: 2020 | B26: 47 | D26: 0.7013798802 | F26: 33.36515036
A27: 2021 | B27: 48 | D27: 0.68095134 | F27: 33.08257007
A28: 2022 | B28: 49 | D28: 0.6611178058 | F28: 32.7881459
A29: 2023 | B29: 50 | D29: 0.6418619474 | F29: 32.48280751
A30: 2024 | B30: 51 | D30: 0.6231669392 | F30: 32.16744045
A31: 2025 | B31: 53 | D31: 0.6050164458 | F31: 32.45525117
A32: 2026 | B32: 53 | D32: 0.5873946076 | F32: 31.50995259
A33: 2027 | B33: 54 | D33: 0.5702860268 | F33: 31.16939805
A34: 2028 | B34: 55 | D34: 0.5536757542 | F34: 30.82195061
A35: 2029 | B35: 56 | D35: 0.5375492759 | F35: 30.46830069
A36: 2030 | B36: 57 | D36: 0.5218925009 | F36: 30.10910436
A37: 2031 | B37: 58 | D37: 0.5066917484 | F37: 29.74498472
A38: 2032 | B38: 59 | D38: 0.4919337363 | F38: 29.37653328
A39: 2033 | B39: 60 | D39: 0.4776055693 | F39: 29.00431129
A40: 2034 | B40: 61 | D40: 0.4636947274 | F40: 28.62885095
A41: 2035 | B41: 62 | D41: 0.4501890558 | F41: 28.25065667
A42: 2036 | B42: 63 | D42: 0.4370767532 | F42: 27.87020624
A43: 2037 | B43: 65 | D43: 0.4243463623 | F43: 27.91745116
A44: 2038 | B44: 66 | D44: 0.4119867595 | F44: 27.52131107
A45: 2039 | B45: 67 | D45: 0.3999871452 | F45: 27.12456372
A46: 2040 | B46: 68 | D46: 0.3883370341 | F46: 26.72758054
A47: 2041 | B47: 69 | D47: 0.3770262467 | F47: 26.33071184
A48: 2042 | B48: 70 | D48: 0.3660448997 | F48: 25.93428773
A49: 2043 | B49: 70 | D49: 0.3553833978 | F49: 25.17892013
A50: 2044 | B50: 71 | D50: 0.3450324251 | F50: 24.79477571
A51: 2045 | B51: 72 | D51: 0.3349829369 | F51: 24.41164845
A52: 2046 | B52: 73 | D52: 0.3252261524 | F52: 24.02980498
A53: 2047 | B53: 74 | D53: =D52/(1+B$12) -> 0.315753546 | E53: =IF($C$9="","",E52/(1+C$12)) ->  | F53: 23.64949552
A54: 2048 | B54: 76 | D54: 0.3065568408 | F54: 23.58123405
A55: 2049 | B55: 77 | D55: 0.2976280008 | F55: 23.19564413
A56: 2050 | B56: 78 | D56: 0.288959224 | F56: 22.81251093
A57: 2051 | B57: =B56*(1+$B$11) -> 79.47184041 | D57: 0.280542936 | F57: 22.56599736
A58: 2052 | B58: =B57*(1+$B$11) -> 80.97145409 | D58: 0.2723717825 | F58: 22.32214764
A59: 2053 | B59: 82.49936509 | D59: 0.2644386238 | F59: 22.08093297
A60: 2054 | B60: 84.05610739 | D60: 0.2567365279 | F60: 21.84232488
A61: 2055 | B61: 85.64222503 | D61: 0.249258765 | F61: 21.60629521
A62: 2056 | B62: 87.25827231 | D62: 0.2419988009 | F62: 21.37281609
A63: 2057 | B63: 88.904814 | D63: 0.2349502922 | F63: 21.14185997
A64: 2058 | B64: 90.58242552 | D64: 0.2281070798 | F64: 20.91339957
A65: 2059 | B65: 92.29169314 | D65: 0.2214631843 | F65: 20.68740793
A66: 2060 | B66: 94.03321421 | D66: 0.2150128003 | F66: 20.46385837
A67: 2061 | B67: 95.80759735 | D67: 0.2087502915 | F67: 20.2427245
A68: 2062 | B68: 97.61546266 | D68: 0.2026701859 | F68: 20.02398023
A69: 2063 | B69: 99.45744193 | D69: 0.1967671708 | F69: 19.80759971
A70: 2064 | B70: 101.3341789 | D70: 0.1910360882 | F70: 19.59355742
A71: 2065 | B71: 103.2463294 | D71: 0.1854719303 | F71: 19.38182809
A72: 2066 | B72: 105.1945617 | D72: 0.1800698352 | F72: 19.17238672
A73: 2067 | B73: 107.1795567 | D73: 0.1748250827 | F73: 18.96520858
A74: 2068 | B74: 109.202008 | D74: 0.16973309 | F74: 18.76026923
A75: 2069 | B75: 111.2626225 | D75: 0.1647894078 | F75: 18.55754446
A76: 2070 | B76: 113.3621202 | D76: 0.1599897163 | F76: 18.35701036
A77: 2071 | B77: 115.5012349 | D77: 0.1553298216 | F77: 18.15864324
A78: 2072 | B78: 117.6807142 | D78: 0.1508056521 | F78: 17.96241968
A79: 2073 | B79: 119.9013198 | D79: 0.1464132544 | F79: 17.76831654
A80: 2074 | B80: 122.1638276 | D80: 0.1421487907 | F80: 17.57631088
A81: 2075 | B81: 124.4690283 | D81: 0.1380085347 | F81: 17.38638005
A82: 2076 | B82: 126.8177276 | D82: 0.1339888686 | F82: 17.19850163
A83: 2077 | B83: 129.2107463 | D83: 0.1300862802 | F83: 17.01265343
A84: 2078 | B84: 131.6489206 | D84: 0.1262973594 | F84: 16.82881353
A85: 2079 | B85: 134.1331027 | D85: =D84/(1+B$12) -> 0.1226187956 | E85: =IF($C$9="","",E84/(1+C$12)) ->  | F85: =B85*D85*($B$10/B$9) -> 16.64696021
A86: =A85+1 -> 2080 | B86: 136.6641607 | D86: 0.1190473743 | F86: 16.467072
A87: 2081 | B87: 139.2429791 | D87: 0.1155799751 | F87: 16.28912769
A88: 2082 | B88: 141.8704591 | D88: 0.112213568 | F88: 16.11310625
A89: 2083 | B89: 144.5475191 | D89: 0.1089452117 | F89: 15.93898691
A90: 2084 | B90: 147.2750944 | D90: 0.1057720502 | F90: 15.76674912
A91: 2085 | B91: 150.0541385 | D91: 0.1026913109 | F91: 15.59637254
A92: 2086 | B92: 152.8856224 | D92: 0.09970030181 | F92: 15.42783706
A93: 2087 | B93: 155.7705357 | D93: 0.09679640952 | F93: 15.26112279
A94: 2088 | B94: 158.7098866 | D94: 0.09397709663 | F94: 15.09621004
A95: 2089 | B95: 161.7047023 | D95: 0.09123989964 | F95: 14.93307935
A96: 2090 | B96: 164.7560294 | D96: 0.08858242683 | F96: 14.77171147
A97: 2091 | B97: 167.8649343 | D97: 0.08600235615 | F97: 14.61208733
A98: 2092 | B98: 171.0325035 | D98: 0.08349743315 | F98: 14.45418811
A99: 2093 | B99: 174.2598439 | D99: 0.08106546908 | F99: 14.29799515
A100: 2094 | B100: 177.5480834 | D100: 0.07870433891 | F100: 14.14349003
A101: 2095 | B101: 180.8983711 | D101: 0.07641197953 | F101: 13.9906545
A102: 2096 | B102: 184.311878 | D102: 0.07418638789 | F102: 13.83947052
A103: 2097 | B103: 187.7897968 | D103: 0.07202561931 | F103: 13.68992025
A104: 2098 | B104: 191.3333431 | D104: 0.06992778574 | F104: 13.54198602
A105: 2099 | B105: 194.9437553 | D105: 0.06789105412 | F105: 13.39565039
A106: 2100 | B106: 198.622295 | D106: 0.06591364477 | F106: 13.25089607
A107: 2101 | B107: 202.3702478 | D107: 0.06399382988 | F107: 13.10770597
A108: 2102 | B108: 206.1889236 | D108: 0.06212993192 | F108: 12.96606319
A109: 2103 | B109: 210.0796568 | D109: 0.06032032225 | F109: 12.82595102
A110: 2104 | B110: 214.0438072 | D110: 0.05856341966 | F110: 12.68735291
A111: 2105 | B111: 218.0827601 | D111: 0.05685768899 | F111: 12.5502525
A112: 2106 | B112: 222.197927 | D112: 0.0552016398 | F112: 12.4146336
A113: 2107 | B113: 226.3907461 | D113: 0.05359382505 | F113: 12.28048021
A114: 2108 | B114: 230.6626826 | D114: 0.05203283985 | F114: 12.1477765
A115: 2109 | B115: 235.0152295 | D115: 0.05051732024 | F115: 12.01650678
A116: 2110 | B116: 239.4499079 | D116: 0.04904594198 | F116: 11.88665558
A117: 2111 | B117: 243.9682675 | D117: =D116/(1+B$12) -> 0.0476174194 | E117: =IF($C$9="","",E116/(1+C$12)) ->  | F117: 11.75820756
A118: 2112 | B118: 248.5718874 | D118: 0.04623050427 | F118: 11.63114756
A119: 2113 | B119: 253.2623765 | D119: 0.04488398473 | F119: 11.50546057
A120: 2114 | B120: 258.041374 | D120: 0.04357668421 | F120: 11.38113177
A121: 2115 | B121: 262.9105499 | D121: 0.04230746039 | F121: 11.25814648
A122: 2116 | B122: =B121*(1+$B$11) -> 267.871606 | D122: 0.04107520427 | F122: 11.13649017
A123: 2117 | B123: 272.9262759 | D123: 0.03987883909 | F123: 11.01614849
A124: 2118 | B124: 278.0763262 | D124: 0.03871731951 | F124: 10.89710723
A125: 2119 | B125: 283.3235566 | D125: 0.03758963059 | F125: 10.77935233
A126: 2120 | B126: 288.669801 | D126: 0.03649478698 | F126: 10.66286991
A127: 2121 | B127: 294.1169277 | D127: 0.03543183202 | F127: 10.5476462
A128: 2122 | B128: 299.6668402 | D128: 0.03439983691 | F128: 10.43366761
A129: 2123 | B129: 305.3214783 | D129: 0.03339789991 | F129: 10.32092067
A130: 2124 | B130: 311.0828179 | D130: 0.03242514555 | F130: 10.20939209
A131: 2125 | B131: 316.9528725 | D131: 0.03148072383 | F131: 10.0990687
A132: 2126 | B132: 322.9336937 | D132: 0.03056380955 | F132: 9.989937464
A133: 2127 | B133: 329.0273714 | D133: 0.0296736015 | F133: 9.88198551
A134: 2128 | B134: 335.2360352 | D134: 0.02880932185 | F134: 9.775200092
A135: 2129 | B135: 341.561855 | D135: 0.02797021538 | F135: 9.669568605
A136: 2130 | B136: 348.0070415 | D136: 0.02715554892 | F136: 9.565078579
A137: 2131 | B137: 354.573847 | D137: 0.0263646106 | F137: 9.46171768
A138: 2132 | B138: 361.2645664 | D138: 0.02559670932 | F138: 9.359473705
A139: 2133 | B139: 368.0815381 | D139: 0.0248511741 | F139: 9.258334586
A140: 2134 | B140: 375.0271443 | D140: 0.02412735349 | F140: 9.158288384
A141: 2135 | B141: 382.1038123 | D141: 0.02342461504 | F141: 9.059323287
A142: 2136 | B142: 389.3140153 | D142: 0.0227423447 | F142: 8.961427614
A143: 2137 | B143: 396.660273 | D143: 0.02207994631 | F143: 8.864589809
A144: 2138 | B144: 404.1451528 | D144: 0.02143684108 | F144: 8.768798439
A145: 2139 | B145: 411.7712703 | D145: 0.02081246707 | F145: 8.674042198
A146: 2140 | B146: 419.5412908 | D146: 0.02020627871 | F146: 8.580309899
A147: 2141 | B147: 427.4579296 | D147: 0.01961774632 | F147: 8.487590478
A148: 2142 | B148: 435.5239534 | D148: 0.01904635565 | F148: 8.395872989
A149: 2143 | B149: 443.742181 | D149: =D148/(1+B$12) -> 0.01849160742 | E149: =IF($C$9="","",E148/(1+C$12)) ->  | F149: =B149*D149*($B$10/B$9) -> 8.305146606
A150: =A149+1 -> 2144 | B150: 452.1154845 | D150: 0.01795301692 | F150: 8.215400619
A151: 2145 | B151: 460.6467902 | D151: 0.01743011351 | F151: 8.126624432
A152: 2146 | B152: 469.3390795 | D152: 0.0169224403 | F152: 8.038807568
A153: 2147 | B153: 478.19539 | D153: 0.01642955369 | F153: 7.951939658
A154: 2148 | B154: 487.218817 | D154: 0.015951023 | F154: 7.866010449
A155: 2149 | B155: 496.4125137 | D155: 0.0154864301 | F155: 7.781009797
A156: 2150 | B156: 505.7796932 | D156: 0.01503536903 | F156: 7.696927668

Sheet DemandParameters (hidden)
A1: Demand Volume Inputs | B1: This sheet creates demand profiles for specified years based on the major facility type and total entering AADT. You may either use the default hourly and daily factors or provide your own. These profiles are applied to all alternatives to convert peak hour information to annual delay estimates.
A2: Peak Hours and Facility Profile
C4: Open Year | D4: Design Year
B5: Operating Cycle | C5: =IF(ISNUMBER(Volumes!D8),Volumes!D8,"--") -> 2020 | D5: =IF(ISNUMBER(Volumes!F8),Volumes!F8,"--") -> 2040 | E5: =IF(OR(NOT(ISNUMBER(C5)),NOT(ISNUMBER(D5)),D5<C5),"Please Specify Valid Open and Design Years","") -> 
B6: Peak Weekday Time Period | C6: From | D6: To
A7: Enter peak period begin and end times: | B7: AM peak | C7: 08:00:00 | D7: =Time_AM_Peak_Begin + 1/24 -> 09:00:00 | E7: =IF(OR(ISERR(Time_AM_Peak_Begin),ISERR(Time_AM_Peak_End),NOT(ISNUMBER(HOUR(Time_AM_Peak_Begin))),NOT(ISNUMBER(HOUR(Time_AM_Peak_End)))),"Please enter peak begin and end times in a recognizable time format: e.g., 6:00 am",IF(OR(MINUTE(Time_AM_Peak_Begin)<>0,MINUTE(Time_AM_Peak_End)<>0),"Warning: The LCCET only recognizes peak times defined on hour boundaries. Any minute specifications are ignored.",IF(HOUR(Time_AM_Peak_Begin)>=HOUR(Time_AM_Peak_End),"Warning: AM peak end hour must be one or more hours after AM peak begin hour",IF(OR(HOUR(Time_AM_Peak_Begin)>=12,HOUR(Time_AM_Peak_End)>=12),"Warning: Begin or end time of AM peak is specified outside morning period","")))) -> 
B8: PM peak | C8: =Volumes!D12 -> 17:00:00 | D8: =Time_PM_Peak_Begin + 1/24 -> 18:00:00 | E8: =IF(OR(ISERR(Time_PM_Peak_Begin),ISERR(Time_PM_Peak_End),NOT(ISNUMBER(HOUR(Time_PM_Peak_Begin))),NOT(ISNUMBER(HOUR(Time_PM_Peak_End)))),"Please enter peak begin and end times in a recognizable time format: e.g., 5:00 pm",IF(OR(MINUTE(Time_PM_Peak_Begin)<>0,MINUTE(Time_PM_Peak_End)<>0),"Warning: The LCCET only recognizes peak times defined on hour boundaries. Any minute specifications are ignored.",IF(HOUR(Time_PM_Peak_Begin)>=HOUR(Time_PM_Peak_End),"Warning: PM peak end hour must be one or more hours after PM peak begin hour",IF(OR(HOUR(Time_PM_Peak_Begin)<12,HOUR(Time_PM_Peak_End)<12),"Warning: Begin or end time of PM peak is specified outside afternoon/evening period","")))) -> 
B9: Weekend peak | C9: =Volumes!D13 -> 10:00:00 | D9: =Time_WE_Peak_Begin+1/24 -> 11:00:00
A11: Select Analysis Basis: | B11: =Volumes!C15 -> 1 | F11: Weekday Count: | G11: =IF(NOT(ISBLANK(Volumes!H15)),Volumes!H15,"") -> 2013-06-06 | J11: Enter dates as "mm/dd/yyyy"
F12: Weekend Count: | G12: =IF(NOT(ISBLANK(Volumes!H16)),Volumes!H16,"") ->  | J12: Enter dates as "mm/dd/yyyy"
A13: Select facility type: | B13: =Volumes!C17 -> 14 | E13: At intersections of varying facilities select the roadway that will be more representative of the volume, or interpolate between values.
A15: Volume Adjustment Factor: | B15: Automated Adj. Factor | C15: Override Value | D15: Value Applied
A16: Weekday Adjustment: | B16: =IF($B$11=1,1,IF($B$11=2,(1/INDEX(DemandProfiles!B47:N53,WEEKDAY(G11,2),6))*(1/INDEX(DemandProfiles!B61:N72,MONTH(G11),13)))) -> 1 | D16: =IF(C16="",B16,C16) -> 1 | E16: This adjustment factor is used to align the input delay values within the alternatives sheets with the specific volume factor.
A17: Weekend Adjustment: | B17: =IF(OR($B$11=1,G12=""),1,(1/(INDEX(DemandProfiles!B47:N53,WEEKDAY(G12,2),6))*(1/INDEX(DemandProfiles!B61:N72,MONTH(G12),13)))) -> 1 | D17: =IF(C17="",B17,C17) -> 1 | E17: This adjustment factor is used to align the input delay values within the alternatives sheets with the specific volume factor.
B19: Base Analysis Volumes | C19: Adjusted Average Annual Volume | D19: Override Value | E19: Year 1 Value Applied | G19: Specify total volumes or turning counts? | H19: Total Volumes | J19: (Select from drop-down menu)
A20: AM peak hour: | B20: =Input_Demand_Vol_AMPeak_Open -> 1208.828094 | C20: =IF(B20<>"",B20*D16,"") -> 1208.828094 | E20: =IF(D20="",C20,D20) -> 1208.828094 | F20: Volume entries are used to calibrate the volume-delay curve for a given alternative, and AADT values are used to develop demand profiles for each hour of each year. A minimum of one hourly volume must be entered within this table. If data is not available for a time period(s) please leave blank. Off-peak data is only used for calibrating the delay equation, not for AADT estimates.
A21: PM peak hour: | B21: =Input_Demand_Vol_PMPeak_Open -> 1475.180047 | C21: =IF(B21<>"",B21*D16,"") -> 1475.180047 | E21: =IF(D21="",C21,D21) -> 1475.180047
A22: Weekend peak hour: | B22: =Input_Demand_Vol_Wknd_Open -> 98 | C22: =IF(B22<>"",B22*D17,"") -> 98 | E22: =IF(D22="",C22,D22) -> 98
A23: =IF(B11=1,"Average Annual Daily Traffic (AADT):","Specific Weekday Daily Traffic:") -> Average Annual Daily Traffic (AADT): | C23: =IF(AND(B23<>0,B11=1),B23,IF(B23<>0,B23*B16,IF(AND(B20<>0,B21<>0)=TRUE,(B20+B21)/(MAX(DemandProfiles!N76:N87)+MAX(DemandProfiles!N88:N99)),IF(AND(B20=0,B21<>0)=TRUE,B21/MAX(DemandProfiles!N88:N99),IF(AND(B20<>0,B21=0)=TRUE,B20/MAX(DemandProfiles!N76:N87),IF(B23<>0,B23,"Enter Volumes")))))) -> 16451.57474 | E23: =IF(D23<>"",D23,IF(C23<>"",C23,"")) -> 16451.57474
A24: *Volumes are bidirectional
A25: Adjust hourly volume profile to input peak hour volumes (Yes/No)? | B25: Yes | C25: If 'Yes' is selected the default hourly volume profiles will be adjusted to match the input peak hour volumes. Review plots of demand profiles to the right of Column "R" to assess the appropriateness of the profiles. | M25: Yes
M26: No
A27: Quantity (sum over all cordon approaches) | B27: Units | C27: Year | E27: Year | G27: Opening and Design years must be entered on the Alternatives_MasterList Sheet
C28: Opening | D28: Design | E28: Opening | F28: Design
C29: =IF(ISNUMBER(C5),C5,"") -> 2020 | D29: =IF(ISNUMBER(D5),D5,"") -> 2040 | E29: =IF(ISNUMBER(C29),C29,"") -> 2020 | F29: =IF(ISNUMBER(D29),D29,"") -> 2040 | G29: Demand data must be entered for the opening year and end year for each alternative. Demand data must also be entered for any interim years specified for an alternative.
A30: Average annual daily traffic (AADT) | B30: Avg veh/day | C30: =IF(E23<>"",E23,"") -> 16451.57474 | D30: =IF(AND(D31<>0,D32<>0),(D31+D32)/(MAX(DemandProfiles!$N$76:$N$87)+MAX(DemandProfiles!$N$88:$N$99)),"Enter Volumes") -> 20074.04764 | E30: =IF(AND(Input_Demand_Vol_AMPeak_Open2<>0,Input_Demand_Vol_PMPeak_Open2<>0),(Input_Demand_Vol_AMPeak_Open2+Input_Demand_Vol_PMPeak_Open2)/(MAX(DemandProfiles!$N$76:$N$87)+MAX(DemandProfiles!$N$88:$N$99)),"Enter Volumes") -> 11051.43952 | F30: =IF(AND(Input_Demand_Vol_AMPeak_Design2<>0,Input_Demand_Vol_PMPeak_Design2<>0),(Input_Demand_Vol_AMPeak_Design2+Input_Demand_Vol_PMPeak_Design2)/(MAX(DemandProfiles!$N$76:$N$87)+MAX(DemandProfiles!$N$88:$N$99)),"Enter Volumes") -> 13484.85643
A31: AM peak hour volume | B31: veh/hr. | C31: =IF(B20<>"",B20,"") -> 1208.828094 | D31: =Input_Demand_Vol_AMPeak_Design -> 1475 | E31: =Input_Demand_Vol_AMPeak_Open2 -> 409.7722352 | F31: =Input_Demand_Vol_AMPeak_Design2 -> 500 | G31: Enter hourly volumes used to carry out travel time/delay calculations for intersection(s)
A32: PM peak hour volume | B32: veh/hr. | C32: =IF(B21<>"",B21,"") -> 1475.180047 | D32: =Input_Demand_Vol_PMPeak_Design -> 1800 | E32: =Input_Demand_Vol_PMPeak_Open2 -> 1393.2256 | F32: =Input_Demand_Vol_PMPeak_Design2 -> 1700
A33: Weekend peak hour volume: | B33: veh/hr. | C33: =IF(B22<>"",B22,"") -> 98 | D33: =Input_Demand_Vol_Wknd_Design -> 120 | E33: =Input_Demand_Vol_Wknd_Open2 -> 98 | F33: =Input_Demand_Vol_Wknd_Design2 -> 120
A34: Average annual auto occupancy | B34: Passengers per vehicle | C34: =Input_Demand_PPV_Open -> 1 | D34: =Input_Demand_PPV_Design -> 1 | E34: =C34 -> 1 | F34: =D34 -> 1 | G34: Enter annual averages (Agency defaults)
A35: Average annual % trucks | B35: Average % | C35: =Input_Demand_PCTTruck_Open -> 0.02 | D35: =Input_Demand_PCTTruck_Design -> 0.02 | E35: =C35 -> 0.02 | F35: =D35 -> 0.02
A36: Annual transit passengers | B36: Transit passengers per year | E36: Enter annual totals
A37: Annual cyclists | B37: Cyclists per year
A38: Annual pedestrians | B38: Pedestrians per year
A39: Click button when years are entered to set up calculations tables: | G39: This button should be pressed any time changes are made to the values above. This button creates a "typical" annual profile in a hidden sheet. Use the button to the right to view and/or edit the detailed demand profiles.

Sheet OrganizationInformation
A1: Project / Organization Information | B1: This sheet provides general project information and analysis type selection.
A4: Organization Information
A5: Analyst:
A6: Agency/Company:
A7: Date Performed:
A8: Intersection:
A9: Route:
A10: Logpoint:
A11: Common Name:
A12: Date:
A13: Date Performed:
A14: Analysis Year
A15: Analysis Type | B15: At-Grade Intersection
A16: Worksheet Instructions: 1. Fill in Project Information 2. Select Analysis Type from drop-down menu

Sheet AlternativeSelection
A1: Alternative Selection | B1: Select intersection types from the following table to include in the ICE analysis. To include an intersection, select "Yes" in the include column, and to exclude an intersection, select "No" in the include column.
B2: At-Grade Control Strategies
B3: Control # | C3: Include | D3: Short Name | E3: Description | L3: Notes
B4: Base Case | D4: 1 | E4: Minor Road Stop
B5: 1 | C5: Yes | D5: MinorStop | E5: =AGI_Label_MinorStop -> Minor Road Stop
B6: 2 | C6: Yes | D6: AllStop | E6: =AGI_Label_AllStop -> All Way Stop
B7: 3 | C7: Yes | D7: TrafficSignal | E7: =AGI_Label_TrafficSignal -> Traffic Signal
B8: 4 | C8: Yes | D8: TrafficSignalAlt | E8: Traffic Signal (Alt.)
B9: 5 | C9: Yes | D9: Roundabout | E9: =AGI_Label_Rdbt -> Roundabout
B10: 6 | C10: Yes | D10: DLT | E10: =AGI_Label_DLT -> Displaced Left Turn (DLT)
B11: 7 | C11: Yes | D11: MUT | E11: =AGI_Label_MUT -> Median U-Turn (MUT)
B12: 8 | C12: Yes | D12: SignalRCUT | E12: =AGI_Label_RCUTSig -> Signalized Restricted Crossing U-Turn (RCUT)
B13: 9 | C13: Yes | D13: UnsignalRCUT | E13: =AGI_Label_RCUTUnsig -> Unsignalized Restricted Crossing U-Turn (RCUT)
B14: 10 | C14: Yes | D14: GreenT | E14: =AGI_Label_GreenT -> Continuous Green-T Intersection
B15: 11 | C15: Yes | D15: =AGI_Label_Jughandle -> Jughandle | E15: =AGI_Label_Jughandle -> Jughandle
B16: 12 | C16: Yes | D16: Quadrant Itx | E16: =AGI_Label_Quadrant -> Quadrant Roadway Intersection | L16: Note that no safety information is available
B17: 13 | C17: Yes | D17: Other1 | E17: Other 1 | L17: Safety information must be provided
B18: 14 | C18: Yes | D18: Other2 | E18: Other 2 | L18: Safety information must be provided
B20: Select interchange types from the following table to include in the ICE analysis. To include an interchange, select "Yes" in the include column, and to exclude an intersection, select "No" in the include column.
B21: Ramp Terminal Control Strategies
B22: Control # | C22: Include | D22: Short Name | E22: Description | L22: Notes
B23: 1 | C23: No | D23: TrafficSignal | E23: =RTI_Label_D4TS -> Conventional Traffic Signal
B24: 2 | C24: No | D24: TrafficSignalAlt | E24: =RTI_Label_D4TSA -> Conventional Traffic Signal (Alt.)
B25: 3 | C25: No | D25: MinorStop | E25: =RTI_Label_D4MS -> Minor Road (ramp) Stop
B26: 4 | C26: No | D26: DDI | E26: =RTI_Label_DDI -> Crossover Traffic Signal (of DDI)
B27: 5 | C27: No | D27: SPUI | E27: =RTI_Label_SPUI -> Single-Point Diamond Traffic Signal
B28: 6 | C28: No | D28: RAB1 | E28: =RTI_Label_R1 -> 1-lane Roundabout
B29: 7 | C29: No | D29: RAB2 | E29: =RTI_Label_R2 -> 2-lane Roundabout
B30: 8 | C30: No | D30: Other1 | E30: Other 1 | L30: Safety information must be provided
B31: 9 | C31: No | D31: Other2 | E31: Other 2 | L31: Safety information must be provided
A80: Minor Road Stop
A81: All Way Stop
A82: Traffic Signal
A83: Traffic Signal (Alt.)
A84: Roundabout
A85: Displaced Left Turn (DLT)
A86: Median U-Turn (MUT)
A87: Signalized Restricted Crossing U-Turn (RCUT)
A88: Unsignalized Restricted Crossing U-Turn (RCUT)
A89: Continuous Green-T Intersection

Sheet Volumes
A1: Volume | C1: Use this sheet to enter traffic volume
D7: Open Year | F7: Design Year | I7: Worksheet Instructions: 1. Enter open year and design year, growth rate and the start times of peak hour 2. Select Facility Type 3. Select Total Volumes or Turning Volumes (Total Volumes preferred) 4. In most cases, enter peak hour volumes by summing the peak hour turning movements as shown in the example computation figure. 5. Press the Setup Worksheets button at the bottom of the worksheet.
C8: Operating Cycle | D8: 2020 | F8: 2040
C9: Yearly Growth Rate for Volumes | F9: 0.01
C10: Peak Hour Start | D10: From | F10: To
A11: Enter peak period begin and end times: | C11: AM peak | D11: 09:00:00 | F11: =D11 + 1/24 -> 10:00:00
B12: 1 | C12: PM peak | D12: 17:00:00 | F12: =Time_PM_Peak_Begin + 1/24 -> 18:00:00
C13: Weekend peak | D13: 10:00:00 | F13: =Time_WE_Peak_Begin+1/24 -> 11:00:00
A15: Select Analysis Basis: | C15: 1 | G15: Weekday Count: | H15: 2013-06-06 | K15: Enter dates as "mm/dd/yyyy"
G16: Weekend Count: | K16: Enter dates as "mm/dd/yyyy"
A17: Select facility type: | C17: 14 | F17: At intersections of varying facilities select the roadway that will be more representative of the volume, or "interpolate" between facility types.
A19: Specify total volumes or turning counts? | C19: Total Volumes | F19: (Select from drop-down menu) | H19: It is generally preferable to use "Total Volumes" and sum individual turning movements outside of the tool (as shown in the example below) rather than using the "Turning Counts" worksheet to sum them
C21: =IF(Input_Demand_VolType=VolType_Total,"Enter the total entering volume (i.e. sum of turning movement counts) for the peak hours. If data is not available for the weekend peak hour please leave blank.","Enter the turning movement counts in the DemandCounts worksheet for the peak hours. If data is not available for the weekend peak hour please leave blank.") -> Enter the total entering volume (i.e. sum of turning movement counts) for the peak hours. If data is not available for the weekend peak hour please leave blank. | N21: Changes to demand profiles are not needed for typical analysis and they can generally remain hidden.
C22: Units | D22: Year | H22: Year
D23: Opening | F23: Design | H23: Opening | J23: Design
D24: =IF(ISNUMBER(D8),D8,"--") -> 2020 | F24: =IF(ISNUMBER(F8),F8,"--") -> 2040 | H24: =IF(ISNUMBER(D24),D24,"--") -> 2020 | J24: =IF(ISNUMBER(F24),F24,"--") -> 2040
D25: Intersection 1 | H25: Intersection 2
A26: AM peak hour volume | C26: veh/hr. | D26: =Input_Demand_Vol_AMPeak_Design / POWER(1 + Input_Demand_Linear_Growth_Rate, $F$8 - $D$8) -> 1208.828094 | F26: 1475 | H26: =Input_Demand_Vol_AMPeak_Design2 / POWER(1 + Input_Demand_Linear_Growth_Rate, $F$8 - $D$8) -> 409.7722352 | J26: 500
A27: PM peak hour volume | C27: veh/hr. | D27: =Input_Demand_Vol_PMPeak_Design / POWER(1 + Input_Demand_Linear_Growth_Rate, $F$8 - $D$8) -> 1475.180047 | F27: 1800 | H27: =Input_Demand_Vol_PMPeak_Design2 / POWER(1 + Input_Demand_Linear_Growth_Rate, $F$8 - $D$8) -> 1393.2256 | J27: 1700
A28: Weekend peak hour volume: | C28: veh/hr. | D28: 98 | F28: 120 | H28: 98 | J28: 120
A29: Average annual auto occupancy | C29: Passengers per vehicle | D29: 1 | F29: 1 | H29: =Input_Demand_PPV_Open -> 1 | J29: =Input_Demand_PPV_Design -> 1
A30: Average annual % trucks | C30: Average % | D30: 0.02 | F30: 0.02 | H30: =Input_Demand_PCTTruck_Open -> 0.02 | J30: =Input_Demand_PCTTruck_Design -> 0.02
A32: Select intersection types from the following table to include in the ICE analysis. To include an intersection, select "Yes" in the include column, and to exclude an intersection, select "No" in the include column.
A33: At-Grade Control Strategies
A34: Control # | B34: Include | C34: Short Name | D34: Description | K34: Notes
A35: Base Case | C35: 1 | D35: Minor Road Stop
A36: 1 | B36: =AlternativeSelection!C5 -> Yes | C36: MinorStop | D36: =AGI_Label_MinorStop -> Minor Road Stop
A37: 2 | B37: =AlternativeSelection!C6 -> Yes | C37: All-Way Stop | D37: =AGI_Label_AllStop -> All Way Stop
A38: 3 | B38: =AlternativeSelection!C7 -> Yes | C38: TrafficSignal | D38: =AGI_Label_TrafficSignal -> Traffic Signal
A39: 4 | B39: =AlternativeSelection!C8 -> Yes | C39: TrafficSignalAlt | D39: Traffic Signal (Alt.)
A40: 5 | B40: =AlternativeSelection!C9 -> Yes | C40: Roundabout | D40: =AGI_Label_Rdbt -> Roundabout
A41: 6 | B41: =AlternativeSelection!C10 -> Yes | C41: DLT | D41: =AGI_Label_DLT -> Displaced Left Turn (DLT)
A42: 7 | B42: =AlternativeSelection!C11 -> Yes | C42: MUT | D42: =AGI_Label_MUT -> Median U-Turn (MUT)
A43: 8 | B43: =AlternativeSelection!C12 -> Yes | C43: SignalRCUT | D43: =AGI_Label_RCUTSig -> Signalized Restricted Crossing U-Turn (RCUT)
A44: 9 | B44: =AlternativeSelection!C13 -> Yes | C44: UnsignalRCUT | D44: =AGI_Label_RCUTUnsig -> Unsignalized Restricted Crossing U-Turn (RCUT)
A45: 10 | B45: =AlternativeSelection!C14 -> Yes | C45: GreenT | D45: =AGI_Label_GreenT -> Continuous Green-T Intersection
A46: 11 | B46: =AlternativeSelection!C15 -> Yes | C46: =AGI_Label_Jughandle -> Jughandle | D46: =AGI_Label_Jughandle -> Jughandle
A47: 12 | B47: =AlternativeSelection!C16 -> Yes | C47: Quadrant Itx | D47: =AGI_Label_Quadrant -> Quadrant Roadway Intersection | K47: Note that no safety information is available
A48: 13 | B48: =AlternativeSelection!C17 -> Yes | C48: Other1 | D48: Other 1 | K48: Safety information must be provided
A49: 14 | B49: =AlternativeSelection!C18 -> Yes | C49: Other2 | D49: Other 2 | K49: Safety information must be provided
A54: Ramp Terminal Control Strategies
A55: Control # | B55: Include | C55: Short Name | D55: Description | K55: Notes
A56: 1 | B56: =AlternativeSelection!C23 -> No | C56: TrafficSignal | D56: =RTI_Label_D4TS -> Conventional Traffic Signal
A57: 2 | B57: =AlternativeSelection!C24 -> No | C57: TrafficSignalAlt | D57: =RTI_Label_D4TSA -> Conventional Traffic Signal (Alt.)
A58: 3 | B58: =AlternativeSelection!C25 -> No | C58: MinorStop | D58: =RTI_Label_D4MS -> Minor Road (ramp) Stop
A59: 4 | B59: =AlternativeSelection!C26 -> No | C59: DDI | D59: =RTI_Label_DDI -> Crossover Traffic Signal (of DDI)
A60: 5 | B60: =AlternativeSelection!C27 -> No | C60: SPUI | D60: =RTI_Label_SPUI -> Single-Point Diamond Traffic Signal
A61: 6 | B61: =AlternativeSelection!C28 -> No | C61: RAB1 | D61: =RTI_Label_R1 -> 1-lane Roundabout
A62: 7 | B62: =AlternativeSelection!C29 -> No | C62: RAB2 | D62: =RTI_Label_R2 -> 2-lane Roundabout
A63: 8 | B63: =AlternativeSelection!C30 -> No | C63: Other1 | D63: Other 1 | K63: Safety information must be provided
A64: 9 | B64: =AlternativeSelection!C31 -> No | C64: Other2 | D64: Other 2 | K64: Safety information must be provided
D68: Press the "Setup Worksheets" button to create hidden worksheets that compute performance measures for each selected control strategy. Once this button is pressed you cannot add or remove any control strategies from analysis

Sheet DemandProfiles (hidden)
A13: Facility Type | B13: =DemandParameters!B13 -> 14
A14: From demand parameters sheet
A31: Demand Volume Profiles | B31: This sheets contains the demand profile used for the ICE analysis. Default profiles can be overridden by the user if desired.
A33: Volume Adjustment Factor: | B33: Automated Adj. Factor | C33: Override Value | D33: Value Applied | F33: Demand Volume Summary | G33: Units | H33: Year
A34: Weekday Adjustment: | B34: =IF(DemandParameters!$B$11=1,1,IF(DemandParameters!$B$11=2,(1/INDEX(DemandProfiles!$B$47:$N$53,WEEKDAY(DemandParameters!$G$11,2),13))*(1/INDEX(DemandProfiles!$B$61:$N$72,MONTH(DemandParameters!$G$11),13)))) -> 1 | D34: =IF(C34="",B34,C34) -> 1 | H34: ="Opening Year" & IF(ISNUMBER(Volumes!D8), " (" &Volumes!D8 & ")","--") -> Opening Year (2020) | L34: ="Design Year" & IF(ISNUMBER(Volumes!F8), " (" &Volumes!F8 & ")","--") -> Design Year (2040)
A35: Weekend Adjustment: | B35: =IF(OR(DemandParameters!$B$11=1,DemandParameters!G12=""),1,(1/(INDEX(DemandProfiles!B47:N53,WEEKDAY(DemandParameters!G12,2),6))*(1/INDEX(DemandProfiles!B61:N72,MONTH(DemandParameters!G12),13)))) -> 1 | D35: =IF(C35="",B35,C35) -> 1 | H35: Input | I35: Adjusted | J35: Override | K35: Use Value | L35: Input | M35: Adjusted | N35: Override | O35: Use Value
F36: Average annual daily traffic (AADT) | G36: Avg veh/day | H36: -- | I36: =Input_Demand_Vol_AADT_Open -> 16451.57474 | K36: =IF(ISNUMBER(J36),J36,I36) -> 16451.57474 | L36: -- | M36: =Input_Demand_Vol_AADT_Design -> 20074.04764 | O36: =IF(ISNUMBER(N36),N36,M36) -> 20074.04764
F37: AM peak hour volume | G37: veh/hr. | H37: =Input_Demand_Vol_AMPeak_Open -> 1208.828094 | I37: =IF(ISNUMBER(Input_Demand_Vol_AMPeak_Open),Input_Demand_Vol_AMPeak_Open*$D$34,"") -> 1208.828094 | K37: 1208.828094 | L37: =Input_Demand_Vol_AMPeak_Design -> 1475 | M37: =Input_Demand_Vol_AMPeak_Design*$B$34 -> 1475 | O37: 1475
F38: PM peak hour volume | G38: veh/hr. | H38: =Input_Demand_Vol_PMPeak_Open -> 1475.180047 | I38: =IF(ISNUMBER(Input_Demand_Vol_PMPeak_Open),Input_Demand_Vol_PMPeak_Open*$D$34,"") -> 1475.180047 | K38: 1475.180047 | L38: =Input_Demand_Vol_PMPeak_Design -> 1800 | M38: =Input_Demand_Vol_PMPeak_Design*$B$34 -> 1800 | O38: 1800
F39: Weekend peak hour volume: | G39: veh/hr. | H39: =Input_Demand_Vol_Wknd_Open -> 98 | I39: =IF(ISNUMBER(Input_Demand_Vol_Wknd_Open),Input_Demand_Vol_Wknd_Open*$D$35,"") -> 98 | K39: 98 | L39: =IF(ISNUMBER(Input_Demand_Vol_Wknd_Design),Input_Demand_Vol_Wknd_Design,"") -> 120 | M39: =IF(ISNUMBER(Input_Demand_Vol_Wknd_Design),Input_Demand_Vol_Wknd_Design*$D$35,"") -> 120 | O39: 120
F40: Average annual auto occupancy | G40: Passengers per vehicle | H40: =Input_Demand_PPV_Open -> 1 | I40: -- | K40: =IF(ISNUMBER(J40),J40,H40) -> 1 | L40: =Input_Demand_PPV_Design -> 1 | M40: -- | O40: =IF(ISNUMBER(N40),N40,L40) -> 1
F41: Average annual % trucks | G41: Average % | H41: =Input_Demand_PCTTruck_Open -> 0.02 | I41: -- | K41: =IF(ISNUMBER(J41),J41,H41) -> 0.02 | L41: =Input_Demand_PCTTruck_Design -> 0.02 | M41: -- | O41: =IF(ISNUMBER(N41),N41,L41) -> 0.02
A43: Passenger Vehicle Demand Profile Parameters
B44: Note: All charts illustrating volume profiles are shown to right of Column "R"
B45: Day of Week | C45: Functional Class | Q45: Default Profile Value | R45: Override Value | S45: Applied Value | T45: Notes
A46: Review Daily Profile or Override Values: | C46: Rural Interstate | D46: Rural Principal Arterial | E46: Rural Minor Arterial | F46: Rural Major Collector | G46: Rural Minor Collector | H46: Rural Local | I46: Rural Other Fwy & Expwy | J46: Urban Interstate | K46: Urban Other Fwy & Expwy | L46: Urban Principal Aterial | M46: Urban Minor Arterial | N46: Urban Major Collector | O46: Urban Minor Collector | P46: Urban Local
A47: Chart shown at right | B47: Monday | C47: 0.9400705053 | D47: 0.9936 | E47: 0.9885 | F47: 0.997 | G47: 0.997 | H47: 0.997 | I47: 0.9653 | J47: 1.0112 | K47: 1.0311 | L47: 1.0023 | M47: 1.04 | N47: 1.04 | O47: 1.04 | P47: 1.04 | Q47: =IF(DemandParameters!$B$13=1,C47,IF(DemandParameters!$B$13=2,D47,IF(DemandParameters!$B$13=3,E47,IF(DemandParameters!$B$13=4,F47,IF(DemandParameters!$B$13=5,G47,IF(DemandParameters!$B$13=6,H47,IF(DemandParameters!$B$13=7,I47,IF(DemandParameters!$B$13=8,J47,IF(DemandParameters!$B$13=9,K47,IF(DemandParameters!$B$13=10,L47,IF(DemandParameters!$B$13=11,M47,IF(DemandParameters!$B$13=12,N47,IF(DemandParameters!$B$13=13,O47,IF(DemandParameters!$B$13=14,P47)))))))))))))) -> 1.04 | S47: =IF(R47="",Q47,R47) -> 1.04
B48: Tuesday | C48: 0.937 | D48: 1.0125 | E48: 1.0145 | F48: 1.037 | G48: 1.037 | H48: 1.037 | I48: 0.9891 | J48: 1.0411 | K48: 1.0686 | L48: 1.0275 | M48: 1.0707 | N48: 1.0707 | O48: 1.0707 | P48: 1.0707 | Q48: =IF(DemandParameters!$B$13=1,C48,IF(DemandParameters!$B$13=2,D48,IF(DemandParameters!$B$13=3,E48,IF(DemandParameters!$B$13=4,F48,IF(DemandParameters!$B$13=5,G48,IF(DemandParameters!$B$13=6,H48,IF(DemandParameters!$B$13=7,I48,IF(DemandParameters!$B$13=8,J48,IF(DemandParameters!$B$13=9,K48,IF(DemandParameters!$B$13=10,L48,IF(DemandParameters!$B$13=11,M48,IF(DemandParameters!$B$13=12,N48,IF(DemandParameters!$B$13=13,O48,IF(DemandParameters!$B$13=14,P48)))))))))))))) -> 1.0707 | S48: =IF(R48="",Q48,R48) -> 1.0707
B49: Wednesday | C49: 0.962 | D49: 1.0293 | E49: 1.025 | F49: 1.044 | G49: 1.044 | H49: 1.044 | I49: 1.0124 | J49: 1.0572 | K49: 1.0802 | L49: 1.0382 | M49: 1.0755 | N49: 1.0755 | O49: 1.0755 | P49: 1.0755 | Q49: =IF(DemandParameters!$B$13=1,C49,IF(DemandParameters!$B$13=2,D49,IF(DemandParameters!$B$13=3,E49,IF(DemandParameters!$B$13=4,F49,IF(DemandParameters!$B$13=5,G49,IF(DemandParameters!$B$13=6,H49,IF(DemandParameters!$B$13=7,I49,IF(DemandParameters!$B$13=8,J49,IF(DemandParameters!$B$13=9,K49,IF(DemandParameters!$B$13=10,L49,IF(DemandParameters!$B$13=11,M49,IF(DemandParameters!$B$13=12,N49,IF(DemandParameters!$B$13=13,O49,IF(DemandParameters!$B$13=14,P49)))))))))))))) -> 1.0755 | S49: 1.0755
B50: Thursday | C50: 1.021 | D50: 1.0624 | E50: 1.048 | F50: 1.056 | G50: 1.056 | H50: 1.056 | I50: 1.0507 | J50: 1.0811 | K50: 1.0943 | L50: 1.0607 | M50: 1.0801 | N50: 1.0801 | O50: 1.0801 | P50: 1.0801 | Q50: =IF(DemandParameters!$B$13=1,C50,IF(DemandParameters!$B$13=2,D50,IF(DemandParameters!$B$13=3,E50,IF(DemandParameters!$B$13=4,F50,IF(DemandParameters!$B$13=5,G50,IF(DemandParameters!$B$13=6,H50,IF(DemandParameters!$B$13=7,I50,IF(DemandParameters!$B$13=8,J50,IF(DemandParameters!$B$13=9,K50,IF(DemandParameters!$B$13=10,L50,IF(DemandParameters!$B$13=11,M50,IF(DemandParameters!$B$13=12,N50,IF(DemandParameters!$B$13=13,O50,IF(DemandParameters!$B$13=14,P50)))))))))))))) -> 1.0801 | S50: 1.0801
B51: Friday | C51: 1.168 | D51: 1.1625 | E51: 1.145 | F51: 1.141 | G51: 1.141 | H51: 1.141 | I51: 1.1628 | J51: 1.151 | K51: 1.1515 | L51: 1.1514 | M51: 1.1416 | N51: 1.1416 | O51: 1.1416 | P51: 1.1416 | Q51: =IF(DemandParameters!$B$13=1,C51,IF(DemandParameters!$B$13=2,D51,IF(DemandParameters!$B$13=3,E51,IF(DemandParameters!$B$13=4,F51,IF(DemandParameters!$B$13=5,G51,IF(DemandParameters!$B$13=6,H51,IF(DemandParameters!$B$13=7,I51,IF(DemandParameters!$B$13=8,J51,IF(DemandParameters!$B$13=9,K51,IF(DemandParameters!$B$13=10,L51,IF(DemandParameters!$B$13=11,M51,IF(DemandParameters!$B$13=12,N51,IF(DemandParameters!$B$13=13,O51,IF(DemandParameters!$B$13=14,P51)))))))))))))) -> 1.1416 | S51: 1.1416
B52: Saturday | C52: 0.943 | D52: 0.8879 | E52: 0.925 | F52: 0.906 | G52: 0.906 | H52: 0.906 | I52: 0.8992 | J52: 0.8584 | K52: 0.8394 | L52: 0.9029 | M52: 0.84 | N52: 0.84 | O52: 0.84 | P52: 0.84 | Q52: =IF(DemandParameters!$B$13=1,C52,IF(DemandParameters!$B$13=2,D52,IF(DemandParameters!$B$13=3,E52,IF(DemandParameters!$B$13=4,F52,IF(DemandParameters!$B$13=5,G52,IF(DemandParameters!$B$13=6,H52,IF(DemandParameters!$B$13=7,I52,IF(DemandParameters!$B$13=8,J52,IF(DemandParameters!$B$13=9,K52,IF(DemandParameters!$B$13=10,L52,IF(DemandParameters!$B$13=11,M52,IF(DemandParameters!$B$13=12,N52,IF(DemandParameters!$B$13=13,O52,IF(DemandParameters!$B$13=14,P52)))))))))))))) -> 0.84 | S52: 0.84
B53: Sunday | C53: 0.915 | D53: 0.7608 | E53: 0.739 | F53: 0.737 | G53: 0.737 | H53: 0.737 | I53: 0.8025 | J53: 0.7318 | K53: 0.6812 | L53: 0.7454 | M53: 0.6952 | N53: 0.6952 | O53: 0.6952 | P53: 0.6952 | Q53: =IF(DemandParameters!$B$13=1,C53,IF(DemandParameters!$B$13=2,D53,IF(DemandParameters!$B$13=3,E53,IF(DemandParameters!$B$13=4,F53,IF(DemandParameters!$B$13=5,G53,IF(DemandParameters!$B$13=6,H53,IF(DemandParameters!$B$13=7,I53,IF(DemandParameters!$B$13=8,J53,IF(DemandParameters!$B$13=9,K53,IF(DemandParameters!$B$13=10,L53,IF(DemandParameters!$B$13=11,M53,IF(DemandParameters!$B$13=12,N53,IF(DemandParameters!$B$13=13,O53,IF(DemandParameters!$B$13=14,P53)))))))))))))) -> 0.6952 | S53: 0.6952
A59: Review Monthly Profile or Override Values: | B59: Month | C59: Functional Class | Q59: Default Profile Value | R59: Override Value | S59: Applied Value | T59: Notes
C60: Rural Interstate | D60: Rural Principal Arterial | E60: Rural Minor Arterial | F60: Rural Major Collector | G60: Rural Minor Collector | H60: Rural Local | I60: Rural Other Fwy & Expwy | J60: Urban Interstate | K60: Urban Other Fwy & Expwy | L60: Urban Principal Arterial | M60: Urban Minor Arterial | N60: Urban Major Collector | O60: Urban Minor Collector | P60: Urban Local
A61: Chart shown at right | B61: January | C61: 0.7665352606 | D61: 0.772797527 | E61: 0.7631091246 | F61: 0.7884658707 | G61: 0.7884658707 | H61: 0.788 | I61: 0.8130081301 | J61: 0.7986309184 | K61: 0.8065445328 | L61: 0.8222718196 | M61: 0.7998171846 | N61: 0.7998171846 | O61: 0.7998171846 | P61: 0.7998171846 | Q61: =IF(DemandParameters!$B$13=1,C61,IF(DemandParameters!$B$13=2,D61,IF(DemandParameters!$B$13=3,E61,IF(DemandParameters!$B$13=4,F61,IF(DemandParameters!$B$13=5,G61,IF(DemandParameters!$B$13=6,H61,IF(DemandParameters!$B$13=7,I61,IF(DemandParameters!$B$13=8,J61,IF(DemandParameters!$B$13=9,K61,IF(DemandParameters!$B$13=10,L61,IF(DemandParameters!$B$13=11,M61,IF(DemandParameters!$B$13=12,N61,IF(DemandParameters!$B$13=13,O61,IF(DemandParameters!$B$13=14,P61)))))))))))))) -> 0.7998171846 | S61: =IF(R61="",Q61,R61) -> 0.7998171846
B62: February | C62: 0.8574228319 | D62: 0.880060347 | E62: 0.8717310087 | F62: 0.884508466 | G62: 0.884508466 | H62: 0.885 | I62: 0.8904719501 | J62: 0.8973208563 | K62: 0.9054456086 | L62: 0.9231174997 | M62: 0.9011328527 | N62: 0.9011328527 | O62: 0.9011328527 | P62: 0.9011328527 | Q62: =IF(DemandParameters!$B$13=1,C62,IF(DemandParameters!$B$13=2,D62,IF(DemandParameters!$B$13=3,E62,IF(DemandParameters!$B$13=4,F62,IF(DemandParameters!$B$13=5,G62,IF(DemandParameters!$B$13=6,H62,IF(DemandParameters!$B$13=7,I62,IF(DemandParameters!$B$13=8,J62,IF(DemandParameters!$B$13=9,K62,IF(DemandParameters!$B$13=10,L62,IF(DemandParameters!$B$13=11,M62,IF(DemandParameters!$B$13=12,N62,IF(DemandParameters!$B$13=13,O62,IF(DemandParameters!$B$13=14,P62)))))))))))))) -> 0.9011328527 | S62: =IF(R62="",Q62,R62) -> 0.9011328527
B63: March | C63: 0.9532888465 | D63: 0.9401020682 | E63: 0.9248249438 | F63: 0.9248249438 | G63: 0.9248249438 | H63: 0.925 | I63: 0.9689922481 | J63: 0.9538084208 | K63: 0.944924406 | L63: 0.9590354843 | M63: 0.966316952 | N63: 0.966316952 | O63: 0.966316952 | P63: 0.966316952 | Q63: =IF(DemandParameters!$B$13=1,C63,IF(DemandParameters!$B$13=2,D63,IF(DemandParameters!$B$13=3,E63,IF(DemandParameters!$B$13=4,F63,IF(DemandParameters!$B$13=5,G63,IF(DemandParameters!$B$13=6,H63,IF(DemandParameters!$B$13=7,I63,IF(DemandParameters!$B$13=8,J63,IF(DemandParameters!$B$13=9,K63,IF(DemandParameters!$B$13=10,L63,IF(DemandParameters!$B$13=11,M63,IF(DemandParameters!$B$13=12,N63,IF(DemandParameters!$B$13=13,O63,IF(DemandParameters!$B$13=14,P63)))))))))))))) -> 0.966316952 | S63: 0.966316952
B64: April | C64: 1.006470165 | D64: 1.003440367 | E64: 0.9955909543 | F64: 1.024290313 | G64: 1.024290313 | H64: 1.024 | I64: 0.9954493743 | J64: 0.9962994592 | K64: 0.9926262053 | L64: 1.011560694 | M64: 1.019516458 | N64: 1.019516458 | O64: 1.019516458 | P64: 1.019516458 | Q64: =IF(DemandParameters!$B$13=1,C64,IF(DemandParameters!$B$13=2,D64,IF(DemandParameters!$B$13=3,E64,IF(DemandParameters!$B$13=4,F64,IF(DemandParameters!$B$13=5,G64,IF(DemandParameters!$B$13=6,H64,IF(DemandParameters!$B$13=7,I64,IF(DemandParameters!$B$13=8,J64,IF(DemandParameters!$B$13=9,K64,IF(DemandParameters!$B$13=10,L64,IF(DemandParameters!$B$13=11,M64,IF(DemandParameters!$B$13=12,N64,IF(DemandParameters!$B$13=13,O64,IF(DemandParameters!$B$13=14,P64)))))))))))))) -> 1.019516458 | S64: 1.019516458
B65: May | C65: 1.045088086 | D65: 1.026844653 | E65: 1.046807238 | F65: 1.063668136 | G65: 1.063668136 | H65: 1.064 | I65: 1.016260163 | J65: 1.015817733 | K65: 1.001430615 | L65: 1.032600679 | M65: 1.043530113 | N65: 1.043530113 | O65: 1.043530113 | P65: 1.043530113 | Q65: =IF(DemandParameters!$B$13=1,C65,IF(DemandParameters!$B$13=2,D65,IF(DemandParameters!$B$13=3,E65,IF(DemandParameters!$B$13=4,F65,IF(DemandParameters!$B$13=5,G65,IF(DemandParameters!$B$13=6,H65,IF(DemandParameters!$B$13=7,I65,IF(DemandParameters!$B$13=8,J65,IF(DemandParameters!$B$13=9,K65,IF(DemandParameters!$B$13=10,L65,IF(DemandParameters!$B$13=11,M65,IF(DemandParameters!$B$13=12,N65,IF(DemandParameters!$B$13=13,O65,IF(DemandParameters!$B$13=14,P65)))))))))))))) -> 1.043530113 | S65: 1.043530113
B66: June | C66: 1.078748652 | D66: 1.043374571 | E66: 1.066910532 | F66: 1.042287076 | G66: 1.042287076 | H66: 1.042 | I66: 1.085103085 | J66: 1.038575668 | K66: 1.022943154 | L66: 1.02189781 | M66: 1.010976314 | N66: 1.010976314 | O66: 1.010976314 | P66: 1.010976314 | Q66: =IF(DemandParameters!$B$13=1,C66,IF(DemandParameters!$B$13=2,D66,IF(DemandParameters!$B$13=3,E66,IF(DemandParameters!$B$13=4,F66,IF(DemandParameters!$B$13=5,G66,IF(DemandParameters!$B$13=6,H66,IF(DemandParameters!$B$13=7,I66,IF(DemandParameters!$B$13=8,J66,IF(DemandParameters!$B$13=9,K66,IF(DemandParameters!$B$13=10,L66,IF(DemandParameters!$B$13=11,M66,IF(DemandParameters!$B$13=12,N66,IF(DemandParameters!$B$13=13,O66,IF(DemandParameters!$B$13=14,P66)))))))))))))) -> 1.010976314 | S66: 1.010976314
B67: July | C67: 1.096147823 | D67: 1.039964344 | E67: 1.080580426 | F67: 1.011414535 | G67: 1.011414535 | H67: 1.011 | I67: 1.073784323 | J67: 1.025641026 | K67: 1.00488085 | L67: 1.006614898 | M67: 0.9962994592 | N67: 0.9962994592 | O67: 0.9962994592 | P67: 0.9962994592 | Q67: =IF(DemandParameters!$B$13=1,C67,IF(DemandParameters!$B$13=2,D67,IF(DemandParameters!$B$13=3,E67,IF(DemandParameters!$B$13=4,F67,IF(DemandParameters!$B$13=5,G67,IF(DemandParameters!$B$13=6,H67,IF(DemandParameters!$B$13=7,I67,IF(DemandParameters!$B$13=8,J67,IF(DemandParameters!$B$13=9,K67,IF(DemandParameters!$B$13=10,L67,IF(DemandParameters!$B$13=11,M67,IF(DemandParameters!$B$13=12,N67,IF(DemandParameters!$B$13=13,O67,IF(DemandParameters!$B$13=14,P67)))))))))))))) -> 0.9962994592 | S67: 0.9962994592
B68: August | C68: 1.085271318 | D68: 1.070336391 | E68: 1.083759096 | F68: 1.066910532 | G68: 1.066910532 | H68: 1.067 | I68: 1.06870229 | J68: 1.047433787 | K68: 1.033668045 | L68: 1.034890597 | M68: 1.039192399 | N68: 1.039192399 | O68: 1.039192399 | P68: 1.039192399 | Q68: =IF(DemandParameters!$B$13=1,C68,IF(DemandParameters!$B$13=2,D68,IF(DemandParameters!$B$13=3,E68,IF(DemandParameters!$B$13=4,F68,IF(DemandParameters!$B$13=5,G68,IF(DemandParameters!$B$13=6,H68,IF(DemandParameters!$B$13=7,I68,IF(DemandParameters!$B$13=8,J68,IF(DemandParameters!$B$13=9,K68,IF(DemandParameters!$B$13=10,L68,IF(DemandParameters!$B$13=11,M68,IF(DemandParameters!$B$13=12,N68,IF(DemandParameters!$B$13=13,O68,IF(DemandParameters!$B$13=14,P68)))))))))))))) -> 1.039192399 | S68: 1.039192399
B69: September | C69: 1.018181818 | D69: 1.044776119 | E69: 1.044152745 | F69: 1.06173214 | G69: 1.06173214 | H69: 1.062 | I69: 1.011414535 | J69: 1.012584985 | K69: 1.011706894 | L69: 1.005025126 | M69: 1.016112643 | N69: 1.016112643 | O69: 1.016112643 | P69: 1.016112643 | Q69: =IF(DemandParameters!$B$13=1,C69,IF(DemandParameters!$B$13=2,D69,IF(DemandParameters!$B$13=3,E69,IF(DemandParameters!$B$13=4,F69,IF(DemandParameters!$B$13=5,G69,IF(DemandParameters!$B$13=6,H69,IF(DemandParameters!$B$13=7,I69,IF(DemandParameters!$B$13=8,J69,IF(DemandParameters!$B$13=9,K69,IF(DemandParameters!$B$13=10,L69,IF(DemandParameters!$B$13=11,M69,IF(DemandParameters!$B$13=12,N69,IF(DemandParameters!$B$13=13,O69,IF(DemandParameters!$B$13=14,P69)))))))))))))) -> 1.016112643 | S69: 1.016112643
B70: October | C70: 1.027900147 | D70: 1.039346696 | E70: 1.049160671 | F70: 1.041666667 | G70: 1.041666667 | H70: 1.042 | I70: 0.9941769635 | J70: 1.018478103 | K70: 1.009081736 | L70: 1.015081206 | M70: 1.003584229 | N70: 1.003584229 | O70: 1.003584229 | P70: 1.003584229 | Q70: =IF(DemandParameters!$B$13=1,C70,IF(DemandParameters!$B$13=2,D70,IF(DemandParameters!$B$13=3,E70,IF(DemandParameters!$B$13=4,F70,IF(DemandParameters!$B$13=5,G70,IF(DemandParameters!$B$13=6,H70,IF(DemandParameters!$B$13=7,I70,IF(DemandParameters!$B$13=8,J70,IF(DemandParameters!$B$13=9,K70,IF(DemandParameters!$B$13=10,L70,IF(DemandParameters!$B$13=11,M70,IF(DemandParameters!$B$13=12,N70,IF(DemandParameters!$B$13=13,O70,IF(DemandParameters!$B$13=14,P70)))))))))))))) -> 1.003584229 | S70: 1.003584229
B71: November | C71: 0.9708737864 | D71: 0.964585917 | E71: 0.9232392509 | F71: 0.9333333333 | G71: 0.9333333333 | H71: 0.933 | I71: 0.9247027741 | J71: 0.9581166165 | K71: 0.9478672986 | L71: 0.9553705473 | M71: 0.938463601 | N71: 0.938463601 | O71: 0.938463601 | P71: 0.938463601 | Q71: =IF(DemandParameters!$B$13=1,C71,IF(DemandParameters!$B$13=2,D71,IF(DemandParameters!$B$13=3,E71,IF(DemandParameters!$B$13=4,F71,IF(DemandParameters!$B$13=5,G71,IF(DemandParameters!$B$13=6,H71,IF(DemandParameters!$B$13=7,I71,IF(DemandParameters!$B$13=8,J71,IF(DemandParameters!$B$13=9,K71,IF(DemandParameters!$B$13=10,L71,IF(DemandParameters!$B$13=11,M71,IF(DemandParameters!$B$13=12,N71,IF(DemandParameters!$B$13=13,O71,IF(DemandParameters!$B$13=14,P71)))))))))))))) -> 0.938463601 | S71: 0.938463601
B72: December | C72: 0.9445418972 | D72: 0.9247027741 | E72: 0.8934269304 | F72: 0.9061488673 | G72: 0.9061488673 | H72: 0.906 | I72: 0.8987032995 | J72: 0.9352037408 | K72: 0.9216589862 | L72: 0.9352037408 | M72: 0.9059143264 | N72: 0.9059143264 | O72: 0.9059143264 | P72: 0.9059143264 | Q72: =IF(DemandParameters!$B$13=1,C72,IF(DemandParameters!$B$13=2,D72,IF(DemandParameters!$B$13=3,E72,IF(DemandParameters!$B$13=4,F72,IF(DemandParameters!$B$13=5,G72,IF(DemandParameters!$B$13=6,H72,IF(DemandParameters!$B$13=7,I72,IF(DemandParameters!$B$13=8,J72,IF(DemandParameters!$B$13=9,K72,IF(DemandParameters!$B$13=10,L72,IF(DemandParameters!$B$13=11,M72,IF(DemandParameters!$B$13=12,N72,IF(DemandParameters!$B$13=13,O72,IF(DemandParameters!$B$13=14,P72)))))))))))))) -> 0.9059143264 | S72: 0.9059143264
A74: Review Weekday Hourly Demand Profile or Override Values: | B74: Hour Starting | C74: Functional Class | Q74: Calibrated Profile Value | R74: Override Value | S74: Applied Value | T74: Notes | X74: =IF(DemandParameters!$B$13=1,C75,IF(DemandParameters!$B$13=2,D75,IF(DemandParameters!$B$13=3,E75,IF(DemandParameters!$B$13=4,F75,IF(DemandParameters!$B$13=5,G75,IF(DemandParameters!$B$13=6,H75,IF(DemandParameters!$B$13=7,I75,IF(DemandParameters!$B$13=8,J75,IF(DemandParameters!$B$13=9,K75,IF(DemandParameters!$B$13=10,L75,IF(DemandParameters!$B$13=11,M75,IF(DemandParameters!$B$13=12,N75,IF(DemandParameters!$B$13=13,O75,IF(DemandParameters!$B$13=14,P75)))))))))))))) -> Urban Local
A75: Chart shown at right | C75: Rural Interstate | D75: Rural Principal Arterial | E75: Rural Minor Arterial | F75: Rural Major Collector | G75: Rural Minor Collector | H75: Rural Local | I75: Rural Other Fwy & Expwy | J75: Urban Interstate | K75: Urban Other Fwy & Expwy | L75: Urban Principal Arterial | M75: Urban Minor Arterial | N75: Urban Major Collector | O75: Urban Minor Collector | P75: Urban Local
B76: 00:00:00 | C76: 0.009967643919 | D76: 0.006988452483 | E76: 0.003169960594 | F76: 0.002530482749 | G76: 0.001653030649 | H76: 0.001010563983 | I76: 0.009967643919 | J76: 0.008213127318 | K76: 0.006419951655 | L76: 0.005144337706 | M76: 0.003612406564 | N76: 0.003298598849 | O76: 0.002810421714 | P76: 0.004222288223 | Q76: =IF($B$13=1,C76,IF($B$13=2,D76,IF($B$13=3,E76,IF($B$13=4,F76,IF($B$13=5,G76,IF($B$13=6,H76,IF($B$13=7,I76,IF($B$13=8,J76,IF($B$13=9,K76,IF($B$13=10,L76,IF($B$13=11,M76,IF($B$13=12,N76,IF($B$13=13,O76,IF($B$13=14,P76)))))))))))))) -> 0.004222288223 | R76: =IF($B$13=1,D76,IF($B$13=2,E76,IF($B$13=3,F76,IF($B$13=4,G76,IF($B$13=5,H76,IF($B$13=6,I76,IF($B$13=7,J76,IF($B$13=8,K76,IF($B$13=9,L76,IF($B$13=10,M76,IF($B$13=11,N76,IF($B$13=12,O76,IF($B$13=13,P76,IF($B$13=14,Q76)))))))))))))) -> 0.004222288223 | S76: =IF(R76="",Q76,R76) -> 0.004222288223 | X76: =IF(DemandParameters!$B$13=1,C76,IF(DemandParameters!$B$13=2,D76,IF(DemandParameters!$B$13=3,E76,IF(DemandParameters!$B$13=4,F76,IF(DemandParameters!$B$13=5,G76,IF(DemandParameters!$B$13=6,H76,IF(DemandParameters!$B$13=7,I76,IF(DemandParameters!$B$13=8,J76,IF(DemandParameters!$B$13=9,K76,IF(DemandParameters!$B$13=10,L76,IF(DemandParameters!$B$13=11,M76,IF(DemandParameters!$B$13=12,N76,IF(DemandParameters!$B$13=13,O76,IF(DemandParameters!$B$13=14,P76)))))))))))))) -> 0.004222288223
B77: 01:00:00 | C77: 0.008374178686 | D77: 0.005308756558 | E77: 0.002778519714 | F77: 0.001585630886 | G77: 0.0008487933656 | H77: 0.0004417766046 | I77: 0.008374178686 | J77: 0.005502375113 | K77: 0.004334445984 | L77: 0.003074625019 | M77: 0.001944728946 | N77: 0.002419097876 | O77: 0.00134215049 | P77: 0.001985920354 | Q77: 0.001985920354 | R77: 0.001985920354 | S77: =IF(R77="",Q77,R77) -> 0.001985920354 | X77: =IF(DemandParameters!$B$13=1,C77,IF(DemandParameters!$B$13=2,D77,IF(DemandParameters!$B$13=3,E77,IF(DemandParameters!$B$13=4,F77,IF(DemandParameters!$B$13=5,G77,IF(DemandParameters!$B$13=6,H77,IF(DemandParameters!$B$13=7,I77,IF(DemandParameters!$B$13=8,J77,IF(DemandParameters!$B$13=9,K77,IF(DemandParameters!$B$13=10,L77,IF(DemandParameters!$B$13=11,M77,IF(DemandParameters!$B$13=12,N77,IF(DemandParameters!$B$13=13,O77,IF(DemandParameters!$B$13=14,P77)))))))))))))) -> 0.001985920354
B78: 02:00:00 | C78: 0.007439912756 | D78: 0.004865060759 | E78: 0.002626400362 | F78: 0.001435517502 | G78: 0.0007496560827 | H78: 0.0003920767366 | I78: 0.007439912756 | J78: 0.004778361147 | K78: 0.003635078202 | L78: 0.002753691477 | M78: 0.001888633192 | N78: 0.001511384904 | O78: 0.0009732002854 | P78: 0.001585364875 | Q78: 0.001585364875 | R78: 0.001585364875 | S78: 0.001585364875 | X78: =IF(DemandParameters!$B$13=1,C78,IF(DemandParameters!$B$13=2,D78,IF(DemandParameters!$B$13=3,E78,IF(DemandParameters!$B$13=4,F78,IF(DemandParameters!$B$13=5,G78,IF(DemandParameters!$B$13=6,H78,IF(DemandParameters!$B$13=7,I78,IF(DemandParameters!$B$13=8,J78,IF(DemandParameters!$B$13=9,K78,IF(DemandParameters!$B$13=10,L78,IF(DemandParameters!$B$13=11,M78,IF(DemandParameters!$B$13=12,N78,IF(DemandParameters!$B$13=13,O78,IF(DemandParameters!$B$13=14,P78)))))))))))))) -> 0.001585364875
B79: 03:00:00 | C79: 0.009118267101 | D79: 0.006427607282 | E79: 0.003950581558 | F79: 0.002297270885 | G79: 0.002437217695 | H79: 0.0006571426994 | I79: 0.009118267101 | J79: 0.00577620577 | K79: 0.004442750791 | L79: 0.003942380233 | M79: 0.002259767723 | N79: 0.00215312682 | O79: 0.00111626261 | P79: 0.001896818835 | Q79: 0.001896818835 | R79: 0.001896818835 | S79: 0.001896818835 | X79: =IF(DemandParameters!$B$13=1,C79,IF(DemandParameters!$B$13=2,D79,IF(DemandParameters!$B$13=3,E79,IF(DemandParameters!$B$13=4,F79,IF(DemandParameters!$B$13=5,G79,IF(DemandParameters!$B$13=6,H79,IF(DemandParameters!$B$13=7,I79,IF(DemandParameters!$B$13=8,J79,IF(DemandParameters!$B$13=9,K79,IF(DemandParameters!$B$13=10,L79,IF(DemandParameters!$B$13=11,M79,IF(DemandParameters!$B$13=12,N79,IF(DemandParameters!$B$13=13,O79,IF(DemandParameters!$B$13=14,P79)))))))))))))) -> 0.001896818835
B80: 04:00:00 | C80: 0.01520081753 | D80: 0.012712256 | E80: 0.01087217356 | F80: 0.007465926418 | G80: 0.004875549293 | H80: 0.002501560024 | I80: 0.01520081753 | J80: 0.01038564175 | K80: 0.009407661341 | L80: 0.008791568994 | M80: 0.005075551754 | N80: 0.005589802329 | O80: 0.003149253535 | P80: 0.003907623398 | Q80: 0.003907623398 | R80: 0.003907623398 | S80: 0.003907623398 | X80: =IF(DemandParameters!$B$13=1,C80,IF(DemandParameters!$B$13=2,D80,IF(DemandParameters!$B$13=3,E80,IF(DemandParameters!$B$13=4,F80,IF(DemandParameters!$B$13=5,G80,IF(DemandParameters!$B$13=6,H80,IF(DemandParameters!$B$13=7,I80,IF(DemandParameters!$B$13=8,J80,IF(DemandParameters!$B$13=9,K80,IF(DemandParameters!$B$13=10,L80,IF(DemandParameters!$B$13=11,M80,IF(DemandParameters!$B$13=12,N80,IF(DemandParameters!$B$13=13,O80,IF(DemandParameters!$B$13=14,P80)))))))))))))) -> 0.003907623398
B81: 05:00:00 | C81: 0.02928242635 | D81: 0.0282494223 | E81: 0.03012673706 | F81: 0.02497732857 | G81: 0.01754841297 | H81: 0.01156350263 | I81: 0.02928242635 | J81: 0.02535481221 | K81: 0.02624637241 | L81: 0.02351671022 | M81: 0.01562780845 | N81: 0.01870831718 | O81: 0.0130393779 | P81: 0.01080937894 | Q81: 0.01080937894 | R81: 0.01080937894 | S81: 0.01080937894 | X81: =IF(DemandParameters!$B$13=1,C81,IF(DemandParameters!$B$13=2,D81,IF(DemandParameters!$B$13=3,E81,IF(DemandParameters!$B$13=4,F81,IF(DemandParameters!$B$13=5,G81,IF(DemandParameters!$B$13=6,H81,IF(DemandParameters!$B$13=7,I81,IF(DemandParameters!$B$13=8,J81,IF(DemandParameters!$B$13=9,K81,IF(DemandParameters!$B$13=10,L81,IF(DemandParameters!$B$13=11,M81,IF(DemandParameters!$B$13=12,N81,IF(DemandParameters!$B$13=13,O81,IF(DemandParameters!$B$13=14,P81)))))))))))))) -> 0.01080937894
B82: 06:00:00 | C82: 0.04592598101 | D82: 0.05133627275 | E82: 0.05294141015 | F82: 0.04808744711 | G82: 0.04440904711 | H82: 0.04226697665 | I82: 0.04592598101 | J82: 0.0545634606 | K82: 0.05518982273 | L82: 0.04460017317 | M82: 0.03606882675 | N82: 0.0416207411 | O82: 0.03659195425 | P82: 0.03287524985 | Q82: 0.03287524985 | R82: 0.03287524985 | S82: 0.03287524985 | X82: =IF(DemandParameters!$B$13=1,C82,IF(DemandParameters!$B$13=2,D82,IF(DemandParameters!$B$13=3,E82,IF(DemandParameters!$B$13=4,F82,IF(DemandParameters!$B$13=5,G82,IF(DemandParameters!$B$13=6,H82,IF(DemandParameters!$B$13=7,I82,IF(DemandParameters!$B$13=8,J82,IF(DemandParameters!$B$13=9,K82,IF(DemandParameters!$B$13=10,L82,IF(DemandParameters!$B$13=11,M82,IF(DemandParameters!$B$13=12,N82,IF(DemandParameters!$B$13=13,O82,IF(DemandParameters!$B$13=14,P82)))))))))))))) -> 0.03287524985
B83: 07:00:00 | C83: 0.05910591959 | D83: 0.06432789278 | E83: 0.06991030772 | F83: 0.06922219939 | G83: 0.08442932013 | H83: 0.0755548438 | I83: 0.05910591959 | J83: 0.07323801859 | K83: 0.07592960416 | L83: 0.06388659083 | M83: 0.05874639187 | N83: 0.07084694562 | O83: 0.06470934818 | P83: 0.06403750291 | Q83: 0.06403750291 | R83: 0.06403750291 | S83: 0.06403750291 | X83: =IF(DemandParameters!$B$13=1,C83,IF(DemandParameters!$B$13=2,D83,IF(DemandParameters!$B$13=3,E83,IF(DemandParameters!$B$13=4,F83,IF(DemandParameters!$B$13=5,G83,IF(DemandParameters!$B$13=6,H83,IF(DemandParameters!$B$13=7,I83,IF(DemandParameters!$B$13=8,J83,IF(DemandParameters!$B$13=9,K83,IF(DemandParameters!$B$13=10,L83,IF(DemandParameters!$B$13=11,M83,IF(DemandParameters!$B$13=12,N83,IF(DemandParameters!$B$13=13,O83,IF(DemandParameters!$B$13=14,P83)))))))))))))) -> 0.06403750291
B84: 08:00:00 | C84: 0.05306368205 | D84: 0.05692946779 | E84: 0.05948706388 | F84: 0.05610988859 | G84: 0.04748341678 | H84: 0.06644320133 | I84: 0.05306368205 | J84: 0.06513533004 | K84: 0.06413061612 | L84: 0.05873614575 | M84: 0.05816806865 | N84: 0.06052946075 | O84: 0.06064148393 | P84: 0.06245775705 | Q84: 0.06245775705 | R84: 0.06245775705 | S84: 0.06245775705 | X84: =IF(DemandParameters!$B$13=1,C84,IF(DemandParameters!$B$13=2,D84,IF(DemandParameters!$B$13=3,E84,IF(DemandParameters!$B$13=4,F84,IF(DemandParameters!$B$13=5,G84,IF(DemandParameters!$B$13=6,H84,IF(DemandParameters!$B$13=7,I84,IF(DemandParameters!$B$13=8,J84,IF(DemandParameters!$B$13=9,K84,IF(DemandParameters!$B$13=10,L84,IF(DemandParameters!$B$13=11,M84,IF(DemandParameters!$B$13=12,N84,IF(DemandParameters!$B$13=13,O84,IF(DemandParameters!$B$13=14,P84)))))))))))))) -> 0.06245775705
B85: 09:00:00 | C85: 0.05259201591 | D85: 0.0532503683 | E85: 0.05460535686 | F85: 0.05339269649 | G85: 0.04439122468 | H85: 0.048076339 | I85: 0.05259201591 | J85: 0.05254634773 | K85: 0.05077380046 | L85: 0.05218336677 | M85: 0.05273914792 | N85: 0.04961654056 | O85: 0.05091136348 | P85: 0.04933816033 | Q85: 0.04933816033 | R85: 0.04933816033 | S85: 0.04933816033 | X85: =IF(DemandParameters!$B$13=1,C85,IF(DemandParameters!$B$13=2,D85,IF(DemandParameters!$B$13=3,E85,IF(DemandParameters!$B$13=4,F85,IF(DemandParameters!$B$13=5,G85,IF(DemandParameters!$B$13=6,H85,IF(DemandParameters!$B$13=7,I85,IF(DemandParameters!$B$13=8,J85,IF(DemandParameters!$B$13=9,K85,IF(DemandParameters!$B$13=10,L85,IF(DemandParameters!$B$13=11,M85,IF(DemandParameters!$B$13=12,N85,IF(DemandParameters!$B$13=13,O85,IF(DemandParameters!$B$13=14,P85)))))))))))))) -> 0.04933816033
B86: 10:00:00 | C86: 0.05447501076 | D86: 0.05362330734 | E86: 0.05624475778 | F86: 0.05499580953 | G86: 0.04429765691 | H86: 0.04678966464 | I86: 0.05447501076 | J86: 0.04815486242 | K86: 0.04736086971 | L86: 0.05191925344 | M86: 0.0545209307 | N86: 0.04938085687 | O86: 0.04830424086 | P86: 0.0488958636 | Q86: 0.0488958636 | R86: 0.0488958636 | S86: 0.0488958636 | X86: =IF(DemandParameters!$B$13=1,C86,IF(DemandParameters!$B$13=2,D86,IF(DemandParameters!$B$13=3,E86,IF(DemandParameters!$B$13=4,F86,IF(DemandParameters!$B$13=5,G86,IF(DemandParameters!$B$13=6,H86,IF(DemandParameters!$B$13=7,I86,IF(DemandParameters!$B$13=8,J86,IF(DemandParameters!$B$13=9,K86,IF(DemandParameters!$B$13=10,L86,IF(DemandParameters!$B$13=11,M86,IF(DemandParameters!$B$13=12,N86,IF(DemandParameters!$B$13=13,O86,IF(DemandParameters!$B$13=14,P86)))))))))))))) -> 0.0488958636
B87: 11:00:00 | C87: 0.05660112414 | D87: 0.05557981326 | E87: 0.06011233578 | F87: 0.05918697986 | G87: 0.05032498092 | H87: 0.05275917101 | I87: 0.05660112414 | J87: 0.05008508655 | K87: 0.04975118547 | L87: 0.05663109688 | M87: 0.0621937958 | N87: 0.05539604426 | O87: 0.05569265695 | P87: 0.05575346974 | Q87: 0.05575346974 | R87: 0.05575346974 | S87: 0.05575346974 | X87: =IF(DemandParameters!$B$13=1,C87,IF(DemandParameters!$B$13=2,D87,IF(DemandParameters!$B$13=3,E87,IF(DemandParameters!$B$13=4,F87,IF(DemandParameters!$B$13=5,G87,IF(DemandParameters!$B$13=6,H87,IF(DemandParameters!$B$13=7,I87,IF(DemandParameters!$B$13=8,J87,IF(DemandParameters!$B$13=9,K87,IF(DemandParameters!$B$13=10,L87,IF(DemandParameters!$B$13=11,M87,IF(DemandParameters!$B$13=12,N87,IF(DemandParameters!$B$13=13,O87,IF(DemandParameters!$B$13=14,P87)))))))))))))) -> 0.05575346974
B88: 12:00:00 | C88: 0.05855573237 | D88: 0.05808656178 | E88: 0.06377224342 | F88: 0.06236360282 | G88: 0.05508579831 | H88: 0.05831451181 | I88: 0.05855573237 | J88: 0.05254783323 | K88: 0.05269902998 | L88: 0.06069750667 | M88: 0.06759552551 | N88: 0.06096664946 | O88: 0.06197986963 | P88: 0.06432728353 | Q88: 0.06432728353 | R88: 0.06432728353 | S88: 0.06432728353 | X88: =IF(DemandParameters!$B$13=1,C88,IF(DemandParameters!$B$13=2,D88,IF(DemandParameters!$B$13=3,E88,IF(DemandParameters!$B$13=4,F88,IF(DemandParameters!$B$13=5,G88,IF(DemandParameters!$B$13=6,H88,IF(DemandParameters!$B$13=7,I88,IF(DemandParameters!$B$13=8,J88,IF(DemandParameters!$B$13=9,K88,IF(DemandParameters!$B$13=10,L88,IF(DemandParameters!$B$13=11,M88,IF(DemandParameters!$B$13=12,N88,IF(DemandParameters!$B$13=13,O88,IF(DemandParameters!$B$13=14,P88)))))))))))))) -> 0.06432728353
B89: 13:00:00 | C89: 0.06111686872 | D89: 0.06005074659 | E89: 0.06515714317 | F89: 0.06346288033 | G89: 0.0595837348 | H89: 0.05668546058 | I89: 0.06111686872 | J89: 0.05440942912 | K89: 0.05452500849 | L89: 0.06128619538 | M89: 0.06590888273 | N89: 0.06036583116 | O89: 0.06197234003 | P89: 0.06257094006 | Q89: 0.06257094006 | R89: 0.06257094006 | S89: 0.06257094006 | X89: =IF(DemandParameters!$B$13=1,C89,IF(DemandParameters!$B$13=2,D89,IF(DemandParameters!$B$13=3,E89,IF(DemandParameters!$B$13=4,F89,IF(DemandParameters!$B$13=5,G89,IF(DemandParameters!$B$13=6,H89,IF(DemandParameters!$B$13=7,I89,IF(DemandParameters!$B$13=8,J89,IF(DemandParameters!$B$13=9,K89,IF(DemandParameters!$B$13=10,L89,IF(DemandParameters!$B$13=11,M89,IF(DemandParameters!$B$13=12,N89,IF(DemandParameters!$B$13=13,O89,IF(DemandParameters!$B$13=14,P89)))))))))))))) -> 0.06257094006
B90: 14:00:00 | C90: 0.06646607004 | D90: 0.06541428041 | E90: 0.07250053532 | F90: 0.07220174027 | G90: 0.08045046199 | H90: 0.06881775058 | I90: 0.06646607004 | J90: 0.06197725078 | K90: 0.06312401981 | L90: 0.06794139756 | M90: 0.07047945846 | N90: 0.06962740899 | O90: 0.06932875534 | P90: 0.06887386917 | Q90: 0.06887386917 | R90: 0.06887386917 | S90: 0.06887386917 | X90: =IF(DemandParameters!$B$13=1,C90,IF(DemandParameters!$B$13=2,D90,IF(DemandParameters!$B$13=3,E90,IF(DemandParameters!$B$13=4,F90,IF(DemandParameters!$B$13=5,G90,IF(DemandParameters!$B$13=6,H90,IF(DemandParameters!$B$13=7,I90,IF(DemandParameters!$B$13=8,J90,IF(DemandParameters!$B$13=9,K90,IF(DemandParameters!$B$13=10,L90,IF(DemandParameters!$B$13=11,M90,IF(DemandParameters!$B$13=12,N90,IF(DemandParameters!$B$13=13,O90,IF(DemandParameters!$B$13=14,P90)))))))))))))) -> 0.06887386917
B91: 15:00:00 | C91: 0.07514424133 | D91: 0.07517357166 | E91: 0.08660177318 | F91: 0.08507268087 | G91: 0.08769193925 | H91: 0.08976900606 | I91: 0.07514424133 | J91: 0.07374399633 | K91: 0.07749880907 | L91: 0.07748260196 | M91: 0.07998443257 | N91: 0.08481000451 | O91: 0.08016007921 | P91: 0.08160896474 | Q91: 0.08160896474 | R91: 0.08160896474 | S91: 0.08160896474 | X91: =IF(DemandParameters!$B$13=1,C91,IF(DemandParameters!$B$13=2,D91,IF(DemandParameters!$B$13=3,E91,IF(DemandParameters!$B$13=4,F91,IF(DemandParameters!$B$13=5,G91,IF(DemandParameters!$B$13=6,H91,IF(DemandParameters!$B$13=7,I91,IF(DemandParameters!$B$13=8,J91,IF(DemandParameters!$B$13=9,K91,IF(DemandParameters!$B$13=10,L91,IF(DemandParameters!$B$13=11,M91,IF(DemandParameters!$B$13=12,N91,IF(DemandParameters!$B$13=13,O91,IF(DemandParameters!$B$13=14,P91)))))))))))))) -> 0.08160896474
B92: 16:00:00 | C92: 0.0767933459 | D92: 0.08133663502 | E92: 0.09010665472 | F92: 0.09034180048 | G92: 0.09891673025 | H92: 0.1019233849 | I92: 0.0767933459 | J92: 0.08043631718 | K92: 0.08483096804 | L92: 0.08324790617 | M92: 0.08506295477 | N92: 0.09229902566 | O92: 0.09137164768 | P92: 0.0924488469 | Q92: 0.0924488469 | R92: 0.0924488469 | S92: 0.0924488469 | X92: =IF(DemandParameters!$B$13=1,C92,IF(DemandParameters!$B$13=2,D92,IF(DemandParameters!$B$13=3,E92,IF(DemandParameters!$B$13=4,F92,IF(DemandParameters!$B$13=5,G92,IF(DemandParameters!$B$13=6,H92,IF(DemandParameters!$B$13=7,I92,IF(DemandParameters!$B$13=8,J92,IF(DemandParameters!$B$13=9,K92,IF(DemandParameters!$B$13=10,L92,IF(DemandParameters!$B$13=11,M92,IF(DemandParameters!$B$13=12,N92,IF(DemandParameters!$B$13=13,O92,IF(DemandParameters!$B$13=14,P92)))))))))))))) -> 0.0924488469
B93: 17:00:00 | C93: 0.07087442153 | D93: 0.07717210148 | E93: 0.07950997544 | F93: 0.08350651344 | G93: 0.09366690987 | H93: 0.1081082574 | I93: 0.07087442153 | J93: 0.0781069021 | K93: 0.08126198922 | L93: 0.08077330943 | M93: 0.0830037208 | N93: 0.08847853725 | O93: 0.09428560134 | P93: 0.09589490837 | Q93: 0.09589490837 | R93: 0.09589490837 | S93: 0.09589490837 | X93: =IF(DemandParameters!$B$13=1,C93,IF(DemandParameters!$B$13=2,D93,IF(DemandParameters!$B$13=3,E93,IF(DemandParameters!$B$13=4,F93,IF(DemandParameters!$B$13=5,G93,IF(DemandParameters!$B$13=6,H93,IF(DemandParameters!$B$13=7,I93,IF(DemandParameters!$B$13=8,J93,IF(DemandParameters!$B$13=9,K93,IF(DemandParameters!$B$13=10,L93,IF(DemandParameters!$B$13=11,M93,IF(DemandParameters!$B$13=12,N93,IF(DemandParameters!$B$13=13,O93,IF(DemandParameters!$B$13=14,P93)))))))))))))) -> 0.09589490837
B94: 18:00:00 | C94: 0.05184128963 | D94: 0.05520485788 | E94: 0.04999300768 | F94: 0.05653785159 | G94: 0.06489036419 | H94: 0.06569770331 | I94: 0.05184128963 | J94: 0.05798626675 | K94: 0.05733866865 | L94: 0.06006707327 | M94: 0.06336783651 | N94: 0.06230616816 | O94: 0.06936640332 | P94: 0.06681490163 | Q94: 0.06681490163 | R94: 0.06681490163 | S94: 0.06681490163 | X94: =IF(DemandParameters!$B$13=1,C94,IF(DemandParameters!$B$13=2,D94,IF(DemandParameters!$B$13=3,E94,IF(DemandParameters!$B$13=4,F94,IF(DemandParameters!$B$13=5,G94,IF(DemandParameters!$B$13=6,H94,IF(DemandParameters!$B$13=7,I94,IF(DemandParameters!$B$13=8,J94,IF(DemandParameters!$B$13=9,K94,IF(DemandParameters!$B$13=10,L94,IF(DemandParameters!$B$13=11,M94,IF(DemandParameters!$B$13=12,N94,IF(DemandParameters!$B$13=13,O94,IF(DemandParameters!$B$13=14,P94)))))))))))))) -> 0.06681490163
B95: 19:00:00 | C95: 0.03970139108 | D95: 0.04051008517 | E95: 0.03093900918 | F95: 0.03882831842 | G95: 0.04555079672 | H95: 0.04429914903 | I95: 0.03970139108 | J95: 0.04084375831 | K95: 0.04042810811 | L95: 0.04393594688 | M95: 0.04728920557 | N95: 0.04415975619 | O95: 0.04972356971 | P95: 0.04772630582 | Q95: 0.04772630582 | R95: 0.04772630582 | S95: 0.04772630582 | X95: =IF(DemandParameters!$B$13=1,C95,IF(DemandParameters!$B$13=2,D95,IF(DemandParameters!$B$13=3,E95,IF(DemandParameters!$B$13=4,F95,IF(DemandParameters!$B$13=5,G95,IF(DemandParameters!$B$13=6,H95,IF(DemandParameters!$B$13=7,I95,IF(DemandParameters!$B$13=8,J95,IF(DemandParameters!$B$13=9,K95,IF(DemandParameters!$B$13=10,L95,IF(DemandParameters!$B$13=11,M95,IF(DemandParameters!$B$13=12,N95,IF(DemandParameters!$B$13=13,O95,IF(DemandParameters!$B$13=14,P95)))))))))))))) -> 0.04772630582
B96: 20:00:00 | C96: 0.03352769144 | D96: 0.03238082065 | E96: 0.02280401505 | F96: 0.02943585922 | G96: 0.03291357791 | H96: 0.03336517806 | I96: 0.03352769144 | J96: 0.03311808822 | K96: 0.03233548921 | L96: 0.03487222805 | M96: 0.03642350957 | N96: 0.03362876809 | O96: 0.0402776915 | P96: 0.03706864028 | Q96: 0.03706864028 | R96: 0.03706864028 | S96: 0.03706864028 | X96: =IF(DemandParameters!$B$13=1,C96,IF(DemandParameters!$B$13=2,D96,IF(DemandParameters!$B$13=3,E96,IF(DemandParameters!$B$13=4,F96,IF(DemandParameters!$B$13=5,G96,IF(DemandParameters!$B$13=6,H96,IF(DemandParameters!$B$13=7,I96,IF(DemandParameters!$B$13=8,J96,IF(DemandParameters!$B$13=9,K96,IF(DemandParameters!$B$13=10,L96,IF(DemandParameters!$B$13=11,M96,IF(DemandParameters!$B$13=12,N96,IF(DemandParameters!$B$13=13,O96,IF(DemandParameters!$B$13=14,P96)))))))))))))) -> 0.03706864028
B97: 21:00:00 | C97: 0.02794729816 | D97: 0.02508659008 | E97: 0.01582138152 | F97: 0.01906696374 | G97: 0.02257322514 | H97: 0.01522472624 | I97: 0.02794729816 | J97: 0.02738267458 | K97: 0.02600829564 | L97: 0.02618476672 | M97: 0.02482308488 | N97: 0.02224577762 | O97: 0.02328527569 | P97: 0.02348346806 | Q97: 0.02348346806 | R97: 0.02348346806 | S97: 0.02348346806 | X97: =IF(DemandParameters!$B$13=1,C97,IF(DemandParameters!$B$13=2,D97,IF(DemandParameters!$B$13=3,E97,IF(DemandParameters!$B$13=4,F97,IF(DemandParameters!$B$13=5,G97,IF(DemandParameters!$B$13=6,H97,IF(DemandParameters!$B$13=7,I97,IF(DemandParameters!$B$13=8,J97,IF(DemandParameters!$B$13=9,K97,IF(DemandParameters!$B$13=10,L97,IF(DemandParameters!$B$13=11,M97,IF(DemandParameters!$B$13=12,N97,IF(DemandParameters!$B$13=13,O97,IF(DemandParameters!$B$13=14,P97)))))))))))))) -> 0.02348346806
B98: 22:00:00 | C98: 0.02116448002 | D98: 0.01774198459 | E98: 0.009526030334 | F98: 0.01140080844 | G98: 0.01000729606 | H98: 0.0069414149 | I98: 0.02116448002 | J98: 0.02083412184 | K98: 0.01921950108 | L98: 0.01740621236 | M98: 0.0146031184 | N98: 0.01244933919 | O98: 0.01232971348 | P98: 0.01366544386 | Q98: 0.01366544386 | R98: 0.01366544386 | S98: 0.01366544386 | X98: =IF(DemandParameters!$B$13=1,C98,IF(DemandParameters!$B$13=2,D98,IF(DemandParameters!$B$13=3,E98,IF(DemandParameters!$B$13=4,F98,IF(DemandParameters!$B$13=5,G98,IF(DemandParameters!$B$13=6,H98,IF(DemandParameters!$B$13=7,I98,IF(DemandParameters!$B$13=8,J98,IF(DemandParameters!$B$13=9,K98,IF(DemandParameters!$B$13=10,L98,IF(DemandParameters!$B$13=11,M98,IF(DemandParameters!$B$13=12,N98,IF(DemandParameters!$B$13=13,O98,IF(DemandParameters!$B$13=14,P98)))))))))))))) -> 0.01366544386
B99: 23:00:00 | C99: 0.01572018994 | D99: 0.01224308709 | E99: 0.006442625974 | F99: 0.006493802403 | G99: 0.00522085893 | H99: 0.00239663808 | I99: 0.01572018994 | J99: 0.01487973234 | K99: 0.01310795366 | L99: 0.01092491506 | M99: 0.008612211914 | N99: 0.0075918166 | O99: 0.00663733889 | P99: 0.007751029484 | Q99: 0.007751029484 | R99: 0.007751029484 | S99: 0.007751029484 | X99: =IF(DemandParameters!$B$13=1,C99,IF(DemandParameters!$B$13=2,D99,IF(DemandParameters!$B$13=3,E99,IF(DemandParameters!$B$13=4,F99,IF(DemandParameters!$B$13=5,G99,IF(DemandParameters!$B$13=6,H99,IF(DemandParameters!$B$13=7,I99,IF(DemandParameters!$B$13=8,J99,IF(DemandParameters!$B$13=9,K99,IF(DemandParameters!$B$13=10,L99,IF(DemandParameters!$B$13=11,M99,IF(DemandParameters!$B$13=12,N99,IF(DemandParameters!$B$13=13,O99,IF(DemandParameters!$B$13=14,P99)))))))))))))) -> 0.007751029484
B100: Total | C100: =SUM(C76:C99) -> 1 | D100: 1 | E100: 1 | F100: 1 | G100: 1 | H100: 1 | I100: 1 | J100: 1 | K100: 1 | L100: 1 | M100: 1 | N100: 1 | O100: 1 | P100: 1 | Q100: =SUM(Q76:Q99) -> 1 | R100: =SUM(R76:R99) -> 1 | S100: =SUM(S76:S99) -> 1
A101: Review Weekend Hourly Demand Profile or Override Values: | B101: 00:00:00 | C101: 0.016 | D101: 0.016 | E101: 0.024 | F101: 0.022 | G101: 0.016 | H101: 0.016 | I101: 0.016 | J101: 0.021 | K101: 0.023 | L101: 0.023 | M101: 0.028 | N101: 0.028 | O101: 0.028 | P101: 0.028 | Q101: =IF($B$13=1,C101,IF($B$13=2,D101,IF($B$13=3,E101,IF($B$13=4,F101,IF($B$13=5,G101,IF($B$13=6,H101,IF($B$13=7,I101,IF($B$13=8,J101,IF($B$13=9,K101,IF($B$13=10,L101,IF($B$13=11,M101,IF($B$13=12,N101,IF($B$13=13,O101,IF($B$13=14,P101)))))))))))))) -> 0.028 | R101: =IF($B$13=1,D101,IF($B$13=2,E101,IF($B$13=3,F101,IF($B$13=4,G101,IF($B$13=5,H101,IF($B$13=6,I101,IF($B$13=7,J101,IF($B$13=8,K101,IF($B$13=9,L101,IF($B$13=10,M101,IF($B$13=11,N101,IF($B$13=12,O101,IF($B$13=13,P101,IF($B$13=14,Q101)))))))))))))) -> 0.028 | S101: =IF(R101="",Q101,R101) -> 0.028 | X101: =IF(DemandParameters!$B$13=1,C101,IF(DemandParameters!$B$13=2,D101,IF(DemandParameters!$B$13=3,E101,IF(DemandParameters!$B$13=4,F101,IF(DemandParameters!$B$13=5,G101,IF(DemandParameters!$B$13=6,H101,IF(DemandParameters!$B$13=7,I101,IF(DemandParameters!$B$13=8,J101,IF(DemandParameters!$B$13=9,K101))))))))) -> FALSE
A102: Chart shown at right | B102: 01:00:00 | C102: 0.011 | D102: 0.01 | E102: 0.013 | F102: 0.012 | G102: 0.009 | H102: 0.009 | I102: 0.011 | J102: 0.014 | K102: 0.015 | L102: 0.014 | M102: 0.023 | N102: 0.023 | O102: 0.023 | P102: 0.023 | Q102: 0.023 | R102: 0.023 | S102: =IF(R102="",Q102,R102) -> 0.023 | X102: =IF(DemandParameters!$B$13=1,C102,IF(DemandParameters!$B$13=2,D102,IF(DemandParameters!$B$13=3,E102,IF(DemandParameters!$B$13=4,F102,IF(DemandParameters!$B$13=5,G102,IF(DemandParameters!$B$13=6,H102,IF(DemandParameters!$B$13=7,I102,IF(DemandParameters!$B$13=8,J102,IF(DemandParameters!$B$13=9,K102))))))))) -> FALSE
B103: 02:00:00 | C103: 0.009 | D103: 0.006 | E103: 0.007 | F103: 0.007 | G103: 0.004 | H103: 0.004 | I103: 0.009 | J103: 0.01 | K103: 0.008 | L103: 0.01 | M103: 0.021 | N103: 0.021 | O103: 0.021 | P103: 0.021 | Q103: 0.021 | R103: 0.021 | S103: 0.021 | X103: =IF(DemandParameters!$B$13=1,C103,IF(DemandParameters!$B$13=2,D103,IF(DemandParameters!$B$13=3,E103,IF(DemandParameters!$B$13=4,F103,IF(DemandParameters!$B$13=5,G103,IF(DemandParameters!$B$13=6,H103,IF(DemandParameters!$B$13=7,I103,IF(DemandParameters!$B$13=8,J103,IF(DemandParameters!$B$13=9,K103))))))))) -> FALSE
B104: 03:00:00 | C104: 0.007 | D104: 0.005 | E104: 0.005 | F104: 0.005 | G104: 0.002 | H104: 0.002 | I104: 0.007 | J104: 0.006 | K104: 0.005 | L104: 0.006 | M104: 0.008 | N104: 0.008 | O104: 0.008 | P104: 0.008 | Q104: 0.008 | R104: 0.008 | S104: 0.008 | X104: =IF(DemandParameters!$B$13=1,C104,IF(DemandParameters!$B$13=2,D104,IF(DemandParameters!$B$13=3,E104,IF(DemandParameters!$B$13=4,F104,IF(DemandParameters!$B$13=5,G104,IF(DemandParameters!$B$13=6,H104,IF(DemandParameters!$B$13=7,I104,IF(DemandParameters!$B$13=8,J104,IF(DemandParameters!$B$13=9,K104))))))))) -> FALSE
B105: 04:00:00 | C105: 0.007 | D105: 0.005 | E105: 0.005 | F105: 0.004 | G105: 0.002 | H105: 0.002 | I105: 0.007 | J105: 0.006 | K105: 0.005 | L105: 0.006 | M105: 0.005 | N105: 0.005 | O105: 0.005 | P105: 0.005 | Q105: 0.005 | R105: 0.005 | S105: 0.005 | X105: =IF(DemandParameters!$B$13=1,C105,IF(DemandParameters!$B$13=2,D105,IF(DemandParameters!$B$13=3,E105,IF(DemandParameters!$B$13=4,F105,IF(DemandParameters!$B$13=5,G105,IF(DemandParameters!$B$13=6,H105,IF(DemandParameters!$B$13=7,I105,IF(DemandParameters!$B$13=8,J105,IF(DemandParameters!$B$13=9,K105))))))))) -> FALSE
B106: 05:00:00 | C106: 0.01 | D106: 0.009 | E106: 0.008 | F106: 0.006 | G106: 0.002 | H106: 0.002 | I106: 0.01 | J106: 0.01 | K106: 0.009 | L106: 0.01 | M106: 0.005 | N106: 0.005 | O106: 0.005 | P106: 0.005 | Q106: 0.005 | R106: 0.005 | S106: 0.005 | X106: =IF(DemandParameters!$B$13=1,C106,IF(DemandParameters!$B$13=2,D106,IF(DemandParameters!$B$13=3,E106,IF(DemandParameters!$B$13=4,F106,IF(DemandParameters!$B$13=5,G106,IF(DemandParameters!$B$13=6,H106,IF(DemandParameters!$B$13=7,I106,IF(DemandParameters!$B$13=8,J106,IF(DemandParameters!$B$13=9,K106))))))))) -> FALSE
B107: 06:00:00 | C107: 0.017 | D107: 0.016 | E107: 0.016 | F107: 0.01 | G107: 0.007 | H107: 0.007 | I107: 0.017 | J107: 0.017 | K107: 0.016 | L107: 0.017 | M107: 0.011 | N107: 0.011 | O107: 0.011 | P107: 0.011 | Q107: 0.011 | R107: 0.011 | S107: 0.011 | X107: =IF(DemandParameters!$B$13=1,C107,IF(DemandParameters!$B$13=2,D107,IF(DemandParameters!$B$13=3,E107,IF(DemandParameters!$B$13=4,F107,IF(DemandParameters!$B$13=5,G107,IF(DemandParameters!$B$13=6,H107,IF(DemandParameters!$B$13=7,I107,IF(DemandParameters!$B$13=8,J107,IF(DemandParameters!$B$13=9,K107))))))))) -> FALSE
B108: 07:00:00 | C108: 0.027 | D108: 0.025 | E108: 0.025 | F108: 0.018 | G108: 0.014 | H108: 0.014 | I108: 0.027 | J108: 0.025 | K108: 0.023 | L108: 0.024 | M108: 0.018 | N108: 0.018 | O108: 0.018 | P108: 0.018 | Q108: 0.018 | R108: 0.018 | S108: 0.018 | X108: =IF(DemandParameters!$B$13=1,C108,IF(DemandParameters!$B$13=2,D108,IF(DemandParameters!$B$13=3,E108,IF(DemandParameters!$B$13=4,F108,IF(DemandParameters!$B$13=5,G108,IF(DemandParameters!$B$13=6,H108,IF(DemandParameters!$B$13=7,I108,IF(DemandParameters!$B$13=8,J108,IF(DemandParameters!$B$13=9,K108))))))))) -> FALSE
B109: 08:00:00 | C109: 0.039 | D109: 0.036 | E109: 0.033 | F109: 0.028 | G109: 0.025 | H109: 0.025 | I109: 0.039 | J109: 0.035 | K109: 0.036 | L109: 0.035 | M109: 0.03 | N109: 0.03 | O109: 0.03 | P109: 0.03 | Q109: 0.03 | R109: 0.03 | S109: 0.03 | X109: =IF(DemandParameters!$B$13=1,C109,IF(DemandParameters!$B$13=2,D109,IF(DemandParameters!$B$13=3,E109,IF(DemandParameters!$B$13=4,F109,IF(DemandParameters!$B$13=5,G109,IF(DemandParameters!$B$13=6,H109,IF(DemandParameters!$B$13=7,I109,IF(DemandParameters!$B$13=8,J109,IF(DemandParameters!$B$13=9,K109))))))))) -> FALSE
B110: 09:00:00 | C110: 0.052 | D110: 0.05 | E110: 0.045 | F110: 0.039 | G110: 0.046 | H110: 0.046 | I110: 0.052 | J110: 0.047 | K110: 0.045 | L110: 0.046 | M110: 0.048 | N110: 0.048 | O110: 0.048 | P110: 0.048 | Q110: 0.048 | R110: 0.048 | S110: 0.048 | X110: =IF(DemandParameters!$B$13=1,C110,IF(DemandParameters!$B$13=2,D110,IF(DemandParameters!$B$13=3,E110,IF(DemandParameters!$B$13=4,F110,IF(DemandParameters!$B$13=5,G110,IF(DemandParameters!$B$13=6,H110,IF(DemandParameters!$B$13=7,I110,IF(DemandParameters!$B$13=8,J110,IF(DemandParameters!$B$13=9,K110))))))))) -> FALSE
B111: 10:00:00 | C111: 0.063 | D111: 0.062 | E111: 0.055 | F111: 0.049 | G111: 0.058 | H111: 0.058 | I111: 0.063 | J111: 0.057 | K111: 0.057 | L111: 0.056 | M111: 0.054 | N111: 0.054 | O111: 0.054 | P111: 0.054 | Q111: 0.054 | R111: 0.054 | S111: 0.054 | X111: =IF(DemandParameters!$B$13=1,C111,IF(DemandParameters!$B$13=2,D111,IF(DemandParameters!$B$13=3,E111,IF(DemandParameters!$B$13=4,F111,IF(DemandParameters!$B$13=5,G111,IF(DemandParameters!$B$13=6,H111,IF(DemandParameters!$B$13=7,I111,IF(DemandParameters!$B$13=8,J111,IF(DemandParameters!$B$13=9,K111))))))))) -> FALSE
B112: 11:00:00 | C112: 0.07 | D112: 0.07 | E112: 0.063 | F112: 0.06 | G112: 0.063 | H112: 0.063 | I112: 0.07 | J112: 0.065 | K112: 0.066 | L112: 0.054 | M112: 0.057 | N112: 0.057 | O112: 0.057 | P112: 0.057 | Q112: 0.057 | R112: 0.057 | S112: 0.057 | X112: =IF(DemandParameters!$B$13=1,C112,IF(DemandParameters!$B$13=2,D112,IF(DemandParameters!$B$13=3,E112,IF(DemandParameters!$B$13=4,F112,IF(DemandParameters!$B$13=5,G112,IF(DemandParameters!$B$13=6,H112,IF(DemandParameters!$B$13=7,I112,IF(DemandParameters!$B$13=8,J112,IF(DemandParameters!$B$13=9,K112))))))))) -> FALSE
B113: 12:00:00 | C113: 0.072 | D113: 0.075 | E113: 0.072 | F113: 0.068 | G113: 0.086 | H113: 0.086 | I113: 0.072 | J113: 0.072 | K113: 0.076 | L113: 0.071 | M113: 0.074 | N113: 0.074 | O113: 0.074 | P113: 0.074 | Q113: 0.074 | R113: 0.074 | S113: 0.074 | X113: =IF(DemandParameters!$B$13=1,C113,IF(DemandParameters!$B$13=2,D113,IF(DemandParameters!$B$13=3,E113,IF(DemandParameters!$B$13=4,F113,IF(DemandParameters!$B$13=5,G113,IF(DemandParameters!$B$13=6,H113,IF(DemandParameters!$B$13=7,I113,IF(DemandParameters!$B$13=8,J113,IF(DemandParameters!$B$13=9,K113))))))))) -> FALSE
B114: 13:00:00 | C114: 0.072 | D114: 0.075 | E114: 0.073 | F114: 0.071 | G114: 0.081 | H114: 0.081 | I114: 0.072 | J114: 0.072 | K114: 0.073 | L114: 0.071 | M114: 0.071 | N114: 0.071 | O114: 0.071 | P114: 0.071 | Q114: 0.071 | R114: 0.071 | S114: 0.071 | X114: =IF(DemandParameters!$B$13=1,C114,IF(DemandParameters!$B$13=2,D114,IF(DemandParameters!$B$13=3,E114,IF(DemandParameters!$B$13=4,F114,IF(DemandParameters!$B$13=5,G114,IF(DemandParameters!$B$13=6,H114,IF(DemandParameters!$B$13=7,I114,IF(DemandParameters!$B$13=8,J114,IF(DemandParameters!$B$13=9,K114))))))))) -> FALSE
B115: 14:00:00 | C115: 0.073 | D115: 0.075 | E115: 0.072 | F115: 0.073 | G115: 0.077 | H115: 0.077 | I115: 0.073 | J115: 0.071 | K115: 0.074 | L115: 0.072 | M115: 0.069 | N115: 0.069 | O115: 0.069 | P115: 0.069 | Q115: 0.069 | R115: 0.069 | S115: 0.069 | X115: =IF(DemandParameters!$B$13=1,C115,IF(DemandParameters!$B$13=2,D115,IF(DemandParameters!$B$13=3,E115,IF(DemandParameters!$B$13=4,F115,IF(DemandParameters!$B$13=5,G115,IF(DemandParameters!$B$13=6,H115,IF(DemandParameters!$B$13=7,I115,IF(DemandParameters!$B$13=8,J115,IF(DemandParameters!$B$13=9,K115))))))))) -> FALSE
B116: 15:00:00 | C116: 0.075 | D116: 0.077 | E116: 0.082 | F116: 0.074 | G116: 0.077 | H116: 0.077 | I116: 0.075 | J116: 0.073 | K116: 0.075 | L116: 0.073 | M116: 0.067 | N116: 0.067 | O116: 0.067 | P116: 0.067 | Q116: 0.067 | R116: 0.067 | S116: 0.067 | X116: =IF(DemandParameters!$B$13=1,C116,IF(DemandParameters!$B$13=2,D116,IF(DemandParameters!$B$13=3,E116,IF(DemandParameters!$B$13=4,F116,IF(DemandParameters!$B$13=5,G116,IF(DemandParameters!$B$13=6,H116,IF(DemandParameters!$B$13=7,I116,IF(DemandParameters!$B$13=8,J116,IF(DemandParameters!$B$13=9,K116))))))))) -> FALSE
B117: 16:00:00 | C117: 0.075 | D117: 0.078 | E117: 0.075 | F117: 0.079 | G117: 0.086 | H117: 0.086 | I117: 0.075 | J117: 0.073 | K117: 0.075 | L117: 0.073 | M117: 0.071 | N117: 0.071 | O117: 0.071 | P117: 0.071 | Q117: 0.071 | R117: 0.071 | S117: 0.071 | X117: =IF(DemandParameters!$B$13=1,C117,IF(DemandParameters!$B$13=2,D117,IF(DemandParameters!$B$13=3,E117,IF(DemandParameters!$B$13=4,F117,IF(DemandParameters!$B$13=5,G117,IF(DemandParameters!$B$13=6,H117,IF(DemandParameters!$B$13=7,I117,IF(DemandParameters!$B$13=8,J117,IF(DemandParameters!$B$13=9,K117))))))))) -> FALSE
B118: 17:00:00 | C118: 0.071 | D118: 0.075 | E118: 0.074 | F118: 0.08 | G118: 0.086 | H118: 0.086 | I118: 0.071 | J118: 0.072 | K118: 0.071 | L118: 0.073 | M118: 0.068 | N118: 0.068 | O118: 0.068 | P118: 0.068 | Q118: 0.068 | R118: 0.068 | S118: 0.068 | X118: =IF(DemandParameters!$B$13=1,C118,IF(DemandParameters!$B$13=2,D118,IF(DemandParameters!$B$13=3,E118,IF(DemandParameters!$B$13=4,F118,IF(DemandParameters!$B$13=5,G118,IF(DemandParameters!$B$13=6,H118,IF(DemandParameters!$B$13=7,I118,IF(DemandParameters!$B$13=8,J118,IF(DemandParameters!$B$13=9,K118))))))))) -> FALSE
B119: 18:00:00 | C119: 0.061 | D119: 0.065 | E119: 0.067 | F119: 0.075 | G119: 0.067 | H119: 0.067 | I119: 0.061 | J119: 0.064 | K119: 0.063 | L119: 0.063 | M119: 0.067 | N119: 0.067 | O119: 0.067 | P119: 0.067 | Q119: 0.067 | R119: 0.067 | S119: 0.067 | X119: =IF(DemandParameters!$B$13=1,C119,IF(DemandParameters!$B$13=2,D119,IF(DemandParameters!$B$13=3,E119,IF(DemandParameters!$B$13=4,F119,IF(DemandParameters!$B$13=5,G119,IF(DemandParameters!$B$13=6,H119,IF(DemandParameters!$B$13=7,I119,IF(DemandParameters!$B$13=8,J119,IF(DemandParameters!$B$13=9,K119))))))))) -> FALSE
B120: 19:00:00 | C120: 0.051 | D120: 0.051 | E120: 0.054 | F120: 0.063 | G120: 0.056 | H120: 0.056 | I120: 0.051 | J120: 0.052 | K120: 0.051 | L120: 0.052 | M120: 0.056 | N120: 0.056 | O120: 0.056 | P120: 0.056 | Q120: 0.056 | R120: 0.056 | S120: 0.056 | X120: =IF(DemandParameters!$B$13=1,C120,IF(DemandParameters!$B$13=2,D120,IF(DemandParameters!$B$13=3,E120,IF(DemandParameters!$B$13=4,F120,IF(DemandParameters!$B$13=5,G120,IF(DemandParameters!$B$13=6,H120,IF(DemandParameters!$B$13=7,I120,IF(DemandParameters!$B$13=8,J120,IF(DemandParameters!$B$13=9,K120))))))))) -> FALSE
B121: 20:00:00 | C121: 0.041 | D121: 0.041 | E121: 0.043 | F121: 0.052 | G121: 0.051 | H121: 0.051 | I121: 0.041 | J121: 0.043 | K121: 0.043 | L121: 0.044 | M121: 0.049 | N121: 0.049 | O121: 0.049 | P121: 0.049 | Q121: 0.049 | R121: 0.049 | S121: 0.049 | X121: =IF(DemandParameters!$B$13=1,C121,IF(DemandParameters!$B$13=2,D121,IF(DemandParameters!$B$13=3,E121,IF(DemandParameters!$B$13=4,F121,IF(DemandParameters!$B$13=5,G121,IF(DemandParameters!$B$13=6,H121,IF(DemandParameters!$B$13=7,I121,IF(DemandParameters!$B$13=8,J121,IF(DemandParameters!$B$13=9,K121))))))))) -> FALSE
B122: 21:00:00 | C122: 0.033 | D122: 0.033 | E122: 0.035 | F122: 0.045 | G122: 0.039 | H122: 0.039 | I122: 0.033 | J122: 0.038 | K122: 0.037 | L122: 0.038 | M122: 0.04 | N122: 0.04 | O122: 0.04 | P122: 0.04 | Q122: 0.04 | R122: 0.04 | S122: 0.04 | X122: =IF(DemandParameters!$B$13=1,C122,IF(DemandParameters!$B$13=2,D122,IF(DemandParameters!$B$13=3,E122,IF(DemandParameters!$B$13=4,F122,IF(DemandParameters!$B$13=5,G122,IF(DemandParameters!$B$13=6,H122,IF(DemandParameters!$B$13=7,I122,IF(DemandParameters!$B$13=8,J122,IF(DemandParameters!$B$13=9,K122))))))))) -> FALSE
B123: 22:00:00 | C123: 0.026 | D123: 0.026 | E123: 0.029 | F123: 0.034 | G123: 0.032 | H123: 0.032 | I123: 0.026 | J123: 0.032 | K123: 0.032 | L123: 0.033 | M123: 0.035 | N123: 0.035 | O123: 0.035 | P123: 0.035 | Q123: 0.035 | R123: 0.035 | S123: 0.035 | X123: =IF(DemandParameters!$B$13=1,C123,IF(DemandParameters!$B$13=2,D123,IF(DemandParameters!$B$13=3,E123,IF(DemandParameters!$B$13=4,F123,IF(DemandParameters!$B$13=5,G123,IF(DemandParameters!$B$13=6,H123,IF(DemandParameters!$B$13=7,I123,IF(DemandParameters!$B$13=8,J123,IF(DemandParameters!$B$13=9,K123))))))))) -> FALSE
B124: 23:00:00 | C124: 0.019 | D124: 0.019 | E124: 0.024 | F124: 0.025 | G124: 0.019 | H124: 0.019 | I124: 0.019 | J124: 0.025 | K124: 0.023 | L124: 0.026 | M124: 0.024 | N124: 0.024 | O124: 0.024 | P124: 0.024 | Q124: 0.024 | R124: 0.024 | S124: 0.024 | X124: =IF(DemandParameters!$B$13=1,C124,IF(DemandParameters!$B$13=2,D124,IF(DemandParameters!$B$13=3,E124,IF(DemandParameters!$B$13=4,F124,IF(DemandParameters!$B$13=5,G124,IF(DemandParameters!$B$13=6,H124,IF(DemandParameters!$B$13=7,I124,IF(DemandParameters!$B$13=8,J124,IF(DemandParameters!$B$13=9,K124))))))))) -> FALSE
B125: Total | C125: =SUM(C101:C124) -> 0.997 | D125: 1 | E125: 0.999 | F125: 0.999 | G125: 1.005 | H125: 1.005 | I125: 0.997 | J125: 1 | K125: 1.001 | L125: 0.99 | M125: 0.999 | N125: 0.999 | O125: 0.999 | P125: 0.999 | Q125: 0.999 | R125: 0.999 | S125: =SUM(S101:S124) -> 0.999
A126: Annual Transit Demand Profile
B128: Average Daily Transit Profile | F128: These inputs are used to convert annual transit ridership to daily values.
B129: Daily Transit Ratio | C129: Weekday | D129: Saturday | E129: Sunday
C130: 0.82 | D130: 0.14 | E130: 0.04 | F130: =IF(SUM(TransitSplit_DayType)<>1,"Error, values do not add to 100%","") -> 
B131: Hour Starting | C131: Average Hourly Transit Profile
C132: Weekday | D132: Saturday | E132: Sunday
B133: 00:00:00 | C133: 0.0025 | D133: 0 | E133: 0
B134: 01:00:00 | C134: 0.0005 | D134: 0 | E134: 0
B135: 02:00:00 | C135: 0.0002 | D135: 0 | E135: 0
B136: 03:00:00 | C136: 0.0002 | D136: 0 | E136: 0
B137: 04:00:00 | C137: 0.0005 | D137: 0 | E137: 0
B138: 05:00:00 | C138: 0.009 | D138: 0.007181328546 | E138: 0.007181328546
B139: 06:00:00 | C139: 0.0435 | D139: 0.007181328546 | E139: 0.007181328546
B140: 07:00:00 | C140: 0.1237 | D140: 0.02692998205 | E140: 0.02692998205
B141: 08:00:00 | C141: 0.0874 | D141: 0.03231597846 | E141: 0.03231597846
B142: 09:00:00 | C142: 0.052 | D142: 0.05206463196 | E142: 0.05206463196
B143: 10:00:00 | C143: 0.0448 | D143: 0.02872531418 | E143: 0.02872531418
B144: 11:00:00 | C144: 0.0442 | D144: 0.06463195691 | E144: 0.06463195691
B145: 12:00:00 | C145: 0.0497 | D145: 0.07181328546 | E145: 0.07181328546
B146: 13:00:00 | C146: 0.0464 | D146: 0.078994614 | E146: 0.078994614
B147: 14:00:00 | C147: 0.0628 | D147: 0.08976660682 | E147: 0.08976660682
B148: 15:00:00 | C148: 0.1323 | D148: 0.1005385996 | E148: 0.1005385996
B149: 16:00:00 | C149: 0.0914 | D149: 0.08976660682 | E149: 0.08976660682
B150: 17:00:00 | C150: 0.0741 | D150: 0.08617594255 | E150: 0.08617594255
B151: 18:00:00 | C151: 0.0474 | D151: 0.07360861759 | E151: 0.07360861759
B152: 19:00:00 | C152: 0.0284 | D152: 0.05206463196 | E152: 0.05206463196
B153: 20:00:00 | C153: 0.0218 | D153: 0.04488330341 | E153: 0.04488330341
B154: 21:00:00 | C154: 0.0193 | D154: 0.02872531418 | E154: 0.02872531418
B155: 22:00:00 | C155: 0.012 | D155: 0.04667863555 | E155: 0.04667863555
B156: 23:00:00 | C156: 0.0059 | D156: 0.01795332136 | E156: 0.01795332136
B157: Total | C157: =SUM(C133:C156) -> 1 | D157: =SUM(D133:D156) -> 1 | E157: =SUM(E133:E156) -> 1
A158: Calculations Section
B159: N hours/yr. in time period
B160: N_AMpeak_Hours | C160: =SUM(D167:D8926) -> 261
B161: N_PMpeak_Hours | C161: =SUM(E167:E8926) -> 261
B162: N_Offpeak_Hours | C162: =SUM(F167:F8926) -> 8238
A164: No additional inputs below. This section illustrates the volume profiles on an annual calendar.
A165: Typical Annual Profile | B165: Weekday/ Holiday Code | C165: Time period (AM pk, PM pk, offpk) | D165: AM Peak | E165: PM Peak | F165: Off Peak | G165: =DemandParameters!C29 -> 2020 | K165: =DemandParameters!D29 -> 2040 | O165: =G165 -> 2020 | S165: =K165 -> 2040
G166: Total Entering Vehicles | H166: Auto Passengers | I166: Trucks | J166: Transit Passengers | K166: Total Entering Vehicles | L166: Auto Passengers | M166: Trucks | N166: Transit Passengers | O166: Total Entering Vehicles | P166: Auto Passengers | Q166: Trucks | R166: Transit Passengers | S166: Total Entering Vehicles | T166: Auto Passengers | U166: Trucks | V166: Transit Passengers
A167: 2014-01-01 | B167: =IF(ISNUMBER(VLOOKUP(INT($A167),HolidayTable,2,FALSE)),VLOOKUP(INT($A167),HolidayTable,2,FALSE),WEEKDAY($A167,2)) -> 3 | C167: =IF($B167<=5,IF(AND(HOUR($A167)>=HOUR(Time_AM_Peak_Begin),HOUR($A167)<HOUR(Time_AM_Peak_End)),Code_AM_Peak,IF(AND(HOUR($A167)>=HOUR(Time_PM_Peak_Begin),HOUR($A167)<HOUR(Time_PM_Peak_End)),Code_PM_Peak,Code_Offpeak)),Code_Offpeak) -> 3 | D167: =IF(C167=Code_AM_Peak,1,0) -> 0 | E167: =IF(C167=Code_PM_Peak,1,0) -> 0 | F167: =IF(C167=Code_Offpeak,1,0) -> 1 | G167: =DemandParameters!$C$30*INDEX($S$47:$S$53,$B167,1)*INDEX($S$61:$S$72,MONTH($A167),1)*IF($B167<=5,INDEX($S$76:$S$99,HOUR($A167)+1,1),INDEX($S$101:$S$124,HOUR($A167)+1,1)) -> 59.75255724 | K167: =DemandParameters!$D$30*INDEX($S$47:$S$53,$B167,1)*INDEX($S$61:$S$72,MONTH($A167),1)*IF($B167<=5,INDEX($S$76:$S$99,HOUR($A167)+1,1),INDEX($S$101:$S$124,HOUR($A167)+1,1)) -> 72.9094752 | O167: =DemandParameters!$E$30*INDEX($S$47:$S$53,$B167,1)*INDEX($S$61:$S$72,MONTH($A167),1)*IF($B167<=5,INDEX($S$76:$S$99,HOUR($A167)+1,1),INDEX($S$101:$S$124,HOUR($A167)+1,1)) -> 40.13912242 | S167: =DemandParameters!$F$30*INDEX($S$47:$S$53,$B167,1)*INDEX($S$61:$S$72,MONTH($A167),1)*IF($B167<=5,INDEX($S$76:$S$99,HOUR($A167)+1,1),INDEX($S$101:$S$124,HOUR($A167)+1,1)) -> 48.97735739
A168: 2014-01-01T01:00:00 | B168: 3 | C168: 3 | D168: 0 | E168: 0 | F168: 1 | G168: =DemandParameters!$C$30*INDEX($S$47:$S$53,$B168,1)*INDEX($S$61:$S$72,MONTH($A168),1)*IF($B168<=5,INDEX($S$76:$S$99,HOUR($A168)+1,1),INDEX($S$101:$S$124,HOUR($A168)+1,1)) -> 28.10414954 | K168: =DemandParameters!$D$30*INDEX($S$47:$S$53,$B168,1)*INDEX($S$61:$S$72,MONTH($A168),1)*IF($B168<=5,INDEX($S$76:$S$99,HOUR($A168)+1,1),INDEX($S$101:$S$124,HOUR($A168)+1,1)) -> 34.29240335 | O168: =DemandParameters!$E$30*INDEX($S$47:$S$53,$B168,1)*INDEX($S$61:$S$72,MONTH($A168),1)*IF($B168<=5,INDEX($S$76:$S$99,HOUR($A168)+1,1),INDEX($S$101:$S$124,HOUR($A168)+1,1)) -> 18.87912336 | S168: =DemandParameters!$F$30*INDEX($S$47:$S$53,$B168,1)*INDEX($S$61:$S$72,MONTH($A168),1)*IF($B168<=5,INDEX($S$76:$S$99,HOUR($A168)+1,1),INDEX($S$101:$S$124,HOUR($A168)+1,1)) -> 23.03611828
A169: 2014-01-01T02:00:00 | B169: 3 | C169: 3 | D169: 0 | E169: 0 | F169: 1 | G169: =DemandParameters!$C$30*INDEX($S$47:$S$53,$B169,1)*INDEX($S$61:$S$72,MONTH($A169),1)*IF($B169<=5,INDEX($S$76:$S$99,HOUR($A169)+1,1),INDEX($S$101:$S$124,HOUR($A169)+1,1)) -> 22.43560847 | K169: =DemandParameters!$D$30*INDEX($S$47:$S$53,$B169,1)*INDEX($S$61:$S$72,MONTH($A169),1)*IF($B169<=5,INDEX($S$76:$S$99,HOUR($A169)+1,1),INDEX($S$101:$S$124,HOUR($A169)+1,1)) -> 27.37570599 | O169: =DemandParameters!$E$30*INDEX($S$47:$S$53,$B169,1)*INDEX($S$61:$S$72,MONTH($A169),1)*IF($B169<=5,INDEX($S$76:$S$99,HOUR($A169)+1,1),INDEX($S$101:$S$124,HOUR($A169)+1,1)) -> 15.07124844 | S169: =DemandParameters!$F$30*INDEX($S$47:$S$53,$B169,1)*INDEX($S$61:$S$72,MONTH($A169),1)*IF($B169<=5,INDEX($S$76:$S$99,HOUR($A169)+1,1),INDEX($S$101:$S$124,HOUR($A169)+1,1)) -> 18.38978723
A170: 2014-01-01T03:00:00 | B170: 3 | C170: 3 | D170: 0 | E170: 0 | F170: 1 | G170: =DemandParameters!$C$30*INDEX($S$47:$S$53,$B170,1)*INDEX($S$61:$S$72,MONTH($A170),1)*IF($B170<=5,INDEX($S$76:$S$99,HOUR($A170)+1,1),INDEX($S$101:$S$124,HOUR($A170)+1,1)) -> 26.84321155 | K170: =DemandParameters!$D$30*INDEX($S$47:$S$53,$B170,1)*INDEX($S$61:$S$72,MONTH($A170),1)*IF($B170<=5,INDEX($S$76:$S$99,HOUR($A170)+1,1),INDEX($S$101:$S$124,HOUR($A170)+1,1)) -> 32.75381937 | O170: =DemandParameters!$E$30*INDEX($S$47:$S$53,$B170,1)*INDEX($S$61:$S$72,MONTH($A170),1)*IF($B170<=5,INDEX($S$76:$S$99,HOUR($A170)+1,1),INDEX($S$101:$S$124,HOUR($A170)+1,1)) -> 18.03208104 | S170: =DemandParameters!$F$30*INDEX($S$47:$S$53,$B170,1)*INDEX($S$61:$S$72,MONTH($A170),1)*IF($B170<=5,INDEX($S$76:$S$99,HOUR($A170)+1,1),INDEX($S$101:$S$124,HOUR($A170)+1,1)) -> 22.00256569
A171: 2014-01-01T04:00:00 | B171: 3 | C171: 3 | D171: 0 | E171: 0 | F171: 1 | G171: =DemandParameters!$C$30*INDEX($S$47:$S$53,$B171,1)*INDEX($S$61:$S$72,MONTH($A171),1)*IF($B171<=5,INDEX($S$76:$S$99,HOUR($A171)+1,1),INDEX($S$101:$S$124,HOUR($A171)+1,1)) -> 55.29951495 | K171: =DemandParameters!$D$30*INDEX($S$47:$S$53,$B171,1)*INDEX($S$61:$S$72,MONTH($A171),1)*IF($B171<=5,INDEX($S$76:$S$99,HOUR($A171)+1,1),INDEX($S$101:$S$124,HOUR($A171)+1,1)) -> 67.47591735 | O171: =DemandParameters!$E$30*INDEX($S$47:$S$53,$B171,1)*INDEX($S$61:$S$72,MONTH($A171),1)*IF($B171<=5,INDEX($S$76:$S$99,HOUR($A171)+1,1),INDEX($S$101:$S$124,HOUR($A171)+1,1)) -> 37.14776577 | S171: =DemandParameters!$F$30*INDEX($S$47:$S$53,$B171,1)*INDEX($S$61:$S$72,MONTH($A171),1)*IF($B171<=5,INDEX($S$76:$S$99,HOUR($A171)+1,1),INDEX($S$101:$S$124,HOUR($A171)+1,1)) -> 45.32733379
A172: 2014-01-01T05:00:00 | B172: 3 | C172: 3 | D172: 0 | E172: 0 | F172: 1 | G172: =DemandParameters!$C$30*INDEX($S$47:$S$53,$B172,1)*INDEX($S$61:$S$72,MONTH($A172),1)*IF($B172<=5,INDEX($S$76:$S$99,HOUR($A172)+1,1),INDEX($S$101:$S$124,HOUR($A172)+1,1)) -> 152.9710904 | K172: =DemandParameters!$D$30*INDEX($S$47:$S$53,$B172,1)*INDEX($S$61:$S$72,MONTH($A172),1)*IF($B172<=5,INDEX($S$76:$S$99,HOUR($A172)+1,1),INDEX($S$101:$S$124,HOUR($A172)+1,1)) -> 186.653801 | O172: =DemandParameters!$E$30*INDEX($S$47:$S$53,$B172,1)*INDEX($S$61:$S$72,MONTH($A172),1)*IF($B172<=5,INDEX($S$76:$S$99,HOUR($A172)+1,1),INDEX($S$101:$S$124,HOUR($A172)+1,1)) -> 102.7592058 | S172: =DemandParameters!$F$30*INDEX($S$47:$S$53,$B172,1)*INDEX($S$61:$S$72,MONTH($A172),1)*IF($B172<=5,INDEX($S$76:$S$99,HOUR($A172)+1,1),INDEX($S$101:$S$124,HOUR($A172)+1,1)) -> 125.3857594
A173: 2014-01-01T06:00:00 | B173: 3 | C173: 3 | D173: 0 | E173: 0 | F173: 1 | G173: =DemandParameters!$C$30*INDEX($S$47:$S$53,$B173,1)*INDEX($S$61:$S$72,MONTH($A173),1)*IF($B173<=5,INDEX($S$76:$S$99,HOUR($A173)+1,1),INDEX($S$101:$S$124,HOUR($A173)+1,1)) -> 465.2406809 | K173: =DemandParameters!$D$30*INDEX($S$47:$S$53,$B173,1)*INDEX($S$61:$S$72,MONTH($A173),1)*IF($B173<=5,INDEX($S$76:$S$99,HOUR($A173)+1,1),INDEX($S$101:$S$124,HOUR($A173)+1,1)) -> 567.682045 | O173: =DemandParameters!$E$30*INDEX($S$47:$S$53,$B173,1)*INDEX($S$61:$S$72,MONTH($A173),1)*IF($B173<=5,INDEX($S$76:$S$99,HOUR($A173)+1,1),INDEX($S$101:$S$124,HOUR($A173)+1,1)) -> 312.528091 | S173: =DemandParameters!$F$30*INDEX($S$47:$S$53,$B173,1)*INDEX($S$61:$S$72,MONTH($A173),1)*IF($B173<=5,INDEX($S$76:$S$99,HOUR($A173)+1,1),INDEX($S$101:$S$124,HOUR($A173)+1,1)) -> 381.3436638
A174: 2014-01-01T07:00:00 | B174: 3 | C174: 3 | D174: 0 | E174: 0 | F174: 1 | G174: =DemandParameters!$C$30*INDEX($S$47:$S$53,$B174,1)*INDEX($S$61:$S$72,MONTH($A174),1)*IF($B174<=5,INDEX($S$76:$S$99,HOUR($A174)+1,1),INDEX($S$101:$S$124,HOUR($A174)+1,1)) -> 906.2395449 | K174: =DemandParameters!$D$30*INDEX($S$47:$S$53,$B174,1)*INDEX($S$61:$S$72,MONTH($A174),1)*IF($B174<=5,INDEX($S$76:$S$99,HOUR($A174)+1,1),INDEX($S$101:$S$124,HOUR($A174)+1,1)) -> 1105.784466 | O174: =DemandParameters!$E$30*INDEX($S$47:$S$53,$B174,1)*INDEX($S$61:$S$72,MONTH($A174),1)*IF($B174<=5,INDEX($S$76:$S$99,HOUR($A174)+1,1),INDEX($S$101:$S$124,HOUR($A174)+1,1)) -> 608.7716027 | S174: =DemandParameters!$F$30*INDEX($S$47:$S$53,$B174,1)*INDEX($S$61:$S$72,MONTH($A174),1)*IF($B174<=5,INDEX($S$76:$S$99,HOUR($A174)+1,1),INDEX($S$101:$S$124,HOUR($A174)+1,1)) -> 742.8170462
A175: 2014-01-01T08:00:00 | B175: 3 | C175: 1 | D175: 1 | E175: 0 | F175: 0 | G175: =DemandParameters!$C$30*INDEX($S$47:$S$53,$B175,1)*INDEX($S$61:$S$72,MONTH($A175),1)*IF($B175<=5,INDEX($S$76:$S$99,HOUR($A175)+1,1),INDEX($S$101:$S$124,HOUR($A175)+1,1)) -> 883.883455 | K175: =DemandParameters!$D$30*INDEX($S$47:$S$53,$B175,1)*INDEX($S$61:$S$72,MONTH($A175),1)*IF($B175<=5,INDEX($S$76:$S$99,HOUR($A175)+1,1),INDEX($S$101:$S$124,HOUR($A175)+1,1)) -> 1078.505788 | O175: =DemandParameters!$E$30*INDEX($S$47:$S$53,$B175,1)*INDEX($S$61:$S$72,MONTH($A175),1)*IF($B175<=5,INDEX($S$76:$S$99,HOUR($A175)+1,1),INDEX($S$101:$S$124,HOUR($A175)+1,1)) -> 593.7537713 | S175: =DemandParameters!$F$30*INDEX($S$47:$S$53,$B175,1)*INDEX($S$61:$S$72,MONTH($A175),1)*IF($B175<=5,INDEX($S$76:$S$99,HOUR($A175)+1,1),INDEX($S$101:$S$124,HOUR($A175)+1,1)) -> 724.4924379
A176: 2014-01-01T09:00:00 | B176: 3 | C176: 3 | D176: 0 | E176: 0 | F176: 1 | G176: =DemandParameters!$C$30*INDEX($S$47:$S$53,$B176,1)*INDEX($S$61:$S$72,MONTH($A176),1)*IF($B176<=5,INDEX($S$76:$S$99,HOUR($A176)+1,1),INDEX($S$101:$S$124,HOUR($A176)+1,1)) -> 698.2188551 | K176: =DemandParameters!$D$30*INDEX($S$47:$S$53,$B176,1)*INDEX($S$61:$S$72,MONTH($A176),1)*IF($B176<=5,INDEX($S$76:$S$99,HOUR($A176)+1,1),INDEX($S$101:$S$124,HOUR($A176)+1,1)) -> 851.9596927 | O176: =DemandParameters!$E$30*INDEX($S$47:$S$53,$B176,1)*INDEX($S$61:$S$72,MONTH($A176),1)*IF($B176<=5,INDEX($S$76:$S$99,HOUR($A176)+1,1),INDEX($S$101:$S$124,HOUR($A176)+1,1)) -> 469.0325134 | S176: =DemandParameters!$F$30*INDEX($S$47:$S$53,$B176,1)*INDEX($S$61:$S$72,MONTH($A176),1)*IF($B176<=5,INDEX($S$76:$S$99,HOUR($A176)+1,1),INDEX($S$101:$S$124,HOUR($A176)+1,1)) -> 572.3088012
A177: 2014-01-01T10:00:00 | B177: 3 | C177: 3 | D177: 0 | E177: 0 | F177: 1 | G177: =DemandParameters!$C$30*INDEX($S$47:$S$53,$B177,1)*INDEX($S$61:$S$72,MONTH($A177),1)*IF($B177<=5,INDEX($S$76:$S$99,HOUR($A177)+1,1),INDEX($S$101:$S$124,HOUR($A177)+1,1)) -> 691.9596043 | K177: =DemandParameters!$D$30*INDEX($S$47:$S$53,$B177,1)*INDEX($S$61:$S$72,MONTH($A177),1)*IF($B177<=5,INDEX($S$76:$S$99,HOUR($A177)+1,1),INDEX($S$101:$S$124,HOUR($A177)+1,1)) -> 844.3222173 | O177: =DemandParameters!$E$30*INDEX($S$47:$S$53,$B177,1)*INDEX($S$61:$S$72,MONTH($A177),1)*IF($B177<=5,INDEX($S$76:$S$99,HOUR($A177)+1,1),INDEX($S$101:$S$124,HOUR($A177)+1,1)) -> 464.8278258 | S177: =DemandParameters!$F$30*INDEX($S$47:$S$53,$B177,1)*INDEX($S$61:$S$72,MONTH($A177),1)*IF($B177<=5,INDEX($S$76:$S$99,HOUR($A177)+1,1),INDEX($S$101:$S$124,HOUR($A177)+1,1)) -> 567.1782834
A178: 2014-01-01T11:00:00 | B178: 3 | C178: 3 | D178: 0 | E178: 0 | F178: 1 | G178: =DemandParameters!$C$30*INDEX($S$47:$S$53,$B178,1)*INDEX($S$61:$S$72,MONTH($A178),1)*IF($B178<=5,INDEX($S$76:$S$99,HOUR($A178)+1,1),INDEX($S$101:$S$124,HOUR($A178)+1,1)) -> 789.0063907 | K178: =DemandParameters!$D$30*INDEX($S$47:$S$53,$B178,1)*INDEX($S$61:$S$72,MONTH($A178),1)*IF($B178<=5,INDEX($S$76:$S$99,HOUR($A178)+1,1),INDEX($S$101:$S$124,HOUR($A178)+1,1)) -> 962.7377394 | O178: =DemandParameters!$E$30*INDEX($S$47:$S$53,$B178,1)*INDEX($S$61:$S$72,MONTH($A178),1)*IF($B178<=5,INDEX($S$76:$S$99,HOUR($A178)+1,1),INDEX($S$101:$S$124,HOUR($A178)+1,1)) -> 530.0195602 | S178: =DemandParameters!$F$30*INDEX($S$47:$S$53,$B178,1)*INDEX($S$61:$S$72,MONTH($A178),1)*IF($B178<=5,INDEX($S$76:$S$99,HOUR($A178)+1,1),INDEX($S$101:$S$124,HOUR($A178)+1,1)) -> 646.7245883
A179: 2014-01-01T12:00:00 | B179: 3 | C179: 3 | D179: 0 | E179: 0 | F179: 1 | G179: =DemandParameters!$C$30*INDEX($S$47:$S$53,$B179,1)*INDEX($S$61:$S$72,MONTH($A179),1)*IF($B179<=5,INDEX($S$76:$S$99,HOUR($A179)+1,1),INDEX($S$101:$S$124,HOUR($A179)+1,1)) -> 910.3404333 | K179: =DemandParameters!$D$30*INDEX($S$47:$S$53,$B179,1)*INDEX($S$61:$S$72,MONTH($A179),1)*IF($B179<=5,INDEX($S$76:$S$99,HOUR($A179)+1,1),INDEX($S$101:$S$124,HOUR($A179)+1,1)) -> 1110.78833 | O179: =DemandParameters!$E$30*INDEX($S$47:$S$53,$B179,1)*INDEX($S$61:$S$72,MONTH($A179),1)*IF($B179<=5,INDEX($S$76:$S$99,HOUR($A179)+1,1),INDEX($S$101:$S$124,HOUR($A179)+1,1)) -> 611.5263979 | S179: =DemandParameters!$F$30*INDEX($S$47:$S$53,$B179,1)*INDEX($S$61:$S$72,MONTH($A179),1)*IF($B179<=5,INDEX($S$76:$S$99,HOUR($A179)+1,1),INDEX($S$101:$S$124,HOUR($A179)+1,1)) -> 746.1784199
A180: 2014-01-01T13:00:00 | B180: 3 | C180: 3 | D180: 0 | E180: 0 | F180: 1 | G180: =DemandParameters!$C$30*INDEX($S$47:$S$53,$B180,1)*INDEX($S$61:$S$72,MONTH($A180),1)*IF($B180<=5,INDEX($S$76:$S$99,HOUR($A180)+1,1),INDEX($S$101:$S$124,HOUR($A180)+1,1)) -> 885.4851871 | K180: =DemandParameters!$D$30*INDEX($S$47:$S$53,$B180,1)*INDEX($S$61:$S$72,MONTH($A180),1)*IF($B180<=5,INDEX($S$76:$S$99,HOUR($A180)+1,1),INDEX($S$101:$S$124,HOUR($A180)+1,1)) -> 1080.460206 | O180: =DemandParameters!$E$30*INDEX($S$47:$S$53,$B180,1)*INDEX($S$61:$S$72,MONTH($A180),1)*IF($B180<=5,INDEX($S$76:$S$99,HOUR($A180)+1,1),INDEX($S$101:$S$124,HOUR($A180)+1,1)) -> 594.829744 | S180: =DemandParameters!$F$30*INDEX($S$47:$S$53,$B180,1)*INDEX($S$61:$S$72,MONTH($A180),1)*IF($B180<=5,INDEX($S$76:$S$99,HOUR($A180)+1,1),INDEX($S$101:$S$124,HOUR($A180)+1,1)) -> 725.8053291
A181: 2014-01-01T14:00:00 | B181: 3 | C181: 3 | D181: 0 | E181: 0 | F181: 1 | G181: =DemandParameters!$C$30*INDEX($S$47:$S$53,$B181,1)*INDEX($S$61:$S$72,MONTH($A181),1)*IF($B181<=5,INDEX($S$76:$S$99,HOUR($A181)+1,1),INDEX($S$101:$S$124,HOUR($A181)+1,1)) -> 974.6823504 | K181: =DemandParameters!$D$30*INDEX($S$47:$S$53,$B181,1)*INDEX($S$61:$S$72,MONTH($A181),1)*IF($B181<=5,INDEX($S$76:$S$99,HOUR($A181)+1,1),INDEX($S$101:$S$124,HOUR($A181)+1,1)) -> 1189.297696 | O181: =DemandParameters!$E$30*INDEX($S$47:$S$53,$B181,1)*INDEX($S$61:$S$72,MONTH($A181),1)*IF($B181<=5,INDEX($S$76:$S$99,HOUR($A181)+1,1),INDEX($S$101:$S$124,HOUR($A181)+1,1)) -> 654.7484492 | S181: =DemandParameters!$F$30*INDEX($S$47:$S$53,$B181,1)*INDEX($S$61:$S$72,MONTH($A181),1)*IF($B181<=5,INDEX($S$76:$S$99,HOUR($A181)+1,1),INDEX($S$101:$S$124,HOUR($A181)+1,1)) -> 798.9175363
A182: 2014-01-01T15:00:00 | B182: 3 | C182: 3 | D182: 0 | E182: 0 | F182: 1 | G182: =DemandParameters!$C$30*INDEX($S$47:$S$53,$B182,1)*INDEX($S$61:$S$72,MONTH($A182),1)*IF($B182<=5,INDEX($S$76:$S$99,HOUR($A182)+1,1),INDEX($S$101:$S$124,HOUR($A182)+1,1)) -> 1154.905605 | K182: =DemandParameters!$D$30*INDEX($S$47:$S$53,$B182,1)*INDEX($S$61:$S$72,MONTH($A182),1)*IF($B182<=5,INDEX($S$76:$S$99,HOUR($A182)+1,1),INDEX($S$101:$S$124,HOUR($A182)+1,1)) -> 1409.204317 | O182: =DemandParameters!$E$30*INDEX($S$47:$S$53,$B182,1)*INDEX($S$61:$S$72,MONTH($A182),1)*IF($B182<=5,INDEX($S$76:$S$99,HOUR($A182)+1,1),INDEX($S$101:$S$124,HOUR($A182)+1,1)) -> 775.8144524 | S182: =DemandParameters!$F$30*INDEX($S$47:$S$53,$B182,1)*INDEX($S$61:$S$72,MONTH($A182),1)*IF($B182<=5,INDEX($S$76:$S$99,HOUR($A182)+1,1),INDEX($S$101:$S$124,HOUR($A182)+1,1)) -> 946.6410677
A183: 2014-01-01T16:00:00 | B183: 3 | C183: 3 | D183: 0 | E183: 0 | F183: 1 | G183: =DemandParameters!$C$30*INDEX($S$47:$S$53,$B183,1)*INDEX($S$61:$S$72,MONTH($A183),1)*IF($B183<=5,INDEX($S$76:$S$99,HOUR($A183)+1,1),INDEX($S$101:$S$124,HOUR($A183)+1,1)) -> 1308.308368 | K183: =DemandParameters!$D$30*INDEX($S$47:$S$53,$B183,1)*INDEX($S$61:$S$72,MONTH($A183),1)*IF($B183<=5,INDEX($S$76:$S$99,HOUR($A183)+1,1),INDEX($S$101:$S$124,HOUR($A183)+1,1)) -> 1596.38484 | O183: =DemandParameters!$E$30*INDEX($S$47:$S$53,$B183,1)*INDEX($S$61:$S$72,MONTH($A183),1)*IF($B183<=5,INDEX($S$76:$S$99,HOUR($A183)+1,1),INDEX($S$101:$S$124,HOUR($A183)+1,1)) -> 878.8636367 | S183: =DemandParameters!$F$30*INDEX($S$47:$S$53,$B183,1)*INDEX($S$61:$S$72,MONTH($A183),1)*IF($B183<=5,INDEX($S$76:$S$99,HOUR($A183)+1,1),INDEX($S$101:$S$124,HOUR($A183)+1,1)) -> 1072.380656
A184: 2014-01-01T17:00:00 | B184: 3 | C184: 2 | D184: 0 | E184: 1 | F184: 0 | G184: =DemandParameters!$C$30*INDEX($S$47:$S$53,$B184,1)*INDEX($S$61:$S$72,MONTH($A184),1)*IF($B184<=5,INDEX($S$76:$S$99,HOUR($A184)+1,1),INDEX($S$101:$S$124,HOUR($A184)+1,1)) -> 1357.075997 | K184: =DemandParameters!$D$30*INDEX($S$47:$S$53,$B184,1)*INDEX($S$61:$S$72,MONTH($A184),1)*IF($B184<=5,INDEX($S$76:$S$99,HOUR($A184)+1,1),INDEX($S$101:$S$124,HOUR($A184)+1,1)) -> 1655.890615 | O184: =DemandParameters!$E$30*INDEX($S$47:$S$53,$B184,1)*INDEX($S$61:$S$72,MONTH($A184),1)*IF($B184<=5,INDEX($S$76:$S$99,HOUR($A184)+1,1),INDEX($S$101:$S$124,HOUR($A184)+1,1)) -> 911.6235706 | S184: =DemandParameters!$F$30*INDEX($S$47:$S$53,$B184,1)*INDEX($S$61:$S$72,MONTH($A184),1)*IF($B184<=5,INDEX($S$76:$S$99,HOUR($A184)+1,1),INDEX($S$101:$S$124,HOUR($A184)+1,1)) -> 1112.354001
A185: 2014-01-01T18:00:00 | B185: 3 | C185: 3 | D185: 0 | E185: 0 | F185: 1 | G185: =DemandParameters!$C$30*INDEX($S$47:$S$53,$B185,1)*INDEX($S$61:$S$72,MONTH($A185),1)*IF($B185<=5,INDEX($S$76:$S$99,HOUR($A185)+1,1),INDEX($S$101:$S$124,HOUR($A185)+1,1)) -> 945.5444589 | K185: =DemandParameters!$D$30*INDEX($S$47:$S$53,$B185,1)*INDEX($S$61:$S$72,MONTH($A185),1)*IF($B185<=5,INDEX($S$76:$S$99,HOUR($A185)+1,1),INDEX($S$101:$S$124,HOUR($A185)+1,1)) -> 1153.743931 | O185: =DemandParameters!$E$30*INDEX($S$47:$S$53,$B185,1)*INDEX($S$61:$S$72,MONTH($A185),1)*IF($B185<=5,INDEX($S$76:$S$99,HOUR($A185)+1,1),INDEX($S$101:$S$124,HOUR($A185)+1,1)) -> 635.1749037 | S185: =DemandParameters!$F$30*INDEX($S$47:$S$53,$B185,1)*INDEX($S$61:$S$72,MONTH($A185),1)*IF($B185<=5,INDEX($S$76:$S$99,HOUR($A185)+1,1),INDEX($S$101:$S$124,HOUR($A185)+1,1)) -> 775.0340911
A186: 2014-01-01T19:00:00 | B186: 3 | C186: 3 | D186: 0 | E186: 0 | F186: 1 | G186: =DemandParameters!$C$30*INDEX($S$47:$S$53,$B186,1)*INDEX($S$61:$S$72,MONTH($A186),1)*IF($B186<=5,INDEX($S$76:$S$99,HOUR($A186)+1,1),INDEX($S$101:$S$124,HOUR($A186)+1,1)) -> 675.4083732 | K186: =DemandParameters!$D$30*INDEX($S$47:$S$53,$B186,1)*INDEX($S$61:$S$72,MONTH($A186),1)*IF($B186<=5,INDEX($S$76:$S$99,HOUR($A186)+1,1),INDEX($S$101:$S$124,HOUR($A186)+1,1)) -> 824.1265699 | O186: =DemandParameters!$E$30*INDEX($S$47:$S$53,$B186,1)*INDEX($S$61:$S$72,MONTH($A186),1)*IF($B186<=5,INDEX($S$76:$S$99,HOUR($A186)+1,1),INDEX($S$101:$S$124,HOUR($A186)+1,1)) -> 453.7094415 | S186: =DemandParameters!$F$30*INDEX($S$47:$S$53,$B186,1)*INDEX($S$61:$S$72,MONTH($A186),1)*IF($B186<=5,INDEX($S$76:$S$99,HOUR($A186)+1,1),INDEX($S$101:$S$124,HOUR($A186)+1,1)) -> 553.6117416
A187: 2014-01-01T20:00:00 | B187: 3 | C187: 3 | D187: 0 | E187: 0 | F187: 1 | G187: =DemandParameters!$C$30*INDEX($S$47:$S$53,$B187,1)*INDEX($S$61:$S$72,MONTH($A187),1)*IF($B187<=5,INDEX($S$76:$S$99,HOUR($A187)+1,1),INDEX($S$101:$S$124,HOUR($A187)+1,1)) -> 524.5842853 | K187: =DemandParameters!$D$30*INDEX($S$47:$S$53,$B187,1)*INDEX($S$61:$S$72,MONTH($A187),1)*IF($B187<=5,INDEX($S$76:$S$99,HOUR($A187)+1,1),INDEX($S$101:$S$124,HOUR($A187)+1,1)) -> 640.09252 | O187: =DemandParameters!$E$30*INDEX($S$47:$S$53,$B187,1)*INDEX($S$61:$S$72,MONTH($A187),1)*IF($B187<=5,INDEX($S$76:$S$99,HOUR($A187)+1,1),INDEX($S$101:$S$124,HOUR($A187)+1,1)) -> 352.392497 | S187: =DemandParameters!$F$30*INDEX($S$47:$S$53,$B187,1)*INDEX($S$61:$S$72,MONTH($A187),1)*IF($B187<=5,INDEX($S$76:$S$99,HOUR($A187)+1,1),INDEX($S$101:$S$124,HOUR($A187)+1,1)) -> 429.985815
A188: 2014-01-01T21:00:00 | B188: 3 | C188: 3 | D188: 0 | E188: 0 | F188: 1 | G188: =DemandParameters!$C$30*INDEX($S$47:$S$53,$B188,1)*INDEX($S$61:$S$72,MONTH($A188),1)*IF($B188<=5,INDEX($S$76:$S$99,HOUR($A188)+1,1),INDEX($S$101:$S$124,HOUR($A188)+1,1)) -> 332.3310004 | K188: =DemandParameters!$D$30*INDEX($S$47:$S$53,$B188,1)*INDEX($S$61:$S$72,MONTH($A188),1)*IF($B188<=5,INDEX($S$76:$S$99,HOUR($A188)+1,1),INDEX($S$101:$S$124,HOUR($A188)+1,1)) -> 405.5069766 | O188: =DemandParameters!$E$30*INDEX($S$47:$S$53,$B188,1)*INDEX($S$61:$S$72,MONTH($A188),1)*IF($B188<=5,INDEX($S$76:$S$99,HOUR($A188)+1,1),INDEX($S$101:$S$124,HOUR($A188)+1,1)) -> 223.2452522 | S188: =DemandParameters!$F$30*INDEX($S$47:$S$53,$B188,1)*INDEX($S$61:$S$72,MONTH($A188),1)*IF($B188<=5,INDEX($S$76:$S$99,HOUR($A188)+1,1),INDEX($S$101:$S$124,HOUR($A188)+1,1)) -> 272.4016331
A189: 2014-01-01T22:00:00 | B189: 3 | C189: 3 | D189: 0 | E189: 0 | F189: 1 | G189: =DemandParameters!$C$30*INDEX($S$47:$S$53,$B189,1)*INDEX($S$61:$S$72,MONTH($A189),1)*IF($B189<=5,INDEX($S$76:$S$99,HOUR($A189)+1,1),INDEX($S$101:$S$124,HOUR($A189)+1,1)) -> 193.3892651 | K189: =DemandParameters!$D$30*INDEX($S$47:$S$53,$B189,1)*INDEX($S$61:$S$72,MONTH($A189),1)*IF($B189<=5,INDEX($S$76:$S$99,HOUR($A189)+1,1),INDEX($S$101:$S$124,HOUR($A189)+1,1)) -> 235.9716551 | O189: =DemandParameters!$E$30*INDEX($S$47:$S$53,$B189,1)*INDEX($S$61:$S$72,MONTH($A189),1)*IF($B189<=5,INDEX($S$76:$S$99,HOUR($A189)+1,1),INDEX($S$101:$S$124,HOUR($A189)+1,1)) -> 129.910346 | S189: =DemandParameters!$F$30*INDEX($S$47:$S$53,$B189,1)*INDEX($S$61:$S$72,MONTH($A189),1)*IF($B189<=5,INDEX($S$76:$S$99,HOUR($A189)+1,1),INDEX($S$101:$S$124,HOUR($A189)+1,1)) -> 158.5153103
A190: 2014-01-01T23:00:00 | B190: 3 | C190: 3 | D190: 0 | E190: 0 | F190: 1 | G190: =DemandParameters!$C$30*INDEX($S$47:$S$53,$B190,1)*INDEX($S$61:$S$72,MONTH($A190),1)*IF($B190<=5,INDEX($S$76:$S$99,HOUR($A190)+1,1),INDEX($S$101:$S$124,HOUR($A190)+1,1)) -> 109.6902458 | K190: =DemandParameters!$D$30*INDEX($S$47:$S$53,$B190,1)*INDEX($S$61:$S$72,MONTH($A190),1)*IF($B190<=5,INDEX($S$76:$S$99,HOUR($A190)+1,1),INDEX($S$101:$S$124,HOUR($A190)+1,1)) -> 133.8429453 | O190: =DemandParameters!$E$30*INDEX($S$47:$S$53,$B190,1)*INDEX($S$61:$S$72,MONTH($A190),1)*IF($B190<=5,INDEX($S$76:$S$99,HOUR($A190)+1,1),INDEX($S$101:$S$124,HOUR($A190)+1,1)) -> 73.68505058 | S190: =DemandParameters!$F$30*INDEX($S$47:$S$53,$B190,1)*INDEX($S$61:$S$72,MONTH($A190),1)*IF($B190<=5,INDEX($S$76:$S$99,HOUR($A190)+1,1),INDEX($S$101:$S$124,HOUR($A190)+1,1)) -> 89.90976481
A191: 2014-01-02 | B191: 4 | C191: 3 | D191: 0 | E191: 0 | F191: 1 | G191: =DemandParameters!$C$30*INDEX($S$47:$S$53,$B191,1)*INDEX($S$61:$S$72,MONTH($A191),1)*IF($B191<=5,INDEX($S$76:$S$99,HOUR($A191)+1,1),INDEX($S$101:$S$124,HOUR($A191)+1,1)) -> 60.00812373 | K191: =DemandParameters!$D$30*INDEX($S$47:$S$53,$B191,1)*INDEX($S$61:$S$72,MONTH($A191),1)*IF($B191<=5,INDEX($S$76:$S$99,HOUR($A191)+1,1),INDEX($S$101:$S$124,HOUR($A191)+1,1)) -> 73.22131489 | O191: =DemandParameters!$E$30*INDEX($S$47:$S$53,$B191,1)*INDEX($S$61:$S$72,MONTH($A191),1)*IF($B191<=5,INDEX($S$76:$S$99,HOUR($A191)+1,1),INDEX($S$101:$S$124,HOUR($A191)+1,1)) -> 40.31080067 | S191: =DemandParameters!$F$30*INDEX($S$47:$S$53,$B191,1)*INDEX($S$61:$S$72,MONTH($A191),1)*IF($B191<=5,INDEX($S$76:$S$99,HOUR($A191)+1,1),INDEX($S$101:$S$124,HOUR($A191)+1,1)) -> 49.18683748
A192: 2014-01-02T01:00:00 | B192: 4 | C192: 3 | D192: 0 | E192: 0 | F192: 1 | G192: =DemandParameters!$C$30*INDEX($S$47:$S$53,$B192,1)*INDEX($S$61:$S$72,MONTH($A192),1)*IF($B192<=5,INDEX($S$76:$S$99,HOUR($A192)+1,1),INDEX($S$101:$S$124,HOUR($A192)+1,1)) -> 28.22435325 | K192: =DemandParameters!$D$30*INDEX($S$47:$S$53,$B192,1)*INDEX($S$61:$S$72,MONTH($A192),1)*IF($B192<=5,INDEX($S$76:$S$99,HOUR($A192)+1,1),INDEX($S$101:$S$124,HOUR($A192)+1,1)) -> 34.43907472 | O192: =DemandParameters!$E$30*INDEX($S$47:$S$53,$B192,1)*INDEX($S$61:$S$72,MONTH($A192),1)*IF($B192<=5,INDEX($S$76:$S$99,HOUR($A192)+1,1),INDEX($S$101:$S$124,HOUR($A192)+1,1)) -> 18.95987089 | S192: =DemandParameters!$F$30*INDEX($S$47:$S$53,$B192,1)*INDEX($S$61:$S$72,MONTH($A192),1)*IF($B192<=5,INDEX($S$76:$S$99,HOUR($A192)+1,1),INDEX($S$101:$S$124,HOUR($A192)+1,1)) -> 23.13464561
A193: 2014-01-02T02:00:00 | B193: 4 | C193: 3 | D193: 0 | E193: 0 | F193: 1 | G193: =DemandParameters!$C$30*INDEX($S$47:$S$53,$B193,1)*INDEX($S$61:$S$72,MONTH($A193),1)*IF($B193<=5,INDEX($S$76:$S$99,HOUR($A193)+1,1),INDEX($S$101:$S$124,HOUR($A193)+1,1)) -> 22.53156737 | K193: =DemandParameters!$D$30*INDEX($S$47:$S$53,$B193,1)*INDEX($S$61:$S$72,MONTH($A193),1)*IF($B193<=5,INDEX($S$76:$S$99,HOUR($A193)+1,1),INDEX($S$101:$S$124,HOUR($A193)+1,1)) -> 27.49279409 | O193: =DemandParameters!$E$30*INDEX($S$47:$S$53,$B193,1)*INDEX($S$61:$S$72,MONTH($A193),1)*IF($B193<=5,INDEX($S$76:$S$99,HOUR($A193)+1,1),INDEX($S$101:$S$124,HOUR($A193)+1,1)) -> 15.13570938 | S193: =DemandParameters!$F$30*INDEX($S$47:$S$53,$B193,1)*INDEX($S$61:$S$72,MONTH($A193),1)*IF($B193<=5,INDEX($S$76:$S$99,HOUR($A193)+1,1),INDEX($S$101:$S$124,HOUR($A193)+1,1)) -> 18.46844183
A194: 2014-01-02T03:00:00 | B194: 4 | C194: 3 | D194: 0 | E194: 0 | F194: 1 | G194: =DemandParameters!$C$30*INDEX($S$47:$S$53,$B194,1)*INDEX($S$61:$S$72,MONTH($A194),1)*IF($B194<=5,INDEX($S$76:$S$99,HOUR($A194)+1,1),INDEX($S$101:$S$124,HOUR($A194)+1,1)) -> 26.95802212 | K194: =DemandParameters!$D$30*INDEX($S$47:$S$53,$B194,1)*INDEX($S$61:$S$72,MONTH($A194),1)*IF($B194<=5,INDEX($S$76:$S$99,HOUR($A194)+1,1),INDEX($S$101:$S$124,HOUR($A194)+1,1)) -> 32.89391009 | O194: =DemandParameters!$E$30*INDEX($S$47:$S$53,$B194,1)*INDEX($S$61:$S$72,MONTH($A194),1)*IF($B194<=5,INDEX($S$76:$S$99,HOUR($A194)+1,1),INDEX($S$101:$S$124,HOUR($A194)+1,1)) -> 18.1092057 | S194: =DemandParameters!$F$30*INDEX($S$47:$S$53,$B194,1)*INDEX($S$61:$S$72,MONTH($A194),1)*IF($B194<=5,INDEX($S$76:$S$99,HOUR($A194)+1,1),INDEX($S$101:$S$124,HOUR($A194)+1,1)) -> 22.09667243
A195: 2014-01-02T04:00:00 | B195: 4 | C195: 3 | D195: 0 | E195: 0 | F195: 1 | G195: =DemandParameters!$C$30*INDEX($S$47:$S$53,$B195,1)*INDEX($S$61:$S$72,MONTH($A195),1)*IF($B195<=5,INDEX($S$76:$S$99,HOUR($A195)+1,1),INDEX($S$101:$S$124,HOUR($A195)+1,1)) -> 55.53603542 | K195: =DemandParameters!$D$30*INDEX($S$47:$S$53,$B195,1)*INDEX($S$61:$S$72,MONTH($A195),1)*IF($B195<=5,INDEX($S$76:$S$99,HOUR($A195)+1,1),INDEX($S$101:$S$124,HOUR($A195)+1,1)) -> 67.76451728 | O195: =DemandParameters!$E$30*INDEX($S$47:$S$53,$B195,1)*INDEX($S$61:$S$72,MONTH($A195),1)*IF($B195<=5,INDEX($S$76:$S$99,HOUR($A195)+1,1),INDEX($S$101:$S$124,HOUR($A195)+1,1)) -> 37.30664975 | S195: =DemandParameters!$F$30*INDEX($S$47:$S$53,$B195,1)*INDEX($S$61:$S$72,MONTH($A195),1)*IF($B195<=5,INDEX($S$76:$S$99,HOUR($A195)+1,1),INDEX($S$101:$S$124,HOUR($A195)+1,1)) -> 45.52120245
A196: 2014-01-02T05:00:00 | B196: 4 | C196: 3 | D196: 0 | E196: 0 | F196: 1 | G196: =DemandParameters!$C$30*INDEX($S$47:$S$53,$B196,1)*INDEX($S$61:$S$72,MONTH($A196),1)*IF($B196<=5,INDEX($S$76:$S$99,HOUR($A196)+1,1),INDEX($S$101:$S$124,HOUR($A196)+1,1)) -> 153.6253601 | K196: =DemandParameters!$D$30*INDEX($S$47:$S$53,$B196,1)*INDEX($S$61:$S$72,MONTH($A196),1)*IF($B196<=5,INDEX($S$76:$S$99,HOUR($A196)+1,1),INDEX($S$101:$S$124,HOUR($A196)+1,1)) -> 187.4521343 | O196: =DemandParameters!$E$30*INDEX($S$47:$S$53,$B196,1)*INDEX($S$61:$S$72,MONTH($A196),1)*IF($B196<=5,INDEX($S$76:$S$99,HOUR($A196)+1,1),INDEX($S$101:$S$124,HOUR($A196)+1,1)) -> 103.1987152 | S196: =DemandParameters!$F$30*INDEX($S$47:$S$53,$B196,1)*INDEX($S$61:$S$72,MONTH($A196),1)*IF($B196<=5,INDEX($S$76:$S$99,HOUR($A196)+1,1),INDEX($S$101:$S$124,HOUR($A196)+1,1)) -> 125.9220444
A197: 2014-01-02T06:00:00 | B197: 4 | C197: 3 | D197: 0 | E197: 0 | F197: 1 | G197: =DemandParameters!$C$30*INDEX($S$47:$S$53,$B197,1)*INDEX($S$61:$S$72,MONTH($A197),1)*IF($B197<=5,INDEX($S$76:$S$99,HOUR($A197)+1,1),INDEX($S$101:$S$124,HOUR($A197)+1,1)) -> 467.2305527 | K197: =DemandParameters!$D$30*INDEX($S$47:$S$53,$B197,1)*INDEX($S$61:$S$72,MONTH($A197),1)*IF($B197<=5,INDEX($S$76:$S$99,HOUR($A197)+1,1),INDEX($S$101:$S$124,HOUR($A197)+1,1)) -> 570.1100668 | O197: =DemandParameters!$E$30*INDEX($S$47:$S$53,$B197,1)*INDEX($S$61:$S$72,MONTH($A197),1)*IF($B197<=5,INDEX($S$76:$S$99,HOUR($A197)+1,1),INDEX($S$101:$S$124,HOUR($A197)+1,1)) -> 313.8647988 | S197: =DemandParameters!$F$30*INDEX($S$47:$S$53,$B197,1)*INDEX($S$61:$S$72,MONTH($A197),1)*IF($B197<=5,INDEX($S$76:$S$99,HOUR($A197)+1,1),INDEX($S$101:$S$124,HOUR($A197)+1,1)) -> 382.9747014
A198: 2014-01-02T07:00:00 | B198: 4 | C198: 3 | D198: 0 | E198: 0 | F198: 1 | G198: =DemandParameters!$C$30*INDEX($S$47:$S$53,$B198,1)*INDEX($S$61:$S$72,MONTH($A198),1)*IF($B198<=5,INDEX($S$76:$S$99,HOUR($A198)+1,1),INDEX($S$101:$S$124,HOUR($A198)+1,1)) -> 910.1156043 | K198: =DemandParameters!$D$30*INDEX($S$47:$S$53,$B198,1)*INDEX($S$61:$S$72,MONTH($A198),1)*IF($B198<=5,INDEX($S$76:$S$99,HOUR($A198)+1,1),INDEX($S$101:$S$124,HOUR($A198)+1,1)) -> 1110.513996 | O198: =DemandParameters!$E$30*INDEX($S$47:$S$53,$B198,1)*INDEX($S$61:$S$72,MONTH($A198),1)*IF($B198<=5,INDEX($S$76:$S$99,HOUR($A198)+1,1),INDEX($S$101:$S$124,HOUR($A198)+1,1)) -> 611.3753678 | S198: =DemandParameters!$F$30*INDEX($S$47:$S$53,$B198,1)*INDEX($S$61:$S$72,MONTH($A198),1)*IF($B198<=5,INDEX($S$76:$S$99,HOUR($A198)+1,1),INDEX($S$101:$S$124,HOUR($A198)+1,1)) -> 745.9941344
A199: 2014-01-02T08:00:00 | B199: 4 | C199: 1 | D199: 1 | E199: 0 | F199: 0 | G199: =DemandParameters!$C$30*INDEX($S$47:$S$53,$B199,1)*INDEX($S$61:$S$72,MONTH($A199),1)*IF($B199<=5,INDEX($S$76:$S$99,HOUR($A199)+1,1),INDEX($S$101:$S$124,HOUR($A199)+1,1)) -> 887.6638956 | K199: =DemandParameters!$D$30*INDEX($S$47:$S$53,$B199,1)*INDEX($S$61:$S$72,MONTH($A199),1)*IF($B199<=5,INDEX($S$76:$S$99,HOUR($A199)+1,1),INDEX($S$101:$S$124,HOUR($A199)+1,1)) -> 1083.118644 | O199: =DemandParameters!$E$30*INDEX($S$47:$S$53,$B199,1)*INDEX($S$61:$S$72,MONTH($A199),1)*IF($B199<=5,INDEX($S$76:$S$99,HOUR($A199)+1,1),INDEX($S$101:$S$124,HOUR($A199)+1,1)) -> 596.2933039 | S199: =DemandParameters!$F$30*INDEX($S$47:$S$53,$B199,1)*INDEX($S$61:$S$72,MONTH($A199),1)*IF($B199<=5,INDEX($S$76:$S$99,HOUR($A199)+1,1),INDEX($S$101:$S$124,HOUR($A199)+1,1)) -> 727.5911504
A200: 2014-01-02T09:00:00 | B200: 4 | C200: 3 | D200: 0 | E200: 0 | F200: 1 | G200: =DemandParameters!$C$30*INDEX($S$47:$S$53,$B200,1)*INDEX($S$61:$S$72,MONTH($A200),1)*IF($B200<=5,INDEX($S$76:$S$99,HOUR($A200)+1,1),INDEX($S$101:$S$124,HOUR($A200)+1,1)) -> 701.2051933 | K200: =DemandParameters!$D$30*INDEX($S$47:$S$53,$B200,1)*INDEX($S$61:$S$72,MONTH($A200),1)*IF($B200<=5,INDEX($S$76:$S$99,HOUR($A200)+1,1),INDEX($S$101:$S$124,HOUR($A200)+1,1)) -> 855.6035928 | O200: =DemandParameters!$E$30*INDEX($S$47:$S$53,$B200,1)*INDEX($S$61:$S$72,MONTH($A200),1)*IF($B200<=5,INDEX($S$76:$S$99,HOUR($A200)+1,1),INDEX($S$101:$S$124,HOUR($A200)+1,1)) -> 471.0386031 | S200: =DemandParameters!$F$30*INDEX($S$47:$S$53,$B200,1)*INDEX($S$61:$S$72,MONTH($A200),1)*IF($B200<=5,INDEX($S$76:$S$99,HOUR($A200)+1,1),INDEX($S$101:$S$124,HOUR($A200)+1,1)) -> 574.756612
A201: 2014-01-02T10:00:00 | B201: 4 | C201: 3 | D201: 0 | E201: 0 | F201: 1 | G201: =DemandParameters!$C$30*INDEX($S$47:$S$53,$B201,1)*INDEX($S$61:$S$72,MONTH($A201),1)*IF($B201<=5,INDEX($S$76:$S$99,HOUR($A201)+1,1),INDEX($S$101:$S$124,HOUR($A201)+1,1)) -> 694.9191712 | K201: =DemandParameters!$D$30*INDEX($S$47:$S$53,$B201,1)*INDEX($S$61:$S$72,MONTH($A201),1)*IF($B201<=5,INDEX($S$76:$S$99,HOUR($A201)+1,1),INDEX($S$101:$S$124,HOUR($A201)+1,1)) -> 847.9334513 | O201: =DemandParameters!$E$30*INDEX($S$47:$S$53,$B201,1)*INDEX($S$61:$S$72,MONTH($A201),1)*IF($B201<=5,INDEX($S$76:$S$99,HOUR($A201)+1,1),INDEX($S$101:$S$124,HOUR($A201)+1,1)) -> 466.8159318 | S201: =DemandParameters!$F$30*INDEX($S$47:$S$53,$B201,1)*INDEX($S$61:$S$72,MONTH($A201),1)*IF($B201<=5,INDEX($S$76:$S$99,HOUR($A201)+1,1),INDEX($S$101:$S$124,HOUR($A201)+1,1)) -> 569.6041505
A202: 2014-01-02T11:00:00 | B202: 4 | C202: 3 | D202: 0 | E202: 0 | F202: 1 | G202: =DemandParameters!$C$30*INDEX($S$47:$S$53,$B202,1)*INDEX($S$61:$S$72,MONTH($A202),1)*IF($B202<=5,INDEX($S$76:$S$99,HOUR($A202)+1,1),INDEX($S$101:$S$124,HOUR($A202)+1,1)) -> 792.3810345 | K202: =DemandParameters!$D$30*INDEX($S$47:$S$53,$B202,1)*INDEX($S$61:$S$72,MONTH($A202),1)*IF($B202<=5,INDEX($S$76:$S$99,HOUR($A202)+1,1),INDEX($S$101:$S$124,HOUR($A202)+1,1)) -> 966.8554462 | O202: =DemandParameters!$E$30*INDEX($S$47:$S$53,$B202,1)*INDEX($S$61:$S$72,MONTH($A202),1)*IF($B202<=5,INDEX($S$76:$S$99,HOUR($A202)+1,1),INDEX($S$101:$S$124,HOUR($A202)+1,1)) -> 532.2864965 | S202: =DemandParameters!$F$30*INDEX($S$47:$S$53,$B202,1)*INDEX($S$61:$S$72,MONTH($A202),1)*IF($B202<=5,INDEX($S$76:$S$99,HOUR($A202)+1,1),INDEX($S$101:$S$124,HOUR($A202)+1,1)) -> 649.4906814
A203: 2014-01-02T12:00:00 | B203: 4 | C203: 3 | D203: 0 | E203: 0 | F203: 1 | G203: =DemandParameters!$C$30*INDEX($S$47:$S$53,$B203,1)*INDEX($S$61:$S$72,MONTH($A203),1)*IF($B203<=5,INDEX($S$76:$S$99,HOUR($A203)+1,1),INDEX($S$101:$S$124,HOUR($A203)+1,1)) -> 914.2340325 | K203: =DemandParameters!$D$30*INDEX($S$47:$S$53,$B203,1)*INDEX($S$61:$S$72,MONTH($A203),1)*IF($B203<=5,INDEX($S$76:$S$99,HOUR($A203)+1,1),INDEX($S$101:$S$124,HOUR($A203)+1,1)) -> 1115.539261 | O203: =DemandParameters!$E$30*INDEX($S$47:$S$53,$B203,1)*INDEX($S$61:$S$72,MONTH($A203),1)*IF($B203<=5,INDEX($S$76:$S$99,HOUR($A203)+1,1),INDEX($S$101:$S$124,HOUR($A203)+1,1)) -> 614.1419455 | S203: =DemandParameters!$F$30*INDEX($S$47:$S$53,$B203,1)*INDEX($S$61:$S$72,MONTH($A203),1)*IF($B203<=5,INDEX($S$76:$S$99,HOUR($A203)+1,1),INDEX($S$101:$S$124,HOUR($A203)+1,1)) -> 749.369885
A204: 2014-01-02T13:00:00 | B204: 4 | C204: 3 | D204: 0 | E204: 0 | F204: 1 | G204: =DemandParameters!$C$30*INDEX($S$47:$S$53,$B204,1)*INDEX($S$61:$S$72,MONTH($A204),1)*IF($B204<=5,INDEX($S$76:$S$99,HOUR($A204)+1,1),INDEX($S$101:$S$124,HOUR($A204)+1,1)) -> 889.2724784 | K204: =DemandParameters!$D$30*INDEX($S$47:$S$53,$B204,1)*INDEX($S$61:$S$72,MONTH($A204),1)*IF($B204<=5,INDEX($S$76:$S$99,HOUR($A204)+1,1),INDEX($S$101:$S$124,HOUR($A204)+1,1)) -> 1085.081421 | O204: =DemandParameters!$E$30*INDEX($S$47:$S$53,$B204,1)*INDEX($S$61:$S$72,MONTH($A204),1)*IF($B204<=5,INDEX($S$76:$S$99,HOUR($A204)+1,1),INDEX($S$101:$S$124,HOUR($A204)+1,1)) -> 597.3738786 | S204: =DemandParameters!$F$30*INDEX($S$47:$S$53,$B204,1)*INDEX($S$61:$S$72,MONTH($A204),1)*IF($B204<=5,INDEX($S$76:$S$99,HOUR($A204)+1,1),INDEX($S$101:$S$124,HOUR($A204)+1,1)) -> 728.9096568
A205: 2014-01-02T14:00:00 | B205: 4 | C205: 3 | D205: 0 | E205: 0 | F205: 1 | G205: =DemandParameters!$C$30*INDEX($S$47:$S$53,$B205,1)*INDEX($S$61:$S$72,MONTH($A205),1)*IF($B205<=5,INDEX($S$76:$S$99,HOUR($A205)+1,1),INDEX($S$101:$S$124,HOUR($A205)+1,1)) -> 978.8511452 | K205: =DemandParameters!$D$30*INDEX($S$47:$S$53,$B205,1)*INDEX($S$61:$S$72,MONTH($A205),1)*IF($B205<=5,INDEX($S$76:$S$99,HOUR($A205)+1,1),INDEX($S$101:$S$124,HOUR($A205)+1,1)) -> 1194.384418 | O205: =DemandParameters!$E$30*INDEX($S$47:$S$53,$B205,1)*INDEX($S$61:$S$72,MONTH($A205),1)*IF($B205<=5,INDEX($S$76:$S$99,HOUR($A205)+1,1),INDEX($S$101:$S$124,HOUR($A205)+1,1)) -> 657.5488609 | S205: =DemandParameters!$F$30*INDEX($S$47:$S$53,$B205,1)*INDEX($S$61:$S$72,MONTH($A205),1)*IF($B205<=5,INDEX($S$76:$S$99,HOUR($A205)+1,1),INDEX($S$101:$S$124,HOUR($A205)+1,1)) -> 802.3345709
A206: 2014-01-02T15:00:00 | B206: 4 | C206: 3 | D206: 0 | E206: 0 | F206: 1 | G206: =DemandParameters!$C$30*INDEX($S$47:$S$53,$B206,1)*INDEX($S$61:$S$72,MONTH($A206),1)*IF($B206<=5,INDEX($S$76:$S$99,HOUR($A206)+1,1),INDEX($S$101:$S$124,HOUR($A206)+1,1)) -> 1159.845229 | K206: =DemandParameters!$D$30*INDEX($S$47:$S$53,$B206,1)*INDEX($S$61:$S$72,MONTH($A206),1)*IF($B206<=5,INDEX($S$76:$S$99,HOUR($A206)+1,1),INDEX($S$101:$S$124,HOUR($A206)+1,1)) -> 1415.231597 | O206: =DemandParameters!$E$30*INDEX($S$47:$S$53,$B206,1)*INDEX($S$61:$S$72,MONTH($A206),1)*IF($B206<=5,INDEX($S$76:$S$99,HOUR($A206)+1,1),INDEX($S$101:$S$124,HOUR($A206)+1,1)) -> 779.1326732 | S206: =DemandParameters!$F$30*INDEX($S$47:$S$53,$B206,1)*INDEX($S$61:$S$72,MONTH($A206),1)*IF($B206<=5,INDEX($S$76:$S$99,HOUR($A206)+1,1),INDEX($S$101:$S$124,HOUR($A206)+1,1)) -> 950.6899277
A207: 2014-01-02T16:00:00 | B207: 4 | C207: 3 | D207: 0 | E207: 0 | F207: 1 | G207: =DemandParameters!$C$30*INDEX($S$47:$S$53,$B207,1)*INDEX($S$61:$S$72,MONTH($A207),1)*IF($B207<=5,INDEX($S$76:$S$99,HOUR($A207)+1,1),INDEX($S$101:$S$124,HOUR($A207)+1,1)) -> 1313.904108 | K207: =DemandParameters!$D$30*INDEX($S$47:$S$53,$B207,1)*INDEX($S$61:$S$72,MONTH($A207),1)*IF($B207<=5,INDEX($S$76:$S$99,HOUR($A207)+1,1),INDEX($S$101:$S$124,HOUR($A207)+1,1)) -> 1603.212706 | O207: =DemandParameters!$E$30*INDEX($S$47:$S$53,$B207,1)*INDEX($S$61:$S$72,MONTH($A207),1)*IF($B207<=5,INDEX($S$76:$S$99,HOUR($A207)+1,1),INDEX($S$101:$S$124,HOUR($A207)+1,1)) -> 882.6226071 | S207: =DemandParameters!$F$30*INDEX($S$47:$S$53,$B207,1)*INDEX($S$61:$S$72,MONTH($A207),1)*IF($B207<=5,INDEX($S$76:$S$99,HOUR($A207)+1,1),INDEX($S$101:$S$124,HOUR($A207)+1,1)) -> 1076.967314
A208: 2014-01-02T17:00:00 | B208: 4 | C208: 2 | D208: 0 | E208: 1 | F208: 0 | G208: =DemandParameters!$C$30*INDEX($S$47:$S$53,$B208,1)*INDEX($S$61:$S$72,MONTH($A208),1)*IF($B208<=5,INDEX($S$76:$S$99,HOUR($A208)+1,1),INDEX($S$101:$S$124,HOUR($A208)+1,1)) -> 1362.88032 | K208: =DemandParameters!$D$30*INDEX($S$47:$S$53,$B208,1)*INDEX($S$61:$S$72,MONTH($A208),1)*IF($B208<=5,INDEX($S$76:$S$99,HOUR($A208)+1,1),INDEX($S$101:$S$124,HOUR($A208)+1,1)) -> 1662.972993 | O208: =DemandParameters!$E$30*INDEX($S$47:$S$53,$B208,1)*INDEX($S$61:$S$72,MONTH($A208),1)*IF($B208<=5,INDEX($S$76:$S$99,HOUR($A208)+1,1),INDEX($S$101:$S$124,HOUR($A208)+1,1)) -> 915.5226579 | S208: =DemandParameters!$F$30*INDEX($S$47:$S$53,$B208,1)*INDEX($S$61:$S$72,MONTH($A208),1)*IF($B208<=5,INDEX($S$76:$S$99,HOUR($A208)+1,1),INDEX($S$101:$S$124,HOUR($A208)+1,1)) -> 1117.111629
A209: 2014-01-02T18:00:00 | B209: 4 | C209: 3 | D209: 0 | E209: 0 | F209: 1 | G209: =DemandParameters!$C$30*INDEX($S$47:$S$53,$B209,1)*INDEX($S$61:$S$72,MONTH($A209),1)*IF($B209<=5,INDEX($S$76:$S$99,HOUR($A209)+1,1),INDEX($S$101:$S$124,HOUR($A209)+1,1)) -> 949.5886286 | K209: =DemandParameters!$D$30*INDEX($S$47:$S$53,$B209,1)*INDEX($S$61:$S$72,MONTH($A209),1)*IF($B209<=5,INDEX($S$76:$S$99,HOUR($A209)+1,1),INDEX($S$101:$S$124,HOUR($A209)+1,1)) -> 1158.678587 | O209: =DemandParameters!$E$30*INDEX($S$47:$S$53,$B209,1)*INDEX($S$61:$S$72,MONTH($A209),1)*IF($B209<=5,INDEX($S$76:$S$99,HOUR($A209)+1,1),INDEX($S$101:$S$124,HOUR($A209)+1,1)) -> 637.8915979 | S209: =DemandParameters!$F$30*INDEX($S$47:$S$53,$B209,1)*INDEX($S$61:$S$72,MONTH($A209),1)*IF($B209<=5,INDEX($S$76:$S$99,HOUR($A209)+1,1),INDEX($S$101:$S$124,HOUR($A209)+1,1)) -> 778.3489743
A210: 2014-01-02T19:00:00 | B210: 4 | C210: 3 | D210: 0 | E210: 0 | F210: 1 | G210: =DemandParameters!$C$30*INDEX($S$47:$S$53,$B210,1)*INDEX($S$61:$S$72,MONTH($A210),1)*IF($B210<=5,INDEX($S$76:$S$99,HOUR($A210)+1,1),INDEX($S$101:$S$124,HOUR($A210)+1,1)) -> 678.2971491 | K210: =DemandParameters!$D$30*INDEX($S$47:$S$53,$B210,1)*INDEX($S$61:$S$72,MONTH($A210),1)*IF($B210<=5,INDEX($S$76:$S$99,HOUR($A210)+1,1),INDEX($S$101:$S$124,HOUR($A210)+1,1)) -> 827.6514255 | O210: =DemandParameters!$E$30*INDEX($S$47:$S$53,$B210,1)*INDEX($S$61:$S$72,MONTH($A210),1)*IF($B210<=5,INDEX($S$76:$S$99,HOUR($A210)+1,1),INDEX($S$101:$S$124,HOUR($A210)+1,1)) -> 455.6499933 | S210: =DemandParameters!$F$30*INDEX($S$47:$S$53,$B210,1)*INDEX($S$61:$S$72,MONTH($A210),1)*IF($B210<=5,INDEX($S$76:$S$99,HOUR($A210)+1,1),INDEX($S$101:$S$124,HOUR($A210)+1,1)) -> 555.9795835
A211: 2014-01-02T20:00:00 | B211: 4 | C211: 3 | D211: 0 | E211: 0 | F211: 1 | G211: =DemandParameters!$C$30*INDEX($S$47:$S$53,$B211,1)*INDEX($S$61:$S$72,MONTH($A211),1)*IF($B211<=5,INDEX($S$76:$S$99,HOUR($A211)+1,1),INDEX($S$101:$S$124,HOUR($A211)+1,1)) -> 526.8279745 | K211: =DemandParameters!$D$30*INDEX($S$47:$S$53,$B211,1)*INDEX($S$61:$S$72,MONTH($A211),1)*IF($B211<=5,INDEX($S$76:$S$99,HOUR($A211)+1,1),INDEX($S$101:$S$124,HOUR($A211)+1,1)) -> 642.8302472 | O211: =DemandParameters!$E$30*INDEX($S$47:$S$53,$B211,1)*INDEX($S$61:$S$72,MONTH($A211),1)*IF($B211<=5,INDEX($S$76:$S$99,HOUR($A211)+1,1),INDEX($S$101:$S$124,HOUR($A211)+1,1)) -> 353.899708 | S211: =DemandParameters!$F$30*INDEX($S$47:$S$53,$B211,1)*INDEX($S$61:$S$72,MONTH($A211),1)*IF($B211<=5,INDEX($S$76:$S$99,HOUR($A211)+1,1),INDEX($S$101:$S$124,HOUR($A211)+1,1)) -> 431.8248989
A212: 2014-01-02T21:00:00 | B212: 4 | C212: 3 | D212: 0 | E212: 0 | F212: 1 | G212: =DemandParameters!$C$30*INDEX($S$47:$S$53,$B212,1)*INDEX($S$61:$S$72,MONTH($A212),1)*IF($B212<=5,INDEX($S$76:$S$99,HOUR($A212)+1,1),INDEX($S$101:$S$124,HOUR($A212)+1,1)) -> 333.7524068 | K212: =DemandParameters!$D$30*INDEX($S$47:$S$53,$B212,1)*INDEX($S$61:$S$72,MONTH($A212),1)*IF($B212<=5,INDEX($S$76:$S$99,HOUR($A212)+1,1),INDEX($S$101:$S$124,HOUR($A212)+1,1)) -> 407.2413626 | O212: =DemandParameters!$E$30*INDEX($S$47:$S$53,$B212,1)*INDEX($S$61:$S$72,MONTH($A212),1)*IF($B212<=5,INDEX($S$76:$S$99,HOUR($A212)+1,1),INDEX($S$101:$S$124,HOUR($A212)+1,1)) -> 224.2000901 | S212: =DemandParameters!$F$30*INDEX($S$47:$S$53,$B212,1)*INDEX($S$61:$S$72,MONTH($A212),1)*IF($B212<=5,INDEX($S$76:$S$99,HOUR($A212)+1,1),INDEX($S$101:$S$124,HOUR($A212)+1,1)) -> 273.5667168
A213: 2014-01-02T22:00:00 | B213: 4 | C213: 3 | D213: 0 | E213: 0 | F213: 1 | G213: =DemandParameters!$C$30*INDEX($S$47:$S$53,$B213,1)*INDEX($S$61:$S$72,MONTH($A213),1)*IF($B213<=5,INDEX($S$76:$S$99,HOUR($A213)+1,1),INDEX($S$101:$S$124,HOUR($A213)+1,1)) -> 194.2164065 | K213: =DemandParameters!$D$30*INDEX($S$47:$S$53,$B213,1)*INDEX($S$61:$S$72,MONTH($A213),1)*IF($B213<=5,INDEX($S$76:$S$99,HOUR($A213)+1,1),INDEX($S$101:$S$124,HOUR($A213)+1,1)) -> 236.9809248 | O213: =DemandParameters!$E$30*INDEX($S$47:$S$53,$B213,1)*INDEX($S$61:$S$72,MONTH($A213),1)*IF($B213<=5,INDEX($S$76:$S$99,HOUR($A213)+1,1),INDEX($S$101:$S$124,HOUR($A213)+1,1)) -> 130.465983 | S213: =DemandParameters!$F$30*INDEX($S$47:$S$53,$B213,1)*INDEX($S$61:$S$72,MONTH($A213),1)*IF($B213<=5,INDEX($S$76:$S$99,HOUR($A213)+1,1),INDEX($S$101:$S$124,HOUR($A213)+1,1)) -> 159.193293
A214: 2014-01-02T23:00:00 | B214: 4 | C214: 3 | D214: 0 | E214: 0 | F214: 1 | G214: =DemandParameters!$C$30*INDEX($S$47:$S$53,$B214,1)*INDEX($S$61:$S$72,MONTH($A214),1)*IF($B214<=5,INDEX($S$76:$S$99,HOUR($A214)+1,1),INDEX($S$101:$S$124,HOUR($A214)+1,1)) -> 110.1593998 | K214: =DemandParameters!$D$30*INDEX($S$47:$S$53,$B214,1)*INDEX($S$61:$S$72,MONTH($A214),1)*IF($B214<=5,INDEX($S$76:$S$99,HOUR($A214)+1,1),INDEX($S$101:$S$124,HOUR($A214)+1,1)) -> 134.4154024 | O214: =DemandParameters!$E$30*INDEX($S$47:$S$53,$B214,1)*INDEX($S$61:$S$72,MONTH($A214),1)*IF($B214<=5,INDEX($S$76:$S$99,HOUR($A214)+1,1),INDEX($S$101:$S$124,HOUR($A214)+1,1)) -> 74.00020747 | S214: =DemandParameters!$F$30*INDEX($S$47:$S$53,$B214,1)*INDEX($S$61:$S$72,MONTH($A214),1)*IF($B214<=5,INDEX($S$76:$S$99,HOUR($A214)+1,1),INDEX($S$101:$S$124,HOUR($A214)+1,1)) -> 90.29431611
A215: 2014-01-03 | B215: 5 | C215: 3 | D215: 0 | E215: 0 | F215: 1 | G215: =DemandParameters!$C$30*INDEX($S$47:$S$53,$B215,1)*INDEX($S$61:$S$72,MONTH($A215),1)*IF($B215<=5,INDEX($S$76:$S$99,HOUR($A215)+1,1),INDEX($S$101:$S$124,HOUR($A215)+1,1)) -> 63.42493662 | K215: =DemandParameters!$D$30*INDEX($S$47:$S$53,$B215,1)*INDEX($S$61:$S$72,MONTH($A215),1)*IF($B215<=5,INDEX($S$76:$S$99,HOUR($A215)+1,1),INDEX($S$101:$S$124,HOUR($A215)+1,1)) -> 77.39047595 | O215: =DemandParameters!$E$30*INDEX($S$47:$S$53,$B215,1)*INDEX($S$61:$S$72,MONTH($A215),1)*IF($B215<=5,INDEX($S$76:$S$99,HOUR($A215)+1,1),INDEX($S$101:$S$124,HOUR($A215)+1,1)) -> 42.6060643 | S215: =DemandParameters!$F$30*INDEX($S$47:$S$53,$B215,1)*INDEX($S$61:$S$72,MONTH($A215),1)*IF($B215<=5,INDEX($S$76:$S$99,HOUR($A215)+1,1),INDEX($S$101:$S$124,HOUR($A215)+1,1)) -> 51.9874953
A216: 2014-01-03T01:00:00 | B216: 5 | C216: 3 | D216: 0 | E216: 0 | F216: 1 | G216: =DemandParameters!$C$30*INDEX($S$47:$S$53,$B216,1)*INDEX($S$61:$S$72,MONTH($A216),1)*IF($B216<=5,INDEX($S$76:$S$99,HOUR($A216)+1,1),INDEX($S$101:$S$124,HOUR($A216)+1,1)) -> 29.83142456 | K216: =DemandParameters!$D$30*INDEX($S$47:$S$53,$B216,1)*INDEX($S$61:$S$72,MONTH($A216),1)*IF($B216<=5,INDEX($S$76:$S$99,HOUR($A216)+1,1),INDEX($S$101:$S$124,HOUR($A216)+1,1)) -> 36.40000713 | O216: =DemandParameters!$E$30*INDEX($S$47:$S$53,$B216,1)*INDEX($S$61:$S$72,MONTH($A216),1)*IF($B216<=5,INDEX($S$76:$S$99,HOUR($A216)+1,1),INDEX($S$101:$S$124,HOUR($A216)+1,1)) -> 20.03943024 | S216: =DemandParameters!$F$30*INDEX($S$47:$S$53,$B216,1)*INDEX($S$61:$S$72,MONTH($A216),1)*IF($B216<=5,INDEX($S$76:$S$99,HOUR($A216)+1,1),INDEX($S$101:$S$124,HOUR($A216)+1,1)) -> 24.45191319
A217: 2014-01-03T02:00:00 | B217: 5 | C217: 3 | D217: 0 | E217: 0 | F217: 1 | G217: =DemandParameters!$C$30*INDEX($S$47:$S$53,$B217,1)*INDEX($S$61:$S$72,MONTH($A217),1)*IF($B217<=5,INDEX($S$76:$S$99,HOUR($A217)+1,1),INDEX($S$101:$S$124,HOUR($A217)+1,1)) -> 23.81449617 | K217: =DemandParameters!$D$30*INDEX($S$47:$S$53,$B217,1)*INDEX($S$61:$S$72,MONTH($A217),1)*IF($B217<=5,INDEX($S$76:$S$99,HOUR($A217)+1,1),INDEX($S$101:$S$124,HOUR($A217)+1,1)) -> 29.05821103 | O217: =DemandParameters!$E$30*INDEX($S$47:$S$53,$B217,1)*INDEX($S$61:$S$72,MONTH($A217),1)*IF($B217<=5,INDEX($S$76:$S$99,HOUR($A217)+1,1),INDEX($S$101:$S$124,HOUR($A217)+1,1)) -> 15.99752414 | S217: =DemandParameters!$F$30*INDEX($S$47:$S$53,$B217,1)*INDEX($S$61:$S$72,MONTH($A217),1)*IF($B217<=5,INDEX($S$76:$S$99,HOUR($A217)+1,1),INDEX($S$101:$S$124,HOUR($A217)+1,1)) -> 19.52001962
A218: 2014-01-03T03:00:00 | B218: 5 | C218: 3 | D218: 0 | E218: 0 | F218: 1 | G218: =DemandParameters!$C$30*INDEX($S$47:$S$53,$B218,1)*INDEX($S$61:$S$72,MONTH($A218),1)*IF($B218<=5,INDEX($S$76:$S$99,HOUR($A218)+1,1),INDEX($S$101:$S$124,HOUR($A218)+1,1)) -> 28.49298959 | K218: =DemandParameters!$D$30*INDEX($S$47:$S$53,$B218,1)*INDEX($S$61:$S$72,MONTH($A218),1)*IF($B218<=5,INDEX($S$76:$S$99,HOUR($A218)+1,1),INDEX($S$101:$S$124,HOUR($A218)+1,1)) -> 34.76686211 | O218: =DemandParameters!$E$30*INDEX($S$47:$S$53,$B218,1)*INDEX($S$61:$S$72,MONTH($A218),1)*IF($B218<=5,INDEX($S$76:$S$99,HOUR($A218)+1,1),INDEX($S$101:$S$124,HOUR($A218)+1,1)) -> 19.14032888 | S218: =DemandParameters!$F$30*INDEX($S$47:$S$53,$B218,1)*INDEX($S$61:$S$72,MONTH($A218),1)*IF($B218<=5,INDEX($S$76:$S$99,HOUR($A218)+1,1),INDEX($S$101:$S$124,HOUR($A218)+1,1)) -> 23.35483867
A219: 2014-01-03T04:00:00 | B219: 5 | C219: 3 | D219: 0 | E219: 0 | F219: 1 | G219: =DemandParameters!$C$30*INDEX($S$47:$S$53,$B219,1)*INDEX($S$61:$S$72,MONTH($A219),1)*IF($B219<=5,INDEX($S$76:$S$99,HOUR($A219)+1,1),INDEX($S$101:$S$124,HOUR($A219)+1,1)) -> 58.69821131 | K219: =DemandParameters!$D$30*INDEX($S$47:$S$53,$B219,1)*INDEX($S$61:$S$72,MONTH($A219),1)*IF($B219<=5,INDEX($S$76:$S$99,HOUR($A219)+1,1),INDEX($S$101:$S$124,HOUR($A219)+1,1)) -> 71.6229728 | O219: =DemandParameters!$E$30*INDEX($S$47:$S$53,$B219,1)*INDEX($S$61:$S$72,MONTH($A219),1)*IF($B219<=5,INDEX($S$76:$S$99,HOUR($A219)+1,1),INDEX($S$101:$S$124,HOUR($A219)+1,1)) -> 39.43085951 | S219: =DemandParameters!$F$30*INDEX($S$47:$S$53,$B219,1)*INDEX($S$61:$S$72,MONTH($A219),1)*IF($B219<=5,INDEX($S$76:$S$99,HOUR($A219)+1,1),INDEX($S$101:$S$124,HOUR($A219)+1,1)) -> 48.11314204
A220: 2014-01-03T05:00:00 | B220: 5 | C220: 3 | D220: 0 | E220: 0 | F220: 1 | G220: =DemandParameters!$C$30*INDEX($S$47:$S$53,$B220,1)*INDEX($S$61:$S$72,MONTH($A220),1)*IF($B220<=5,INDEX($S$76:$S$99,HOUR($A220)+1,1),INDEX($S$101:$S$124,HOUR($A220)+1,1)) -> 162.3726609 | K220: =DemandParameters!$D$30*INDEX($S$47:$S$53,$B220,1)*INDEX($S$61:$S$72,MONTH($A220),1)*IF($B220<=5,INDEX($S$76:$S$99,HOUR($A220)+1,1),INDEX($S$101:$S$124,HOUR($A220)+1,1)) -> 198.1255036 | O220: =DemandParameters!$E$30*INDEX($S$47:$S$53,$B220,1)*INDEX($S$61:$S$72,MONTH($A220),1)*IF($B220<=5,INDEX($S$76:$S$99,HOUR($A220)+1,1),INDEX($S$101:$S$124,HOUR($A220)+1,1)) -> 109.0747646 | S220: =DemandParameters!$F$30*INDEX($S$47:$S$53,$B220,1)*INDEX($S$61:$S$72,MONTH($A220),1)*IF($B220<=5,INDEX($S$76:$S$99,HOUR($A220)+1,1),INDEX($S$101:$S$124,HOUR($A220)+1,1)) -> 133.0919414
A221: 2014-01-03T06:00:00 | B221: 5 | C221: 3 | D221: 0 | E221: 0 | F221: 1 | G221: =DemandParameters!$C$30*INDEX($S$47:$S$53,$B221,1)*INDEX($S$61:$S$72,MONTH($A221),1)*IF($B221<=5,INDEX($S$76:$S$99,HOUR($A221)+1,1),INDEX($S$101:$S$124,HOUR($A221)+1,1)) -> 493.8342737 | K221: =DemandParameters!$D$30*INDEX($S$47:$S$53,$B221,1)*INDEX($S$61:$S$72,MONTH($A221),1)*IF($B221<=5,INDEX($S$76:$S$99,HOUR($A221)+1,1),INDEX($S$101:$S$124,HOUR($A221)+1,1)) -> 602.5716621 | O221: =DemandParameters!$E$30*INDEX($S$47:$S$53,$B221,1)*INDEX($S$61:$S$72,MONTH($A221),1)*IF($B221<=5,INDEX($S$76:$S$99,HOUR($A221)+1,1),INDEX($S$101:$S$124,HOUR($A221)+1,1)) -> 331.7360006 | S221: =DemandParameters!$F$30*INDEX($S$47:$S$53,$B221,1)*INDEX($S$61:$S$72,MONTH($A221),1)*IF($B221<=5,INDEX($S$76:$S$99,HOUR($A221)+1,1),INDEX($S$101:$S$124,HOUR($A221)+1,1)) -> 404.7809639
A222: 2014-01-03T07:00:00 | B222: 5 | C222: 3 | D222: 0 | E222: 0 | F222: 1 | G222: =DemandParameters!$C$30*INDEX($S$47:$S$53,$B222,1)*INDEX($S$61:$S$72,MONTH($A222),1)*IF($B222<=5,INDEX($S$76:$S$99,HOUR($A222)+1,1),INDEX($S$101:$S$124,HOUR($A222)+1,1)) -> 961.9368335 | K222: =DemandParameters!$D$30*INDEX($S$47:$S$53,$B222,1)*INDEX($S$61:$S$72,MONTH($A222),1)*IF($B222<=5,INDEX($S$76:$S$99,HOUR($A222)+1,1),INDEX($S$101:$S$124,HOUR($A222)+1,1)) -> 1173.745743 | O222: =DemandParameters!$E$30*INDEX($S$47:$S$53,$B222,1)*INDEX($S$61:$S$72,MONTH($A222),1)*IF($B222<=5,INDEX($S$76:$S$99,HOUR($A222)+1,1),INDEX($S$101:$S$124,HOUR($A222)+1,1)) -> 646.1865752 | S222: =DemandParameters!$F$30*INDEX($S$47:$S$53,$B222,1)*INDEX($S$61:$S$72,MONTH($A222),1)*IF($B222<=5,INDEX($S$76:$S$99,HOUR($A222)+1,1),INDEX($S$101:$S$124,HOUR($A222)+1,1)) -> 788.470423
A223: 2014-01-03T08:00:00 | B223: 5 | C223: 1 | D223: 1 | E223: 0 | F223: 0 | G223: =DemandParameters!$C$30*INDEX($S$47:$S$53,$B223,1)*INDEX($S$61:$S$72,MONTH($A223),1)*IF($B223<=5,INDEX($S$76:$S$99,HOUR($A223)+1,1),INDEX($S$101:$S$124,HOUR($A223)+1,1)) -> 938.2067431 | K223: =DemandParameters!$D$30*INDEX($S$47:$S$53,$B223,1)*INDEX($S$61:$S$72,MONTH($A223),1)*IF($B223<=5,INDEX($S$76:$S$99,HOUR($A223)+1,1),INDEX($S$101:$S$124,HOUR($A223)+1,1)) -> 1144.790523 | O223: =DemandParameters!$E$30*INDEX($S$47:$S$53,$B223,1)*INDEX($S$61:$S$72,MONTH($A223),1)*IF($B223<=5,INDEX($S$76:$S$99,HOUR($A223)+1,1),INDEX($S$101:$S$124,HOUR($A223)+1,1)) -> 630.2457511 | S223: =DemandParameters!$F$30*INDEX($S$47:$S$53,$B223,1)*INDEX($S$61:$S$72,MONTH($A223),1)*IF($B223<=5,INDEX($S$76:$S$99,HOUR($A223)+1,1),INDEX($S$101:$S$124,HOUR($A223)+1,1)) -> 769.0195882
A224: 2014-01-03T09:00:00 | B224: 5 | C224: 3 | D224: 0 | E224: 0 | F224: 1 | G224: =DemandParameters!$C$30*INDEX($S$47:$S$53,$B224,1)*INDEX($S$61:$S$72,MONTH($A224),1)*IF($B224<=5,INDEX($S$76:$S$99,HOUR($A224)+1,1),INDEX($S$101:$S$124,HOUR($A224)+1,1)) -> 741.1312366 | K224: =DemandParameters!$D$30*INDEX($S$47:$S$53,$B224,1)*INDEX($S$61:$S$72,MONTH($A224),1)*IF($B224<=5,INDEX($S$76:$S$99,HOUR($A224)+1,1),INDEX($S$101:$S$124,HOUR($A224)+1,1)) -> 904.3209532 | O224: =DemandParameters!$E$30*INDEX($S$47:$S$53,$B224,1)*INDEX($S$61:$S$72,MONTH($A224),1)*IF($B224<=5,INDEX($S$76:$S$99,HOUR($A224)+1,1),INDEX($S$101:$S$124,HOUR($A224)+1,1)) -> 497.8591513 | S224: =DemandParameters!$F$30*INDEX($S$47:$S$53,$B224,1)*INDEX($S$61:$S$72,MONTH($A224),1)*IF($B224<=5,INDEX($S$76:$S$99,HOUR($A224)+1,1),INDEX($S$101:$S$124,HOUR($A224)+1,1)) -> 607.4827777
A225: 2014-01-03T10:00:00 | B225: 5 | C225: 3 | D225: 0 | E225: 0 | F225: 1 | G225: =DemandParameters!$C$30*INDEX($S$47:$S$53,$B225,1)*INDEX($S$61:$S$72,MONTH($A225),1)*IF($B225<=5,INDEX($S$76:$S$99,HOUR($A225)+1,1),INDEX($S$101:$S$124,HOUR($A225)+1,1)) -> 734.4872937 | K225: =DemandParameters!$D$30*INDEX($S$47:$S$53,$B225,1)*INDEX($S$61:$S$72,MONTH($A225),1)*IF($B225<=5,INDEX($S$76:$S$99,HOUR($A225)+1,1),INDEX($S$101:$S$124,HOUR($A225)+1,1)) -> 896.2140802 | O225: =DemandParameters!$E$30*INDEX($S$47:$S$53,$B225,1)*INDEX($S$61:$S$72,MONTH($A225),1)*IF($B225<=5,INDEX($S$76:$S$99,HOUR($A225)+1,1),INDEX($S$101:$S$124,HOUR($A225)+1,1)) -> 493.3960446 | S225: =DemandParameters!$F$30*INDEX($S$47:$S$53,$B225,1)*INDEX($S$61:$S$72,MONTH($A225),1)*IF($B225<=5,INDEX($S$76:$S$99,HOUR($A225)+1,1),INDEX($S$101:$S$124,HOUR($A225)+1,1)) -> 602.0369394
A226: 2014-01-03T11:00:00 | B226: 5 | C226: 3 | D226: 0 | E226: 0 | F226: 1 | G226: =DemandParameters!$C$30*INDEX($S$47:$S$53,$B226,1)*INDEX($S$61:$S$72,MONTH($A226),1)*IF($B226<=5,INDEX($S$76:$S$99,HOUR($A226)+1,1),INDEX($S$101:$S$124,HOUR($A226)+1,1)) -> 837.4985548 | K226: =DemandParameters!$D$30*INDEX($S$47:$S$53,$B226,1)*INDEX($S$61:$S$72,MONTH($A226),1)*IF($B226<=5,INDEX($S$76:$S$99,HOUR($A226)+1,1),INDEX($S$101:$S$124,HOUR($A226)+1,1)) -> 1021.907395 | O226: =DemandParameters!$E$30*INDEX($S$47:$S$53,$B226,1)*INDEX($S$61:$S$72,MONTH($A226),1)*IF($B226<=5,INDEX($S$76:$S$99,HOUR($A226)+1,1),INDEX($S$101:$S$124,HOUR($A226)+1,1)) -> 562.594449 | S226: =DemandParameters!$F$30*INDEX($S$47:$S$53,$B226,1)*INDEX($S$61:$S$72,MONTH($A226),1)*IF($B226<=5,INDEX($S$76:$S$99,HOUR($A226)+1,1),INDEX($S$101:$S$124,HOUR($A226)+1,1)) -> 686.4721432
A227: 2014-01-03T12:00:00 | B227: 5 | C227: 3 | D227: 0 | E227: 0 | F227: 1 | G227: =DemandParameters!$C$30*INDEX($S$47:$S$53,$B227,1)*INDEX($S$61:$S$72,MONTH($A227),1)*IF($B227<=5,INDEX($S$76:$S$99,HOUR($A227)+1,1),INDEX($S$101:$S$124,HOUR($A227)+1,1)) -> 966.2897616 | K227: =DemandParameters!$D$30*INDEX($S$47:$S$53,$B227,1)*INDEX($S$61:$S$72,MONTH($A227),1)*IF($B227<=5,INDEX($S$76:$S$99,HOUR($A227)+1,1),INDEX($S$101:$S$124,HOUR($A227)+1,1)) -> 1179.057143 | O227: =DemandParameters!$E$30*INDEX($S$47:$S$53,$B227,1)*INDEX($S$61:$S$72,MONTH($A227),1)*IF($B227<=5,INDEX($S$76:$S$99,HOUR($A227)+1,1),INDEX($S$101:$S$124,HOUR($A227)+1,1)) -> 649.1106796 | S227: =DemandParameters!$F$30*INDEX($S$47:$S$53,$B227,1)*INDEX($S$61:$S$72,MONTH($A227),1)*IF($B227<=5,INDEX($S$76:$S$99,HOUR($A227)+1,1),INDEX($S$101:$S$124,HOUR($A227)+1,1)) -> 792.038386
A228: 2014-01-03T13:00:00 | B228: 5 | C228: 3 | D228: 0 | E228: 0 | F228: 1 | G228: =DemandParameters!$C$30*INDEX($S$47:$S$53,$B228,1)*INDEX($S$61:$S$72,MONTH($A228),1)*IF($B228<=5,INDEX($S$76:$S$99,HOUR($A228)+1,1),INDEX($S$101:$S$124,HOUR($A228)+1,1)) -> 939.9069173 | K228: =DemandParameters!$D$30*INDEX($S$47:$S$53,$B228,1)*INDEX($S$61:$S$72,MONTH($A228),1)*IF($B228<=5,INDEX($S$76:$S$99,HOUR($A228)+1,1),INDEX($S$101:$S$124,HOUR($A228)+1,1)) -> 1146.865059 | O228: =DemandParameters!$E$30*INDEX($S$47:$S$53,$B228,1)*INDEX($S$61:$S$72,MONTH($A228),1)*IF($B228<=5,INDEX($S$76:$S$99,HOUR($A228)+1,1),INDEX($S$101:$S$124,HOUR($A228)+1,1)) -> 631.3878528 | S228: =DemandParameters!$F$30*INDEX($S$47:$S$53,$B228,1)*INDEX($S$61:$S$72,MONTH($A228),1)*IF($B228<=5,INDEX($S$76:$S$99,HOUR($A228)+1,1),INDEX($S$101:$S$124,HOUR($A228)+1,1)) -> 770.4131694
A229: 2014-01-03T14:00:00 | B229: 5 | C229: 3 | D229: 0 | E229: 0 | F229: 1 | G229: =DemandParameters!$C$30*INDEX($S$47:$S$53,$B229,1)*INDEX($S$61:$S$72,MONTH($A229),1)*IF($B229<=5,INDEX($S$76:$S$99,HOUR($A229)+1,1),INDEX($S$101:$S$124,HOUR($A229)+1,1)) -> 1034.586119 | K229: =DemandParameters!$D$30*INDEX($S$47:$S$53,$B229,1)*INDEX($S$61:$S$72,MONTH($A229),1)*IF($B229<=5,INDEX($S$76:$S$99,HOUR($A229)+1,1),INDEX($S$101:$S$124,HOUR($A229)+1,1)) -> 1262.391678 | O229: =DemandParameters!$E$30*INDEX($S$47:$S$53,$B229,1)*INDEX($S$61:$S$72,MONTH($A229),1)*IF($B229<=5,INDEX($S$76:$S$99,HOUR($A229)+1,1),INDEX($S$101:$S$124,HOUR($A229)+1,1)) -> 694.9891488 | S229: =DemandParameters!$F$30*INDEX($S$47:$S$53,$B229,1)*INDEX($S$61:$S$72,MONTH($A229),1)*IF($B229<=5,INDEX($S$76:$S$99,HOUR($A229)+1,1),INDEX($S$101:$S$124,HOUR($A229)+1,1)) -> 848.0188373
A230: 2014-01-03T15:00:00 | B230: 5 | C230: 3 | D230: 0 | E230: 0 | F230: 1 | G230: =DemandParameters!$C$30*INDEX($S$47:$S$53,$B230,1)*INDEX($S$61:$S$72,MONTH($A230),1)*IF($B230<=5,INDEX($S$76:$S$99,HOUR($A230)+1,1),INDEX($S$101:$S$124,HOUR($A230)+1,1)) -> 1225.885857 | K230: =DemandParameters!$D$30*INDEX($S$47:$S$53,$B230,1)*INDEX($S$61:$S$72,MONTH($A230),1)*IF($B230<=5,INDEX($S$76:$S$99,HOUR($A230)+1,1),INDEX($S$101:$S$124,HOUR($A230)+1,1)) -> 1495.813713 | O230: =DemandParameters!$E$30*INDEX($S$47:$S$53,$B230,1)*INDEX($S$61:$S$72,MONTH($A230),1)*IF($B230<=5,INDEX($S$76:$S$99,HOUR($A230)+1,1),INDEX($S$101:$S$124,HOUR($A230)+1,1)) -> 823.4958427 | S230: =DemandParameters!$F$30*INDEX($S$47:$S$53,$B230,1)*INDEX($S$61:$S$72,MONTH($A230),1)*IF($B230<=5,INDEX($S$76:$S$99,HOUR($A230)+1,1),INDEX($S$101:$S$124,HOUR($A230)+1,1)) -> 1004.821425
A231: 2014-01-03T16:00:00 | B231: =IF(ISNUMBER(VLOOKUP(INT($A231),HolidayTable,2,FALSE)),VLOOKUP(INT($A231),HolidayTable,2,FALSE),WEEKDAY($A231,2)) -> 5 | C231: =IF($B231<=5,IF(AND(HOUR($A231)>=HOUR(Time_AM_Peak_Begin),HOUR($A231)<HOUR(Time_AM_Peak_End)),Code_AM_Peak,IF(AND(HOUR($A231)>=HOUR(Time_PM_Peak_Begin),HOUR($A231)<HOUR(Time_PM_Peak_End)),Code_PM_Peak,Code_Offpeak)),Code_Offpeak) -> 3 | D231: =IF(C231=Code_AM_Peak,1,0) -> 0 | E231: =IF(C231=Code_PM_Peak,1,0) -> 0 | F231: =IF(C231=Code_Offpeak,1,0) -> 1 | G231: =DemandParameters!$C$30*INDEX($S$47:$S$53,$B231,1)*INDEX($S$61:$S$72,MONTH($A231),1)*IF($B231<=5,INDEX($S$76:$S$99,HOUR($A231)+1,1),INDEX($S$101:$S$124,HOUR($A231)+1,1)) -> 1388.716721 | K231: =DemandParameters!$D$30*INDEX($S$47:$S$53,$B231,1)*INDEX($S$61:$S$72,MONTH($A231),1)*IF($B231<=5,INDEX($S$76:$S$99,HOUR($A231)+1,1),INDEX($S$101:$S$124,HOUR($A231)+1,1)) -> 1694.498311 | O231: =DemandParameters!$E$30*INDEX($S$47:$S$53,$B231,1)*INDEX($S$61:$S$72,MONTH($A231),1)*IF($B231<=5,INDEX($S$76:$S$99,HOUR($A231)+1,1),INDEX($S$101:$S$124,HOUR($A231)+1,1)) -> 932.8784078 | S231: =DemandParameters!$F$30*INDEX($S$47:$S$53,$B231,1)*INDEX($S$61:$S$72,MONTH($A231),1)*IF($B231<=5,INDEX($S$76:$S$99,HOUR($A231)+1,1),INDEX($S$101:$S$124,HOUR($A231)+1,1)) -> 1138.288942
A232: 2014-01-03T17:00:00 | B232: 5 | C232: 2 | D232: 0 | E232: 1 | F232: 0 | G232: =DemandParameters!$C$30*INDEX($S$47:$S$53,$B232,1)*INDEX($S$61:$S$72,MONTH($A232),1)*IF($B232<=5,INDEX($S$76:$S$99,HOUR($A232)+1,1),INDEX($S$101:$S$124,HOUR($A232)+1,1)) -> 1440.481598 | K232: =DemandParameters!$D$30*INDEX($S$47:$S$53,$B232,1)*INDEX($S$61:$S$72,MONTH($A232),1)*IF($B232<=5,INDEX($S$76:$S$99,HOUR($A232)+1,1),INDEX($S$101:$S$124,HOUR($A232)+1,1)) -> 1757.661298 | O232: =DemandParameters!$E$30*INDEX($S$47:$S$53,$B232,1)*INDEX($S$61:$S$72,MONTH($A232),1)*IF($B232<=5,INDEX($S$76:$S$99,HOUR($A232)+1,1),INDEX($S$101:$S$124,HOUR($A232)+1,1)) -> 967.6517603 | S232: =DemandParameters!$F$30*INDEX($S$47:$S$53,$B232,1)*INDEX($S$61:$S$72,MONTH($A232),1)*IF($B232<=5,INDEX($S$76:$S$99,HOUR($A232)+1,1),INDEX($S$101:$S$124,HOUR($A232)+1,1)) -> 1180.71904
A233: 2014-01-03T18:00:00 | B233: 5 | C233: 3 | D233: 0 | E233: 0 | F233: 1 | G233: =DemandParameters!$C$30*INDEX($S$47:$S$53,$B233,1)*INDEX($S$61:$S$72,MONTH($A233),1)*IF($B233<=5,INDEX($S$76:$S$99,HOUR($A233)+1,1),INDEX($S$101:$S$124,HOUR($A233)+1,1)) -> 1003.657419 | K233: =DemandParameters!$D$30*INDEX($S$47:$S$53,$B233,1)*INDEX($S$61:$S$72,MONTH($A233),1)*IF($B233<=5,INDEX($S$76:$S$99,HOUR($A233)+1,1),INDEX($S$101:$S$124,HOUR($A233)+1,1)) -> 1224.652786 | O233: =DemandParameters!$E$30*INDEX($S$47:$S$53,$B233,1)*INDEX($S$61:$S$72,MONTH($A233),1)*IF($B233<=5,INDEX($S$76:$S$99,HOUR($A233)+1,1),INDEX($S$101:$S$124,HOUR($A233)+1,1)) -> 674.2126175 | S233: =DemandParameters!$F$30*INDEX($S$47:$S$53,$B233,1)*INDEX($S$61:$S$72,MONTH($A233),1)*IF($B233<=5,INDEX($S$76:$S$99,HOUR($A233)+1,1),INDEX($S$101:$S$124,HOUR($A233)+1,1)) -> 822.6675206
A234: 2014-01-03T19:00:00 | B234: 5 | C234: 3 | D234: 0 | E234: 0 | F234: 1 | G234: =DemandParameters!$C$30*INDEX($S$47:$S$53,$B234,1)*INDEX($S$61:$S$72,MONTH($A234),1)*IF($B234<=5,INDEX($S$76:$S$99,HOUR($A234)+1,1),INDEX($S$101:$S$124,HOUR($A234)+1,1)) -> 716.9188274 | K234: =DemandParameters!$D$30*INDEX($S$47:$S$53,$B234,1)*INDEX($S$61:$S$72,MONTH($A234),1)*IF($B234<=5,INDEX($S$76:$S$99,HOUR($A234)+1,1),INDEX($S$101:$S$124,HOUR($A234)+1,1)) -> 874.7772126 | O234: =DemandParameters!$E$30*INDEX($S$47:$S$53,$B234,1)*INDEX($S$61:$S$72,MONTH($A234),1)*IF($B234<=5,INDEX($S$76:$S$99,HOUR($A234)+1,1),INDEX($S$101:$S$124,HOUR($A234)+1,1)) -> 481.5943268 | S234: =DemandParameters!$F$30*INDEX($S$47:$S$53,$B234,1)*INDEX($S$61:$S$72,MONTH($A234),1)*IF($B234<=5,INDEX($S$76:$S$99,HOUR($A234)+1,1),INDEX($S$101:$S$124,HOUR($A234)+1,1)) -> 587.6366008
A235: 2014-01-03T20:00:00 | B235: 5 | C235: 3 | D235: 0 | E235: 0 | F235: 1 | G235: =DemandParameters!$C$30*INDEX($S$47:$S$53,$B235,1)*INDEX($S$61:$S$72,MONTH($A235),1)*IF($B235<=5,INDEX($S$76:$S$99,HOUR($A235)+1,1),INDEX($S$101:$S$124,HOUR($A235)+1,1)) -> 556.8251233 | K235: =DemandParameters!$D$30*INDEX($S$47:$S$53,$B235,1)*INDEX($S$61:$S$72,MONTH($A235),1)*IF($B235<=5,INDEX($S$76:$S$99,HOUR($A235)+1,1),INDEX($S$101:$S$124,HOUR($A235)+1,1)) -> 679.4324694 | O235: =DemandParameters!$E$30*INDEX($S$47:$S$53,$B235,1)*INDEX($S$61:$S$72,MONTH($A235),1)*IF($B235<=5,INDEX($S$76:$S$99,HOUR($A235)+1,1),INDEX($S$101:$S$124,HOUR($A235)+1,1)) -> 374.0504645 | S235: =DemandParameters!$F$30*INDEX($S$47:$S$53,$B235,1)*INDEX($S$61:$S$72,MONTH($A235),1)*IF($B235<=5,INDEX($S$76:$S$99,HOUR($A235)+1,1),INDEX($S$101:$S$124,HOUR($A235)+1,1)) -> 456.4126512
A236: 2014-01-03T21:00:00 | B236: 5 | C236: 3 | D236: 0 | E236: 0 | F236: 1 | G236: =DemandParameters!$C$30*INDEX($S$47:$S$53,$B236,1)*INDEX($S$61:$S$72,MONTH($A236),1)*IF($B236<=5,INDEX($S$76:$S$99,HOUR($A236)+1,1),INDEX($S$101:$S$124,HOUR($A236)+1,1)) -> 352.7559926 | K236: =DemandParameters!$D$30*INDEX($S$47:$S$53,$B236,1)*INDEX($S$61:$S$72,MONTH($A236),1)*IF($B236<=5,INDEX($S$76:$S$99,HOUR($A236)+1,1),INDEX($S$101:$S$124,HOUR($A236)+1,1)) -> 430.4293487 | O236: =DemandParameters!$E$30*INDEX($S$47:$S$53,$B236,1)*INDEX($S$61:$S$72,MONTH($A236),1)*IF($B236<=5,INDEX($S$76:$S$99,HOUR($A236)+1,1),INDEX($S$101:$S$124,HOUR($A236)+1,1)) -> 236.9658576 | S236: =DemandParameters!$F$30*INDEX($S$47:$S$53,$B236,1)*INDEX($S$61:$S$72,MONTH($A236),1)*IF($B236<=5,INDEX($S$76:$S$99,HOUR($A236)+1,1),INDEX($S$101:$S$124,HOUR($A236)+1,1)) -> 289.1433793
A237: 2014-01-03T22:00:00 | B237: 5 | C237: 3 | D237: 0 | E237: 0 | F237: 1 | G237: =DemandParameters!$C$30*INDEX($S$47:$S$53,$B237,1)*INDEX($S$61:$S$72,MONTH($A237),1)*IF($B237<=5,INDEX($S$76:$S$99,HOUR($A237)+1,1),INDEX($S$101:$S$124,HOUR($A237)+1,1)) -> 205.274928 | K237: =DemandParameters!$D$30*INDEX($S$47:$S$53,$B237,1)*INDEX($S$61:$S$72,MONTH($A237),1)*IF($B237<=5,INDEX($S$76:$S$99,HOUR($A237)+1,1),INDEX($S$101:$S$124,HOUR($A237)+1,1)) -> 250.4744226 | O237: =DemandParameters!$E$30*INDEX($S$47:$S$53,$B237,1)*INDEX($S$61:$S$72,MONTH($A237),1)*IF($B237<=5,INDEX($S$76:$S$99,HOUR($A237)+1,1),INDEX($S$101:$S$124,HOUR($A237)+1,1)) -> 137.8946081 | S237: =DemandParameters!$F$30*INDEX($S$47:$S$53,$B237,1)*INDEX($S$61:$S$72,MONTH($A237),1)*IF($B237<=5,INDEX($S$76:$S$99,HOUR($A237)+1,1),INDEX($S$101:$S$124,HOUR($A237)+1,1)) -> 168.2576274
A238: 2014-01-03T23:00:00 | B238: 5 | C238: 3 | D238: 0 | E238: 0 | F238: 1 | G238: =DemandParameters!$C$30*INDEX($S$47:$S$53,$B238,1)*INDEX($S$61:$S$72,MONTH($A238),1)*IF($B238<=5,INDEX($S$76:$S$99,HOUR($A238)+1,1),INDEX($S$101:$S$124,HOUR($A238)+1,1)) -> 116.4317848 | K238: =DemandParameters!$D$30*INDEX($S$47:$S$53,$B238,1)*INDEX($S$61:$S$72,MONTH($A238),1)*IF($B238<=5,INDEX($S$76:$S$99,HOUR($A238)+1,1),INDEX($S$101:$S$124,HOUR($A238)+1,1)) -> 142.0689041 | O238: =DemandParameters!$E$30*INDEX($S$47:$S$53,$B238,1)*INDEX($S$61:$S$72,MONTH($A238),1)*IF($B238<=5,INDEX($S$76:$S$99,HOUR($A238)+1,1),INDEX($S$101:$S$124,HOUR($A238)+1,1)) -> 78.21371803 | S238: =DemandParameters!$F$30*INDEX($S$47:$S$53,$B238,1)*INDEX($S$61:$S$72,MONTH($A238),1)*IF($B238<=5,INDEX($S$76:$S$99,HOUR($A238)+1,1),INDEX($S$101:$S$124,HOUR($A238)+1,1)) -> 95.43559973
... 4262 more rows

Sheet Safety (hidden)

Sheet BaseCase (hidden)
A1: =AlternativeNumber_0&" - "&IF(OR(AlternativeShortName_0="",AlternativeShortName_0=Alternatives_DefaultAlternativeShortName),DefinedAlternative_Prompt_AlternativeShortName,AlternativeShortName_0) -> Base Case - 1 | E1: * Create these sheets but hide them
A3: Description: | B3: Base Case
A4: A summary of the net present value for this alternative is shown to the right in Column "J"
A5: Planning & construction period | B5: Begin planning & construction | D5: First year of planning & construction
A6: Operating period | B6: Opening year | C6: =IF(ISNUMBER(Volumes!D8),Volumes!D8,"") -> 2020 | D6: Travel time/delay and demand forecasts for the opening year must be provided. | J6: Net Present Value Summary
J8: Planning & Construction Costs | K8: =B127 -> 0
J9: Operating & Maintenance Costs | K9: =L146 -> 0
B10: End year | C10: =IF(ISNUMBER(Volumes!F8),Volumes!F8,"") -> 2040 | D10: Travel time/delay and demand forecasts for the end (horizon) year must be provided. | J10: Auto Passenger Time | K10: =IF(ISNUMBER(K162),IF(K162>0,K162,"--"),"--") -> 453747.0222 | L10: =IF(AND(ISNUMBER(K10),ISNUMBER(K11),ISNUMBER(K12),ISNUMBER(K13),ISNUMBER(K14),ISNUMBER(K15),ISNUMBER(K16),ISNUMBER(K17),ISNUMBER(K18),ISNUMBER(K19),ISNUMBER(K20)),"","Warning: A zero entry for a cost category indicates that the data needed to calculate that cost have either not been entered or have been entered incorrectly. If you believe this is an error please review your entries in this sheet.") -> Warning: A zero entry for a cost category indicates that the data needed to calculate that cost have either not been entered or have been entered incorrectly. If you believe this is an error please review your entries in this sheet.
A11: Worksheet setup | D11: Once you have entered begin planning & construction, opening, and end years, click this button to set up the worksheet. You may enter other inputs at any time. | J11: Auto Passenger Reliability | K11: --
A12: Planning & construction costs | B12: Units | F12: Notes | J12: Truck Time | K12: 26645.90906
J13: Truck Reliability | K13: --
A14: Planning, design | B14: Dollars | C14: 0 | J14: Transit Passenger Time | K14: --
A15: Survey | B15: Dollars | C15: 0 | J15: Transit Passenger Reliability | K15: --
A16: Right of way | B16: Dollars | C16: 0 | J16: Bicyclist Time | K16: --
A17: Equipment, signs | B17: Dollars | C17: 0 | J17: Pedestrian Time | K17: --
A18: Utilities | B18: Dollars | C18: 0 | J18: Safety | K18: --
A19: Construction | B19: Dollars | C19: 0 | J19: Greenhouse Gases | K19: --
A20: Landscaping | B20: Dollars | C20: 0 | J20: Criteria Pollutants | K20: --
A21: =DefinedAlternative_OtherPlanningConstructionCosts_Prompt -> (Other planning & construction costs) | B21: Dollars | J21: Total Net Present Value | K21: =SUM(K8:K20) -> 480392.9312
A22: (Other planning & construction costs) | B22: Dollars | J22: =IF(NOT(ISNUMBER(K21)),"If the total NPV seems wrong some entries may be missing, inconsistent, or wrong","") -> 
A23: (Other planning & construction costs) | B23: Dollars
A24: (Other planning & construction costs) | B24: Dollars
A25: (Other planning & construction costs) | B25: Dollars
A26: (Other planning & construction costs) | B26: Dollars
A27: (Other planning & construction costs) | B27: Dollars
A28: (Other planning & construction costs) | B28: Dollars
A29: (Other planning & construction costs) | B29: Dollars
A30: (Other planning & construction costs) | B30: Dollars
A32: Operating & maintenance costs | B32: Units | C32: Begin year | D32: Period (years) | E32: Cost | F32: Notes
A33: Power | B33: Dollars | I33: Calculations can be reviewed within table beginning in cell K133.
A34: Inspection | B34: Dollars
A35: Repaving | B35: Dollars
A36: Signing, striping | B36: Dollars
A37: =DefinedAlternative_OtherOMCosts_Prompt -> (Other O&M costs) | B37: Dollars
A38: (Other O&M costs) | B38: Dollars
A39: (Other O&M costs) | B39: Dollars
A40: (Other O&M costs) | B40: Dollars
A41: (Other O&M costs) | B41: Dollars
A42: (Other O&M costs) | B42: Dollars
A43: (Other O&M costs) | B43: Dollars
A44: (Other O&M costs) | B44: Dollars
A45: (Other O&M costs) | B45: Dollars
A46: (Other O&M costs) | B46: Dollars
A48: Demand & travel time / delay | B48: Average travel time / delay | D48: Opening year | E48: Additional Inputs | H48: End year | I48: Notes | K48: 1 value vs multiple choice (via dropdown)
B49: Time Period | C49: Units | D49: =$C$6 -> 2020 | E49: =IF($C$7="","",$C$7) ->  | F49: =IF($C$8="","",$C$8) ->  | G49: =IF($C$9="","",$C$9) ->  | H49: =$C$10 -> 2040
A50: Average vehicle travel time or delay | B50: AM peak | C50: seconds/veh | K50: =IF(OR(COUNT(D50:D52)=0,COUNT(H50:H52)=0,AND(E49<>"",COUNT(E50:E52)=0),AND(F49<>"",COUNT(F50:F52)=0),AND(G49<>"",COUNT(G50:G52)=0)),"NOTE: At least one travel time/delay value must be entered for each year specified",IF(COUNT(D50:H52)<>COUNT(D84:H86),"Number of travel time/delay entries is different from the number of peak/offpeak hourly volumes entered in the DemandParameters sheet. Please correct the discrepancy and re-run Setup for this sheet.","")) -> NOTE: At least one travel time/delay value must be entered for each year specified
B51: PM peak | C51: seconds/veh
B52: Weekend peak | C52: seconds/veh
A53: Standard deviation of vehicle travel time or delay | B53: AM peak | C53: seconds/veh | D53: 0 | H53: 0 | K53: =IF(AND(COUNT(D53:H55)>0,OR(AND(D50<>"",D53=""),AND(D51<>"",D54=""),AND(E49<>"",OR(AND(E50<>"",E53=""),AND(E51<>"",E54=""))),AND(F49<>"",OR(AND(F50<>"",F53=""),AND(F51<>"",F54=""))),AND(G49<>"",OR(AND(G50<>"",G53=""),AND(G51<>"",G54=""))),AND(H50<>"",H53=""),AND(H51<>"",H54=""))),"NOTE: If reliability )standard deviations) are entered, there must be a corresponding standard deviation entry for each peak period travel time/delay entry","") -> 
B54: PM peak | C54: seconds/veh | D54: 0 | H54: 0
B55: Weekend peak | C55: seconds/veh | D55: 0 | H55: 0
A56: Average bicycle travel time or delay | B56: All time periods | C56: seconds/bike
A57: Average pedestrian travel time or delay | B57: All time periods | C57: seconds/ped
A59: Safety | B59: Crash type | C59: Units
A60: Fatal-Injury, PDO Crashes | B60: =IF(IsChecked_CrashCategories_KABCO,INDEX(CostParameters!$C$11:$C$15,CELL("row",J60)-CELL("row",$J$59)),IF(IsChecked_CrashCategories_FatalityInjuryPDO,IF(ISERROR(INDEX(CostParameters!$C$16:$C$18,CELL("row",J60)-CELL("row",$J$59))),"",INDEX(CostParameters!$C$16:$C$18,CELL("row",J60)-CELL("row",$J$59))),IF(IsChecked_CrashCategories_TotalCrashes,IF(ISERROR(INDEX(CostParameters!$C$19,CELL("row",J60)-CELL("row",$J$59))),"",INDEX(CostParameters!$C$19,CELL("row",J60)-CELL("row",$J$59))),IF(IsChecked_CrashCategories_UserDefined,IF(INDEX(CostParameters!$C$20:$C$24,CELL("row",J60)-CELL("row",$J$59))="","",INDEX(CostParameters!$C$20:$C$24,CELL("row",J60)-CELL("row",$J$59))),"Error!")))) -> Fatal & Injury Crashes | C60: crashes/year
B61: =IF(IsChecked_CrashCategories_KABCO,INDEX(CostParameters!$C$11:$C$15,CELL("row",J61)-CELL("row",$J$59)),IF(IsChecked_CrashCategories_FatalityInjuryPDO,IF(ISERROR(INDEX(CostParameters!$C$16:$C$18,CELL("row",J61)-CELL("row",$J$59))),"",INDEX(CostParameters!$C$16:$C$18,CELL("row",J61)-CELL("row",$J$59))),IF(IsChecked_CrashCategories_TotalCrashes,IF(ISERROR(INDEX(CostParameters!$C$19,CELL("row",J61)-CELL("row",$J$59))),"",INDEX(CostParameters!$C$19,CELL("row",J61)-CELL("row",$J$59))),IF(IsChecked_CrashCategories_UserDefined,IF(INDEX(CostParameters!$C$20:$C$24,CELL("row",J61)-CELL("row",$J$59))="","",INDEX(CostParameters!$C$20:$C$24,CELL("row",J61)-CELL("row",$J$59))),"Error!")))) -> Property damage only crashes | C61: =IF(LEN(TRIM(B61))>0,"crashes/year","") -> crashes/year
B62: =IF(IsChecked_CrashCategories_KABCO,INDEX(CostParameters!$C$11:$C$15,CELL("row",J62)-CELL("row",$J$59)),IF(IsChecked_CrashCategories_FatalityInjuryPDO,IF(ISERROR(INDEX(CostParameters!$C$16:$C$18,CELL("row",J62)-CELL("row",$J$59))),"",INDEX(CostParameters!$C$16:$C$18,CELL("row",J62)-CELL("row",$J$59))),IF(IsChecked_CrashCategories_TotalCrashes,IF(ISERROR(INDEX(CostParameters!$C$19,CELL("row",J62)-CELL("row",$J$59))),"",INDEX(CostParameters!$C$19,CELL("row",J62)-CELL("row",$J$59))),IF(IsChecked_CrashCategories_UserDefined,IF(INDEX(CostParameters!$C$20:$C$24,CELL("row",J62)-CELL("row",$J$59))="","",INDEX(CostParameters!$C$20:$C$24,CELL("row",J62)-CELL("row",$J$59))),"Error!")))) -> 0 | C62: =IF(LEN(TRIM(B62))>0,"crashes/year","") -> crashes/year
B63: =IF(IsChecked_CrashCategories_KABCO,INDEX(CostParameters!$C$11:$C$15,CELL("row",J63)-CELL("row",$J$59)),IF(IsChecked_CrashCategories_FatalityInjuryPDO,IF(ISERROR(INDEX(CostParameters!$C$16:$C$18,CELL("row",J63)-CELL("row",$J$59))),"",INDEX(CostParameters!$C$16:$C$18,CELL("row",J63)-CELL("row",$J$59))),IF(IsChecked_CrashCategories_TotalCrashes,IF(ISERROR(INDEX(CostParameters!$C$19,CELL("row",J63)-CELL("row",$J$59))),"",INDEX(CostParameters!$C$19,CELL("row",J63)-CELL("row",$J$59))),IF(IsChecked_CrashCategories_UserDefined,IF(INDEX(CostParameters!$C$20:$C$24,CELL("row",J63)-CELL("row",$J$59))="","",INDEX(CostParameters!$C$20:$C$24,CELL("row",J63)-CELL("row",$J$59))),"Error!")))) -> 0 | C63: =IF(LEN(TRIM(B63))>0,"crashes/year","") -> crashes/year
B64: =IF(IsChecked_CrashCategories_KABCO,INDEX(CostParameters!$C$11:$C$15,CELL("row",J64)-CELL("row",$J$59)),IF(IsChecked_CrashCategories_FatalityInjuryPDO,IF(ISERROR(INDEX(CostParameters!$C$16:$C$18,CELL("row",J64)-CELL("row",$J$59))),"",INDEX(CostParameters!$C$16:$C$18,CELL("row",J64)-CELL("row",$J$59))),IF(IsChecked_CrashCategories_TotalCrashes,IF(ISERROR(INDEX(CostParameters!$C$19,CELL("row",J64)-CELL("row",$J$59))),"",INDEX(CostParameters!$C$19,CELL("row",J64)-CELL("row",$J$59))),IF(IsChecked_CrashCategories_UserDefined,IF(INDEX(CostParameters!$C$20:$C$24,CELL("row",J64)-CELL("row",$J$59))="","",INDEX(CostParameters!$C$20:$C$24,CELL("row",J64)-CELL("row",$J$59))),"Error!")))) -> 0 | C64: =IF(LEN(TRIM(B64))>0,"crashes/year","") -> crashes/year
A66: Emissions | B66: Type | C66: Units
A67: ="Greenhouse gases -- "&IF(IsChecked_GHG_Values_FederalMethod,"Federal method (Exec. Order 12866)","user defined costs") -> Greenhouse gases -- user defined costs | B67: CO2 equivalent | C67: =IF(LEN(TRIM(B67))>0,"metric tons/year","") -> metric tons/year
A68: ="Criteria pollutants -- " & IF(IsChecked_CriteriaPollutantCategories_ByType,"by type","user defined categories") -> Criteria pollutants -- by type | B68: =IF(IsChecked_CriteriaPollutantCategories_ByType,CostParameters!C27,IF(CostParameters!C31="","",CostParameters!C31)) -> 0 | C68: metric tons/year
B69: =IF(IsChecked_CriteriaPollutantCategories_ByType,CostParameters!C28,IF(CostParameters!C32="","",CostParameters!C32)) -> 0 | C69: metric tons/year
B70: =IF(IsChecked_CriteriaPollutantCategories_ByType,CostParameters!C29,IF(CostParameters!C33="","",CostParameters!C33)) -> 0 | C70: metric tons/year
B71: =IF(IsChecked_CriteriaPollutantCategories_ByType,CostParameters!C30,IF(CostParameters!C34="","",CostParameters!C34)) -> 0 | C71: metric tons/year
A74: Calculations
A77: This section contains the formulas that carry out the detailed cost calculations. Modifications to this section will affect the program code.
A80: Delay model
D81: logs of vehicle volumes and travel times/delays
A82: Travel time/delay | B82: Average travel time/delay | D82: Opening Year | E82: Interim Year(s) | H82: End year
B83: Time period | C83: Units | D83: =$C$6 -> 2020 | E83: =IF($C$7="","",$C$7) ->  | F83: =IF($C$8="","",$C$8) ->  | G83: =IF($C$9="","",$C$9) ->  | H83: =$C$10 -> 2040
A84: Log total entering vehicles | B84: AM peak hour | C84: log(vehicles/hr.) | D84: 7.097406652 | H84: 7.296413269
B85: PM peak hour | C85: log(vehicles/hr.) | D85: 7.296535327 | H85: 7.495541944
B86: Average off-peak hourly | C86: log(vehicles/hr.) | D86: 4.584967479 | H86: 4.787491743
A87: Log average vehicle travel time / delay | B87: =B84 -> AM peak hour | C87: log(seconds/veh) | D87: =IF(D50="","",IF(ISNUMBER(D50),IF(D50>0,LN(D50),""),"")) ->  | E87: =IF(E50="","",IF(ISNUMBER(E50),IF(E50>0,LN(E50),""),"")) -> 
B88: =B85 -> PM peak hour | C88: log(seconds/veh) | D88: =IF(D51="","",IF(ISNUMBER(D51),IF(D51>0,LN(D51),""),"")) -> 
B89: Average off-peak hourly | C89: log(seconds/veh) | D89: =IF(D52="","",IF(ISNUMBER(D52),IF(D52>0,LN(D52),""),"")) -> 
A91: Travel time / delay mode; | G91: predicted delay
A92: X'X | C92: (X'X)^-1 | E92: Delay model coeff | G92: =$C$6 -> 2020 | H92: =IF($C$7="","",$C$7) ->  | I92: =IF($C$8="","",$C$8) ->  | J92: =IF($C$9="","",$C$9) ->  | K92: =$C$10 -> 2040
A93: =COUNT(D84:H86) -> 6 | B93: =A94 -> 38.55835641 | C93: =MINVERSE(A93:B94) -> 4.663326397 | D93: -0.6997175423 | E93: const | F93: =MMULT(C93:D94,B95:B96) -> 0 | G93: =IF(D84="","",EXP($F$93+$F$94*D84)) -> 1 | K93: 1
A94: =SUM(D84:H86) -> 38.55835641 | B94: =SUMSQ(D84:H86) -> 256.9754085 | C94: -0.6997175423 | D94: 0.1088818519 | E94: exp | F94: 0 | G94: 1 | K94: 1
A95: X'y | B95: =SUM(D87:H89) -> 0 | C95: std err estimate | D95: =IF(COUNT(D84:H86)<2,"NA",SQRT(SUMXMY2(G93:K95,D50:H52)/(COUNT(D84:H86)-2))) ->  | E95: seconds | G95: 1 | K95: 1
B96: =SUMPRODUCT(D84:H86,D87:H89) -> 0 | E96: =MMULT(C93:D94,B95:B96) -> 0 | F96: =IF(E97>=0, E96, AVERAGE(G96:K98)) -> 0 | G96: =IF(D50>0,LN(D50) - 1.66*D84,"") ->  | K96: =IF(H50>0,LN(H50) - 1.66*H84,"") -> 
E97: 0 | F97: =IF(E97>=0, E97, 1.66) -> 0 | G97: =IF(D51>0,LN(D51) - 1.66*D85,"") ->  | K97: =IF(H51>0,LN(H51) - 1.66*H85,"") -> 
G98: =IF(ISNUMBER(D52),IF(D52>0,LN(D52) - 1.66*D86,""),"") ->  | K98: =IF(ISNUMBER(H52),IF(H52>0,LN(H52) - 1.66*H86,""),"") -> 
B99: Base year | C99: Planning and construction years
C100: Year 1 | D100: Year 2 | E100: Year 3 | F100: Year 4 | G100: Year 5
B101: =IF(BaseYear="",DefaultYearPrompt,BaseYear) -> 2020 | C101: =IF(ISNUMBER($C$6),$C$6,"") -> 2020 | D101: =IF(ISNUMBER(C101),C101+1,"") -> 2021 | E101: =IF(ISNUMBER(D101),D101+1,"") -> 2022 | F101: =IF(ISNUMBER(E101),E101+1,"") -> 2023 | G101: =IF(ISNUMBER(F101),F101+1,"") -> 2024
A104: Discount factor | B104: =1/((1+Discount_Rate)^(B$101-BaseYear)) -> 1 | C104: =IF(ISNUMBER(C101),1/((1+Discount_Rate)^(C$101-BaseYear)),0) -> 1 | D104: =IF(ISNUMBER(D101),1/((1+Discount_Rate)^(D$101-BaseYear)),0) -> 0.9615384615 | E104: =IF(ISNUMBER(E101),1/((1+Discount_Rate)^(E$101-BaseYear)),0) -> 0.924556213 | F104: =IF(ISNUMBER(F101),1/((1+Discount_Rate)^(F$101-BaseYear)),0) -> 0.8889963587 | G104: =IF(ISNUMBER(G101),1/((1+Discount_Rate)^(G$101-BaseYear)),0) -> 0.854804191
A106: Planning & Construction Costs
A109: =A14 -> Planning, design | C109: =C14 -> 0 | D109: 0 | E109: 0 | F109: 0 | G109: 0
A110: Survey | C110: 0 | D110: 0 | E110: 0 | F110: 0 | G110: 0
A111: Right of way | C111: 0 | D111: 0 | E111: 0 | F111: 0 | G111: 0
A112: Equipment, signs | C112: 0 | D112: 0 | E112: 0 | F112: 0 | G112: 0
A113: Utilities | C113: 0 | D113: 0 | E113: 0 | F113: 0 | G113: 0
A114: Construction | C114: 0 | D114: 0 | E114: 0 | F114: 0 | G114: 0
A115: Landscaping | C115: 0 | D115: 0 | E115: 0 | F115: 0 | G115: 0
A116: (Other planning & construction costs) | C116: 0 | D116: 0 | E116: 0 | F116: 0 | G116: 0
A117: (Other planning & construction costs) | C117: 0 | D117: 0 | E117: 0 | F117: 0 | G117: 0
A118: (Other planning & construction costs) | C118: 0 | D118: 0 | E118: 0 | F118: 0 | G118: 0
A119: (Other planning & construction costs) | C119: =C24 -> 0 | D119: 0 | E119: 0 | F119: 0 | G119: 0
A120: (Other planning & construction costs) | C120: 0 | D120: 0 | E120: 0 | F120: 0 | G120: 0
A121: (Other planning & construction costs) | C121: 0 | D121: 0 | E121: 0 | F121: 0 | G121: 0
A122: (Other planning & construction costs) | C122: 0 | D122: 0 | E122: 0 | F122: 0 | G122: 0
A123: (Other planning & construction costs) | C123: 0 | D123: 0 | E123: 0 | F123: 0 | G123: 0
A124: (Other planning & construction costs) | C124: 0 | D124: 0 | E124: 0 | F124: 0 | G124: 0
A125: (Other planning & construction costs) | C125: 0 | D125: 0 | E125: 0 | F125: 0 | G125: 0
A126: Sum - planning & construction | C126: =SUM(C109:C125) -> 0 | D126: =SUM(D109:D125) -> 0 | E126: =SUM(E109:E125) -> 0 | F126: =SUM(F109:F125) -> 0 | G126: =SUM(G109:G125) -> 0
A127: NPV - planning & construction | B127: =SUMPRODUCT($C$104:$G$104,C126:G126) -> 0
K128: Year ---> | L128: =$C$6 -> 2020 | M128: =IF(AND(L128+1<=$C$10,L128+1>$C$6),L128+1,0) -> 2021 | N128: =IF(AND(M128+1<=$C$10,M128+1>$C$6),M128+1,0) -> 2022 | O128: 2023 | P128: 2024 | Q128: 2025 | R128: 2026 | S128: 2027 | T128: 2028 | U128: 2029 | V128: 2030 | W128: 2031 | X128: 2032 | Y128: 2033 | Z128: 2034 | AA128: 2035 | AB128: 2036 | AC128: 2037 | AD128: 2038 | AE128: 2039 | AF128: 2040 | AG128: 0 | AH128: 0 | AI128: 0 | AJ128: 0 | AK128: 0 | AL128: 0 | AM128: 0 | AN128: 0 | AO128: 0 | AP128: 0 | AQ128: 0 | AR128: 0 | AS128: 0 | AT128: 0 | AU128: 0 | AV128: 0 | AW128: 0 | AX128: 0 | AY128: 0 | AZ128: 0 | BA128: 0 | BB128: 0 | BC128: 0 | BD128: 0 | BE128: 0 | BF128: 0 | BG128: 0 | BH128: 0 | BI128: 0 | BJ128: 0 | BK128: 0 | BL128: 0 | BM128: 0 | BN128: 0 | BO128: 0 | BP128: 0 | BQ128: 0 | BR128: 0 | BS128: 0 | BT128: 0 | BU128: 0 | BV128: 0 | BW128: 0 | BX128: 0 | BY128: 0 | BZ128: =IF(AND(BY128+1<=$C$10,BY128+1>$C$6),BY128+1,0) -> 0 | CA128: 0 | CB128: 0 | CC128: 0 | CD128: 0 | CE128: 0 | CF128: 0 | CG128: 0 | CH128: 0 | CI128: 0 | CJ128: 0 | CK128: 0 | CL128: 0 | CM128: 0 | CN128: 0 | CO128: 0 | CP128: 0 | CQ128: 0 | CR128: 0 | CS128: 0 | CT128: 0 | CU128: 0 | CV128: 0 | CW128: 0 | CX128: 0 | CY128: 0 | CZ128: 0 | DA128: 0 | DB128: 0 | DC128: 0 | DD128: 0 | DE128: 0 | DF128: 0 | DG128: 0
K129: Discount factor ---> | L129: =IF(L$128>0,(1+Discount_Rate)^(-(L$128-BaseYear)),0) -> 1 | M129: 0.9615384615 | N129: 0.924556213 | O129: 0.8889963587 | P129: 0.854804191 | Q129: 0.8219271068 | R129: 0.7903145257 | S129: 0.7599178132 | T129: 0.730690205 | U129: 0.7025867356 | V129: 0.6755641688 | W129: 0.6495809316 | X129: 0.6245970496 | Y129: 0.6005740861 | Z129: 0.5774750828 | AA129: 0.5552645027 | AB129: 0.5339081757 | AC129: 0.5133732459 | AD129: 0.493628121 | AE129: 0.474642424 | AF129: 0.4563869462 | AG129: 0 | AH129: 0 | AI129: 0 | AJ129: 0 | AK129: 0 | AL129: 0 | AM129: 0 | AN129: 0 | AO129: 0 | AP129: 0 | AQ129: 0 | AR129: =IF(AR$128>0,(1+Discount_Rate)^(-(AR$128-BaseYear)),0) -> 0 | AS129: 0 | AT129: 0 | AU129: 0 | AV129: 0 | AW129: 0 | AX129: 0 | AY129: 0 | AZ129: 0 | BA129: 0 | BB129: 0 | BC129: 0 | BD129: 0 | BE129: 0 | BF129: 0 | BG129: 0 | BH129: 0 | BI129: 0 | BJ129: 0 | BK129: 0 | BL129: 0 | BM129: 0 | BN129: 0 | BO129: 0 | BP129: 0 | BQ129: 0 | BR129: 0 | BS129: 0 | BT129: 0 | BU129: 0 | BV129: 0 | BW129: 0 | BX129: =IF(BX$128>0,(1+Discount_Rate)^(-(BX$128-BaseYear)),0) -> 0 | BY129: 0 | BZ129: 0 | CA129: 0 | CB129: 0 | CC129: 0 | CD129: 0 | CE129: 0 | CF129: 0 | CG129: 0 | CH129: 0 | CI129: 0 | CJ129: 0 | CK129: 0 | CL129: 0 | CM129: 0 | CN129: 0 | CO129: 0 | CP129: 0 | CQ129: 0 | CR129: 0 | CS129: 0 | CT129: 0 | CU129: 0 | CV129: 0 | CW129: 0 | CX129: 0 | CY129: 0 | CZ129: 0 | DA129: 0 | DB129: 0 | DC129: 0 | DD129: 0 | DE129: 0 | DF129: 0 | DG129: 0
A130: Post-Opening Costs | B130: Units | C130: Begin year | D130: Period (years) | E130: Cost | K130: Post-opening O&M
A131: Power | B131: Dollars | C131: =IF(C33="","",C33) ->  | K131: =A131 -> Power | L131: =IF(OR($C131="",$E131="",$C131<$C$6,L$128<$C131),0,IF(MOD(L$128-$C131,IF(OR($D131="",$D131=0),1000,$D131))=0,$E131,0)) -> 0 | M131: 0 | N131: 0 | O131: 0 | P131: 0 | Q131: 0 | R131: 0 | S131: 0 | T131: 0 | U131: 0 | V131: =IF(OR($C131="",$E131="",$C131<$C$6,V$128<$C131),0,IF(MOD(V$128-$C131,IF(OR($D131="",$D131=0),1000,$D131))=0,$E131,0)) -> 0 | W131: 0 | X131: 0 | Y131: 0 | Z131: 0 | AA131: 0 | AB131: 0 | AC131: 0 | AD131: 0 | AE131: 0 | AF131: =IF(OR($C131="",$E131="",$C131<$C$6,AF$128<$C131),0,IF(MOD(AF$128-$C131,IF(OR($D131="",$D131=0),1000,$D131))=0,$E131,0)) -> 0 | AG131: 0 | AH131: 0 | AI131: 0 | AJ131: 0 | AK131: 0 | AL131: 0 | AM131: 0 | AN131: 0 | AO131: 0 | AP131: =IF(OR($C131="",$E131="",$C131<$C$6,AP$128<$C131),0,IF(MOD(AP$128-$C131,IF(OR($D131="",$D131=0),1000,$D131))=0,$E131,0)) -> 0 | AQ131: 0 | AR131: 0 | AS131: 0 | AT131: 0 | AU131: 0 | AV131: 0 | AW131: 0 | AX131: 0 | AY131: 0 | AZ131: =IF(OR($C131="",$E131="",$C131<$C$6,AZ$128<$C131),0,IF(MOD(AZ$128-$C131,IF(OR($D131="",$D131=0),1000,$D131))=0,$E131,0)) -> 0 | BA131: 0 | BB131: 0 | BC131: 0 | BD131: 0 | BE131: 0 | BF131: 0 | BG131: 0 | BH131: 0 | BI131: 0 | BJ131: =IF(OR($C131="",$E131="",$C131<$C$6,BJ$128<$C131),0,IF(MOD(BJ$128-$C131,IF(OR($D131="",$D131=0),1000,$D131))=0,$E131,0)) -> 0 | BK131: 0 | BL131: 0 | BM131: 0 | BN131: 0 | BO131: 0 | BP131: 0 | BQ131: 0 | BR131: 0 | BS131: 0 | BT131: =IF(OR($C131="",$E131="",$C131<$C$6,BT$128<$C131),0,IF(MOD(BT$128-$C131,IF(OR($D131="",$D131=0),1000,$D131))=0,$E131,0)) -> 0 | BU131: 0 | BV131: 0 | BW131: 0 | BX131: 0 | BY131: 0 | BZ131: 0 | CA131: 0 | CB131: 0 | CC131: 0 | CD131: =IF(OR($C131="",$E131="",$C131<$C$6,CD$128<$C131),0,IF(MOD(CD$128-$C131,IF(OR($D131="",$D131=0),1000,$D131))=0,$E131,0)) -> 0 | CE131: 0 | CF131: 0 | CG131: 0 | CH131: 0 | CI131: 0 | CJ131: 0 | CK131: 0 | CL131: 0 | CM131: 0 | CN131: =IF(OR($C131="",$E131="",$C131<$C$6,CN$128<$C131),0,IF(MOD(CN$128-$C131,IF(OR($D131="",$D131=0),1000,$D131))=0,$E131,0)) -> 0 | CO131: 0 | CP131: 0 | CQ131: 0 | CR131: 0 | CS131: 0 | CT131: 0 | CU131: 0 | CV131: 0 | CW131: 0 | CX131: =IF(OR($C131="",$E131="",$C131<$C$6,CX$128<$C131),0,IF(MOD(CX$128-$C131,IF(OR($D131="",$D131=0),1000,$D131))=0,$E131,0)) -> 0 | CY131: 0 | CZ131: 0 | DA131: 0 | DB131: 0 | DC131: 0 | DD131: 0 | DE131: 0 | DF131: 0 | DG131: 0
A132: Inspection | B132: Dollars | K132: Inspection | L132: 0 | M132: 0 | N132: 0 | O132: 0 | P132: 0 | Q132: 0 | R132: 0 | S132: 0 | T132: 0 | U132: 0 | V132: 0 | W132: 0 | X132: 0 | Y132: 0 | Z132: 0 | AA132: 0 | AB132: 0 | AC132: 0 | AD132: 0 | AE132: 0 | AF132: 0 | AG132: 0 | AH132: 0 | AI132: 0 | AJ132: 0 | AK132: 0 | AL132: 0 | AM132: 0 | AN132: 0 | AO132: 0 | AP132: 0 | AQ132: 0 | AR132: 0 | AS132: 0 | AT132: 0 | AU132: 0 | AV132: 0 | AW132: 0 | AX132: 0 | AY132: 0 | AZ132: 0 | BA132: 0 | BB132: 0 | BC132: 0 | BD132: 0 | BE132: 0 | BF132: 0 | BG132: 0 | BH132: 0 | BI132: 0 | BJ132: 0 | BK132: 0 | BL132: 0 | BM132: 0 | BN132: 0 | BO132: 0 | BP132: 0 | BQ132: 0 | BR132: 0 | BS132: 0 | BT132: 0 | BU132: 0 | BV132: 0 | BW132: 0 | BX132: 0 | BY132: 0 | BZ132: 0 | CA132: 0 | CB132: 0 | CC132: 0 | CD132: 0 | CE132: 0 | CF132: 0 | CG132: 0 | CH132: 0 | CI132: 0 | CJ132: 0 | CK132: 0 | CL132: 0 | CM132: 0 | CN132: 0 | CO132: 0 | CP132: 0 | CQ132: 0 | CR132: 0 | CS132: 0 | CT132: 0 | CU132: 0 | CV132: 0 | CW132: 0 | CX132: 0 | CY132: 0 | CZ132: 0 | DA132: 0 | DB132: 0 | DC132: 0 | DD132: 0 | DE132: 0 | DF132: 0 | DG132: 0
A133: Repaving | B133: Dollars | K133: Repaving | L133: 0 | M133: 0 | N133: 0 | O133: 0 | P133: 0 | Q133: 0 | R133: 0 | S133: 0 | T133: 0 | U133: 0 | V133: 0 | W133: 0 | X133: 0 | Y133: 0 | Z133: 0 | AA133: 0 | AB133: 0 | AC133: 0 | AD133: 0 | AE133: 0 | AF133: 0 | AG133: 0 | AH133: 0 | AI133: 0 | AJ133: 0 | AK133: 0 | AL133: 0 | AM133: 0 | AN133: 0 | AO133: 0 | AP133: 0 | AQ133: 0 | AR133: 0 | AS133: 0 | AT133: 0 | AU133: 0 | AV133: 0 | AW133: 0 | AX133: 0 | AY133: 0 | AZ133: 0 | BA133: 0 | BB133: 0 | BC133: 0 | BD133: 0 | BE133: 0 | BF133: 0 | BG133: 0 | BH133: 0 | BI133: 0 | BJ133: 0 | BK133: 0 | BL133: 0 | BM133: 0 | BN133: 0 | BO133: 0 | BP133: 0 | BQ133: 0 | BR133: 0 | BS133: 0 | BT133: 0 | BU133: 0 | BV133: 0 | BW133: 0 | BX133: 0 | BY133: 0 | BZ133: 0 | CA133: 0 | CB133: 0 | CC133: 0 | CD133: 0 | CE133: 0 | CF133: 0 | CG133: 0 | CH133: 0 | CI133: 0 | CJ133: 0 | CK133: 0 | CL133: 0 | CM133: 0 | CN133: 0 | CO133: 0 | CP133: 0 | CQ133: 0 | CR133: 0 | CS133: 0 | CT133: 0 | CU133: 0 | CV133: 0 | CW133: 0 | CX133: 0 | CY133: 0 | CZ133: 0 | DA133: 0 | DB133: 0 | DC133: 0 | DD133: 0 | DE133: 0 | DF133: 0 | DG133: 0
A134: Signing, striping | B134: Dollars | K134: Signing, striping | L134: 0 | M134: 0 | N134: 0 | O134: 0 | P134: 0 | Q134: 0 | R134: 0 | S134: 0 | T134: 0 | U134: 0 | V134: 0 | W134: 0 | X134: 0 | Y134: 0 | Z134: 0 | AA134: 0 | AB134: 0 | AC134: 0 | AD134: 0 | AE134: 0 | AF134: 0 | AG134: 0 | AH134: 0 | AI134: 0 | AJ134: 0 | AK134: 0 | AL134: 0 | AM134: 0 | AN134: 0 | AO134: 0 | AP134: 0 | AQ134: 0 | AR134: 0 | AS134: 0 | AT134: 0 | AU134: 0 | AV134: 0 | AW134: 0 | AX134: 0 | AY134: 0 | AZ134: 0 | BA134: 0 | BB134: 0 | BC134: 0 | BD134: 0 | BE134: 0 | BF134: 0 | BG134: 0 | BH134: 0 | BI134: 0 | BJ134: 0 | BK134: 0 | BL134: 0 | BM134: 0 | BN134: 0 | BO134: 0 | BP134: 0 | BQ134: 0 | BR134: 0 | BS134: 0 | BT134: 0 | BU134: 0 | BV134: 0 | BW134: 0 | BX134: 0 | BY134: 0 | BZ134: 0 | CA134: 0 | CB134: 0 | CC134: 0 | CD134: 0 | CE134: 0 | CF134: 0 | CG134: 0 | CH134: 0 | CI134: 0 | CJ134: 0 | CK134: 0 | CL134: 0 | CM134: 0 | CN134: 0 | CO134: 0 | CP134: 0 | CQ134: 0 | CR134: 0 | CS134: 0 | CT134: 0 | CU134: 0 | CV134: 0 | CW134: 0 | CX134: 0 | CY134: 0 | CZ134: 0 | DA134: 0 | DB134: 0 | DC134: 0 | DD134: 0 | DE134: 0 | DF134: 0 | DG134: 0
A135: [Other O&M costs] | B135: Dollars | K135: [Other O&M costs] | L135: 0 | M135: 0 | N135: 0 | O135: 0 | P135: 0 | Q135: 0 | R135: 0 | S135: 0 | T135: 0 | U135: 0 | V135: 0 | W135: 0 | X135: 0 | Y135: 0 | Z135: 0 | AA135: 0 | AB135: 0 | AC135: 0 | AD135: 0 | AE135: 0 | AF135: 0 | AG135: 0 | AH135: 0 | AI135: 0 | AJ135: 0 | AK135: 0 | AL135: 0 | AM135: 0 | AN135: 0 | AO135: 0 | AP135: 0 | AQ135: 0 | AR135: 0 | AS135: 0 | AT135: 0 | AU135: 0 | AV135: 0 | AW135: 0 | AX135: 0 | AY135: 0 | AZ135: 0 | BA135: 0 | BB135: 0 | BC135: 0 | BD135: 0 | BE135: 0 | BF135: 0 | BG135: 0 | BH135: 0 | BI135: 0 | BJ135: 0 | BK135: 0 | BL135: 0 | BM135: 0 | BN135: 0 | BO135: 0 | BP135: 0 | BQ135: 0 | BR135: 0 | BS135: 0 | BT135: 0 | BU135: 0 | BV135: 0 | BW135: 0 | BX135: 0 | BY135: 0 | BZ135: 0 | CA135: 0 | CB135: 0 | CC135: 0 | CD135: 0 | CE135: 0 | CF135: 0 | CG135: 0 | CH135: 0 | CI135: 0 | CJ135: 0 | CK135: 0 | CL135: 0 | CM135: 0 | CN135: 0 | CO135: 0 | CP135: 0 | CQ135: 0 | CR135: 0 | CS135: 0 | CT135: 0 | CU135: 0 | CV135: 0 | CW135: 0 | CX135: 0 | CY135: 0 | CZ135: 0 | DA135: 0 | DB135: 0 | DC135: 0 | DD135: 0 | DE135: 0 | DF135: 0 | DG135: 0
A136: [Other O&M costs] | B136: Dollars | K136: [Other O&M costs] | L136: 0 | M136: 0 | N136: 0 | O136: 0 | P136: 0 | Q136: 0 | R136: 0 | S136: 0 | T136: 0 | U136: 0 | V136: 0 | W136: 0 | X136: 0 | Y136: 0 | Z136: 0 | AA136: 0 | AB136: 0 | AC136: 0 | AD136: 0 | AE136: 0 | AF136: 0 | AG136: 0 | AH136: 0 | AI136: 0 | AJ136: 0 | AK136: 0 | AL136: 0 | AM136: 0 | AN136: 0 | AO136: 0 | AP136: 0 | AQ136: 0 | AR136: 0 | AS136: 0 | AT136: 0 | AU136: 0 | AV136: 0 | AW136: 0 | AX136: 0 | AY136: 0 | AZ136: 0 | BA136: 0 | BB136: 0 | BC136: 0 | BD136: 0 | BE136: 0 | BF136: 0 | BG136: 0 | BH136: 0 | BI136: 0 | BJ136: 0 | BK136: 0 | BL136: 0 | BM136: 0 | BN136: 0 | BO136: 0 | BP136: 0 | BQ136: 0 | BR136: 0 | BS136: 0 | BT136: 0 | BU136: 0 | BV136: 0 | BW136: 0 | BX136: 0 | BY136: 0 | BZ136: 0 | CA136: 0 | CB136: 0 | CC136: 0 | CD136: 0 | CE136: 0 | CF136: 0 | CG136: 0 | CH136: 0 | CI136: 0 | CJ136: 0 | CK136: 0 | CL136: 0 | CM136: 0 | CN136: 0 | CO136: 0 | CP136: 0 | CQ136: 0 | CR136: 0 | CS136: 0 | CT136: 0 | CU136: 0 | CV136: 0 | CW136: 0 | CX136: 0 | CY136: 0 | CZ136: 0 | DA136: 0 | DB136: 0 | DC136: 0 | DD136: 0 | DE136: 0 | DF136: 0 | DG136: 0
A137: [Other O&M costs] | B137: Dollars | K137: [Other O&M costs] | L137: 0 | M137: 0 | N137: 0 | O137: 0 | P137: 0 | Q137: 0 | R137: 0 | S137: 0 | T137: 0 | U137: 0 | V137: 0 | W137: 0 | X137: 0 | Y137: 0 | Z137: 0 | AA137: 0 | AB137: 0 | AC137: 0 | AD137: 0 | AE137: 0 | AF137: 0 | AG137: 0 | AH137: 0 | AI137: 0 | AJ137: 0 | AK137: 0 | AL137: 0 | AM137: 0 | AN137: 0 | AO137: 0 | AP137: 0 | AQ137: 0 | AR137: 0 | AS137: 0 | AT137: 0 | AU137: 0 | AV137: 0 | AW137: 0 | AX137: 0 | AY137: 0 | AZ137: 0 | BA137: 0 | BB137: 0 | BC137: 0 | BD137: 0 | BE137: 0 | BF137: 0 | BG137: 0 | BH137: 0 | BI137: 0 | BJ137: 0 | BK137: 0 | BL137: 0 | BM137: 0 | BN137: 0 | BO137: 0 | BP137: 0 | BQ137: 0 | BR137: 0 | BS137: 0 | BT137: 0 | BU137: 0 | BV137: 0 | BW137: 0 | BX137: 0 | BY137: 0 | BZ137: 0 | CA137: 0 | CB137: 0 | CC137: 0 | CD137: 0 | CE137: 0 | CF137: 0 | CG137: 0 | CH137: 0 | CI137: 0 | CJ137: 0 | CK137: 0 | CL137: 0 | CM137: 0 | CN137: 0 | CO137: 0 | CP137: 0 | CQ137: 0 | CR137: 0 | CS137: 0 | CT137: 0 | CU137: 0 | CV137: 0 | CW137: 0 | CX137: 0 | CY137: 0 | CZ137: 0 | DA137: 0 | DB137: 0 | DC137: 0 | DD137: 0 | DE137: 0 | DF137: 0 | DG137: 0
A138: [Other O&M costs] | B138: Dollars | K138: [Other O&M costs] | L138: 0 | M138: 0 | N138: 0 | O138: 0 | P138: 0 | Q138: 0 | R138: 0 | S138: 0 | T138: 0 | U138: 0 | V138: 0 | W138: 0 | X138: 0 | Y138: 0 | Z138: 0 | AA138: 0 | AB138: 0 | AC138: 0 | AD138: 0 | AE138: 0 | AF138: 0 | AG138: 0 | AH138: 0 | AI138: 0 | AJ138: 0 | AK138: 0 | AL138: 0 | AM138: 0 | AN138: 0 | AO138: 0 | AP138: 0 | AQ138: 0 | AR138: 0 | AS138: 0 | AT138: 0 | AU138: 0 | AV138: 0 | AW138: 0 | AX138: 0 | AY138: 0 | AZ138: 0 | BA138: 0 | BB138: 0 | BC138: 0 | BD138: 0 | BE138: 0 | BF138: 0 | BG138: 0 | BH138: 0 | BI138: 0 | BJ138: 0 | BK138: 0 | BL138: 0 | BM138: 0 | BN138: 0 | BO138: 0 | BP138: 0 | BQ138: 0 | BR138: 0 | BS138: 0 | BT138: 0 | BU138: 0 | BV138: 0 | BW138: 0 | BX138: 0 | BY138: 0 | BZ138: 0 | CA138: 0 | CB138: 0 | CC138: 0 | CD138: 0 | CE138: 0 | CF138: 0 | CG138: 0 | CH138: 0 | CI138: 0 | CJ138: 0 | CK138: 0 | CL138: 0 | CM138: 0 | CN138: 0 | CO138: 0 | CP138: 0 | CQ138: 0 | CR138: 0 | CS138: 0 | CT138: 0 | CU138: 0 | CV138: 0 | CW138: 0 | CX138: 0 | CY138: 0 | CZ138: 0 | DA138: 0 | DB138: 0 | DC138: 0 | DD138: 0 | DE138: 0 | DF138: 0 | DG138: 0
A139: [Other O&M costs] | B139: Dollars | K139: [Other O&M costs] | L139: 0 | M139: 0 | N139: 0 | O139: 0 | P139: 0 | Q139: 0 | R139: 0 | S139: 0 | T139: 0 | U139: 0 | V139: 0 | W139: 0 | X139: 0 | Y139: 0 | Z139: 0 | AA139: 0 | AB139: 0 | AC139: 0 | AD139: 0 | AE139: 0 | AF139: 0 | AG139: 0 | AH139: 0 | AI139: 0 | AJ139: 0 | AK139: 0 | AL139: 0 | AM139: 0 | AN139: 0 | AO139: 0 | AP139: 0 | AQ139: 0 | AR139: 0 | AS139: 0 | AT139: 0 | AU139: 0 | AV139: 0 | AW139: 0 | AX139: 0 | AY139: 0 | AZ139: 0 | BA139: 0 | BB139: 0 | BC139: 0 | BD139: 0 | BE139: 0 | BF139: 0 | BG139: 0 | BH139: 0 | BI139: 0 | BJ139: 0 | BK139: 0 | BL139: 0 | BM139: 0 | BN139: 0 | BO139: 0 | BP139: 0 | BQ139: 0 | BR139: 0 | BS139: 0 | BT139: 0 | BU139: 0 | BV139: 0 | BW139: 0 | BX139: 0 | BY139: 0 | BZ139: 0 | CA139: 0 | CB139: 0 | CC139: 0 | CD139: 0 | CE139: 0 | CF139: 0 | CG139: 0 | CH139: 0 | CI139: 0 | CJ139: 0 | CK139: 0 | CL139: 0 | CM139: 0 | CN139: 0 | CO139: 0 | CP139: 0 | CQ139: 0 | CR139: 0 | CS139: 0 | CT139: 0 | CU139: 0 | CV139: 0 | CW139: 0 | CX139: 0 | CY139: 0 | CZ139: 0 | DA139: 0 | DB139: 0 | DC139: 0 | DD139: 0 | DE139: 0 | DF139: 0 | DG139: 0
A140: [Other O&M costs] | B140: Dollars | K140: [Other O&M costs] | L140: 0 | M140: 0 | N140: 0 | O140: 0 | P140: 0 | Q140: 0 | R140: 0 | S140: 0 | T140: 0 | U140: 0 | V140: 0 | W140: 0 | X140: 0 | Y140: 0 | Z140: 0 | AA140: 0 | AB140: 0 | AC140: 0 | AD140: 0 | AE140: 0 | AF140: 0 | AG140: 0 | AH140: 0 | AI140: 0 | AJ140: 0 | AK140: 0 | AL140: 0 | AM140: 0 | AN140: 0 | AO140: 0 | AP140: 0 | AQ140: 0 | AR140: 0 | AS140: 0 | AT140: 0 | AU140: 0 | AV140: 0 | AW140: 0 | AX140: 0 | AY140: 0 | AZ140: 0 | BA140: 0 | BB140: 0 | BC140: 0 | BD140: 0 | BE140: 0 | BF140: 0 | BG140: 0 | BH140: 0 | BI140: 0 | BJ140: 0 | BK140: 0 | BL140: 0 | BM140: 0 | BN140: 0 | BO140: 0 | BP140: 0 | BQ140: 0 | BR140: 0 | BS140: 0 | BT140: 0 | BU140: 0 | BV140: 0 | BW140: 0 | BX140: 0 | BY140: 0 | BZ140: 0 | CA140: 0 | CB140: 0 | CC140: 0 | CD140: 0 | CE140: 0 | CF140: 0 | CG140: 0 | CH140: 0 | CI140: 0 | CJ140: 0 | CK140: 0 | CL140: 0 | CM140: 0 | CN140: 0 | CO140: 0 | CP140: 0 | CQ140: 0 | CR140: 0 | CS140: 0 | CT140: 0 | CU140: 0 | CV140: 0 | CW140: 0 | CX140: 0 | CY140: 0 | CZ140: 0 | DA140: 0 | DB140: 0 | DC140: 0 | DD140: 0 | DE140: 0 | DF140: 0 | DG140: 0
A141: [Other O&M costs] | B141: Dollars | K141: [Other O&M costs] | L141: 0 | M141: 0 | N141: 0 | O141: 0 | P141: 0 | Q141: 0 | R141: 0 | S141: 0 | T141: 0 | U141: 0 | V141: 0 | W141: 0 | X141: 0 | Y141: 0 | Z141: 0 | AA141: 0 | AB141: 0 | AC141: 0 | AD141: 0 | AE141: 0 | AF141: 0 | AG141: 0 | AH141: 0 | AI141: 0 | AJ141: 0 | AK141: 0 | AL141: 0 | AM141: 0 | AN141: 0 | AO141: 0 | AP141: 0 | AQ141: 0 | AR141: 0 | AS141: 0 | AT141: 0 | AU141: 0 | AV141: 0 | AW141: 0 | AX141: 0 | AY141: 0 | AZ141: 0 | BA141: 0 | BB141: 0 | BC141: 0 | BD141: 0 | BE141: 0 | BF141: 0 | BG141: 0 | BH141: 0 | BI141: 0 | BJ141: 0 | BK141: 0 | BL141: 0 | BM141: 0 | BN141: 0 | BO141: 0 | BP141: 0 | BQ141: 0 | BR141: 0 | BS141: 0 | BT141: 0 | BU141: 0 | BV141: 0 | BW141: 0 | BX141: 0 | BY141: 0 | BZ141: 0 | CA141: 0 | CB141: 0 | CC141: 0 | CD141: 0 | CE141: 0 | CF141: 0 | CG141: 0 | CH141: 0 | CI141: 0 | CJ141: 0 | CK141: 0 | CL141: 0 | CM141: 0 | CN141: 0 | CO141: 0 | CP141: 0 | CQ141: 0 | CR141: 0 | CS141: 0 | CT141: 0 | CU141: 0 | CV141: 0 | CW141: 0 | CX141: 0 | CY141: 0 | CZ141: 0 | DA141: 0 | DB141: 0 | DC141: 0 | DD141: 0 | DE141: 0 | DF141: 0 | DG141: 0
A142: [Other O&M costs] | B142: Dollars | K142: [Other O&M costs] | L142: 0 | M142: 0 | N142: 0 | O142: 0 | P142: 0 | Q142: 0 | R142: 0 | S142: 0 | T142: 0 | U142: 0 | V142: 0 | W142: 0 | X142: 0 | Y142: 0 | Z142: 0 | AA142: 0 | AB142: 0 | AC142: 0 | AD142: 0 | AE142: 0 | AF142: 0 | AG142: 0 | AH142: 0 | AI142: 0 | AJ142: 0 | AK142: 0 | AL142: 0 | AM142: 0 | AN142: 0 | AO142: 0 | AP142: 0 | AQ142: 0 | AR142: 0 | AS142: 0 | AT142: 0 | AU142: 0 | AV142: 0 | AW142: 0 | AX142: 0 | AY142: 0 | AZ142: 0 | BA142: 0 | BB142: 0 | BC142: 0 | BD142: 0 | BE142: 0 | BF142: 0 | BG142: 0 | BH142: 0 | BI142: 0 | BJ142: 0 | BK142: 0 | BL142: 0 | BM142: 0 | BN142: 0 | BO142: 0 | BP142: 0 | BQ142: 0 | BR142: 0 | BS142: 0 | BT142: 0 | BU142: 0 | BV142: 0 | BW142: 0 | BX142: 0 | BY142: 0 | BZ142: 0 | CA142: 0 | CB142: 0 | CC142: 0 | CD142: 0 | CE142: 0 | CF142: 0 | CG142: 0 | CH142: 0 | CI142: 0 | CJ142: 0 | CK142: 0 | CL142: 0 | CM142: 0 | CN142: 0 | CO142: 0 | CP142: 0 | CQ142: 0 | CR142: 0 | CS142: 0 | CT142: 0 | CU142: 0 | CV142: 0 | CW142: 0 | CX142: 0 | CY142: 0 | CZ142: 0 | DA142: 0 | DB142: 0 | DC142: 0 | DD142: 0 | DE142: 0 | DF142: 0 | DG142: 0
A143: [Other O&M costs] | B143: Dollars | K143: [Other O&M costs] | L143: 0 | M143: 0 | N143: 0 | O143: 0 | P143: 0 | Q143: 0 | R143: 0 | S143: 0 | T143: 0 | U143: 0 | V143: 0 | W143: 0 | X143: 0 | Y143: 0 | Z143: 0 | AA143: 0 | AB143: 0 | AC143: 0 | AD143: 0 | AE143: 0 | AF143: 0 | AG143: 0 | AH143: 0 | AI143: 0 | AJ143: 0 | AK143: 0 | AL143: 0 | AM143: 0 | AN143: 0 | AO143: 0 | AP143: 0 | AQ143: 0 | AR143: 0 | AS143: 0 | AT143: 0 | AU143: 0 | AV143: 0 | AW143: 0 | AX143: 0 | AY143: 0 | AZ143: 0 | BA143: 0 | BB143: 0 | BC143: 0 | BD143: 0 | BE143: 0 | BF143: 0 | BG143: 0 | BH143: 0 | BI143: 0 | BJ143: 0 | BK143: 0 | BL143: 0 | BM143: 0 | BN143: 0 | BO143: 0 | BP143: 0 | BQ143: 0 | BR143: 0 | BS143: 0 | BT143: 0 | BU143: 0 | BV143: 0 | BW143: 0 | BX143: 0 | BY143: 0 | BZ143: 0 | CA143: 0 | CB143: 0 | CC143: 0 | CD143: 0 | CE143: 0 | CF143: 0 | CG143: 0 | CH143: 0 | CI143: 0 | CJ143: 0 | CK143: 0 | CL143: 0 | CM143: 0 | CN143: 0 | CO143: 0 | CP143: 0 | CQ143: 0 | CR143: 0 | CS143: 0 | CT143: 0 | CU143: 0 | CV143: 0 | CW143: 0 | CX143: 0 | CY143: 0 | CZ143: 0 | DA143: 0 | DB143: 0 | DC143: 0 | DD143: 0 | DE143: 0 | DF143: 0 | DG143: 0
A144: [Other O&M costs] | B144: Dollars | K144: [Other O&M costs] | L144: 0 | M144: 0 | N144: 0 | O144: 0 | P144: 0 | Q144: 0 | R144: 0 | S144: 0 | T144: 0 | U144: 0 | V144: 0 | W144: 0 | X144: 0 | Y144: 0 | Z144: 0 | AA144: 0 | AB144: 0 | AC144: 0 | AD144: 0 | AE144: 0 | AF144: 0 | AG144: 0 | AH144: 0 | AI144: 0 | AJ144: 0 | AK144: 0 | AL144: 0 | AM144: 0 | AN144: 0 | AO144: 0 | AP144: 0 | AQ144: 0 | AR144: 0 | AS144: 0 | AT144: 0 | AU144: 0 | AV144: 0 | AW144: 0 | AX144: 0 | AY144: 0 | AZ144: 0 | BA144: 0 | BB144: 0 | BC144: 0 | BD144: 0 | BE144: 0 | BF144: 0 | BG144: 0 | BH144: 0 | BI144: 0 | BJ144: 0 | BK144: 0 | BL144: 0 | BM144: 0 | BN144: 0 | BO144: 0 | BP144: 0 | BQ144: 0 | BR144: 0 | BS144: 0 | BT144: 0 | BU144: 0 | BV144: 0 | BW144: 0 | BX144: 0 | BY144: 0 | BZ144: 0 | CA144: 0 | CB144: 0 | CC144: 0 | CD144: 0 | CE144: 0 | CF144: 0 | CG144: 0 | CH144: 0 | CI144: 0 | CJ144: 0 | CK144: 0 | CL144: 0 | CM144: 0 | CN144: 0 | CO144: 0 | CP144: 0 | CQ144: 0 | CR144: 0 | CS144: 0 | CT144: 0 | CU144: 0 | CV144: 0 | CW144: 0 | CX144: 0 | CY144: 0 | CZ144: 0 | DA144: 0 | DB144: 0 | DC144: 0 | DD144: 0 | DE144: 0 | DF144: 0 | DG144: 0
K145: Sum O&M (year) | L145: =SUM(L131:L144) -> 0 | M145: =SUM(M131:M144) -> 0 | N145: 0 | O145: 0 | P145: 0 | Q145: 0 | R145: 0 | S145: 0 | T145: 0 | U145: 0 | V145: 0 | W145: 0 | X145: 0 | Y145: 0 | Z145: 0 | AA145: 0 | AB145: 0 | AC145: 0 | AD145: 0 | AE145: 0 | AF145: 0 | AG145: 0 | AH145: 0 | AI145: 0 | AJ145: 0 | AK145: 0 | AL145: 0 | AM145: 0 | AN145: 0 | AO145: 0 | AP145: 0 | AQ145: 0 | AR145: 0 | AS145: 0 | AT145: 0 | AU145: 0 | AV145: 0 | AW145: 0 | AX145: 0 | AY145: 0 | AZ145: 0 | BA145: 0 | BB145: 0 | BC145: 0 | BD145: 0 | BE145: 0 | BF145: 0 | BG145: 0 | BH145: 0 | BI145: 0 | BJ145: 0 | BK145: 0 | BL145: 0 | BM145: 0 | BN145: 0 | BO145: 0 | BP145: 0 | BQ145: 0 | BR145: 0 | BS145: 0 | BT145: 0 | BU145: 0 | BV145: 0 | BW145: 0 | BX145: 0 | BY145: =SUM(BY131:BY144) -> 0 | BZ145: 0 | CA145: 0 | CB145: 0 | CC145: 0 | CD145: 0 | CE145: 0 | CF145: 0 | CG145: 0 | CH145: 0 | CI145: 0 | CJ145: 0 | CK145: 0 | CL145: 0 | CM145: 0 | CN145: 0 | CO145: 0 | CP145: 0 | CQ145: 0 | CR145: 0 | CS145: 0 | CT145: 0 | CU145: 0 | CV145: 0 | CW145: 0 | CX145: 0 | CY145: 0 | CZ145: 0 | DA145: 0 | DB145: 0 | DC145: 0 | DD145: 0 | DE145: 0 | DF145: 0 | DG145: 0
K146: NPV O&M | L146: =SUMPRODUCT($L$129:$DG$129,L145:DG145) -> 0
A149: Demand & travel time/delay | B149: Average travel time/delay | D149: Opening Year | E149: Interim Year(s) | H149: End year
B150: Time period | C150: Units | D150: =$C$6 -> 2020 | E150: =IF($C$7="","",$C$7) ->  | F150: =IF($C$8="","",$C$8) ->  | G150: =IF($C$9="","",$C$9) ->  | H150: =$C$10 -> 2040
A151: Standard deviation of vehicle travel time / delay | B151: AM peak | C151: seconds/veh | D151: =IF(ISNUMBER(D53),D53/SecondsPerHour,IF(ISNUMBER(D54),D54/SecondsPerHour,IF(ISNUMBER(D55),D55/SecondsPerHour,0))) -> 0 | E151: =IF(ISNUMBER(E53),E53/SecondsPerHour,IF(ISNUMBER(E54),E54/SecondsPerHour,IF(ISNUMBER(E55),E55/SecondsPerHour,0))) -> 0 | F151: =IF(ISNUMBER(F53),F53/SecondsPerHour,IF(ISNUMBER(F54),F54/SecondsPerHour,IF(ISNUMBER(F55),F55/SecondsPerHour,0))) -> 0 | G151: =IF(ISNUMBER(G53),G53/SecondsPerHour,IF(ISNUMBER(G54),G54/SecondsPerHour,IF(ISNUMBER(G55),G55/SecondsPerHour,0))) -> 0 | H151: =IF(ISNUMBER(H53),H53/SecondsPerHour,IF(ISNUMBER(H54),H54/SecondsPerHour,IF(ISNUMBER(H55),H55/SecondsPerHour,0))) -> 0
B152: PM peak | C152: seconds/veh | D152: =IF(ISNUMBER(D54),D54/SecondsPerHour,IF(ISNUMBER(D53/SecondsPerHour),D53,IF(ISNUMBER(D55),D55/SecondsPerHour,0))) -> 0 | E152: =IF(ISNUMBER(E54),E54/SecondsPerHour,IF(ISNUMBER(E53/SecondsPerHour),E53,IF(ISNUMBER(E55),E55/SecondsPerHour,0))) -> 0 | F152: =IF(ISNUMBER(F54),F54/SecondsPerHour,IF(ISNUMBER(F53/SecondsPerHour),F53,IF(ISNUMBER(F55),F55/SecondsPerHour,0))) -> 0 | G152: =IF(ISNUMBER(G54),G54/SecondsPerHour,IF(ISNUMBER(G53/SecondsPerHour),G53,IF(ISNUMBER(G55),G55/SecondsPerHour,0))) -> 0 | H152: =IF(ISNUMBER(H54),H54/SecondsPerHour,IF(ISNUMBER(H53/SecondsPerHour),H53,IF(ISNUMBER(H55),H55/SecondsPerHour,0))) -> 0
B153: Off-peak | C153: seconds/veh | D153: =IF(ISNUMBER(D55),D55/SecondsPerHour,0) -> 0 | E153: =IF(ISNUMBER(E55),E55/SecondsPerHour,0) -> 0 | F153: =IF(ISNUMBER(F55),F55/SecondsPerHour,0) -> 0 | G153: =IF(ISNUMBER(G55),G55/SecondsPerHour,0) -> 0 | H153: =IF(ISNUMBER(H55),H55/SecondsPerHour,0) -> 0
A154: Average bike travel time / delay | B154: All | C154: seconds/bike | D154: =D56 -> 0 | E154: 0 | F154: 0 | G154: 0 | H154: 0
A155: Average ped travel time / delay | B155: All | C155: seconds/ped | D155: 0 | E155: 0 | F155: 0 | G155: 0 | H155: 0
A157: User & nonuser costs | J157: DefinedAlternative_InterpolationFormulaTemplate | K157: =IF(NOT(AND(ISNUMBER(DummyCellReference_1),ISNUMBER(DummyCellReference_2))),0,IF(AND(DummyCellReference_1>0,DummyCellReference_2>0),DummyCellReference_1*(DummyCellReference_2/DummyCellReference_1)^((DummyCellReference_4-DummyCellReference_3)/(DummyCellReference_5-DummyCellReference_3)),0)) -> 0
D159: Summary costs for user specified years
A160: Cost category | D160: Opening Year | E160: Interim Year(s) | H160: End year | J160: NPV calculations | K160: Total NPV | L160: Spot values
D161: =$C$6 -> 2020 | E161: =IF($C$7="","",$C$7) ->  | F161: =IF($C$8="","",$C$8) ->  | G161: =IF($C$9="","",$C$9) ->  | H161: =$C$10 -> 2040
A162: Auto passenger time cost | D162: =IF(ISNUMBER(D$150),SUMPRODUCT(DemandProfiles!G167:G8926*(1-DemandParameters!$C$35)*DemandParameters!$C$34,EXP(AverageTravelTimeModel_Constant+AverageTravelTimeModel_LogVolumeParameter*LN(DemandProfiles!G167:G8926))/SecondsPerHour,--(DemandProfiles!C167:C8926=Code_Offpeak),--(DemandProfiles!G167:G8926<>0))*TimeValue_Person_Offpeak+SUMPRODUCT(DemandProfiles!G167:G8926*(1-DemandParameters!$C$35),EXP(AverageTravelTimeModel_Constant+AverageTravelTimeModel_LogVolumeParameter*LN(DemandProfiles!G167:G8926))/SecondsPerHour,--(DemandProfiles!C167:C8926<>Code_Offpeak),--(DemandProfiles!G167:G8926<>0))*TimeValue_Person_Peak,"") -> 28504.53793 | E162: =IF(ISNUMBER(E$150),SUM(L$203:L$8962),0) -> 0 | F162: =IF(ISNUMBER(F$150),SUM(T$203:T$8962),0) -> 0 | G162: =IF(ISNUMBER(G$150),SUM(AB$203:AB$8962),"") ->  | H162: =IF(ISNUMBER(D$150),SUMPRODUCT(DemandProfiles!K167:K8926*(1-DemandParameters!$D$35)*DemandParameters!$D$34,EXP(AverageTravelTimeModel_Constant+AverageTravelTimeModel_LogVolumeParameter*LN(DemandProfiles!K167:K8926))/SecondsPerHour,--(DemandProfiles!C167:C8926=Code_Offpeak),--(DemandProfiles!K167:K8926<>0))*TimeValue_Person_Offpeak+SUMPRODUCT(DemandProfiles!K167:K8926*(1-DemandParameters!$D$35)*DemandParameters!$D$34,EXP(AverageTravelTimeModel_Constant+AverageTravelTimeModel_LogVolumeParameter*LN(DemandProfiles!K167:K8926))/SecondsPerHour,--(DemandProfiles!C167:C8926<>Code_Offpeak),--(DemandProfiles!K167:K8926<>0))*TimeValue_Person_Peak,"") -> 34780.95328 | J162: =A162 -> Auto passenger time cost | K162: =SUMPRODUCT(L162:DG162,$L$129:$DG$129) -> 453747.0222 | L162: =D162 -> 28504.53793 | M162: =IF(NOT(AND(ISNUMBER(L162),ISNUMBER(AF162))),0,IF(AND(L162>0,AF162>0),L162*(AF162/L162)^((M$128-L$128)/(AF$128-L$128)),0)) -> 28789.58331 | N162: =IF(NOT(AND(ISNUMBER(L162),ISNUMBER(AF162))),0,IF(AND(L162>0,AF162>0),L162*(AF162/L162)^((N$128-L$128)/(AF$128-L$128)),0)) -> 29077.47914 | O162: =IF(NOT(AND(ISNUMBER(L162),ISNUMBER(AF162))),0,IF(AND(L162>0,AF162>0),L162*(AF162/L162)^((O$128-L$128)/(AF$128-L$128)),0)) -> 29368.25393 | P162: =IF(NOT(AND(ISNUMBER(L162),ISNUMBER(AF162))),0,IF(AND(L162>0,AF162>0),L162*(AF162/L162)^((P$128-L$128)/(AF$128-L$128)),0)) -> 29661.93647 | Q162: =IF(NOT(AND(ISNUMBER(L162),ISNUMBER(AF162))),0,IF(AND(L162>0,AF162>0),L162*(AF162/L162)^((Q$128-L$128)/(AF$128-L$128)),0)) -> 29958.55584 | R162: =IF(NOT(AND(ISNUMBER(L162),ISNUMBER(AF162))),0,IF(AND(L162>0,AF162>0),L162*(AF162/L162)^((R$128-L$128)/(AF$128-L$128)),0)) -> 30258.1414 | S162: =IF(NOT(AND(ISNUMBER(L162),ISNUMBER(AF162))),0,IF(AND(L162>0,AF162>0),L162*(AF162/L162)^((S$128-L$128)/(AF$128-L$128)),0)) -> 30560.72281 | T162: =IF(NOT(AND(ISNUMBER(L162),ISNUMBER(AF162))),0,IF(AND(L162>0,AF162>0),L162*(AF162/L162)^((T$128-L$128)/(AF$128-L$128)),0)) -> 30866.33004 | U162: =IF(NOT(AND(ISNUMBER(L162),ISNUMBER(AF162))),0,IF(AND(L162>0,AF162>0),L162*(AF162/L162)^((U$128-L$128)/(AF$128-L$128)),0)) -> 31174.99334 | V162: =IF(NOT(AND(ISNUMBER(L162),ISNUMBER(AF162))),0,IF(AND(L162>0,AF162>0),L162*(AF162/L162)^((V$128-L$128)/(AF$128-L$128)),0)) -> 31486.74327 | W162: =IF(NOT(AND(ISNUMBER(L162),ISNUMBER(AF162))),0,IF(AND(L162>0,AF162>0),L162*(AF162/L162)^((W$128-L$128)/(AF$128-L$128)),0)) -> 31801.6107 | X162: =IF(NOT(AND(ISNUMBER(L162),ISNUMBER(AF162))),0,IF(AND(L162>0,AF162>0),L162*(AF162/L162)^((X$128-L$128)/(AF$128-L$128)),0)) -> 32119.62681 | Y162: =IF(NOT(AND(ISNUMBER(L162),ISNUMBER(AF162))),0,IF(AND(L162>0,AF162>0),L162*(AF162/L162)^((Y$128-L$128)/(AF$128-L$128)),0)) -> 32440.82308 | Z162: =IF(NOT(AND(ISNUMBER(L162),ISNUMBER(AF162))),0,IF(AND(L162>0,AF162>0),L162*(AF162/L162)^((Z$128-L$128)/(AF$128-L$128)),0)) -> 32765.23131 | AA162: =IF(NOT(AND(ISNUMBER(L162),ISNUMBER(AF162))),0,IF(AND(L162>0,AF162>0),L162*(AF162/L162)^((AA$128-L$128)/(AF$128-L$128)),0)) -> 33092.88362 | AB162: =IF(NOT(AND(ISNUMBER(L162),ISNUMBER(AF162))),0,IF(AND(L162>0,AF162>0),L162*(AF162/L162)^((AB$128-L$128)/(AF$128-L$128)),0)) -> 33423.81246 | AC162: =IF(NOT(AND(ISNUMBER(L162),ISNUMBER(AF162))),0,IF(AND(L162>0,AF162>0),L162*(AF162/L162)^((AC$128-L$128)/(AF$128-L$128)),0)) -> 33758.05058 | AD162: =IF(NOT(AND(ISNUMBER(L162),ISNUMBER(AF162))),0,IF(AND(L162>0,AF162>0),L162*(AF162/L162)^((AD$128-L$128)/(AF$128-L$128)),0)) -> 34095.63109 | AE162: =IF(NOT(AND(ISNUMBER(L162),ISNUMBER(AF162))),0,IF(AND(L162>0,AF162>0),L162*(AF162/L162)^((AE$128-L$128)/(AF$128-L$128)),0)) -> 34436.5874 | AF162: =H162 -> 34780.95328
A163: Auto passenger reliability cost | D163: =IF(ISNUMBER(D$150),SUM(E$203:E$8962),"") -> 0 | E163: =IF(ISNUMBER(E$150),SUM(M$203:M$8962),"") ->  | F163: =IF(ISNUMBER(F$150),SUM(U$203:U$8962),0) -> 0 | G163: =IF(ISNUMBER(G$150),SUM(AC$203:AC$8962),"") ->  | H163: =IF(ISNUMBER(H$150),SUM(AK$203:AK$8962),"") -> 0 | J163: =A163 -> Auto passenger reliability cost | K163: =SUMPRODUCT(L163:DG163,$L$129:$DG$129) -> 0 | L163: =D163 -> 0 | M163: =IF(NOT(AND(ISNUMBER(L163),ISNUMBER(AF163))),0,IF(AND(L163>0,AF163>0),L163*(AF163/L163)^((M$128-L$128)/(AF$128-L$128)),0)) -> 0 | N163: =IF(NOT(AND(ISNUMBER(L163),ISNUMBER(AF163))),0,IF(AND(L163>0,AF163>0),L163*(AF163/L163)^((N$128-L$128)/(AF$128-L$128)),0)) -> 0 | O163: =IF(NOT(AND(ISNUMBER(L163),ISNUMBER(AF163))),0,IF(AND(L163>0,AF163>0),L163*(AF163/L163)^((O$128-L$128)/(AF$128-L$128)),0)) -> 0 | P163: =IF(NOT(AND(ISNUMBER(L163),ISNUMBER(AF163))),0,IF(AND(L163>0,AF163>0),L163*(AF163/L163)^((P$128-L$128)/(AF$128-L$128)),0)) -> 0 | Q163: =IF(NOT(AND(ISNUMBER(L163),ISNUMBER(AF163))),0,IF(AND(L163>0,AF163>0),L163*(AF163/L163)^((Q$128-L$128)/(AF$128-L$128)),0)) -> 0 | R163: =IF(NOT(AND(ISNUMBER(L163),ISNUMBER(AF163))),0,IF(AND(L163>0,AF163>0),L163*(AF163/L163)^((R$128-L$128)/(AF$128-L$128)),0)) -> 0 | S163: =IF(NOT(AND(ISNUMBER(L163),ISNUMBER(AF163))),0,IF(AND(L163>0,AF163>0),L163*(AF163/L163)^((S$128-L$128)/(AF$128-L$128)),0)) -> 0 | T163: =IF(NOT(AND(ISNUMBER(L163),ISNUMBER(AF163))),0,IF(AND(L163>0,AF163>0),L163*(AF163/L163)^((T$128-L$128)/(AF$128-L$128)),0)) -> 0 | U163: =IF(NOT(AND(ISNUMBER(L163),ISNUMBER(AF163))),0,IF(AND(L163>0,AF163>0),L163*(AF163/L163)^((U$128-L$128)/(AF$128-L$128)),0)) -> 0 | V163: =IF(NOT(AND(ISNUMBER(L163),ISNUMBER(AF163))),0,IF(AND(L163>0,AF163>0),L163*(AF163/L163)^((V$128-L$128)/(AF$128-L$128)),0)) -> 0 | W163: =IF(NOT(AND(ISNUMBER(L163),ISNUMBER(AF163))),0,IF(AND(L163>0,AF163>0),L163*(AF163/L163)^((W$128-L$128)/(AF$128-L$128)),0)) -> 0 | X163: =IF(NOT(AND(ISNUMBER(L163),ISNUMBER(AF163))),0,IF(AND(L163>0,AF163>0),L163*(AF163/L163)^((X$128-L$128)/(AF$128-L$128)),0)) -> 0 | Y163: =IF(NOT(AND(ISNUMBER(L163),ISNUMBER(AF163))),0,IF(AND(L163>0,AF163>0),L163*(AF163/L163)^((Y$128-L$128)/(AF$128-L$128)),0)) -> 0 | Z163: =IF(NOT(AND(ISNUMBER(L163),ISNUMBER(AF163))),0,IF(AND(L163>0,AF163>0),L163*(AF163/L163)^((Z$128-L$128)/(AF$128-L$128)),0)) -> 0 | AA163: =IF(NOT(AND(ISNUMBER(L163),ISNUMBER(AF163))),0,IF(AND(L163>0,AF163>0),L163*(AF163/L163)^((AA$128-L$128)/(AF$128-L$128)),0)) -> 0 | AB163: =IF(NOT(AND(ISNUMBER(L163),ISNUMBER(AF163))),0,IF(AND(L163>0,AF163>0),L163*(AF163/L163)^((AB$128-L$128)/(AF$128-L$128)),0)) -> 0 | AC163: =IF(NOT(AND(ISNUMBER(L163),ISNUMBER(AF163))),0,IF(AND(L163>0,AF163>0),L163*(AF163/L163)^((AC$128-L$128)/(AF$128-L$128)),0)) -> 0 | AD163: =IF(NOT(AND(ISNUMBER(L163),ISNUMBER(AF163))),0,IF(AND(L163>0,AF163>0),L163*(AF163/L163)^((AD$128-L$128)/(AF$128-L$128)),0)) -> 0 | AE163: =IF(NOT(AND(ISNUMBER(L163),ISNUMBER(AF163))),0,IF(AND(L163>0,AF163>0),L163*(AF163/L163)^((AE$128-L$128)/(AF$128-L$128)),0)) -> 0 | AF163: =H163 -> 0
A164: Truck time cost | D164: =IF(ISNUMBER(D$150),SUMPRODUCT(DemandProfiles!G167:G8926*DemandParameters!$C$35,EXP(AverageTravelTimeModel_Constant+AverageTravelTimeModel_LogVolumeParameter*LN(DemandProfiles!G167:G8926))/SecondsPerHour,--(DemandProfiles!G167:G8926<>0))*TimeValue_Truck,"") -> 1673.904816 | E164: =IF(ISNUMBER(E$150),SUM(N$203:N$8962),"") ->  | F164: =IF(ISNUMBER(F$150),SUM(V$203:V$8962),0) -> 0 | G164: =IF(ISNUMBER(G$150),SUM(AD$203:AD$8962),"") ->  | H164: =IF(ISNUMBER(D$150),SUMPRODUCT(DemandProfiles!K167:K8926*DemandParameters!$D$35,EXP(AverageTravelTimeModel_Constant+AverageTravelTimeModel_LogVolumeParameter*LN(DemandProfiles!K167:K8926))/SecondsPerHour,--(DemandProfiles!K167:K8926<>0))*TimeValue_Truck,"") -> 2042.481984 | J164: Truck time cost | K164: 26645.90906 | L164: 1673.904816 | M164: 1690.643864 | N164: 1707.550302 | O164: 1724.625805 | P164: 1741.872063 | Q164: 1759.290784 | R164: 1776.883692 | S164: 1794.652529 | T164: 1812.599054 | U164: 1830.725045 | V164: 1849.032295 | W164: 1867.522618 | X164: 1886.197844 | Y164: 1905.059823 | Z164: 1924.110421 | AA164: 1943.351525 | AB164: 1962.78504 | AC164: 1982.412891 | AD164: 2002.23702 | AE164: 2022.25939 | AF164: 2042.481984
A165: Truck reliability cost | D165: =IF(ISNUMBER(D$150),SUM(G$203:G$8962),"") -> 0 | E165: =IF(ISNUMBER(E$150),SUM(O$203:O$8962),"") ->  | F165: =IF(ISNUMBER(F$150),SUM(W$203:W$8962),0) -> 0 | G165: =IF(ISNUMBER(G$150),SUM(AE$203:AE$8962),"") ->  | H165: =IF(ISNUMBER(H$150),SUM(AM$203:AM$8962),"") -> 0 | J165: Truck reliability cost | K165: 0 | L165: 0 | M165: 0 | N165: 0 | O165: 0 | P165: 0 | Q165: 0 | R165: 0 | S165: 0 | T165: 0 | U165: 0 | V165: 0 | W165: 0 | X165: 0 | Y165: 0 | Z165: 0 | AA165: 0 | AB165: 0 | AC165: 0 | AD165: 0 | AE165: 0 | AF165: 0
A166: Transit passenger time cost | D166: =IF(ISNUMBER(D$150),SUM(H$203:H$8962),"") -> 0 | E166: =IF(ISNUMBER(E$150),SUM(P$203:P$8962),"") ->  | F166: =IF(ISNUMBER(F$150),SUM(X$203:X$8962),0) -> 0 | G166: =IF(ISNUMBER(G$150),SUM(AF$203:AF$8962),"") ->  | H166: =IF(ISNUMBER(H$150),SUM(AN$203:AN$8962),"") -> 0 | J166: Transit passenger time cost | K166: 0 | L166: 0 | M166: 0 | N166: 0 | O166: 0 | P166: 0 | Q166: 0 | R166: 0 | S166: 0 | T166: 0 | U166: 0 | V166: 0 | W166: 0 | X166: 0 | Y166: 0 | Z166: 0 | AA166: 0 | AB166: 0 | AC166: 0 | AD166: 0 | AE166: 0 | AF166: 0
A167: Transit passenger reliability cost | D167: =IF(ISNUMBER(D$150),SUM(I$203:I$8962),"") -> 0 | E167: =IF(ISNUMBER(E$150),SUM(Q$203:Q$8962),"") ->  | F167: =IF(ISNUMBER(F$150),SUM(Y$203:Y$8962),0) -> 0 | G167: =IF(ISNUMBER(G$150),SUM(AG$203:AG$203),"") ->  | H167: =IF(ISNUMBER(H$150),SUM(AO$203:AO$8962),"") -> 0 | J167: Transit passenger reliability cost | K167: 0 | L167: 0 | M167: 0 | N167: 0 | O167: 0 | P167: 0 | Q167: 0 | R167: 0 | S167: 0 | T167: 0 | U167: 0 | V167: 0 | W167: 0 | X167: 0 | Y167: 0 | Z167: 0 | AA167: 0 | AB167: 0 | AC167: 0 | AD167: 0 | AE167: 0 | AF167: 0
A168: Bicycle time cost | D168: =DemandParameters!C37*(D56/SecondsPerHour)*DaysPerYear*TimeValue_Person_Offpeak -> 0 | F168: =DemandParameters!C37*F56*DaysPerYear*TimeValue_Person_Offpeak -> 0 | H168: =DemandParameters!D37*(H56/SecondsPerHour)*DaysPerYear*TimeValue_Person_Offpeak -> 0 | J168: Bicycle time cost | K168: 0 | L168: 0 | M168: 0 | N168: 0 | O168: 0 | P168: 0 | Q168: 0 | R168: 0 | S168: 0 | T168: 0 | U168: 0 | V168: 0 | W168: 0 | X168: 0 | Y168: 0 | Z168: 0 | AA168: 0 | AB168: 0 | AC168: 0 | AD168: 0 | AE168: 0 | AF168: 0
A169: Pedestrian time cost | D169: =DemandParameters!C38*(D57/SecondsPerHour)*DaysPerYear*TimeValue_Person_Offpeak -> 0 | F169: =DemandParameters!C38*F57*DaysPerYear*TimeValue_Person_Offpeak -> 0 | H169: =DemandParameters!D38*(H57/SecondsPerHour)*DaysPerYear*TimeValue_Person_Offpeak -> 0 | J169: =A169 -> Pedestrian time cost | K169: 0 | L169: 0 | M169: 0 | N169: 0 | O169: 0 | P169: 0 | Q169: 0 | R169: 0 | S169: 0 | T169: 0 | U169: 0 | V169: 0 | W169: 0 | X169: 0 | Y169: 0 | Z169: 0 | AA169: 0 | AB169: 0 | AC169: 0 | AD169: 0 | AE169: 0 | AF169: 0
A170: Crash cost | D170: =IF(OR(NOT(ISNUMBER($C$177)),NOT(ISNUMBER(D$60))),0,SUMPRODUCT($C$177:$C$181,D$60:D$64)) -> 0 | E170: =IF(OR(NOT(ISNUMBER($C$177)),NOT(ISNUMBER(E$60))),0,SUMPRODUCT($C$177:$C$181,E$60:E$64)) -> 0 | F170: =IF(OR(NOT(ISNUMBER($C$177)),NOT(ISNUMBER(F$60))),0,SUMPRODUCT($C$177:$C$181,F$60:F$64)) -> 0 | G170: =IF(OR(NOT(ISNUMBER($C$177)),NOT(ISNUMBER(G$60))),0,SUMPRODUCT($C$177:$C$181,G$60:G$64)) -> 0 | H170: =IF(OR(NOT(ISNUMBER($C$177)),NOT(ISNUMBER(H$60))),0,SUMPRODUCT($C$177:$C$181,H$60:H$64)) -> 0 | J170: Crash cost | K170: =SUMPRODUCT(L170:DG170,$L$129:$DG$129) -> 0 | L170: 0 | M170: 0 | N170: 0 | O170: 0 | P170: 0 | Q170: 0 | R170: 0 | S170: 0 | T170: 0 | U170: 0 | V170: 0 | W170: 0 | X170: 0 | Y170: 0 | Z170: 0 | AA170: 0 | AB170: 0 | AC170: 0 | AD170: 0 | AE170: 0 | AF170: 0
A171: GHG cost | D171: =IF(D67="","",D67*IF(IsChecked_GHG_Values_FederalMethod,VLOOKUP(D49,GHG.Costs!$A$20:$G$156,6,7))) ->  | E171: =IF(E67="","",E67*IF(IsChecked_GHG_Values_FederalMethod,VLOOKUP(E49,GHG.Costs!$A$20:$G$156,6,7))) ->  | F171: =IF(F67="","",F67*IF(IsChecked_GHG_Values_FederalMethod,VLOOKUP(F49,GHG.Costs!$A$20:$G$156,6,7))) ->  | G171: =IF(G67="","",G67*IF(IsChecked_GHG_Values_FederalMethod,VLOOKUP(G49,GHG.Costs!$A$20:$G$156,6,7))) ->  | H171: =IF(H67="","",H67*IF(IsChecked_GHG_Values_FederalMethod,VLOOKUP(H49,GHG.Costs!$A$20:$G$156,6,7))) ->  | J171: GHG cost | K171: =SUM(L171:DG171) -> 0 | M171: 0 | N171: 0 | O171: 0 | P171: 0 | Q171: 0 | R171: 0 | S171: 0 | T171: 0 | U171: 0 | V171: 0 | W171: 0 | X171: 0 | Y171: 0 | Z171: 0 | AA171: 0 | AB171: 0 | AC171: 0 | AD171: 0 | AE171: 0
A172: Criteria pollutant cost | D172: =IF(IsChecked_CriteriaPollutantCategories_ByType,SUMPRODUCT(D68:D71,CostParameters!$G$27:$G$30),SUMPRODUCT(D68:D71,CostParameters!$G$31:$G$34)) -> 0 | E172: =IF(IsChecked_CriteriaPollutantCategories_ByType,SUMPRODUCT(E68:E71,CostParameters!$G$27:$G$30),SUMPRODUCT(E68:E71,CostParameters!$G$31:$G$34)) -> 0 | F172: =IF(IsChecked_CriteriaPollutantCategories_ByType,SUMPRODUCT(F68:F71,CostParameters!$G$27:$G$30),SUMPRODUCT(F68:F71,CostParameters!$G$31:$G$34)) -> 0 | G172: =IF(IsChecked_CriteriaPollutantCategories_ByType,SUMPRODUCT(G68:G71,CostParameters!$G$27:$G$30),SUMPRODUCT(G68:G71,CostParameters!$G$31:$G$34)) -> 0 | H172: =IF(IsChecked_CriteriaPollutantCategories_ByType,SUMPRODUCT(H68:H71,CostParameters!$G$27:$G$30),SUMPRODUCT(H68:H71,CostParameters!$G$31:$G$34)) -> 0 | J172: Criteria pollutant cost | K172: =SUMPRODUCT(L172:DG172,$L$129:$DG$129) -> 0 | L172: 0 | M172: 0 | N172: 0 | O172: 0 | P172: 0 | Q172: 0 | R172: 0 | S172: 0 | T172: 0 | U172: 0 | V172: 0 | W172: 0 | X172: 0 | Y172: 0 | Z172: 0 | AA172: 0 | AB172: 0 | AC172: 0 | AD172: 0 | AE172: 0 | AF172: 0
I174: index
A175: Safety | B175: Crash type | C175: Valuation | D175: Opening Year | E175: Interim Year(s) | H175: End year
D176: =$C$6 -> 2020 | E176: =IF($C$7="","",$C$7) ->  | F176: =IF($C$8="","",$C$8) ->  | G176: =IF($C$9="","",$C$9) ->  | H176: =$C$10 -> 2040
A177: =IF(IsChecked_CrashCategories_KABCO,CrashCategoryLabel_KABCO,IF(IsChecked_CrashCategories_FatalityInjuryPDO,CrashCategoryLabel_FatalInjuryPDO,IF(IsChecked_CrashCategories_TotalCrashes,CrashCategoryLabel_TotalCrashes,CrashCategoryLabel_UserDefined))) -> KABCO | B177: =IF(B60="","",B60) -> Fatal & Injury Crashes | C177: =IF(IsChecked_CrashCategories_KABCO,IF(ISERROR(INDEX(CrashValuations_KABCO,$I177)),"",INDEX(CrashValuations_KABCO,$I177)),IF(IsChecked_CrashCategories_FatalityInjuryPDO,IF(ISERROR(INDEX(CrashValuations_FatalityInjuryPDO,$I177)),"",INDEX(CrashValuations_FatalityInjuryPDO,$I177)),IF(IsChecked_CrashCategories_TotalCrashes,IF(ISERROR(INDEX(CrashValuations_TotalCrashes,$I177)),"",INDEX(CrashValuations_TotalCrashes,$I177)),IF(IsChecked_CrashCategories_UserDefined,IF(ISERROR(INDEX(CrashValuations_UserDefined,$I177)),"",IF(INDEX(CrashValuations_UserDefined,$I177)="","",INDEX(CrashValuations_UserDefined,$I177))),#N/A)))) -> 105839 | I177: 1
B178: =IF(B61="","",B61) -> Property damage only crashes | C178: =IF(IsChecked_CrashCategories_KABCO,IF(ISERROR(INDEX(CrashValuations_KABCO,$I178)),"",INDEX(CrashValuations_KABCO,$I178)),IF(IsChecked_CrashCategories_FatalityInjuryPDO,IF(ISERROR(INDEX(CrashValuations_FatalityInjuryPDO,$I178)),"",INDEX(CrashValuations_FatalityInjuryPDO,$I178)),IF(IsChecked_CrashCategories_TotalCrashes,IF(ISERROR(INDEX(CrashValuations_TotalCrashes,$I178)),"",INDEX(CrashValuations_TotalCrashes,$I178)),IF(IsChecked_CrashCategories_UserDefined,IF(ISERROR(INDEX(CrashValuations_UserDefined,$I178)),"",IF(INDEX(CrashValuations_UserDefined,$I178)="","",INDEX(CrashValuations_UserDefined,$I178))),#N/A)))) -> 10560 | I178: 2
B179: =IF(B62="","",B62) -> 0 | C179: =IF(IsChecked_CrashCategories_KABCO,IF(ISERROR(INDEX(CrashValuations_KABCO,$I179)),"",INDEX(CrashValuations_KABCO,$I179)),IF(IsChecked_CrashCategories_FatalityInjuryPDO,IF(ISERROR(INDEX(CrashValuations_FatalityInjuryPDO,$I179)),"",INDEX(CrashValuations_FatalityInjuryPDO,$I179)),IF(IsChecked_CrashCategories_TotalCrashes,IF(ISERROR(INDEX(CrashValuations_TotalCrashes,$I179)),"",INDEX(CrashValuations_TotalCrashes,$I179)),IF(IsChecked_CrashCategories_UserDefined,IF(ISERROR(INDEX(CrashValuations_UserDefined,$I179)),"",IF(INDEX(CrashValuations_UserDefined,$I179)="","",INDEX(CrashValuations_UserDefined,$I179))),#N/A)))) -> 0 | I179: 3
B180: =IF(B63="","",B63) -> 0 | C180: =IF(IsChecked_CrashCategories_KABCO,IF(ISERROR(INDEX(CrashValuations_KABCO,$I180)),"",INDEX(CrashValuations_KABCO,$I180)),IF(IsChecked_CrashCategories_FatalityInjuryPDO,IF(ISERROR(INDEX(CrashValuations_FatalityInjuryPDO,$I180)),"",INDEX(CrashValuations_FatalityInjuryPDO,$I180)),IF(IsChecked_CrashCategories_TotalCrashes,IF(ISERROR(INDEX(CrashValuations_TotalCrashes,$I180)),"",INDEX(CrashValuations_TotalCrashes,$I180)),IF(IsChecked_CrashCategories_UserDefined,IF(ISERROR(INDEX(CrashValuations_UserDefined,$I180)),"",IF(INDEX(CrashValuations_UserDefined,$I180)="","",INDEX(CrashValuations_UserDefined,$I180))),#N/A)))) -> 0 | I180: 4
B181: =IF(B64="","",B64) -> 0 | C181: =IF(IsChecked_CrashCategories_KABCO,IF(ISERROR(INDEX(CrashValuations_KABCO,$I181)),"",INDEX(CrashValuations_KABCO,$I181)),IF(IsChecked_CrashCategories_FatalityInjuryPDO,IF(ISERROR(INDEX(CrashValuations_FatalityInjuryPDO,$I181)),"",INDEX(CrashValuations_FatalityInjuryPDO,$I181)),IF(IsChecked_CrashCategories_TotalCrashes,IF(ISERROR(INDEX(CrashValuations_TotalCrashes,$I181)),"",INDEX(CrashValuations_TotalCrashes,$I181)),IF(IsChecked_CrashCategories_UserDefined,IF(ISERROR(INDEX(CrashValuations_UserDefined,$I181)),"",IF(INDEX(CrashValuations_UserDefined,$I181)="","",INDEX(CrashValuations_UserDefined,$I181))),#N/A)))) -> 0 | I181: 5
A184: Emissions | B184: Type
A186: =A67 -> Greenhouse gases -- user defined costs | B186: =IF(B67="","",B67) -> CO2 equivalent | C186: (see next row)
A190: =A68 -> Criteria pollutants -- by type | B190: =IF(B68="","",B68) -> 0 | C190: =IF(IsChecked_CriteriaPollutantCategories_ByType,CostParameters!G27,CostParameters!G31) -> 0 | I190: 1
B191: =IF(B69="","",B69) -> 0 | C191: =IF(IsChecked_CriteriaPollutantCategories_ByType,CostParameters!G28,CostParameters!G32) -> 0 | I191: 2
B192: 0 | C192: =IF(IsChecked_CriteriaPollutantCategories_ByType,CostParameters!G29,CostParameters!G33) -> 0 | I192: 3
B193: 0 | C193: =IF(IsChecked_CriteriaPollutantCategories_ByType,CostParameters!G30,CostParameters!G34) -> 0 | I193: 6
A196: Year | C196: time per | D196: std dev | K196: time per | L196: std dev | S196: time per | T196: std dev | AA196: time per | AB196: std dev | AI196: time per | AJ196: std dev
A197: Year type ---> | B197: Opening year | C197: AM | D197: =D151 -> 0 | J197: Int yr. 1 | K197: AM | L197: =E151 -> 0 | R197: Int yr. 2 | S197: AM | T197: =F151 -> 0 | Z197: Int yr. 3 | AA197: AM | AB197: =G151 -> 0 | AH197: End year | AI197: AM | AJ197: =H151 -> 0
A198: Year ------> | B198: =$C$6 -> 2020 | C198: PM | D198: =D152 -> 0 | J198: =IF($C$7="","",$C$7) ->  | K198: PM | L198: =E152 -> 0 | R198: =IF($C$8="","",$C$8) ->  | S198: PM | T198: =F152 -> 0 | Z198: =IF($C$9="","",$C$9) ->  | AA198: PM | AB198: =G152 -> 0 | AH198: =IF($C$10="","",$C$10) -> 2040 | AI198: PM | AJ198: =H152 -> 0
A199: Year col in demand sheet ---> | B199: 0 | C199: Offpk | D199: =D153 -> 0 | J199: 0 | K199: Offpk | L199: =E153 -> 0 | R199: 0 | S199: Offpk | T199: =F153 -> 0 | Z199: 0 | AA199: Offpk | AB199: =G153 -> 0 | AH199: 0 | AI199: Offpk | AJ199: =H153 -> 0
A200: Year number (1 = opening, 5 = end, etc.) | B200: 1 | C200: 1 | D200: 1 | E200: 1 | F200: 1 | G200: 1 | H200: 1 | I200: 1 | J200: 2 | K200: 2 | L200: 2 | M200: 2 | N200: 2 | O200: 2 | P200: 2 | Q200: 2 | R200: 3 | S200: 3 | T200: 3 | U200: 3 | V200: 3 | W200: 3 | X200: 3 | Y200: 3 | Z200: 4 | AA200: 4 | AB200: 4 | AC200: 4 | AD200: 4 | AE200: 4 | AF200: 4 | AG200: 4 | AH200: 5 | AI200: 5 | AJ200: 5 | AK200: 5 | AL200: 5 | AM200: 5 | AN200: 5
A202: Date/time | B202: average travel time or delay per vehicle (hr.) | C202: reliability "insurance" time | D202: auto passenger time cost | E202: auto passenger reliability cost | F202: truck time cost | G202: truck reliability cost | H202: transit passenger time cost | I202: transit passenger reliability cost | J202: average travel time or delay per vehicle (hr.) | K202: reliability "insurance" time | L202: auto passenger time cost | M202: auto passenger reliability cost | N202: truck time cost | O202: truck reliability cost | P202: transit passenger time cost | Q202: transit passenger reliability cost | R202: average travel time or delay per vehicle (hr.) | S202: reliability "insurance" time | T202: auto passenger time cost | U202: auto passenger reliability cost | V202: truck time cost | W202: truck reliability cost | X202: transit passenger time cost | Y202: transit passenger reliability cost | Z202: average travel time or delay per vehicle (hr.) | AA202: reliability "insurance" time | AB202: auto passenger time cost | AC202: auto passenger reliability cost | AD202: truck time cost | AE202: truck reliability cost | AF202: transit passenger time cost | AG202: transit passenger reliability cost | AH202: average travel time or delay per vehicle (hr.) | AI202: reliability "insurance" time | AJ202: auto passenger time cost | AK202: auto passenger reliability cost | AL202: truck time cost | AM202: truck reliability cost | AN202: transit passenger time cost | AO202: transit passenger reliability cost
A203: 2014-01-01

Sheet RCUT EW (hidden)
A1: RCUT E-W | C1: Use this sheet to enter the delay information for a Signalized RCUT with the major street running East-West. (Requires turning movement count demand inputs)
C4: User must enter value on this sheet
E5: Eastern Crossover | F5: Western Crossover
A6: Distance from main intersection to: | E6: 600 | F6: 600
A7: Free-flow speed on major street | E7: 45
B9: *Volumes are computed based on values entered in DemandCounts and Exhibit 6-2 of FHWA RCUT Guide
B10: Opening Year AM Peak | G10: Opening Year PM Peak | L10: Opening Year Weekend Peak
B11: Intersection 1 | C11: EB Thru | D11: WB U-Turn | G11: Intersection 1 | H11: EB Thru | I11: WB U-Turn | L11: Intersection 1 | M11: EB Thru | N11: WB U-Turn
B12: Volume | C12: =SUM(T14:V14) -> 302.2439125 | D12: =SUM(T16:U16) -> 201.4959417 | G12: Volume | H12: =SUM(X14:Z14) -> 368.7950117 | I12: =SUM(X16:Y16) -> 245.8633411 | L12: Volume | M12: =SUM(AB14:AD14) -> 24.58633411 | N12: =SUM(AB16:AC16) -> 16.39088941 | S12: AM Peak Hour | W12: PM Peak Hour | AA12: Weekend Peak Hour
B13: Delay | C13: 3.4 | D13: 21.9 | G13: Delay | H13: 3.4 | I13: 21.9 | L13: Delay | M13: 3.4 | N13: 21.9 | S13: U | T13: L | U13: T | V13: R | W13: U | X13: L | Y13: T | Z13: R | AA13: U | AB13: L | AC13: T | AD13: R
R14: Eastbound | S14: =DemandCounts!B36 -> 0 | T14: =DemandCounts!C36 -> 100.7479708 | U14: =DemandCounts!D36 -> 100.7479708 | V14: =DemandCounts!E36 -> 100.7479708 | W14: =DemandCounts!H36 -> 0 | X14: =DemandCounts!I36 -> 122.9316706 | Y14: =DemandCounts!J36 -> 122.9316706 | Z14: =DemandCounts!K36 -> 122.9316706 | AA14: =DemandCounts!N36 -> 0 | AB14: =DemandCounts!O36 -> 8.195444703 | AC14: =DemandCounts!P36 -> 8.195444703 | AD14: =DemandCounts!Q36 -> 8.195444703
B15: Intersection 2 | C15: WB Left | D15: WB Thru | E15: WB Right | F15: SB Right | G15: Intersection 2 | H15: WB Left | I15: WB Thru | J15: WB Right | K15: SB Right | L15: Intersection 2 | M15: WB Left | N15: WB Thru | O15: WB Right | P15: SB Right | R15: Westbound | S15: =DemandCounts!B37 -> 0 | T15: =DemandCounts!C37 -> 100.7479708 | U15: =DemandCounts!D37 -> 100.7479708 | V15: =DemandCounts!E37 -> 100.7479708 | W15: =DemandCounts!H37 -> 0 | X15: =DemandCounts!I37 -> 122.9316706 | Y15: =DemandCounts!J37 -> 122.9316706 | Z15: =DemandCounts!K37 -> 122.9316706 | AA15: =DemandCounts!N37 -> 0 | AB15: =DemandCounts!O37 -> 8.195444703 | AC15: =DemandCounts!P37 -> 8.195444703 | AD15: =DemandCounts!Q37 -> 8.195444703
B16: Volume | C16: =T15 -> 100.7479708 | D16: =U15+T17 -> 201.4959417 | E16: =V15+U17 -> 201.4959417 | F16: =SUM(T16:V16) -> 302.2439125 | G16: Volume | H16: =X15 -> 122.9316706 | I16: =Y15+X17 -> 245.8633411 | J16: =Z15+Y17 -> 245.8633411 | K16: =SUM(X16:Z16) -> 368.7950117 | L16: Volume | M16: =AB15 -> 8.195444703 | N16: =AC15+AB17 -> 16.39088941 | O16: =AD15+AC17 -> 16.39088941 | P16: =SUM(AB16:AD16) -> 24.58633411 | R16: Southbound | S16: =DemandCounts!B38 -> 0 | T16: =DemandCounts!C38 -> 100.7479708 | U16: =DemandCounts!D38 -> 100.7479708 | V16: =DemandCounts!E38 -> 100.7479708 | W16: =DemandCounts!H38 -> 0 | X16: =DemandCounts!I38 -> 122.9316706 | Y16: =DemandCounts!J38 -> 122.9316706 | Z16: =DemandCounts!K38 -> 122.9316706 | AA16: =DemandCounts!N38 -> 0 | AB16: =DemandCounts!O38 -> 8.195444703 | AC16: =DemandCounts!P38 -> 8.195444703 | AD16: =DemandCounts!Q38 -> 8.195444703
B17: Delay | C17: 18.2 | D17: 4.8 | E17: 2.7 | F17: 21.5 | G17: Delay | H17: 18.2 | I17: 4.8 | J17: 2.7 | K17: 21.5 | L17: Delay | M17: 18.2 | N17: 4.8 | O17: 2.7 | P17: 21.5 | R17: Northbound | S17: =DemandCounts!B39 -> 0 | T17: =DemandCounts!C39 -> 100.7479708 | U17: =DemandCounts!D39 -> 100.7479708 | V17: =DemandCounts!E39 -> 100.7479708 | W17: =DemandCounts!H39 -> 0 | X17: =DemandCounts!I39 -> 122.9316706 | Y17: =DemandCounts!J39 -> 122.9316706 | Z17: =DemandCounts!K39 -> 122.9316706 | AA17: =DemandCounts!N39 -> 0 | AB17: =DemandCounts!O39 -> 8.195444703 | AC17: =DemandCounts!P39 -> 8.195444703 | AD17: =DemandCounts!Q39 -> 8.195444703
B19: Intersection 3 | C19: EB Left | D19: EB Thru | E19: EB Right | F19: NB Right | G19: Intersection 3 | H19: EB Left | I19: EB Thru | J19: EB Right | K19: NB Right | L19: Intersection 3 | M19: EB Left | N19: EB Thru | O19: EB Right | P19: NB Right
B20: Volume | C20: =T14 -> 100.7479708 | D20: =U14+T16 -> 201.4959417 | E20: =V14+U16 -> 201.4959417 | F20: =SUM(T17:V17) -> 302.2439125 | G20: Volume | H20: =X14 -> 122.9316706 | I20: =Y14+X16 -> 245.8633411 | J20: =Z14+Y16 -> 245.8633411 | K20: =SUM(X17:Z17) -> 368.7950117 | L20: Volume | M20: =AB14 -> 8.195444703 | N20: =AC14+AB16 -> 16.39088941 | O20: =AD14+AC16 -> 16.39088941 | P20: =SUM(AB17:AD17) -> 24.58633411
B21: Delay | C21: 19.1 | D21: 4.4 | E21: 4.3 | F21: 21.3 | G21: Delay | H21: 19.1 | I21: 4.4 | J21: 4.3 | K21: 21.3 | L21: Delay | M21: 19.1 | N21: 4.4 | O21: 4.3 | P21: 21.3
B23: Intersection 4 | C23: WB Thru | D23: EB U-Turn | G23: Intersection 4 | H23: WB Thru | I23: EB U-Turn | L23: Intersection 4 | M23: WB Thru | N23: EB U-Turn
B24: Volume | C24: =SUM(T15:V15) -> 302.2439125 | D24: =U17+T17 -> 201.4959417 | G24: Volume | H24: =SUM(X15:Z15) -> 368.7950117 | I24: =Y17+X17 -> 245.8633411 | L24: Volume | M24: =SUM(AB15:AD15) -> 24.58633411 | N24: =AC17+AB17 -> 16.39088941
B25: Delay | C25: 4.2 | D25: 22.9 | G25: Delay | H25: 4.2 | I25: 22.9 | L25: Delay | M25: 4.2 | N25: 22.9
B28: Design Year AM Peak | G28: Design Year PM Peak | L28: Design Year Weekend Peak
B29: Intersection 1 | C29: EB Thru | D29: WB U-Turn | G29: Intersection 1 | H29: EB Thru | I29: WB U-Turn | L29: Intersection 1 | M29: EB Thru | N29: WB U-Turn
B30: Volume | C30: =SUM(T32:V32) -> 368.7950117 | D30: =SUM(T34:U34) -> 245.8633411 | G30: Volume | H30: =SUM(X32:Z32) -> 450 | I30: =SUM(X34:Y34) -> 300 | L30: Volume | M30: =SUM(AB32:AD32) -> 30 | N30: =SUM(AB34:AC34) -> 20 | S30: AM Peak Hour | W30: PM Peak Hour | AA30: Weekend Peak Hour
B31: Delay | C31: 7.7 | D31: 41.7 | G31: Delay | H31: 7.7 | I31: 41.7 | L31: Delay | M31: 7.7 | N31: 41.7 | S31: U | T31: L | U31: T | V31: R | W31: U | X31: L | Y31: T | Z31: R | AA31: U | AB31: L | AC31: T | AD31: R
R32: Eastbound | S32: =DemandCounts!B45 -> 0 | T32: =DemandCounts!C45 -> 122.9316706 | U32: =DemandCounts!D45 -> 122.9316706 | V32: =DemandCounts!E45 -> 122.9316706 | W32: =DemandCounts!H45 -> 0 | X32: =DemandCounts!I45 -> 150 | Y32: =DemandCounts!J45 -> 150 | Z32: =DemandCounts!K45 -> 150 | AA32: =DemandCounts!N45 -> 0 | AB32: =DemandCounts!O45 -> 10 | AC32: =DemandCounts!P45 -> 10 | AD32: =DemandCounts!Q45 -> 10
B33: Intersection 2 | C33: WB Left | D33: WB Thru | E33: WB Right | F33: SB Right | G33: Intersection 2 | H33: WB Left | I33: WB Thru | J33: WB Right | K33: SB Right | L33: Intersection 2 | M33: WB Left | N33: WB Thru | O33: WB Right | P33: SB Right | R33: Westbound | S33: =DemandCounts!B46 -> 0 | T33: =DemandCounts!C46 -> 122.9316706 | U33: =DemandCounts!D46 -> 122.9316706 | V33: =DemandCounts!E46 -> 122.9316706 | W33: =DemandCounts!H46 -> 0 | X33: =DemandCounts!I46 -> 150 | Y33: =DemandCounts!J46 -> 150 | Z33: =DemandCounts!K46 -> 150 | AA33: =DemandCounts!N46 -> 0 | AB33: =DemandCounts!O46 -> 10 | AC33: =DemandCounts!P46 -> 10 | AD33: =DemandCounts!Q46 -> 10
B34: Volume | C34: =T33 -> 122.9316706 | D34: =U33+T35 -> 245.8633411 | E34: =V33+U35 -> 245.8633411 | F34: =SUM(T34:V34) -> 368.7950117 | G34: Volume | H34: =X33 -> 150 | I34: =Y33+X35 -> 300 | J34: =Z33+Y35 -> 300 | K34: =SUM(X34:Z34) -> 450 | L34: Volume | M34: =AB33 -> 10 | N34: =AC33+AB35 -> 20 | O34: =AD33+AC35 -> 20 | P34: =SUM(AB34:AD34) -> 30 | R34: Southbound | S34: =DemandCounts!B47 -> 0 | T34: =DemandCounts!C47 -> 122.9316706 | U34: =DemandCounts!D47 -> 122.9316706 | V34: =DemandCounts!E47 -> 122.9316706 | W34: =DemandCounts!H47 -> 0 | X34: =DemandCounts!I47 -> 150 | Y34: =DemandCounts!J47 -> 150 | Z34: =DemandCounts!K47 -> 150 | AA34: =DemandCounts!N47 -> 0 | AB34: =DemandCounts!O47 -> 10 | AC34: =DemandCounts!P47 -> 10 | AD34: =DemandCounts!Q47 -> 10
B35: Delay | C35: 27.9 | D35: 37.2 | E35: 8.2 | F35: 42.2 | G35: Delay | H35: 27.9 | I35: 37.2 | J35: 8.2 | K35: 42.2 | L35: Delay | M35: 27.9 | N35: 37.2 | O35: 8.2 | P35: 42.2 | R35: Northbound | S35: =DemandCounts!B48 -> 0 | T35: =DemandCounts!C48 -> 122.9316706 | U35: =DemandCounts!D48 -> 122.9316706 | V35: =DemandCounts!E48 -> 122.9316706 | W35: =DemandCounts!H48 -> 0 | X35: =DemandCounts!I48 -> 150 | Y35: =DemandCounts!J48 -> 150 | Z35: =DemandCounts!K48 -> 150 | AA35: =DemandCounts!N48 -> 0 | AB35: =DemandCounts!O48 -> 10 | AC35: =DemandCounts!P48 -> 10 | AD35: =DemandCounts!Q48 -> 10
B37: Intersection 3 | C37: EB Left | D37: EB Thru | E37: EB Right | F37: NB Right | G37: Intersection 3 | H37: EB Left | I37: EB Thru | J37: EB Right | K37: NB Right | L37: Intersection 3 | M37: EB Left | N37: EB Thru | O37: EB Right | P37: NB Right
B38: Volume | C38: =T32 -> 122.9316706 | D38: =U32+T34 -> 245.8633411 | E38: =V32+U34 -> 245.8633411 | F38: =SUM(T35:V35) -> 368.7950117 | G38: Volume | H38: =X32 -> 150 | I38: =Y32+X34 -> 300 | J38: =Z32+Y34 -> 300 | K38: =SUM(X35:Z35) -> 450 | L38: Volume | M38: =AB32 -> 10 | N38: =AC32+AB34 -> 20 | O38: =AD32+AC34 -> 20 | P38: =SUM(AB35:AD35) -> 30
B39: Delay | C39: 23.7 | D39: 10 | E39: 8.1 | F39: 34.9 | G39: Delay | H39: 23.7 | I39: 10 | J39: 8.1 | K39: 34.9 | L39: Delay | M39: 23.7 | N39: 10 | O39: 8.1 | P39: 34.9
B41: Intersection 4 | C41: WB Thru | D41: EB U-Turn | G41: Intersection 4 | H41: WB Thru | I41: EB U-Turn | L41: Intersection 4 | M41: WB Thru | N41: EB U-Turn
B42: Volume | C42: =SUM(T33:V33) -> 368.7950117 | D42: =U35+T35 -> 245.8633411 | G42: Volume | H42: =SUM(X33:Z33) -> 450 | I42: =Y35+X35 -> 300 | L42: Volume | M42: =SUM(AB33:AD33) -> 30 | N42: =AC35+AB35 -> 20
B43: Delay | C43: 27.8 | D43: 42.5 | G43: Delay | H43: 27.8 | I43: 42.5 | L43: Delay | M43: 27.8 | N43: 42.5
A50: Above this line, "EB Left", WB U", etc. refer to movements at each small intersection within the RCUT
A52: Below this line "EB Left", "WB U" etc. refer to movements at the main intersection
B54: Opening Year AM Peak | G54: Opening Year PM Peak | L54: Opening Year Weekend Peak
B55: Computation of Control Delay for entire RCUT | G55: Computation of Control Delay for entire RCUT | L55: Computation of Control Delay for entire RCUT
C56: Computed based on formulas I have here | H56: Computed based on formulas I have here | M56: Computed based on formulas I have here
C59: Delay for each movement | D59: Extra distance travel time (EDTT) for each movement | E59: Experienced Travel Time (ETT) | F59: Average ETT | H59: Delay for each movement | I59: Extra distance travel time (EDTT) for each movement | J59: Experienced Travel Time (ETT) | K59: Average ETT | M59: Delay for each movement | N59: Extra distance travel time (EDTT) for each movement | O59: Experienced Travel Time (ETT) | P59: Average ETT
B60: EB Left | C60: =C13+C21 -> 22.5 | D60: 0 | E60: =C60+D60 -> 22.5 | G60: EB Left | H60: =H13+H21 -> 22.5 | I60: 0 | J60: =H60+I60 -> 22.5 | L60: EB Left | M60: =M13+M21 -> 22.5 | N60: 0 | O60: =M60+N60 -> 22.5
B61: EB Through | C61: =D21+C13 -> 7.8 | D61: 0 | E61: =C61+D61 -> 7.8 | G61: EB Through | H61: =I21+H13 -> 7.8 | I61: 0 | J61: =H61+I61 -> 7.8 | L61: EB Through | M61: =N21+M13 -> 7.8 | N61: 0 | O61: =M61+N61 -> 7.8
B62: EB Right | C62: =E21+C13 -> 7.7 | D62: 0 | E62: 7.7 | G62: EB Right | H62: =J21+H13 -> 7.7 | I62: 0 | J62: 7.7 | L62: EB Right | M62: =O21+M13 -> 7.7 | N62: 0 | O62: 7.7
B63: NB Left | C63: =F21+D25+D17 -> 49 | D63: =(2*$E$6)/(1.47*$E$7) -> 18.14058957 | E63: 67.14058957 | G63: NB Left | H63: =K21+I25+I17 -> 49 | I63: =(2*$E$6)/(1.47*$E$7) -> 18.14058957 | J63: 67.14058957 | L63: NB Left | M63: =P21+N25+N17 -> 49 | N63: =(2*$E$6)/(1.47*$E$7) -> 18.14058957 | O63: 67.14058957
B64: NB Through | C64: =F21+D25+E17 -> 46.9 | D64: =(2*$E$6)/(1.47*$E$7) -> 18.14058957 | E64: 65.04058957 | G64: NB Through | H64: =K21+I25+J17 -> 46.9 | I64: =(2*$E$6)/(1.47*$E$7) -> 18.14058957 | J64: 65.04058957 | L64: NB Through | M64: =P21+N25+O17 -> 46.9 | N64: =(2*$E$6)/(1.47*$E$7) -> 18.14058957 | O64: 65.04058957
B65: NB Right | C65: =F21 -> 21.3 | D65: 0 | E65: 21.3 | G65: NB Right | H65: =K21 -> 21.3 | I65: 0 | J65: 21.3 | L65: NB Right | M65: =P21 -> 21.3 | N65: 0 | O65: 21.3
B66: WB Left | C66: =C25+C17 -> 22.4 | D66: 0 | E66: 22.4 | G66: WB Left | H66: =H25+H17 -> 22.4 | I66: 0 | J66: 22.4 | L66: WB Left | M66: =M25+M17 -> 22.4 | N66: 0 | O66: 22.4
B67: WB Through | C67: =C25+D17 -> 9 | D67: 0 | E67: 9 | G67: WB Through | H67: =H25+I17 -> 9 | I67: 0 | J67: 9 | L67: WB Through | M67: =M25+N17 -> 9 | N67: 0 | O67: 9
B68: WB Right | C68: =C25+E17 -> 6.9 | D68: 0 | E68: 6.9 | G68: WB Right | H68: =H25+J17 -> 6.9 | I68: 0 | J68: 6.9 | L68: WB Right | M68: =M25+O17 -> 6.9 | N68: 0 | O68: 6.9
B69: SB Left | C69: =F17+D13+D21 -> 47.8 | D69: =2*$F$6/(1.47*$E$7) -> 18.14058957 | E69: 65.94058957 | G69: SB Left | H69: =K17+I13+I21 -> 47.8 | I69: =2*$F$6/(1.47*$E$7) -> 18.14058957 | J69: 65.94058957 | L69: SB Left | M69: =P17+N13+N21 -> 47.8 | N69: =2*$F$6/(1.47*$E$7) -> 18.14058957 | O69: 65.94058957
B70: SB Through | C70: =F17+D13+E21 -> 47.7 | D70: =2*$F$6/(1.47*$E$7) -> 18.14058957 | E70: 65.84058957 | G70: SB Through | H70: =K17+I13+J21 -> 47.7 | I70: =2*$F$6/(1.47*$E$7) -> 18.14058957 | J70: 65.84058957 | L70: SB Through | M70: =P17+N13+O21 -> 47.7 | N70: =2*$F$6/(1.47*$E$7) -> 18.14058957 | O70: 65.84058957
B71: SB Right | C71: =F17 -> 21.5 | D71: 0 | E71: 21.5 | G71: SB Right | H71: =K17 -> 21.5 | I71: 0 | J71: 21.5 | L71: SB Right | M71: =P17 -> 21.5 | N71: 0 | O71: 21.5
F72: =(E60*T14+E61*U14+E62*V14+E63*T17+E64*U17+E65*V17+E66*T15+E67*U15+E68*V15+E69*T16+E70*U16+E71*V16)/(T14+U14+V14+T15+U15+V15+T17+U17+V17+T16+U16+V16) -> 31.92186319 | K72: =(J60*X14+J61*Y14+J62*Z14+J63*X17+J64*Y17+J65*Z17+J66*X15+J67*Y15+J68*Z15+J69*X16+J70*Y16+J71*Z16)/(X14+Y14+Z14+X15+Y15+Z15+X17+Y17+Z17+X16+Y16+Z16) -> 31.92186319 | P72: =(O60*AB14+O61*AC14+O62*AD14+O63*AB17+O64*AC17+O65*AD17+O66*AB15+O67*AC15+O68*AD15+O69*AB16+O70*AC16+O71*AD16)/(AB14+AC14+AD14+AB15+AC15+AD15+AB17+AC17+AD17+AB16+AC16+AD16) -> 31.92186319
B75: Design Year AM Peak | G75: Design Year PM Peak | L75: Design Year Weekend Peak
B76: Computation of Control Delay for entire RCUT | G76: Computation of Control Delay for entire RCUT | L76: Computation of Control Delay for entire RCUT
C77: Computed based on formulas I have here | H77: Computed based on formulas I have here | M77: Computed based on formulas I have here
C80: Delay for each movement | D80: Extra distance travel time (EDTT) for each movement | E80: Experienced Travel Time (ETT) | F80: Average ETT | H80: Delay for each movement | I80: Extra distance travel time (EDTT) for each movement | J80: Experienced Travel Time (ETT) | K80: Average ETT | M80: Delay for each movement | N80: Extra distance travel time (EDTT) for each movement | O80: Experienced Travel Time (ETT) | P80: Average ETT
B81: EB Left | C81: =C31+C39 -> 31.4 | D81: 0 | E81: =C81+D81 -> 31.4 | G81: EB Left | H81: =H31+H39 -> 31.4 | I81: 0 | J81: =H81+I81 -> 31.4 | L81: EB Left | M81: =M31+M39 -> 31.4 | N81: 0 | O81: =M81+N81 -> 31.4
B82: EB Through | C82: =D39+C31 -> 17.7 | D82: 0 | E82: =C82+D82 -> 17.7 | G82: EB Through | H82: =I39+H31 -> 17.7 | I82: 0 | J82: =H82+I82 -> 17.7 | L82: EB Through | M82: =N39+M31 -> 17.7 | N82: 0 | O82: =M82+N82 -> 17.7
B83: EB Right | C83: =E39+C31 -> 15.8 | D83: 0 | E83: 15.8 | G83: EB Right | H83: =J39+H31 -> 15.8 | I83: 0 | J83: 15.8 | L83: EB Right | M83: =O39+M31 -> 15.8 | N83: 0 | O83: 15.8
B84: NB Left | C84: =F39+D43+D35 -> 114.6 | D84: =(2*$E$6)/(1.47*$E$7) -> 18.14058957 | E84: 132.7405896 | G84: NB Left | H84: =K39+I43+I35 -> 114.6 | I84: =(2*$E$6)/(1.47*$E$7) -> 18.14058957 | J84: 132.7405896 | L84: NB Left | M84: =P39+N43+N35 -> 114.6 | N84: =(2*$E$6)/(1.47*$E$7) -> 18.14058957 | O84: 132.7405896
B85: NB Through | C85: =F39+D43+E35 -> 85.6 | D85: =(2*$E$6)/(1.47*$E$7) -> 18.14058957 | E85: 103.7405896 | G85: NB Through | H85: =K39+I43+J35 -> 85.6 | I85: =(2*$E$6)/(1.47*$E$7) -> 18.14058957 | J85: 103.7405896 | L85: NB Through | M85: =P39+N43+O35 -> 85.6 | N85: =(2*$E$6)/(1.47*$E$7) -> 18.14058957 | O85: 103.7405896
B86: NB Right | C86: =F39 -> 34.9 | D86: 0 | E86: 34.9 | G86: NB Right | H86: =K39 -> 34.9 | I86: 0 | J86: 34.9 | L86: NB Right | M86: =P39 -> 34.9 | N86: 0 | O86: 34.9
B87: WB Left | C87: =C43+C35 -> 55.7 | D87: 0 | E87: 55.7 | G87: WB Left | H87: =H43+H35 -> 55.7 | I87: 0 | J87: 55.7 | L87: WB Left | M87: =M43+M35 -> 55.7 | N87: 0 | O87: 55.7
B88: WB Through | C88: =C43+D35 -> 65 | D88: 0 | E88: 65 | G88: WB Through | H88: =H43+I35 -> 65 | I88: 0 | J88: 65 | L88: WB Through | M88: =M43+N35 -> 65 | N88: 0 | O88: 65
B89: WB Right | C89: =C43+E35 -> 36 | D89: 0 | E89: 36 | G89: WB Right | H89: =H43+J35 -> 36 | I89: 0 | J89: 36 | L89: WB Right | M89: =M43+O35 -> 36 | N89: 0 | O89: 36
B90: SB Left | C90: =F35+D31+D39 -> 93.9 | D90: =2*$F$6/(1.47*$E$7) -> 18.14058957 | E90: 112.0405896 | G90: SB Left | H90: =K35+I31+I39 -> 93.9 | I90: =2*$F$6/(1.47*$E$7) -> 18.14058957 | J90: 112.0405896 | L90: SB Left | M90: =P35+N31+N39 -> 93.9 | N90: =2*$F$6/(1.47*$E$7) -> 18.14058957 | O90: 112.0405896
B91: SB Through | C91: =F35+D31+E39 -> 92 | D91: =2*$F$6/(1.47*$E$7) -> 18.14058957 | E91: 110.1405896 | G91: SB Through | H91: =K35+I31+J39 -> 92 | I91: =2*$F$6/(1.47*$E$7) -> 18.14058957 | J91: 110.1405896 | L91: SB Through | M91: =P35+N31+O39 -> 92 | N91: =2*$F$6/(1.47*$E$7) -> 18.14058957 | O91: 110.1405896
B92: SB Right | C92: =F35 -> 42.2 | D92: 0 | E92: 42.2 | G92: SB Right | H92: =K35 -> 42.2 | I92: 0 | J92: 42.2 | L92: SB Right | M92: =P35 -> 42.2 | N92: 0 | O92: 42.2
F93: =(E81*T32+E82*U32+E83*V32+E84*T35+E85*U35+E86*V35+E87*T33+E88*U33+E89*V33+E90*T34+E91*U34+E92*V34)/(T32+U32+V32+T33+U33+V33+T35+U35+V35+T34+U34+V34) -> 63.11352986 | K93: =(J81*X32+J82*Y32+J83*Z32+J84*X35+J85*Y35+J86*Z35+J87*X33+J88*Y33+J89*Z33+J90*X34+J91*Y34+J92*Z34)/(X32+Y32+Z32+X33+Y33+Z33+X35+Y35+Z35+X34+Y34+Z34) -> 63.11352986 | P93: =(O81*AB32+O82*AC32+O83*AD32+O84*AB35+O85*AC35+O86*AD35+O87*AB33+O88*AC33+O89*AD33+O90*AB34+O91*AC34+O92*AD34)/(AB32+AC32+AD32+AB33+AC33+AD33+AB35+AC35+AD35+AB34+AC34+AD34) -> 63.11352986

Sheet RCUT NS (hidden)
A1: RCUT N-S | C1: Use this sheet to enter the delay information for a Signalized RCUT with the major street running North-South. (Requires turning movement count demand inputs)
C4: User must enter value on this sheet
E5: Eastern Crossover | F5: Western Crossover
A6: Distance from main intersection to: | E6: 600 | F6: 600
A7: Free-flow speed on major street: | E7: 45
B9: *Volumes are computed based on values entered in DemandCounts and Exhibit 6-2 of FHWA RCUT Guide
B10: Opening Year AM Peak | G10: Opening Year PM Peak | L10: Opening Year Weekend Peak
B11: Intersection 1 | C11: SB Thru | D11: NB U-Turn | G11: Intersection 1 | H11: SB Thru | I11: NB U-Turn | L11: Intersection 1 | M11: SB Thru | N11: NB U-Turn
B12: Volume | C12: =SUM(T14:V14) -> 302.2439125 | D12: =SUM(T16:U16) -> 201.4959417 | G12: Volume | H12: =SUM(X14:Z14) -> 368.7950117 | I12: =SUM(X16:Y16) -> 245.8633411 | L12: Volume | M12: =SUM(AB14:AD14) -> 24.58633411 | N12: =SUM(AB16:AC16) -> 16.39088941 | S12: AM Peak Hour | W12: PM Peak Hour | AA12: Weekend Peak Hour
B13: Delay | C13: 3.4 | D13: 21.9 | G13: Delay | H13: 3.4 | I13: 21.9 | L13: Delay | M13: 3.4 | N13: 21.9 | S13: U | T13: L | U13: T | V13: R | W13: U | X13: L | Y13: T | Z13: R | AA13: U | AB13: L | AC13: T | AD13: R
R14: Southbound | S14: =DemandCounts!B38 -> 0 | T14: =DemandCounts!C38 -> 100.7479708 | U14: =DemandCounts!D38 -> 100.7479708 | V14: =DemandCounts!E38 -> 100.7479708 | W14: =DemandCounts!H38 -> 0 | X14: =DemandCounts!I38 -> 122.9316706 | Y14: =DemandCounts!J38 -> 122.9316706 | Z14: =DemandCounts!K38 -> 122.9316706 | AA14: =DemandCounts!N38 -> 0 | AB14: =DemandCounts!O38 -> 8.195444703 | AC14: =DemandCounts!P38 -> 8.195444703 | AD14: =DemandCounts!Q38 -> 8.195444703
B15: Intersection 2 | C15: NB Left | D15: NB Thru | E15: NB Right | F15: WB Right | G15: Intersection 2 | H15: NB Left | I15: NB Thru | J15: NB Right | K15: WB Right | L15: Intersection 2 | M15: NB Left | N15: NB Thru | O15: NB Right | P15: WB Right | R15: Northbound | S15: =DemandCounts!B39 -> 0 | T15: =DemandCounts!C39 -> 100.7479708 | U15: =DemandCounts!D39 -> 100.7479708 | V15: =DemandCounts!E39 -> 100.7479708 | W15: =DemandCounts!H39 -> 0 | X15: =DemandCounts!I39 -> 122.9316706 | Y15: =DemandCounts!J39 -> 122.9316706 | Z15: =DemandCounts!K39 -> 122.9316706 | AA15: =DemandCounts!N39 -> 0 | AB15: =DemandCounts!O39 -> 8.195444703 | AC15: =DemandCounts!P39 -> 8.195444703 | AD15: =DemandCounts!Q39 -> 8.195444703
B16: Volume | C16: =T15 -> 100.7479708 | D16: =U15+T17 -> 201.4959417 | E16: =V15+U17 -> 201.4959417 | F16: =SUM(T16:V16) -> 302.2439125 | G16: Volume | H16: =X15 -> 122.9316706 | I16: =Y15+X17 -> 245.8633411 | J16: =Z15+Y17 -> 245.8633411 | K16: =SUM(X16:Z16) -> 368.7950117 | L16: Volume | M16: =AB15 -> 8.195444703 | N16: =AC15+AB17 -> 16.39088941 | O16: =AD15+AC17 -> 16.39088941 | P16: =SUM(AB16:AD16) -> 24.58633411 | R16: Westbound | S16: =DemandCounts!B37 -> 0 | T16: =DemandCounts!C37 -> 100.7479708 | U16: =DemandCounts!D37 -> 100.7479708 | V16: =DemandCounts!E37 -> 100.7479708 | W16: =DemandCounts!H37 -> 0 | X16: =DemandCounts!I37 -> 122.9316706 | Y16: =DemandCounts!J37 -> 122.9316706 | Z16: =DemandCounts!K37 -> 122.9316706 | AA16: =DemandCounts!N37 -> 0 | AB16: =DemandCounts!O37 -> 8.195444703 | AC16: =DemandCounts!P37 -> 8.195444703 | AD16: =DemandCounts!Q37 -> 8.195444703
B17: Delay | C17: 18.2 | D17: 4.8 | E17: 2.7 | F17: 21.5 | G17: Delay | H17: 18.2 | I17: 4.8 | J17: 2.7 | K17: 21.5 | L17: Delay | M17: 18.2 | N17: 4.8 | O17: 2.7 | P17: 21.5 | R17: Eastbound | S17: =DemandCounts!B36 -> 0 | T17: =DemandCounts!C36 -> 100.7479708 | U17: =DemandCounts!D36 -> 100.7479708 | V17: =DemandCounts!E36 -> 100.7479708 | W17: =DemandCounts!H36 -> 0 | X17: =DemandCounts!I36 -> 122.9316706 | Y17: =DemandCounts!J36 -> 122.9316706 | Z17: =DemandCounts!K36 -> 122.9316706 | AA17: =DemandCounts!N36 -> 0 | AB17: =DemandCounts!O36 -> 8.195444703 | AC17: =DemandCounts!P36 -> 8.195444703 | AD17: =DemandCounts!Q36 -> 8.195444703
B19: Intersection 3 | C19: SB Left | D19: SB Thru | E19: SB Right | F19: EB Right | G19: Intersection 3 | H19: SB Left | I19: SB Thru | J19: SB Right | K19: EB Right | L19: Intersection 3 | M19: SB Left | N19: SB Thru | O19: SB Right | P19: EB Right
B20: Volume | C20: =T14 -> 100.7479708 | D20: =U14+T16 -> 201.4959417 | E20: =V14+U16 -> 201.4959417 | F20: =SUM(T17:V17) -> 302.2439125 | G20: Volume | H20: =X14 -> 122.9316706 | I20: =Y14+X16 -> 245.8633411 | J20: =Z14+Y16 -> 245.8633411 | K20: =SUM(X17:Z17) -> 368.7950117 | L20: Volume | M20: =AB14 -> 8.195444703 | N20: =AC14+AB16 -> 16.39088941 | O20: =AD14+AC16 -> 16.39088941 | P20: =SUM(AB17:AD17) -> 24.58633411
B21: Delay | C21: 19.1 | D21: 4.4 | E21: 4.3 | F21: 21.3 | G21: Delay | H21: 19.1 | I21: 4.4 | J21: 4.3 | K21: 21.3 | L21: Delay | M21: 19.1 | N21: 4.4 | O21: 4.3 | P21: 21.3
B23: Intersection 4 | C23: NB Thru | D23: SB U-Turn | G23: Intersection 4 | H23: NB Thru | I23: SB U-Turn | L23: Intersection 4 | M23: NB Thru | N23: SB U-Turn
B24: Volume | C24: =SUM(T15:V15) -> 302.2439125 | D24: =U17+T17 -> 201.4959417 | G24: Volume | H24: =SUM(X15:Z15) -> 368.7950117 | I24: =Y17+X17 -> 245.8633411 | L24: Volume | M24: =SUM(AB15:AD15) -> 24.58633411 | N24: =AC17+AB17 -> 16.39088941
B25: Delay | C25: 4.2 | D25: 22.9 | G25: Delay | H25: 4.2 | I25: 22.9 | L25: Delay | M25: 4.2 | N25: 22.9
B28: Design Year AM Peak | G28: Design Year PM Peak | L28: Design Year Weekend Peak
B29: Intersection 1 | C29: SB Thru | D29: NB U-Turn | G29: Intersection 1 | H29: SB Thru | I29: NB U-Turn | L29: Intersection 1 | M29: SB Thru | N29: NB U-Turn
B30: Volume | C30: =SUM(T32:V32) -> 368.7950117 | D30: =SUM(T34:U34) -> 245.8633411 | G30: Volume | H30: =SUM(X32:Z32) -> 450 | I30: =SUM(X34:Y34) -> 300 | L30: Volume | M30: =SUM(AB32:AD32) -> 30 | N30: =SUM(AB34:AC34) -> 20 | S30: AM Peak Hour | W30: PM Peak Hour | AA30: Weekend Peak Hour
B31: Delay | C31: 7.7 | D31: 41.7 | G31: Delay | H31: 7.7 | I31: 41.7 | L31: Delay | M31: 7.7 | N31: 41.7 | S31: U | T31: L | U31: T | V31: R | W31: U | X31: L | Y31: T | Z31: R | AA31: U | AB31: L | AC31: T | AD31: R
R32: Southbound | S32: =DemandCounts!B47 -> 0 | T32: =DemandCounts!C47 -> 122.9316706 | U32: =DemandCounts!D47 -> 122.9316706 | V32: =DemandCounts!E47 -> 122.9316706 | W32: =DemandCounts!H47 -> 0 | X32: =DemandCounts!I47 -> 150 | Y32: =DemandCounts!J47 -> 150 | Z32: =DemandCounts!K47 -> 150 | AA32: =DemandCounts!N47 -> 0 | AB32: =DemandCounts!O47 -> 10 | AC32: =DemandCounts!P47 -> 10 | AD32: =DemandCounts!Q47 -> 10
B33: Intersection 2 | C33: NB Left | D33: NB Thru | E33: NB Right | F33: WB Right | G33: Intersection 2 | H33: NB Left | I33: NB Thru | J33: NB Right | K33: WB Right | L33: Intersection 2 | M33: NB Left | N33: NB Thru | O33: NB Right | P33: WB Right | R33: Northbound | S33: =DemandCounts!B48 -> 0 | T33: =DemandCounts!C48 -> 122.9316706 | U33: =DemandCounts!D48 -> 122.9316706 | V33: =DemandCounts!E48 -> 122.9316706 | W33: =DemandCounts!H48 -> 0 | X33: =DemandCounts!I48 -> 150 | Y33: =DemandCounts!J48 -> 150 | Z33: =DemandCounts!K48 -> 150 | AA33: =DemandCounts!N48 -> 0 | AB33: =DemandCounts!O48 -> 10 | AC33: =DemandCounts!P48 -> 10 | AD33: =DemandCounts!Q48 -> 10
B34: Volume | C34: =T33 -> 122.9316706 | D34: =U33+T35 -> 245.8633411 | E34: =V33+U35 -> 245.8633411 | F34: =SUM(T34:V34) -> 368.7950117 | G34: Volume | H34: =X33 -> 150 | I34: =Y33+X35 -> 300 | J34: =Z33+Y35 -> 300 | K34: =SUM(X34:Z34) -> 450 | L34: Volume | M34: =AB33 -> 10 | N34: =AC33+AB35 -> 20 | O34: =AD33+AC35 -> 20 | P34: =SUM(AB34:AD34) -> 30 | R34: Westbound | S34: =DemandCounts!B46 -> 0 | T34: =DemandCounts!C46 -> 122.9316706 | U34: =DemandCounts!D46 -> 122.9316706 | V34: =DemandCounts!E46 -> 122.9316706 | W34: =DemandCounts!H46 -> 0 | X34: =DemandCounts!I46 -> 150 | Y34: =DemandCounts!J46 -> 150 | Z34: =DemandCounts!K46 -> 150 | AA34: =DemandCounts!N46 -> 0 | AB34: =DemandCounts!O46 -> 10 | AC34: =DemandCounts!P46 -> 10 | AD34: =DemandCounts!Q46 -> 10
B35: Delay | C35: 27.9 | D35: 37.2 | E35: 8.2 | F35: 42.2 | G35: Delay | H35: 27.9 | I35: 37.2 | J35: 8.2 | K35: 42.2 | L35: Delay | M35: 27.9 | N35: 37.2 | O35: 8.2 | P35: 42.2 | R35: Eastbound | S35: =DemandCounts!B45 -> 0 | T35: =DemandCounts!C45 -> 122.9316706 | U35: =DemandCounts!D45 -> 122.9316706 | V35: =DemandCounts!E45 -> 122.9316706 | W35: =DemandCounts!H45 -> 0 | X35: =DemandCounts!I45 -> 150 | Y35: =DemandCounts!J45 -> 150 | Z35: =DemandCounts!K45 -> 150 | AA35: =DemandCounts!N45 -> 0 | AB35: =DemandCounts!O45 -> 10 | AC35: =DemandCounts!P45 -> 10 | AD35: =DemandCounts!Q45 -> 10
B37: Intersection 3 | C37: SB Left | D37: SB Thru | E37: SB Right | F37: EB Right | G37: Intersection 3 | H37: SB Left | I37: SB Thru | J37: SB Right | K37: EB Right | L37: Intersection 3 | M37: SB Left | N37: SB Thru | O37: SB Right | P37: EB Right
B38: Volume | C38: =T32 -> 122.9316706 | D38: =U32+T34 -> 245.8633411 | E38: =V32+U34 -> 245.8633411 | F38: =SUM(T35:V35) -> 368.7950117 | G38: Volume | H38: =X32 -> 150 | I38: =Y32+X34 -> 300 | J38: =Z32+Y34 -> 300 | K38: =SUM(X35:Z35) -> 450 | L38: Volume | M38: =AB32 -> 10 | N38: =AC32+AB34 -> 20 | O38: =AD32+AC34 -> 20 | P38: =SUM(AB35:AD35) -> 30
B39: Delay | C39: 23.7 | D39: 10 | E39: 8.1 | F39: 34.9 | G39: Delay | H39: 23.7 | I39: 10 | J39: 8.1 | K39: 34.9 | L39: Delay | M39: 23.7 | N39: 10 | O39: 8.1 | P39: 34.9
B41: Intersection 4 | C41: NB Thru | D41: SB U-Turn | G41: Intersection 4 | H41: NB Thru | I41: SB U-Turn | L41: Intersection 4 | M41: NB Thru | N41: SB U-Turn
B42: Volume | C42: =SUM(T33:V33) -> 368.7950117 | D42: =U35+T35 -> 245.8633411 | G42: Volume | H42: =SUM(X33:Z33) -> 450 | I42: =Y35+X35 -> 300 | L42: Volume | M42: =SUM(AB33:AD33) -> 30 | N42: =AC35+AB35 -> 20
B43: Delay | C43: 27.8 | D43: 42.5 | G43: Delay | H43: 27.8 | I43: 42.5 | L43: Delay | M43: 27.8 | N43: 42.5
A50: Above this line, "SB Left", NB U", etc. refer to movements at each small intersection within the RCUT
A52: Below this line "SB Left", "NB U" etc. refer to movements at the main intersection
B54: Opening Year AM Peak | G54: Opening Year PM Peak | L54: Opening Year Weekend Peak
B55: Computation of Control Delay for entire RCUT | G55: Computation of Control Delay for entire RCUT | L55: Computation of Control Delay for entire RCUT
C56: Computed based on formulas I have here | H56: Computed based on formulas I have here | M56: Computed based on formulas I have here
C59: Delay for each movement | D59: Extra distance travel time (EDTT) for each movement | E59: Experienced Travel Time (ETT) | F59: Average ETT | H59: Delay for each movement | I59: Extra distance travel time (EDTT) for each movement | J59: Experienced Travel Time (ETT) | K59: Average ETT | M59: Delay for each movement | N59: Extra distance travel time (EDTT) for each movement | O59: Experienced Travel Time (ETT) | P59: Average ETT
B60: SB Left | C60: =C13+C21 -> 22.5 | D60: 0 | E60: =C60+D60 -> 22.5 | G60: SB Left | H60: =H13+H21 -> 22.5 | I60: 0 | J60: =H60+I60 -> 22.5 | L60: SB Left | M60: =M13+M21 -> 22.5 | N60: 0 | O60: =M60+N60 -> 22.5
B61: SB Through | C61: =D21+C13 -> 7.8 | D61: 0 | E61: =C61+D61 -> 7.8 | G61: SB Through | H61: =I21+H13 -> 7.8 | I61: 0 | J61: =H61+I61 -> 7.8 | L61: SB Through | M61: =N21+M13 -> 7.8 | N61: 0 | O61: =M61+N61 -> 7.8
B62: SB Right | C62: =E21+C13 -> 7.7 | D62: 0 | E62: 7.7 | G62: SB Right | H62: =J21+H13 -> 7.7 | I62: 0 | J62: 7.7 | L62: SB Right | M62: =O21+M13 -> 7.7 | N62: 0 | O62: 7.7
B63: EB Left | C63: =F21+D25+D17 -> 49 | D63: =(2*$E$6)/(1.47*$E$7) -> 18.14058957 | E63: 67.14058957 | G63: EB Left | H63: =K21+I25+I17 -> 49 | I63: =(2*$E$6)/(1.47*$E$7) -> 18.14058957 | J63: 67.14058957 | L63: EB Left | M63: =P21+N25+N17 -> 49 | N63: =(2*$E$6)/(1.47*$E$7) -> 18.14058957 | O63: 67.14058957
B64: EB Through | C64: =F21+D25+E17 -> 46.9 | D64: =(2*$E$6)/(1.47*$E$7) -> 18.14058957 | E64: 65.04058957 | G64: EB Through | H64: =K21+I25+J17 -> 46.9 | I64: =(2*$E$6)/(1.47*$E$7) -> 18.14058957 | J64: 65.04058957 | L64: EB Through | M64: =P21+N25+O17 -> 46.9 | N64: =(2*$E$6)/(1.47*$E$7) -> 18.14058957 | O64: 65.04058957
B65: EB Right | C65: =F21 -> 21.3 | D65: 0 | E65: 21.3 | G65: EB Right | H65: =K21 -> 21.3 | I65: 0 | J65: 21.3 | L65: EB Right | M65: =P21 -> 21.3 | N65: 0 | O65: 21.3
B66: NB Left | C66: =C25+C17 -> 22.4 | D66: 0 | E66: 22.4 | G66: NB Left | H66: =H25+H17 -> 22.4 | I66: 0 | J66: 22.4 | L66: NB Left | M66: =M25+M17 -> 22.4 | N66: 0 | O66: 22.4
B67: NB Through | C67: =C25+D17 -> 9 | D67: 0 | E67: 9 | G67: NB Through | H67: =H25+I17 -> 9 | I67: 0 | J67: 9 | L67: NB Through | M67: =M25+N17 -> 9 | N67: 0 | O67: 9
B68: NB Right | C68: =C25+E17 -> 6.9 | D68: 0 | E68: 6.9 | G68: NB Right | H68: =H25+J17 -> 6.9 | I68: 0 | J68: 6.9 | L68: NB Right | M68: =M25+O17 -> 6.9 | N68: 0 | O68: 6.9
B69: WB Left | C69: =F17+D13+D21 -> 47.8 | D69: =2*$F$6/(1.47*$E$7) -> 18.14058957 | E69: 65.94058957 | G69: WB Left | H69: =K17+I13+I21 -> 47.8 | I69: =2*$F$6/(1.47*$E$7) -> 18.14058957 | J69: 65.94058957 | L69: WB Left | M69: =P17+N13+N21 -> 47.8 | N69: =2*$F$6/(1.47*$E$7) -> 18.14058957 | O69: 65.94058957
B70: WB Through | C70: =F17+D13+E21 -> 47.7 | D70: =2*$F$6/(1.47*$E$7) -> 18.14058957 | E70: 65.84058957 | G70: WB Through | H70: =K17+I13+J21 -> 47.7 | I70: =2*$F$6/(1.47*$E$7) -> 18.14058957 | J70: 65.84058957 | L70: WB Through | M70: =P17+N13+O21 -> 47.7 | N70: =2*$F$6/(1.47*$E$7) -> 18.14058957 | O70: 65.84058957
B71: WB Right | C71: =F17 -> 21.5 | D71: 0 | E71: 21.5 | G71: WB Right | H71: =K17 -> 21.5 | I71: 0 | J71: 21.5 | L71: WB Right | M71: =P17 -> 21.5 | N71: 0 | O71: 21.5
F72: =(E60*T14+E61*U14+E62*V14+E63*T17+E64*U17+E65*V17+E66*T15+E67*U15+E68*V15+E69*T16+E70*U16+E71*V16)/(T14+U14+V14+T15+U15+V15+T17+U17+V17+T16+U16+V16) -> 31.92186319 | K72: =(J60*X14+J61*Y14+J62*Z14+J63*X17+J64*Y17+J65*Z17+J66*X15+J67*Y15+J68*Z15+J69*X16+J70*Y16+J71*Z16)/(X14+Y14+Z14+X15+Y15+Z15+X17+Y17+Z17+X16+Y16+Z16) -> 31.92186319 | P72: =(O60*AB14+O61*AC14+O62*AD14+O63*AB17+O64*AC17+O65*AD17+O66*AB15+O67*AC15+O68*AD15+O69*AB16+O70*AC16+O71*AD16)/(AB14+AC14+AD14+AB15+AC15+AD15+AB17+AC17+AD17+AB16+AC16+AD16) -> 31.92186319
B75: Design Year AM Peak | G75: Design Year PM Peak | L75: Design Year Weekend Peak
B76: Computation of Control Delay for entire RCUT | G76: Computation of Control Delay for entire RCUT | L76: Computation of Control Delay for entire RCUT
C77: Computed based on formulas I have here | H77: Computed based on formulas I have here | M77: Computed based on formulas I have here
C80: Delay for each movement | D80: Extra distance travel time (EDTT) for each movement | E80: Experienced Travel Time (ETT) | F80: Average ETT | H80: Delay for each movement | I80: Extra distance travel time (EDTT) for each movement | J80: Experienced Travel Time (ETT) | K80: Average ETT | M80: Delay for each movement | N80: Extra distance travel time (EDTT) for each movement | O80: Experienced Travel Time (ETT) | P80: Average ETT
B81: SB Left | C81: =C31+C39 -> 31.4 | D81: 0 | E81: =C81+D81 -> 31.4 | G81: SB Left | H81: =H31+H39 -> 31.4 | I81: 0 | J81: =H81+I81 -> 31.4 | L81: SB Left | M81: =M31+M39 -> 31.4 | N81: 0 | O81: =M81+N81 -> 31.4
B82: SB Through | C82: =D39+C31 -> 17.7 | D82: 0 | E82: =C82+D82 -> 17.7 | G82: SB Through | H82: =I39+H31 -> 17.7 | I82: 0 | J82: =H82+I82 -> 17.7 | L82: SB Through | M82: =N39+M31 -> 17.7 | N82: 0 | O82: =M82+N82 -> 17.7
B83: SB Right | C83: =E39+C31 -> 15.8 | D83: 0 | E83: 15.8 | G83: SB Right | H83: =J39+H31 -> 15.8 | I83: 0 | J83: 15.8 | L83: SB Right | M83: =O39+M31 -> 15.8 | N83: 0 | O83: 15.8
B84: EB Left | C84: =F39+D43+D35 -> 114.6 | D84: =(2*$E$6)/(1.47*$E$7) -> 18.14058957 | E84: 132.7405896 | G84: EB Left | H84: =K39+I43+I35 -> 114.6 | I84: =(2*$E$6)/(1.47*$E$7) -> 18.14058957 | J84: 132.7405896 | L84: EB Left | M84: =P39+N43+N35 -> 114.6 | N84: =(2*$E$6)/(1.47*$E$7) -> 18.14058957 | O84: 132.7405896
B85: EB Through | C85: =F39+D43+E35 -> 85.6 | D85: =(2*$E$6)/(1.47*$E$7) -> 18.14058957 | E85: 103.7405896 | G85: EB Through | H85: =K39+I43+J35 -> 85.6 | I85: =(2*$E$6)/(1.47*$E$7) -> 18.14058957 | J85: 103.7405896 | L85: EB Through | M85: =P39+N43+O35 -> 85.6 | N85: =(2*$E$6)/(1.47*$E$7) -> 18.14058957 | O85: 103.7405896
B86: EB Right | C86: =F39 -> 34.9 | D86: 0 | E86: 34.9 | G86: EB Right | H86: =K39 -> 34.9 | I86: 0 | J86: 34.9 | L86: EB Right | M86: =P39 -> 34.9 | N86: 0 | O86: 34.9
B87: NB Left | C87: =C43+C35 -> 55.7 | D87: 0 | E87: 55.7 | G87: NB Left | H87: =H43+H35 -> 55.7 | I87: 0 | J87: 55.7 | L87: NB Left | M87: =M43+M35 -> 55.7 | N87: 0 | O87: 55.7
B88: NB Through | C88: =C43+D35 -> 65 | D88: 0 | E88: 65 | G88: NB Through | H88: =H43+I35 -> 65 | I88: 0 | J88: 65 | L88: NB Through | M88: =M43+N35 -> 65 | N88: 0 | O88: 65
B89: NB Right | C89: =C43+E35 -> 36 | D89: 0 | E89: 36 | G89: NB Right | H89: =H43+J35 -> 36 | I89: 0 | J89: 36 | L89: NB Right | M89: =M43+O35 -> 36 | N89: 0 | O89: 36
B90: WB Left | C90: =F35+D31+D39 -> 93.9 | D90: =2*$F$6/(1.47*$E$7) -> 18.14058957 | E90: 112.0405896 | G90: WB Left | H90: =K35+I31+I39 -> 93.9 | I90: =2*$F$6/(1.47*$E$7) -> 18.14058957 | J90: 112.0405896 | L90: WB Left | M90: =P35+N31+N39 -> 93.9 | N90: =2*$F$6/(1.47*$E$7) -> 18.14058957 | O90: 112.0405896
B91: WB Through | C91: =F35+D31+E39 -> 92 | D91: =2*$F$6/(1.47*$E$7) -> 18.14058957 | E91: 110.1405896 | G91: WB Through | H91: =K35+I31+J39 -> 92 | I91: =2*$F$6/(1.47*$E$7) -> 18.14058957 | J91: 110.1405896 | L91: WB Through | M91: =P35+N31+O39 -> 92 | N91: =2*$F$6/(1.47*$E$7) -> 18.14058957 | O91: 110.1405896
B92: WB Right | C92: =F35 -> 42.2 | D92: 0 | E92: 42.2 | G92: WB Right | H92: =K35 -> 42.2 | I92: 0 | J92: 42.2 | L92: WB Right | M92: =P35 -> 42.2 | N92: 0 | O92: 42.2
F93: =(E81*T32+E82*U32+E83*V32+E84*T35+E85*U35+E86*V35+E87*T33+E88*U33+E89*V33+E90*T34+E91*U34+E92*V34)/(T32+U32+V32+T33+U33+V33+T35+U35+V35+T34+U34+V34) -> 63.11352986 | K93: =(J81*X32+J82*Y32+J83*Z32+J84*X35+J85*Y35+J86*Z35+J87*X33+J88*Y33+J89*Z33+J90*X34+J91*Y34+J92*Z34)/(X32+Y32+Z32+X33+Y33+Z33+X35+Y35+Z35+X34+Y34+Z34) -> 63.11352986 | P93: =(O81*AB32+O82*AC32+O83*AD32+O84*AB35+O85*AC35+O86*AD35+O87*AB33+O88*AC33+O89*AD33+O90*AB34+O91*AC34+O92*AD34)/(AB32+AC32+AD32+AB33+AC33+AD33+AB35+AC35+AD35+AB34+AC34+AD34) -> 63.11352986

Sheet BaseCase_B (hidden)
A1: =AlternativeNumber_0&" - "&IF(OR(AlternativeShortName_0="",AlternativeShortName_0=Alternatives_DefaultAlternativeShortName),DefinedAlternative_Prompt_AlternativeShortName,AlternativeShortName_0) -> Base Case - 1 | E1: * Create these sheets but hide them
A3: Description: | B3: Base Case
A4: A summary of the net present value for this alternative is shown to the right in Column "J"
A5: Planning & construction period | B5: Begin planning & construction | D5: First year of planning & construction
A6: Operating period | B6: Opening year | C6: =IF(ISNUMBER(Volumes!D8),Volumes!D8,"") -> 2020 | D6: Travel time/delay and demand forecasts for the opening year must be provided. | J6: Net Present Value Summary
J8: Planning & Construction Costs | K8: =B127 -> 0
J9: Operating & Maintenance Costs | K9: =L146 -> 0
B10: End year | C10: =IF(ISNUMBER(Volumes!F8),Volumes!F8,"") -> 2040 | D10: Travel time/delay and demand forecasts for the end (horizon) year must be provided. | J10: Auto Passenger Time | K10: =IF(ISNUMBER(K162),IF(K162>0,K162,"--"),"--") -> 304807.1599 | L10: =IF(AND(ISNUMBER(K10),ISNUMBER(K11),ISNUMBER(K12),ISNUMBER(K13),ISNUMBER(K14),ISNUMBER(K15),ISNUMBER(K16),ISNUMBER(K17),ISNUMBER(K18),ISNUMBER(K19),ISNUMBER(K20)),"","Warning: A zero entry for a cost category indicates that the data needed to calculate that cost have either not been entered or have been entered incorrectly. If you believe this is an error please review your entries in this sheet.") -> Warning: A zero entry for a cost category indicates that the data needed to calculate that cost have either not been entered or have been entered incorrectly. If you believe this is an error please review your entries in this sheet.
A11: Worksheet setup | D11: Once you have entered begin planning & construction, opening, and end years, click this button to set up the worksheet. You may enter other inputs at any time. | J11: Auto Passenger Reliability | K11: --
A12: Planning & construction costs | B12: Units | F12: Notes | J12: Truck Time | K12: 17899.54196
J13: Truck Reliability | K13: --
A14: Planning, design | B14: Dollars | C14: 0 | J14: Transit Passenger Time | K14: --
A15: Survey | B15: Dollars | C15: 0 | J15: Transit Passenger Reliability | K15: --
A16: Right of way | B16: Dollars | C16: 0 | J16: Bicyclist Time | K16: --
A17: Equipment, signs | B17: Dollars | C17: 0 | J17: Pedestrian Time | K17: --
A18: Utilities | B18: Dollars | C18: 0 | J18: Safety | K18: --
A19: Construction | B19: Dollars | C19: 0 | J19: Greenhouse Gases | K19: --
A20: Landscaping | B20: Dollars | C20: 0 | J20: Criteria Pollutants | K20: --
A21: =DefinedAlternative_OtherPlanningConstructionCosts_Prompt -> (Other planning & construction costs) | B21: Dollars | J21: Total Net Present Value | K21: =SUM(K8:K20) -> 322706.7019
A22: (Other planning & construction costs) | B22: Dollars | J22: =IF(NOT(ISNUMBER(K21)),"If the total NPV seems wrong some entries may be missing, inconsistent, or wrong","") -> 
A23: (Other planning & construction costs) | B23: Dollars
A24: (Other planning & construction costs) | B24: Dollars
A25: (Other planning & construction costs) | B25: Dollars
A26: (Other planning & construction costs) | B26: Dollars
A27: (Other planning & construction costs) | B27: Dollars
A28: (Other planning & construction costs) | B28: Dollars
A29: (Other planning & construction costs) | B29: Dollars
A30: (Other planning & construction costs) | B30: Dollars
A32: Operating & maintenance costs | B32: Units | C32: Begin year | D32: Period (years) | E32: Cost | F32: Notes
A33: Power | B33: Dollars | I33: Calculations can be reviewed within table beginning in cell K133.
A34: Inspection | B34: Dollars
A35: Repaving | B35: Dollars
A36: Signing, striping | B36: Dollars
A37: =DefinedAlternative_OtherOMCosts_Prompt -> (Other O&M costs) | B37: Dollars
A38: (Other O&M costs) | B38: Dollars
A39: (Other O&M costs) | B39: Dollars
A40: (Other O&M costs) | B40: Dollars
A41: (Other O&M costs) | B41: Dollars
A42: (Other O&M costs) | B42: Dollars
A43: (Other O&M costs) | B43: Dollars
A44: (Other O&M costs) | B44: Dollars
A45: (Other O&M costs) | B45: Dollars
A46: (Other O&M costs) | B46: Dollars
A48: Demand & travel time / delay | B48: Average travel time / delay | D48: Opening year | E48: Additional Inputs | H48: End year | I48: Notes | K48: 1 value vs multiple choice (via dropdown)
B49: Time Period | C49: Units | D49: =$C$6 -> 2020 | E49: =IF($C$7="","",$C$7) ->  | F49: =IF($C$8="","",$C$8) ->  | G49: =IF($C$9="","",$C$9) ->  | H49: =$C$10 -> 2040
A50: Average vehicle travel time or delay | B50: AM peak | C50: seconds/veh | K50: =IF(OR(COUNT(D50:D52)=0,COUNT(H50:H52)=0,AND(E49<>"",COUNT(E50:E52)=0),AND(F49<>"",COUNT(F50:F52)=0),AND(G49<>"",COUNT(G50:G52)=0)),"NOTE: At least one travel time/delay value must be entered for each year specified",IF(COUNT(D50:H52)<>COUNT(D84:H86),"Number of travel time/delay entries is different from the number of peak/offpeak hourly volumes entered in the DemandParameters sheet. Please correct the discrepancy and re-run Setup for this sheet.","")) -> NOTE: At least one travel time/delay value must be entered for each year specified
B51: PM peak | C51: seconds/veh
B52: Weekend peak | C52: seconds/veh
A53: Standard deviation of vehicle travel time or delay | B53: AM peak | C53: seconds/veh | D53: 0 | H53: 0 | K53: =IF(AND(COUNT(D53:H55)>0,OR(AND(D50<>"",D53=""),AND(D51<>"",D54=""),AND(E49<>"",OR(AND(E50<>"",E53=""),AND(E51<>"",E54=""))),AND(F49<>"",OR(AND(F50<>"",F53=""),AND(F51<>"",F54=""))),AND(G49<>"",OR(AND(G50<>"",G53=""),AND(G51<>"",G54=""))),AND(H50<>"",H53=""),AND(H51<>"",H54=""))),"NOTE: If reliability )standard deviations) are entered, there must be a corresponding standard deviation entry for each peak period travel time/delay entry","") -> 
B54: PM peak | C54: seconds/veh | D54: 0 | H54: 0
B55: Weekend peak | C55: seconds/veh | D55: 0 | H55: 0
A56: Average bicycle travel time or delay | B56: All time periods | C56: seconds/bike
A57: Average pedestrian travel time or delay | B57: All time periods | C57: seconds/ped
A59: Safety | B59: Crash type | C59: Units
A60: Fatal-Injury, PDO Crashes | B60: =IF(IsChecked_CrashCategories_KABCO,INDEX(CostParameters!$C$11:$C$15,CELL("row",J60)-CELL("row",$J$59)),IF(IsChecked_CrashCategories_FatalityInjuryPDO,IF(ISERROR(INDEX(CostParameters!$C$16:$C$18,CELL("row",J60)-CELL("row",$J$59))),"",INDEX(CostParameters!$C$16:$C$18,CELL("row",J60)-CELL("row",$J$59))),IF(IsChecked_CrashCategories_TotalCrashes,IF(ISERROR(INDEX(CostParameters!$C$19,CELL("row",J60)-CELL("row",$J$59))),"",INDEX(CostParameters!$C$19,CELL("row",J60)-CELL("row",$J$59))),IF(IsChecked_CrashCategories_UserDefined,IF(INDEX(CostParameters!$C$20:$C$24,CELL("row",J60)-CELL("row",$J$59))="","",INDEX(CostParameters!$C$20:$C$24,CELL("row",J60)-CELL("row",$J$59))),"Error!")))) -> Fatal & Injury Crashes | C60: crashes/year
B61: =IF(IsChecked_CrashCategories_KABCO,INDEX(CostParameters!$C$11:$C$15,CELL("row",J61)-CELL("row",$J$59)),IF(IsChecked_CrashCategories_FatalityInjuryPDO,IF(ISERROR(INDEX(CostParameters!$C$16:$C$18,CELL("row",J61)-CELL("row",$J$59))),"",INDEX(CostParameters!$C$16:$C$18,CELL("row",J61)-CELL("row",$J$59))),IF(IsChecked_CrashCategories_TotalCrashes,IF(ISERROR(INDEX(CostParameters!$C$19,CELL("row",J61)-CELL("row",$J$59))),"",INDEX(CostParameters!$C$19,CELL("row",J61)-CELL("row",$J$59))),IF(IsChecked_CrashCategories_UserDefined,IF(INDEX(CostParameters!$C$20:$C$24,CELL("row",J61)-CELL("row",$J$59))="","",INDEX(CostParameters!$C$20:$C$24,CELL("row",J61)-CELL("row",$J$59))),"Error!")))) -> Property damage only crashes | C61: =IF(LEN(TRIM(B61))>0,"crashes/year","") -> crashes/year
B62: =IF(IsChecked_CrashCategories_KABCO,INDEX(CostParameters!$C$11:$C$15,CELL("row",J62)-CELL("row",$J$59)),IF(IsChecked_CrashCategories_FatalityInjuryPDO,IF(ISERROR(INDEX(CostParameters!$C$16:$C$18,CELL("row",J62)-CELL("row",$J$59))),"",INDEX(CostParameters!$C$16:$C$18,CELL("row",J62)-CELL("row",$J$59))),IF(IsChecked_CrashCategories_TotalCrashes,IF(ISERROR(INDEX(CostParameters!$C$19,CELL("row",J62)-CELL("row",$J$59))),"",INDEX(CostParameters!$C$19,CELL("row",J62)-CELL("row",$J$59))),IF(IsChecked_CrashCategories_UserDefined,IF(INDEX(CostParameters!$C$20:$C$24,CELL("row",J62)-CELL("row",$J$59))="","",INDEX(CostParameters!$C$20:$C$24,CELL("row",J62)-CELL("row",$J$59))),"Error!")))) -> 0 | C62: =IF(LEN(TRIM(B62))>0,"crashes/year","") -> crashes/year
B63: =IF(IsChecked_CrashCategories_KABCO,INDEX(CostParameters!$C$11:$C$15,CELL("row",J63)-CELL("row",$J$59)),IF(IsChecked_CrashCategories_FatalityInjuryPDO,IF(ISERROR(INDEX(CostParameters!$C$16:$C$18,CELL("row",J63)-CELL("row",$J$59))),"",INDEX(CostParameters!$C$16:$C$18,CELL("row",J63)-CELL("row",$J$59))),IF(IsChecked_CrashCategories_TotalCrashes,IF(ISERROR(INDEX(CostParameters!$C$19,CELL("row",J63)-CELL("row",$J$59))),"",INDEX(CostParameters!$C$19,CELL("row",J63)-CELL("row",$J$59))),IF(IsChecked_CrashCategories_UserDefined,IF(INDEX(CostParameters!$C$20:$C$24,CELL("row",J63)-CELL("row",$J$59))="","",INDEX(CostParameters!$C$20:$C$24,CELL("row",J63)-CELL("row",$J$59))),"Error!")))) -> 0 | C63: =IF(LEN(TRIM(B63))>0,"crashes/year","") -> crashes/year
B64: =IF(IsChecked_CrashCategories_KABCO,INDEX(CostParameters!$C$11:$C$15,CELL("row",J64)-CELL("row",$J$59)),IF(IsChecked_CrashCategories_FatalityInjuryPDO,IF(ISERROR(INDEX(CostParameters!$C$16:$C$18,CELL("row",J64)-CELL("row",$J$59))),"",INDEX(CostParameters!$C$16:$C$18,CELL("row",J64)-CELL("row",$J$59))),IF(IsChecked_CrashCategories_TotalCrashes,IF(ISERROR(INDEX(CostParameters!$C$19,CELL("row",J64)-CELL("row",$J$59))),"",INDEX(CostParameters!$C$19,CELL("row",J64)-CELL("row",$J$59))),IF(IsChecked_CrashCategories_UserDefined,IF(INDEX(CostParameters!$C$20:$C$24,CELL("row",J64)-CELL("row",$J$59))="","",INDEX(CostParameters!$C$20:$C$24,CELL("row",J64)-CELL("row",$J$59))),"Error!")))) -> 0 | C64: =IF(LEN(TRIM(B64))>0,"crashes/year","") -> crashes/year
A66: Emissions | B66: Type | C66: Units
A67: ="Greenhouse gases -- "&IF(IsChecked_GHG_Values_FederalMethod,"Federal method (Exec. Order 12866)","user defined costs") -> Greenhouse gases -- user defined costs | B67: CO2 equivalent | C67: =IF(LEN(TRIM(B67))>0,"metric tons/year","") -> metric tons/year
A68: ="Criteria pollutants -- " & IF(IsChecked_CriteriaPollutantCategories_ByType,"by type","user defined categories") -> Criteria pollutants -- by type | B68: =IF(IsChecked_CriteriaPollutantCategories_ByType,CostParameters!C27,IF(CostParameters!C31="","",CostParameters!C31)) -> 0 | C68: metric tons/year
B69: =IF(IsChecked_CriteriaPollutantCategories_ByType,CostParameters!C28,IF(CostParameters!C32="","",CostParameters!C32)) -> 0 | C69: metric tons/year
B70: =IF(IsChecked_CriteriaPollutantCategories_ByType,CostParameters!C29,IF(CostParameters!C33="","",CostParameters!C33)) -> 0 | C70: metric tons/year
B71: =IF(IsChecked_CriteriaPollutantCategories_ByType,CostParameters!C30,IF(CostParameters!C34="","",CostParameters!C34)) -> 0 | C71: metric tons/year
A74: Calculations
A77: This section contains the formulas that carry out the detailed cost calculations. Modifications to this section will affect the program code.
A80: Delay model
D81: logs of vehicle volumes and travel times/delays
A82: Travel time/delay | B82: Average travel time/delay | D82: Opening Year | E82: Interim Year(s) | H82: End year
B83: Time period | C83: Units | D83: =$C$6 -> 2020 | E83: =IF($C$7="","",$C$7) ->  | F83: =IF($C$8="","",$C$8) ->  | G83: =IF($C$9="","",$C$9) ->  | H83: =$C$10 -> 2040
A84: Log total entering vehicles | B84: AM peak hour | C84: log(vehicles/hr.) | D84: 7.097406652 | H84: 7.296413269
B85: PM peak hour | C85: log(vehicles/hr.) | D85: 7.296535327 | H85: 7.495541944
B86: Average off-peak hourly | C86: log(vehicles/hr.) | D86: 4.584967479 | H86: 4.787491743
A87: Log average vehicle travel time / delay | B87: =B84 -> AM peak hour | C87: log(seconds/veh) | D87: =IF(D50="","",IF(ISNUMBER(D50),IF(D50>0,LN(D50),""),"")) ->  | E87: =IF(E50="","",IF(ISNUMBER(E50),IF(E50>0,LN(E50),""),"")) -> 
B88: =B85 -> PM peak hour | C88: log(seconds/veh) | D88: =IF(D51="","",IF(ISNUMBER(D51),IF(D51>0,LN(D51),""),"")) -> 
B89: Average off-peak hourly | C89: log(seconds/veh)
A91: Travel time / delay mode; | G91: predicted delay
A92: X'X | C92: (X'X)^-1 | E92: Delay model coeff | G92: =$C$6 -> 2020 | H92: =IF($C$7="","",$C$7) ->  | I92: =IF($C$8="","",$C$8) ->  | J92: =IF($C$9="","",$C$9) ->  | K92: =$C$10 -> 2040
A93: =COUNT(D84:H86) -> 6 | B93: =A94 -> 38.55835641 | C93: =MINVERSE(A93:B94) -> 4.663326397 | D93: -0.6997175423 | E93: const | F93: =MMULT(C93:D94,B95:B96) -> 0 | G93: =IF(D84="","",EXP($F$93+$F$94*D84)) -> 1 | K93: 1
A94: =SUM(D84:H86) -> 38.55835641 | B94: =SUMSQ(D84:H86) -> 256.9754085 | C94: -0.6997175423 | D94: 0.1088818519 | E94: exp | F94: 0 | G94: 1 | K94: 1
A95: X'y | B95: =SUM(D87:H89) -> 0 | C95: std err estimate | D95: =IF(COUNT(D84:H86)<2,"NA",SQRT(SUMXMY2(G93:K95,D50:H52)/(COUNT(D84:H86)-2))) ->  | E95: seconds | G95: 1 | K95: 1
B96: =SUMPRODUCT(D84:H86,D87:H89) -> 0 | E96: =MMULT(C93:D94,B95:B96) -> 0 | F96: =IF(E97>=0, E96, AVERAGE(G96:K98)) -> 0 | G96: =IF(D50>0,LN(D50) - 1.66*D84,"") ->  | K96: =IF(H50>0,LN(H50) - 1.66*H84,"") -> 
E97: 0 | F97: =IF(E97>=0,E97, 1.66) -> 0 | G97: =IF(D51>0,LN(D51) - 1.66*D85,"") ->  | K97: =IF(H51>0,LN(H51) - 1.66*H85,"") -> 
G98: =IF(ISNUMBER(D52),IF(D52>0,LN(D52) - 1.66*D86,""),"") ->  | K98: =IF(ISNUMBER(H52),IF(H52>0,LN(H52) - 1.66*H86,""),"") -> 
B99: Base year | C99: Planning and construction years
C100: Year 1 | D100: Year 2 | E100: Year 3 | F100: Year 4 | G100: Year 5
B101: =IF(BaseYear="",DefaultYearPrompt,BaseYear) -> 2020 | C101: =IF(ISNUMBER($C$6),$C$6,"") -> 2020 | D101: =IF(ISNUMBER(C101),C101+1,"") -> 2021 | E101: =IF(ISNUMBER(D101),D101+1,"") -> 2022 | F101: =IF(ISNUMBER(E101),E101+1,"") -> 2023 | G101: =IF(ISNUMBER(F101),F101+1,"") -> 2024
A104: Discount factor | B104: =1/((1+Discount_Rate)^(B$101-BaseYear)) -> 1 | C104: =IF(ISNUMBER(C101),1/((1+Discount_Rate)^(C$101-BaseYear)),0) -> 1 | D104: =IF(ISNUMBER(D101),1/((1+Discount_Rate)^(D$101-BaseYear)),0) -> 0.9615384615 | E104: =IF(ISNUMBER(E101),1/((1+Discount_Rate)^(E$101-BaseYear)),0) -> 0.924556213 | F104: =IF(ISNUMBER(F101),1/((1+Discount_Rate)^(F$101-BaseYear)),0) -> 0.8889963587 | G104: =IF(ISNUMBER(G101),1/((1+Discount_Rate)^(G$101-BaseYear)),0) -> 0.854804191
A106: Planning & Construction Costs
A109: =A14 -> Planning, design | C109: =C14 -> 0 | D109: 0 | E109: 0 | F109: 0 | G109: 0
A110: Survey | C110: 0 | D110: 0 | E110: 0 | F110: 0 | G110: 0
A111: Right of way | C111: 0 | D111: 0 | E111: 0 | F111: 0 | G111: 0
A112: Equipment, signs | C112: 0 | D112: 0 | E112: 0 | F112: 0 | G112: 0
A113: Utilities | C113: 0 | D113: 0 | E113: 0 | F113: 0 | G113: 0
A114: Construction | C114: 0 | D114: 0 | E114: 0 | F114: 0 | G114: 0
A115: Landscaping | C115: 0 | D115: 0 | E115: 0 | F115: 0 | G115: 0
A116: (Other planning & construction costs) | C116: 0 | D116: 0 | E116: 0 | F116: 0 | G116: 0
A117: (Other planning & construction costs) | C117: 0 | D117: 0 | E117: 0 | F117: 0 | G117: 0
A118: (Other planning & construction costs) | C118: 0 | D118: 0 | E118: 0 | F118: 0 | G118: 0
A119: (Other planning & construction costs) | C119: 0 | D119: 0 | E119: 0 | F119: 0 | G119: 0
A120: (Other planning & construction costs) | C120: 0 | D120: 0 | E120: 0 | F120: 0 | G120: 0
A121: (Other planning & construction costs) | C121: 0 | D121: 0 | E121: 0 | F121: 0 | G121: 0
A122: (Other planning & construction costs) | C122: 0 | D122: 0 | E122: 0 | F122: 0 | G122: 0
A123: (Other planning & construction costs) | C123: 0 | D123: 0 | E123: 0 | F123: 0 | G123: 0
A124: (Other planning & construction costs) | C124: 0 | D124: 0 | E124: 0 | F124: 0 | G124: 0
A125: (Other planning & construction costs) | C125: 0 | D125: 0 | E125: 0 | F125: 0 | G125: 0
A126: Sum - planning & construction | C126: =SUM(C109:C125) -> 0 | D126: =SUM(D109:D125) -> 0 | E126: =SUM(E109:E125) -> 0 | F126: =SUM(F109:F125) -> 0 | G126: =SUM(G109:G125) -> 0
A127: NPV - planning & construction | B127: =SUMPRODUCT($C$104:$G$104,C126:G126) -> 0
K128: Year ---> | L128: =$C$6 -> 2020 | M128: =IF(AND(L128+1<=$C$10,L128+1>$C$6),L128+1,0) -> 2021 | N128: =IF(AND(M128+1<=$C$10,M128+1>$C$6),M128+1,0) -> 2022 | O128: 2023 | P128: 2024 | Q128: 2025 | R128: 2026 | S128: 2027 | T128: 2028 | U128: 2029 | V128: 2030 | W128: 2031 | X128: 2032 | Y128: 2033 | Z128: 2034 | AA128: 2035 | AB128: 2036 | AC128: 2037 | AD128: 2038 | AE128: 2039 | AF128: 2040 | AG128: 0 | AH128: 0 | AI128: 0 | AJ128: 0 | AK128: 0 | AL128: 0 | AM128: 0 | AN128: 0 | AO128: 0 | AP128: 0 | AQ128: 0 | AR128: 0 | AS128: 0 | AT128: 0 | AU128: 0 | AV128: 0 | AW128: 0 | AX128: 0 | AY128: 0 | AZ128: 0 | BA128: 0 | BB128: 0 | BC128: 0 | BD128: 0 | BE128: 0 | BF128: 0 | BG128: 0 | BH128: 0 | BI128: 0 | BJ128: 0 | BK128: 0 | BL128: 0 | BM128: 0 | BN128: 0 | BO128: 0 | BP128: 0 | BQ128: 0 | BR128: 0 | BS128: 0 | BT128: 0 | BU128: 0 | BV128: 0 | BW128: 0 | BX128: 0 | BY128: 0 | BZ128: =IF(AND(BY128+1<=$C$10,BY128+1>$C$6),BY128+1,0) -> 0 | CA128: 0 | CB128: 0 | CC128: 0 | CD128: 0 | CE128: 0 | CF128: 0 | CG128: 0 | CH128: 0 | CI128: 0 | CJ128: 0 | CK128: 0 | CL128: 0 | CM128: 0 | CN128: 0 | CO128: 0 | CP128: 0 | CQ128: 0 | CR128: 0 | CS128: 0 | CT128: 0 | CU128: 0 | CV128: 0 | CW128: 0 | CX128: 0 | CY128: 0 | CZ128: 0 | DA128: 0 | DB128: 0 | DC128: 0 | DD128: 0 | DE128: 0 | DF128: 0 | DG128: 0
K129: Discount factor ---> | L129: =IF(L$128>0,(1+Discount_Rate)^(-(L$128-BaseYear)),0) -> 1 | M129: 0.9615384615 | N129: 0.924556213 | O129: 0.8889963587 | P129: 0.854804191 | Q129: 0.8219271068 | R129: 0.7903145257 | S129: 0.7599178132 | T129: 0.730690205 | U129: 0.7025867356 | V129: 0.6755641688 | W129: 0.6495809316 | X129: 0.6245970496 | Y129: 0.6005740861 | Z129: 0.5774750828 | AA129: 0.5552645027 | AB129: 0.5339081757 | AC129: 0.5133732459 | AD129: 0.493628121 | AE129: 0.474642424 | AF129: 0.4563869462 | AG129: 0 | AH129: 0 | AI129: 0 | AJ129: 0 | AK129: 0 | AL129: 0 | AM129: 0 | AN129: 0 | AO129: 0 | AP129: 0 | AQ129: 0 | AR129: 0 | AS129: 0 | AT129: 0 | AU129: 0 | AV129: 0 | AW129: 0 | AX129: 0 | AY129: 0 | AZ129: 0 | BA129: 0 | BB129: 0 | BC129: 0 | BD129: 0 | BE129: 0 | BF129: 0 | BG129: 0 | BH129: 0 | BI129: 0 | BJ129: 0 | BK129: 0 | BL129: 0 | BM129: 0 | BN129: 0 | BO129: 0 | BP129: 0 | BQ129: 0 | BR129: 0 | BS129: 0 | BT129: 0 | BU129: 0 | BV129: 0 | BW129: 0 | BX129: =IF(BX$128>0,(1+Discount_Rate)^(-(BX$128-BaseYear)),0) -> 0 | BY129: 0 | BZ129: 0 | CA129: 0 | CB129: 0 | CC129: 0 | CD129: 0 | CE129: 0 | CF129: 0 | CG129: 0 | CH129: 0 | CI129: 0 | CJ129: 0 | CK129: 0 | CL129: 0 | CM129: 0 | CN129: 0 | CO129: 0 | CP129: 0 | CQ129: 0 | CR129: 0 | CS129: 0 | CT129: 0 | CU129: 0 | CV129: 0 | CW129: 0 | CX129: 0 | CY129: 0 | CZ129: 0 | DA129: 0 | DB129: 0 | DC129: 0 | DD129: 0 | DE129: 0 | DF129: 0 | DG129: 0
A130: Post-Opening Costs | B130: Units | C130: Begin year | D130: Period (years) | E130: Cost | K130: Post-opening O&M
A131: Power | B131: Dollars | C131: =IF(C33="","",C33) ->  | K131: =A131 -> Power | L131: =IF(OR($C131="",$E131="",$C131<$C$6,L$128<$C131),0,IF(MOD(L$128-$C131,IF(OR($D131="",$D131=0),1000,$D131))=0,$E131,0)) -> 0 | M131: 0 | N131: 0 | O131: 0 | P131: 0 | Q131: 0 | R131: 0 | S131: 0 | T131: 0 | U131: 0 | V131: 0 | W131: 0 | X131: 0 | Y131: 0 | Z131: 0 | AA131: 0 | AB131: =IF(OR($C131="",$E131="",$C131<$C$6,AB$128<$C131),0,IF(MOD(AB$128-$C131,IF(OR($D131="",$D131=0),1000,$D131))=0,$E131,0)) -> 0 | AC131: 0 | AD131: 0 | AE131: 0 | AF131: 0 | AG131: 0 | AH131: 0 | AI131: 0 | AJ131: 0 | AK131: 0 | AL131: 0 | AM131: 0 | AN131: 0 | AO131: 0 | AP131: 0 | AQ131: 0 | AR131: =IF(OR($C131="",$E131="",$C131<$C$6,AR$128<$C131),0,IF(MOD(AR$128-$C131,IF(OR($D131="",$D131=0),1000,$D131))=0,$E131,0)) -> 0 | AS131: 0 | AT131: 0 | AU131: 0 | AV131: 0 | AW131: 0 | AX131: 0 | AY131: 0 | AZ131: 0 | BA131: 0 | BB131: 0 | BC131: 0 | BD131: 0 | BE131: 0 | BF131: 0 | BG131: 0 | BH131: =IF(OR($C131="",$E131="",$C131<$C$6,BH$128<$C131),0,IF(MOD(BH$128-$C131,IF(OR($D131="",$D131=0),1000,$D131))=0,$E131,0)) -> 0 | BI131: 0 | BJ131: 0 | BK131: 0 | BL131: 0 | BM131: 0 | BN131: 0 | BO131: 0 | BP131: 0 | BQ131: 0 | BR131: 0 | BS131: 0 | BT131: 0 | BU131: 0 | BV131: 0 | BW131: 0 | BX131: =IF(OR($C131="",$E131="",$C131<$C$6,BX$128<$C131),0,IF(MOD(BX$128-$C131,IF(OR($D131="",$D131=0),1000,$D131))=0,$E131,0)) -> 0 | BY131: 0 | BZ131: 0 | CA131: 0 | CB131: 0 | CC131: 0 | CD131: 0 | CE131: 0 | CF131: 0 | CG131: 0 | CH131: 0 | CI131: 0 | CJ131: 0 | CK131: 0 | CL131: 0 | CM131: 0 | CN131: =IF(OR($C131="",$E131="",$C131<$C$6,CN$128<$C131),0,IF(MOD(CN$128-$C131,IF(OR($D131="",$D131=0),1000,$D131))=0,$E131,0)) -> 0 | CO131: 0 | CP131: 0 | CQ131: 0 | CR131: 0 | CS131: 0 | CT131: 0 | CU131: 0 | CV131: 0 | CW131: 0 | CX131: 0 | CY131: 0 | CZ131: 0 | DA131: 0 | DB131: 0 | DC131: 0 | DD131: =IF(OR($C131="",$E131="",$C131<$C$6,DD$128<$C131),0,IF(MOD(DD$128-$C131,IF(OR($D131="",$D131=0),1000,$D131))=0,$E131,0)) -> 0 | DE131: 0 | DF131: 0 | DG131: 0
A132: Inspection | B132: Dollars | K132: Inspection | L132: 0 | M132: 0 | N132: 0 | O132: 0 | P132: 0 | Q132: 0 | R132: 0 | S132: 0 | T132: 0 | U132: 0 | V132: 0 | W132: 0 | X132: 0 | Y132: 0 | Z132: 0 | AA132: 0 | AB132: 0 | AC132: 0 | AD132: 0 | AE132: 0 | AF132: 0 | AG132: 0 | AH132: 0 | AI132: 0 | AJ132: 0 | AK132: 0 | AL132: 0 | AM132: 0 | AN132: 0 | AO132: 0 | AP132: 0 | AQ132: 0 | AR132: 0 | AS132: 0 | AT132: 0 | AU132: 0 | AV132: 0 | AW132: 0 | AX132: 0 | AY132: 0 | AZ132: 0 | BA132: 0 | BB132: 0 | BC132: 0 | BD132: 0 | BE132: 0 | BF132: 0 | BG132: 0 | BH132: 0 | BI132: 0 | BJ132: 0 | BK132: 0 | BL132: 0 | BM132: 0 | BN132: 0 | BO132: 0 | BP132: 0 | BQ132: 0 | BR132: 0 | BS132: 0 | BT132: 0 | BU132: 0 | BV132: 0 | BW132: 0 | BX132: 0 | BY132: 0 | BZ132: 0 | CA132: 0 | CB132: 0 | CC132: 0 | CD132: 0 | CE132: 0 | CF132: 0 | CG132: 0 | CH132: 0 | CI132: 0 | CJ132: 0 | CK132: 0 | CL132: 0 | CM132: 0 | CN132: 0 | CO132: 0 | CP132: 0 | CQ132: 0 | CR132: 0 | CS132: 0 | CT132: 0 | CU132: 0 | CV132: 0 | CW132: 0 | CX132: 0 | CY132: 0 | CZ132: 0 | DA132: 0 | DB132: 0 | DC132: 0 | DD132: 0 | DE132: 0 | DF132: 0 | DG132: 0
A133: Repaving | B133: Dollars | K133: Repaving | L133: 0 | M133: 0 | N133: 0 | O133: 0 | P133: 0 | Q133: 0 | R133: 0 | S133: 0 | T133: 0 | U133: 0 | V133: 0 | W133: 0 | X133: 0 | Y133: 0 | Z133: 0 | AA133: 0 | AB133: 0 | AC133: 0 | AD133: 0 | AE133: 0 | AF133: 0 | AG133: 0 | AH133: 0 | AI133: 0 | AJ133: 0 | AK133: 0 | AL133: 0 | AM133: 0 | AN133: 0 | AO133: 0 | AP133: 0 | AQ133: 0 | AR133: 0 | AS133: 0 | AT133: 0 | AU133: 0 | AV133: 0 | AW133: 0 | AX133: 0 | AY133: 0 | AZ133: 0 | BA133: 0 | BB133: 0 | BC133: 0 | BD133: 0 | BE133: 0 | BF133: 0 | BG133: 0 | BH133: 0 | BI133: 0 | BJ133: 0 | BK133: 0 | BL133: 0 | BM133: 0 | BN133: 0 | BO133: 0 | BP133: 0 | BQ133: 0 | BR133: 0 | BS133: 0 | BT133: 0 | BU133: 0 | BV133: 0 | BW133: 0 | BX133: 0 | BY133: 0 | BZ133: 0 | CA133: 0 | CB133: 0 | CC133: 0 | CD133: 0 | CE133: 0 | CF133: 0 | CG133: 0 | CH133: 0 | CI133: 0 | CJ133: 0 | CK133: 0 | CL133: 0 | CM133: 0 | CN133: 0 | CO133: 0 | CP133: 0 | CQ133: 0 | CR133: 0 | CS133: 0 | CT133: 0 | CU133: 0 | CV133: 0 | CW133: 0 | CX133: 0 | CY133: 0 | CZ133: 0 | DA133: 0 | DB133: 0 | DC133: 0 | DD133: 0 | DE133: 0 | DF133: 0 | DG133: 0
A134: Signing, striping | B134: Dollars | K134: Signing, striping | L134: 0 | M134: 0 | N134: 0 | O134: 0 | P134: 0 | Q134: 0 | R134: 0 | S134: 0 | T134: 0 | U134: 0 | V134: 0 | W134: 0 | X134: 0 | Y134: 0 | Z134: 0 | AA134: 0 | AB134: 0 | AC134: 0 | AD134: 0 | AE134: 0 | AF134: 0 | AG134: 0 | AH134: 0 | AI134: 0 | AJ134: 0 | AK134: 0 | AL134: 0 | AM134: 0 | AN134: 0 | AO134: 0 | AP134: 0 | AQ134: 0 | AR134: 0 | AS134: 0 | AT134: 0 | AU134: 0 | AV134: 0 | AW134: 0 | AX134: 0 | AY134: 0 | AZ134: 0 | BA134: 0 | BB134: 0 | BC134: 0 | BD134: 0 | BE134: 0 | BF134: 0 | BG134: 0 | BH134: 0 | BI134: 0 | BJ134: 0 | BK134: 0 | BL134: 0 | BM134: 0 | BN134: 0 | BO134: 0 | BP134: 0 | BQ134: 0 | BR134: 0 | BS134: 0 | BT134: 0 | BU134: 0 | BV134: 0 | BW134: 0 | BX134: 0 | BY134: 0 | BZ134: 0 | CA134: 0 | CB134: 0 | CC134: 0 | CD134: 0 | CE134: 0 | CF134: 0 | CG134: 0 | CH134: 0 | CI134: 0 | CJ134: 0 | CK134: 0 | CL134: 0 | CM134: 0 | CN134: 0 | CO134: 0 | CP134: 0 | CQ134: 0 | CR134: 0 | CS134: 0 | CT134: 0 | CU134: 0 | CV134: 0 | CW134: 0 | CX134: 0 | CY134: 0 | CZ134: 0 | DA134: 0 | DB134: 0 | DC134: 0 | DD134: 0 | DE134: 0 | DF134: 0 | DG134: 0
A135: [Other O&M costs] | B135: Dollars | K135: [Other O&M costs] | L135: 0 | M135: 0 | N135: 0 | O135: 0 | P135: 0 | Q135: 0 | R135: 0 | S135: 0 | T135: 0 | U135: 0 | V135: 0 | W135: 0 | X135: 0 | Y135: 0 | Z135: 0 | AA135: 0 | AB135: 0 | AC135: 0 | AD135: 0 | AE135: 0 | AF135: 0 | AG135: 0 | AH135: 0 | AI135: 0 | AJ135: 0 | AK135: 0 | AL135: 0 | AM135: 0 | AN135: 0 | AO135: 0 | AP135: 0 | AQ135: 0 | AR135: 0 | AS135: 0 | AT135: 0 | AU135: 0 | AV135: 0 | AW135: 0 | AX135: 0 | AY135: 0 | AZ135: 0 | BA135: 0 | BB135: 0 | BC135: 0 | BD135: 0 | BE135: 0 | BF135: 0 | BG135: 0 | BH135: 0 | BI135: 0 | BJ135: 0 | BK135: 0 | BL135: 0 | BM135: 0 | BN135: 0 | BO135: 0 | BP135: 0 | BQ135: 0 | BR135: 0 | BS135: 0 | BT135: 0 | BU135: 0 | BV135: 0 | BW135: 0 | BX135: 0 | BY135: 0 | BZ135: 0 | CA135: 0 | CB135: 0 | CC135: 0 | CD135: 0 | CE135: 0 | CF135: 0 | CG135: 0 | CH135: 0 | CI135: 0 | CJ135: 0 | CK135: 0 | CL135: 0 | CM135: 0 | CN135: 0 | CO135: 0 | CP135: 0 | CQ135: 0 | CR135: 0 | CS135: 0 | CT135: 0 | CU135: 0 | CV135: 0 | CW135: 0 | CX135: 0 | CY135: 0 | CZ135: 0 | DA135: 0 | DB135: 0 | DC135: 0 | DD135: 0 | DE135: 0 | DF135: 0 | DG135: 0
A136: [Other O&M costs] | B136: Dollars | K136: [Other O&M costs] | L136: 0 | M136: 0 | N136: 0 | O136: 0 | P136: 0 | Q136: 0 | R136: 0 | S136: 0 | T136: 0 | U136: 0 | V136: 0 | W136: 0 | X136: 0 | Y136: 0 | Z136: 0 | AA136: 0 | AB136: 0 | AC136: 0 | AD136: 0 | AE136: 0 | AF136: 0 | AG136: 0 | AH136: 0 | AI136: 0 | AJ136: 0 | AK136: 0 | AL136: 0 | AM136: 0 | AN136: 0 | AO136: 0 | AP136: 0 | AQ136: 0 | AR136: 0 | AS136: 0 | AT136: 0 | AU136: 0 | AV136: 0 | AW136: 0 | AX136: 0 | AY136: 0 | AZ136: 0 | BA136: 0 | BB136: 0 | BC136: 0 | BD136: 0 | BE136: 0 | BF136: 0 | BG136: 0 | BH136: 0 | BI136: 0 | BJ136: 0 | BK136: 0 | BL136: 0 | BM136: 0 | BN136: 0 | BO136: 0 | BP136: 0 | BQ136: 0 | BR136: 0 | BS136: 0 | BT136: 0 | BU136: 0 | BV136: 0 | BW136: 0 | BX136: 0 | BY136: 0 | BZ136: 0 | CA136: 0 | CB136: 0 | CC136: 0 | CD136: 0 | CE136: 0 | CF136: 0 | CG136: 0 | CH136: 0 | CI136: 0 | CJ136: 0 | CK136: 0 | CL136: 0 | CM136: 0 | CN136: 0 | CO136: 0 | CP136: 0 | CQ136: 0 | CR136: 0 | CS136: 0 | CT136: 0 | CU136: 0 | CV136: 0 | CW136: 0 | CX136: 0 | CY136: 0 | CZ136: 0 | DA136: 0 | DB136: 0 | DC136: 0 | DD136: 0 | DE136: 0 | DF136: 0 | DG136: 0
A137: [Other O&M costs] | B137: Dollars | K137: [Other O&M costs] | L137: 0 | M137: 0 | N137: 0 | O137: 0 | P137: 0 | Q137: 0 | R137: 0 | S137: 0 | T137: 0 | U137: 0 | V137: 0 | W137: 0 | X137: 0 | Y137: 0 | Z137: 0 | AA137: 0 | AB137: 0 | AC137: 0 | AD137: 0 | AE137: 0 | AF137: 0 | AG137: 0 | AH137: 0 | AI137: 0 | AJ137: 0 | AK137: 0 | AL137: 0 | AM137: 0 | AN137: 0 | AO137: 0 | AP137: 0 | AQ137: 0 | AR137: 0 | AS137: 0 | AT137: 0 | AU137: 0 | AV137: 0 | AW137: 0 | AX137: 0 | AY137: 0 | AZ137: 0 | BA137: 0 | BB137: 0 | BC137: 0 | BD137: 0 | BE137: 0 | BF137: 0 | BG137: 0 | BH137: 0 | BI137: 0 | BJ137: 0 | BK137: 0 | BL137: 0 | BM137: 0 | BN137: 0 | BO137: 0 | BP137: 0 | BQ137: 0 | BR137: 0 | BS137: 0 | BT137: 0 | BU137: 0 | BV137: 0 | BW137: 0 | BX137: 0 | BY137: 0 | BZ137: 0 | CA137: 0 | CB137: 0 | CC137: 0 | CD137: 0 | CE137: 0 | CF137: 0 | CG137: 0 | CH137: 0 | CI137: 0 | CJ137: 0 | CK137: 0 | CL137: 0 | CM137: 0 | CN137: 0 | CO137: 0 | CP137: 0 | CQ137: 0 | CR137: 0 | CS137: 0 | CT137: 0 | CU137: 0 | CV137: 0 | CW137: 0 | CX137: 0 | CY137: 0 | CZ137: 0 | DA137: 0 | DB137: 0 | DC137: 0 | DD137: 0 | DE137: 0 | DF137: 0 | DG137: 0
A138: [Other O&M costs] | B138: Dollars | K138: [Other O&M costs] | L138: 0 | M138: 0 | N138: 0 | O138: 0 | P138: 0 | Q138: 0 | R138: 0 | S138: 0 | T138: 0 | U138: 0 | V138: 0 | W138: 0 | X138: 0 | Y138: 0 | Z138: 0 | AA138: 0 | AB138: 0 | AC138: 0 | AD138: 0 | AE138: 0 | AF138: 0 | AG138: 0 | AH138: 0 | AI138: 0 | AJ138: 0 | AK138: 0 | AL138: 0 | AM138: 0 | AN138: 0 | AO138: 0 | AP138: 0 | AQ138: 0 | AR138: 0 | AS138: 0 | AT138: 0 | AU138: 0 | AV138: 0 | AW138: 0 | AX138: 0 | AY138: 0 | AZ138: 0 | BA138: 0 | BB138: 0 | BC138: 0 | BD138: 0 | BE138: 0 | BF138: 0 | BG138: 0 | BH138: 0 | BI138: 0 | BJ138: 0 | BK138: 0 | BL138: 0 | BM138: 0 | BN138: 0 | BO138: 0 | BP138: 0 | BQ138: 0 | BR138: 0 | BS138: 0 | BT138: 0 | BU138: 0 | BV138: 0 | BW138: 0 | BX138: 0 | BY138: 0 | BZ138: 0 | CA138: 0 | CB138: 0 | CC138: 0 | CD138: 0 | CE138: 0 | CF138: 0 | CG138: 0 | CH138: 0 | CI138: 0 | CJ138: 0 | CK138: 0 | CL138: 0 | CM138: 0 | CN138: 0 | CO138: 0 | CP138: 0 | CQ138: 0 | CR138: 0 | CS138: 0 | CT138: 0 | CU138: 0 | CV138: 0 | CW138: 0 | CX138: 0 | CY138: 0 | CZ138: 0 | DA138: 0 | DB138: 0 | DC138: 0 | DD138: 0 | DE138: 0 | DF138: 0 | DG138: 0
A139: [Other O&M costs] | B139: Dollars | K139: [Other O&M costs] | L139: 0 | M139: 0 | N139: 0 | O139: 0 | P139: 0 | Q139: 0 | R139: 0 | S139: 0 | T139: 0 | U139: 0 | V139: 0 | W139: 0 | X139: 0 | Y139: 0 | Z139: 0 | AA139: 0 | AB139: 0 | AC139: 0 | AD139: 0 | AE139: 0 | AF139: 0 | AG139: 0 | AH139: 0 | AI139: 0 | AJ139: 0 | AK139: 0 | AL139: 0 | AM139: 0 | AN139: 0 | AO139: 0 | AP139: 0 | AQ139: 0 | AR139: 0 | AS139: 0 | AT139: 0 | AU139: 0 | AV139: 0 | AW139: 0 | AX139: 0 | AY139: 0 | AZ139: 0 | BA139: 0 | BB139: 0 | BC139: 0 | BD139: 0 | BE139: 0 | BF139: 0 | BG139: 0 | BH139: 0 | BI139: 0 | BJ139: 0 | BK139: 0 | BL139: 0 | BM139: 0 | BN139: 0 | BO139: 0 | BP139: 0 | BQ139: 0 | BR139: 0 | BS139: 0 | BT139: 0 | BU139: 0 | BV139: 0 | BW139: 0 | BX139: 0 | BY139: 0 | BZ139: 0 | CA139: 0 | CB139: 0 | CC139: 0 | CD139: 0 | CE139: 0 | CF139: 0 | CG139: 0 | CH139: 0 | CI139: 0 | CJ139: 0 | CK139: 0 | CL139: 0 | CM139: 0 | CN139: 0 | CO139: 0 | CP139: 0 | CQ139: 0 | CR139: 0 | CS139: 0 | CT139: 0 | CU139: 0 | CV139: 0 | CW139: 0 | CX139: 0 | CY139: 0 | CZ139: 0 | DA139: 0 | DB139: 0 | DC139: 0 | DD139: 0 | DE139: 0 | DF139: 0 | DG139: 0
A140: [Other O&M costs] | B140: Dollars | K140: [Other O&M costs] | L140: 0 | M140: 0 | N140: 0 | O140: 0 | P140: 0 | Q140: 0 | R140: 0 | S140: 0 | T140: 0 | U140: 0 | V140: 0 | W140: 0 | X140: 0 | Y140: 0 | Z140: 0 | AA140: 0 | AB140: 0 | AC140: 0 | AD140: 0 | AE140: 0 | AF140: 0 | AG140: 0 | AH140: 0 | AI140: 0 | AJ140: 0 | AK140: 0 | AL140: 0 | AM140: 0 | AN140: 0 | AO140: 0 | AP140: 0 | AQ140: 0 | AR140: 0 | AS140: 0 | AT140: 0 | AU140: 0 | AV140: 0 | AW140: 0 | AX140: 0 | AY140: 0 | AZ140: 0 | BA140: 0 | BB140: 0 | BC140: 0 | BD140: 0 | BE140: 0 | BF140: 0 | BG140: 0 | BH140: 0 | BI140: 0 | BJ140: 0 | BK140: 0 | BL140: 0 | BM140: 0 | BN140: 0 | BO140: 0 | BP140: 0 | BQ140: 0 | BR140: 0 | BS140: 0 | BT140: 0 | BU140: 0 | BV140: 0 | BW140: 0 | BX140: 0 | BY140: 0 | BZ140: 0 | CA140: 0 | CB140: 0 | CC140: 0 | CD140: 0 | CE140: 0 | CF140: 0 | CG140: 0 | CH140: 0 | CI140: 0 | CJ140: 0 | CK140: 0 | CL140: 0 | CM140: 0 | CN140: 0 | CO140: 0 | CP140: 0 | CQ140: 0 | CR140: 0 | CS140: 0 | CT140: 0 | CU140: 0 | CV140: 0 | CW140: 0 | CX140: 0 | CY140: 0 | CZ140: 0 | DA140: 0 | DB140: 0 | DC140: 0 | DD140: 0 | DE140: 0 | DF140: 0 | DG140: 0
A141: [Other O&M costs] | B141: Dollars | K141: [Other O&M costs] | L141: 0 | M141: 0 | N141: 0 | O141: 0 | P141: 0 | Q141: 0 | R141: 0 | S141: 0 | T141: 0 | U141: 0 | V141: 0 | W141: 0 | X141: 0 | Y141: 0 | Z141: 0 | AA141: 0 | AB141: 0 | AC141: 0 | AD141: 0 | AE141: 0 | AF141: 0 | AG141: 0 | AH141: 0 | AI141: 0 | AJ141: 0 | AK141: 0 | AL141: 0 | AM141: 0 | AN141: 0 | AO141: 0 | AP141: 0 | AQ141: 0 | AR141: 0 | AS141: 0 | AT141: 0 | AU141: 0 | AV141: 0 | AW141: 0 | AX141: 0 | AY141: 0 | AZ141: 0 | BA141: 0 | BB141: 0 | BC141: 0 | BD141: 0 | BE141: 0 | BF141: 0 | BG141: 0 | BH141: 0 | BI141: 0 | BJ141: 0 | BK141: 0 | BL141: 0 | BM141: 0 | BN141: 0 | BO141: 0 | BP141: 0 | BQ141: 0 | BR141: 0 | BS141: 0 | BT141: 0 | BU141: 0 | BV141: 0 | BW141: 0 | BX141: 0 | BY141: 0 | BZ141: 0 | CA141: 0 | CB141: 0 | CC141: 0 | CD141: 0 | CE141: 0 | CF141: 0 | CG141: 0 | CH141: 0 | CI141: 0 | CJ141: 0 | CK141: 0 | CL141: 0 | CM141: 0 | CN141: 0 | CO141: 0 | CP141: 0 | CQ141: 0 | CR141: 0 | CS141: 0 | CT141: 0 | CU141: 0 | CV141: 0 | CW141: 0 | CX141: 0 | CY141: 0 | CZ141: 0 | DA141: 0 | DB141: 0 | DC141: 0 | DD141: 0 | DE141: 0 | DF141: 0 | DG141: 0
A142: [Other O&M costs] | B142: Dollars | K142: [Other O&M costs] | L142: 0 | M142: 0 | N142: 0 | O142: 0 | P142: 0 | Q142: 0 | R142: 0 | S142: 0 | T142: 0 | U142: 0 | V142: 0 | W142: 0 | X142: 0 | Y142: 0 | Z142: 0 | AA142: 0 | AB142: 0 | AC142: 0 | AD142: 0 | AE142: 0 | AF142: 0 | AG142: 0 | AH142: 0 | AI142: 0 | AJ142: 0 | AK142: 0 | AL142: 0 | AM142: 0 | AN142: 0 | AO142: 0 | AP142: 0 | AQ142: 0 | AR142: 0 | AS142: 0 | AT142: 0 | AU142: 0 | AV142: 0 | AW142: 0 | AX142: 0 | AY142: 0 | AZ142: 0 | BA142: 0 | BB142: 0 | BC142: 0 | BD142: 0 | BE142: 0 | BF142: 0 | BG142: 0 | BH142: 0 | BI142: 0 | BJ142: 0 | BK142: 0 | BL142: 0 | BM142: 0 | BN142: 0 | BO142: 0 | BP142: 0 | BQ142: 0 | BR142: 0 | BS142: 0 | BT142: 0 | BU142: 0 | BV142: 0 | BW142: 0 | BX142: 0 | BY142: 0 | BZ142: 0 | CA142: 0 | CB142: 0 | CC142: 0 | CD142: 0 | CE142: 0 | CF142: 0 | CG142: 0 | CH142: 0 | CI142: 0 | CJ142: 0 | CK142: 0 | CL142: 0 | CM142: 0 | CN142: 0 | CO142: 0 | CP142: 0 | CQ142: 0 | CR142: 0 | CS142: 0 | CT142: 0 | CU142: 0 | CV142: 0 | CW142: 0 | CX142: 0 | CY142: 0 | CZ142: 0 | DA142: 0 | DB142: 0 | DC142: 0 | DD142: 0 | DE142: 0 | DF142: 0 | DG142: 0
A143: [Other O&M costs] | B143: Dollars | K143: [Other O&M costs] | L143: 0 | M143: 0 | N143: 0 | O143: 0 | P143: 0 | Q143: 0 | R143: 0 | S143: 0 | T143: 0 | U143: 0 | V143: 0 | W143: 0 | X143: 0 | Y143: 0 | Z143: 0 | AA143: 0 | AB143: 0 | AC143: 0 | AD143: 0 | AE143: 0 | AF143: 0 | AG143: 0 | AH143: 0 | AI143: 0 | AJ143: 0 | AK143: 0 | AL143: 0 | AM143: 0 | AN143: 0 | AO143: 0 | AP143: 0 | AQ143: 0 | AR143: 0 | AS143: 0 | AT143: 0 | AU143: 0 | AV143: 0 | AW143: 0 | AX143: 0 | AY143: 0 | AZ143: 0 | BA143: 0 | BB143: 0 | BC143: 0 | BD143: 0 | BE143: 0 | BF143: 0 | BG143: 0 | BH143: 0 | BI143: 0 | BJ143: 0 | BK143: 0 | BL143: 0 | BM143: 0 | BN143: 0 | BO143: 0 | BP143: 0 | BQ143: 0 | BR143: 0 | BS143: 0 | BT143: 0 | BU143: 0 | BV143: 0 | BW143: 0 | BX143: 0 | BY143: 0 | BZ143: 0 | CA143: 0 | CB143: 0 | CC143: 0 | CD143: 0 | CE143: 0 | CF143: 0 | CG143: 0 | CH143: 0 | CI143: 0 | CJ143: 0 | CK143: 0 | CL143: 0 | CM143: 0 | CN143: 0 | CO143: 0 | CP143: 0 | CQ143: 0 | CR143: 0 | CS143: 0 | CT143: 0 | CU143: 0 | CV143: 0 | CW143: 0 | CX143: 0 | CY143: 0 | CZ143: 0 | DA143: 0 | DB143: 0 | DC143: 0 | DD143: 0 | DE143: 0 | DF143: 0 | DG143: 0
A144: [Other O&M costs] | B144: Dollars | K144: [Other O&M costs] | L144: 0 | M144: 0 | N144: 0 | O144: 0 | P144: 0 | Q144: 0 | R144: 0 | S144: 0 | T144: 0 | U144: 0 | V144: 0 | W144: 0 | X144: 0 | Y144: 0 | Z144: 0 | AA144: 0 | AB144: 0 | AC144: 0 | AD144: 0 | AE144: 0 | AF144: 0 | AG144: 0 | AH144: 0 | AI144: 0 | AJ144: 0 | AK144: 0 | AL144: 0 | AM144: 0 | AN144: 0 | AO144: 0 | AP144: 0 | AQ144: 0 | AR144: 0 | AS144: 0 | AT144: 0 | AU144: 0 | AV144: 0 | AW144: 0 | AX144: 0 | AY144: 0 | AZ144: 0 | BA144: 0 | BB144: 0 | BC144: 0 | BD144: 0 | BE144: 0 | BF144: 0 | BG144: 0 | BH144: 0 | BI144: 0 | BJ144: 0 | BK144: 0 | BL144: 0 | BM144: 0 | BN144: 0 | BO144: 0 | BP144: 0 | BQ144: 0 | BR144: 0 | BS144: 0 | BT144: 0 | BU144: 0 | BV144: 0 | BW144: 0 | BX144: 0 | BY144: 0 | BZ144: 0 | CA144: 0 | CB144: 0 | CC144: 0 | CD144: 0 | CE144: 0 | CF144: 0 | CG144: 0 | CH144: 0 | CI144: 0 | CJ144: 0 | CK144: 0 | CL144: 0 | CM144: 0 | CN144: 0 | CO144: 0 | CP144: 0 | CQ144: 0 | CR144: 0 | CS144: 0 | CT144: 0 | CU144: 0 | CV144: 0 | CW144: 0 | CX144: 0 | CY144: 0 | CZ144: 0 | DA144: 0 | DB144: 0 | DC144: 0 | DD144: 0 | DE144: 0 | DF144: 0 | DG144: 0
K145: Sum O&M (year) | L145: =SUM(L131:L144) -> 0 | M145: =SUM(M131:M144) -> 0 | N145: 0 | O145: 0 | P145: 0 | Q145: 0 | R145: 0 | S145: 0 | T145: 0 | U145: 0 | V145: 0 | W145: 0 | X145: 0 | Y145: 0 | Z145: 0 | AA145: 0 | AB145: 0 | AC145: 0 | AD145: 0 | AE145: 0 | AF145: 0 | AG145: 0 | AH145: 0 | AI145: 0 | AJ145: 0 | AK145: 0 | AL145: 0 | AM145: 0 | AN145: 0 | AO145: 0 | AP145: 0 | AQ145: 0 | AR145: 0 | AS145: 0 | AT145: 0 | AU145: 0 | AV145: 0 | AW145: 0 | AX145: 0 | AY145: 0 | AZ145: 0 | BA145: 0 | BB145: 0 | BC145: 0 | BD145: 0 | BE145: 0 | BF145: 0 | BG145: 0 | BH145: 0 | BI145: 0 | BJ145: 0 | BK145: 0 | BL145: 0 | BM145: 0 | BN145: 0 | BO145: 0 | BP145: 0 | BQ145: 0 | BR145: 0 | BS145: 0 | BT145: 0 | BU145: 0 | BV145: 0 | BW145: 0 | BX145: 0 | BY145: =SUM(BY131:BY144) -> 0 | BZ145: 0 | CA145: 0 | CB145: 0 | CC145: 0 | CD145: 0 | CE145: 0 | CF145: 0 | CG145: 0 | CH145: 0 | CI145: 0 | CJ145: 0 | CK145: 0 | CL145: 0 | CM145: 0 | CN145: 0 | CO145: 0 | CP145: 0 | CQ145: 0 | CR145: 0 | CS145: 0 | CT145: 0 | CU145: 0 | CV145: 0 | CW145: 0 | CX145: 0 | CY145: 0 | CZ145: 0 | DA145: 0 | DB145: 0 | DC145: 0 | DD145: 0 | DE145: 0 | DF145: 0 | DG145: 0
K146: NPV O&M | L146: =SUMPRODUCT($L$129:$DG$129,L145:DG145) -> 0
A149: Demand & travel time/delay | B149: Average travel time/delay | D149: Opening Year | E149: Interim Year(s) | H149: End year
B150: Time period | C150: Units | D150: =$C$6 -> 2020 | E150: =IF($C$7="","",$C$7) ->  | F150: =IF($C$8="","",$C$8) ->  | G150: =IF($C$9="","",$C$9) ->  | H150: =$C$10 -> 2040
A151: Standard deviation of vehicle travel time / delay | B151: AM peak | C151: seconds/veh | D151: =IF(ISNUMBER(D53),D53/SecondsPerHour,IF(ISNUMBER(D54),D54/SecondsPerHour,IF(ISNUMBER(D55),D55/SecondsPerHour,0))) -> 0 | E151: =IF(ISNUMBER(E53),E53/SecondsPerHour,IF(ISNUMBER(E54),E54/SecondsPerHour,IF(ISNUMBER(E55),E55/SecondsPerHour,0))) -> 0 | F151: =IF(ISNUMBER(F53),F53/SecondsPerHour,IF(ISNUMBER(F54),F54/SecondsPerHour,IF(ISNUMBER(F55),F55/SecondsPerHour,0))) -> 0 | G151: =IF(ISNUMBER(G53),G53/SecondsPerHour,IF(ISNUMBER(G54),G54/SecondsPerHour,IF(ISNUMBER(G55),G55/SecondsPerHour,0))) -> 0 | H151: =IF(ISNUMBER(H53),H53/SecondsPerHour,IF(ISNUMBER(H54),H54/SecondsPerHour,IF(ISNUMBER(H55),H55/SecondsPerHour,0))) -> 0
B152: PM peak | C152: seconds/veh | D152: =IF(ISNUMBER(D54),D54/SecondsPerHour,IF(ISNUMBER(D53/SecondsPerHour),D53,IF(ISNUMBER(D55),D55/SecondsPerHour,0))) -> 0 | E152: =IF(ISNUMBER(E54),E54/SecondsPerHour,IF(ISNUMBER(E53/SecondsPerHour),E53,IF(ISNUMBER(E55),E55/SecondsPerHour,0))) -> 0 | F152: =IF(ISNUMBER(F54),F54/SecondsPerHour,IF(ISNUMBER(F53/SecondsPerHour),F53,IF(ISNUMBER(F55),F55/SecondsPerHour,0))) -> 0 | G152: =IF(ISNUMBER(G54),G54/SecondsPerHour,IF(ISNUMBER(G53/SecondsPerHour),G53,IF(ISNUMBER(G55),G55/SecondsPerHour,0))) -> 0 | H152: =IF(ISNUMBER(H54),H54/SecondsPerHour,IF(ISNUMBER(H53/SecondsPerHour),H53,IF(ISNUMBER(H55),H55/SecondsPerHour,0))) -> 0
B153: Off-peak | C153: seconds/veh | D153: =IF(ISNUMBER(D55),D55/SecondsPerHour,0) -> 0 | E153: =IF(ISNUMBER(E55),E55/SecondsPerHour,0) -> 0 | F153: =IF(ISNUMBER(F55),F55/SecondsPerHour,0) -> 0 | G153: =IF(ISNUMBER(G55),G55/SecondsPerHour,0) -> 0 | H153: =IF(ISNUMBER(H55),H55/SecondsPerHour,0) -> 0
A154: Average bike travel time / delay | B154: All | C154: seconds/bike | D154: =D56 -> 0 | E154: 0 | F154: 0 | G154: 0 | H154: 0
A155: Average ped travel time / delay | B155: All | C155: seconds/ped | D155: 0 | E155: 0 | F155: 0 | G155: 0 | H155: 0
A157: User & nonuser costs | J157: DefinedAlternative_InterpolationFormulaTemplate | K157: =IF(NOT(AND(ISNUMBER(DummyCellReference_1),ISNUMBER(DummyCellReference_2))),0,IF(AND(DummyCellReference_1>0,DummyCellReference_2>0),DummyCellReference_1*(DummyCellReference_2/DummyCellReference_1)^((DummyCellReference_4-DummyCellReference_3)/(DummyCellReference_5-DummyCellReference_3)),0)) -> 0
D159: Summary costs for user specified years
A160: Cost category | D160: Opening Year | E160: Interim Year(s) | H160: End year | J160: NPV calculations | K160: Total NPV | L160: Spot values
D161: =$C$6 -> 2020 | E161: =IF($C$7="","",$C$7) ->  | F161: =IF($C$8="","",$C$8) ->  | G161: =IF($C$9="","",$C$9) ->  | H161: =$C$10 -> 2040
A162: Auto passenger time cost | D162: =IF(ISNUMBER(D$150),SUMPRODUCT(DemandProfiles!O167:O8926*(1-DemandParameters!$C$35)*DemandParameters!$C$34,EXP(AverageTravelTimeModel_Constant+AverageTravelTimeModel_LogVolumeParameter*LN(DemandProfiles!O167:O8926))/SecondsPerHour,--(DemandProfiles!C167:C8926=Code_Offpeak),--(DemandProfiles!O167:O8926<>0))*TimeValue_Person_Offpeak+SUMPRODUCT(DemandProfiles!O167:O8926*(1-DemandParameters!$C$35),EXP(AverageTravelTimeModel_Constant+AverageTravelTimeModel_LogVolumeParameter*LN(DemandProfiles!O167:O8926))/SecondsPerHour,--(DemandProfiles!C167:C8926<>Code_Offpeak),--(DemandProfiles!O167:O8926<>0))*TimeValue_Person_Peak,"") -> 19148.08655 | E162: =IF(ISNUMBER(E$150),SUM(L$203:L$8962),0) -> 0 | F162: =IF(ISNUMBER(F$150),SUM(T$203:T$8962),0) -> 0 | G162: =IF(ISNUMBER(G$150),SUM(AB$203:AB$8962),"") ->  | H162: =IF(ISNUMBER(D$150),SUMPRODUCT(DemandProfiles!S167:S8926*(1-DemandParameters!$D$35)*DemandParameters!$D$34,EXP(AverageTravelTimeModel_Constant+AverageTravelTimeModel_LogVolumeParameter*LN(DemandProfiles!S167:S8926))/SecondsPerHour,--(DemandProfiles!C167:C8926=Code_Offpeak),--(DemandProfiles!S167:S8926<>0))*TimeValue_Person_Offpeak+SUMPRODUCT(DemandProfiles!S167:S8926*(1-DemandParameters!$D$35)*DemandParameters!$D$34,EXP(AverageTravelTimeModel_Constant+AverageTravelTimeModel_LogVolumeParameter*LN(DemandProfiles!S167:S8926))/SecondsPerHour,--(DemandProfiles!C167:C8926<>Code_Offpeak),--(DemandProfiles!S167:S8926<>0))*TimeValue_Person_Peak,"") -> 23364.30449 | J162: =A162 -> Auto passenger time cost | K162: =SUMPRODUCT(L162:DG162,$L$129:$DG$129) -> 304807.1599 | L162: =D162 -> 19148.08655 | M162: =IF(NOT(AND(ISNUMBER(L162),ISNUMBER(AF162))),0,IF(AND(L162>0,AF162>0),L162*(AF162/L162)^((M$128-L$128)/(AF$128-L$128)),0)) -> 19339.56741 | N162: =IF(NOT(AND(ISNUMBER(L162),ISNUMBER(AF162))),0,IF(AND(L162>0,AF162>0),L162*(AF162/L162)^((N$128-L$128)/(AF$128-L$128)),0)) -> 19532.96309 | O162: =IF(NOT(AND(ISNUMBER(L162),ISNUMBER(AF162))),0,IF(AND(L162>0,AF162>0),L162*(AF162/L162)^((O$128-L$128)/(AF$128-L$128)),0)) -> 19728.29272 | P162: =IF(NOT(AND(ISNUMBER(L162),ISNUMBER(AF162))),0,IF(AND(L162>0,AF162>0),L162*(AF162/L162)^((P$128-L$128)/(AF$128-L$128)),0)) -> 19925.57565 | Q162: =IF(NOT(AND(ISNUMBER(L162),ISNUMBER(AF162))),0,IF(AND(L162>0,AF162>0),L162*(AF162/L162)^((Q$128-L$128)/(AF$128-L$128)),0)) -> 20124.8314 | R162: =IF(NOT(AND(ISNUMBER(L162),ISNUMBER(AF162))),0,IF(AND(L162>0,AF162>0),L162*(AF162/L162)^((R$128-L$128)/(AF$128-L$128)),0)) -> 20326.07972 | S162: =IF(NOT(AND(ISNUMBER(L162),ISNUMBER(AF162))),0,IF(AND(L162>0,AF162>0),L162*(AF162/L162)^((S$128-L$128)/(AF$128-L$128)),0)) -> 20529.34051 | T162: =IF(NOT(AND(ISNUMBER(L162),ISNUMBER(AF162))),0,IF(AND(L162>0,AF162>0),L162*(AF162/L162)^((T$128-L$128)/(AF$128-L$128)),0)) -> 20734.63392 | U162: =IF(NOT(AND(ISNUMBER(L162),ISNUMBER(AF162))),0,IF(AND(L162>0,AF162>0),L162*(AF162/L162)^((U$128-L$128)/(AF$128-L$128)),0)) -> 20941.98026 | V162: =IF(NOT(AND(ISNUMBER(L162),ISNUMBER(AF162))),0,IF(AND(L162>0,AF162>0),L162*(AF162/L162)^((V$128-L$128)/(AF$128-L$128)),0)) -> 21151.40006 | W162: =IF(NOT(AND(ISNUMBER(L162),ISNUMBER(AF162))),0,IF(AND(L162>0,AF162>0),L162*(AF162/L162)^((W$128-L$128)/(AF$128-L$128)),0)) -> 21362.91406 | X162: =IF(NOT(AND(ISNUMBER(L162),ISNUMBER(AF162))),0,IF(AND(L162>0,AF162>0),L162*(AF162/L162)^((X$128-L$128)/(AF$128-L$128)),0)) -> 21576.5432 | Y162: =IF(NOT(AND(ISNUMBER(L162),ISNUMBER(AF162))),0,IF(AND(L162>0,AF162>0),L162*(AF162/L162)^((Y$128-L$128)/(AF$128-L$128)),0)) -> 21792.30863 | Z162: =IF(NOT(AND(ISNUMBER(L162),ISNUMBER(AF162))),0,IF(AND(L162>0,AF162>0),L162*(AF162/L162)^((Z$128-L$128)/(AF$128-L$128)),0)) -> 22010.23172 | AA162: =IF(NOT(AND(ISNUMBER(L162),ISNUMBER(AF162))),0,IF(AND(L162>0,AF162>0),L162*(AF162/L162)^((AA$128-L$128)/(AF$128-L$128)),0)) -> 22230.33404 | AB162: =IF(NOT(AND(ISNUMBER(L162),ISNUMBER(AF162))),0,IF(AND(L162>0,AF162>0),L162*(AF162/L162)^((AB$128-L$128)/(AF$128-L$128)),0)) -> 22452.63738 | AC162: =IF(NOT(AND(ISNUMBER(L162),ISNUMBER(AF162))),0,IF(AND(L162>0,AF162>0),L162*(AF162/L162)^((AC$128-L$128)/(AF$128-L$128)),0)) -> 22677.16375 | AD162: =IF(NOT(AND(ISNUMBER(L162),ISNUMBER(AF162))),0,IF(AND(L162>0,AF162>0),L162*(AF162/L162)^((AD$128-L$128)/(AF$128-L$128)),0)) -> 22903.93539 | AE162: =IF(NOT(AND(ISNUMBER(L162),ISNUMBER(AF162))),0,IF(AND(L162>0,AF162>0),L162*(AF162/L162)^((AE$128-L$128)/(AF$128-L$128)),0)) -> 23132.97474 | AF162: =H162 -> 23364.30449
